Workbook

Sheet WP Data Req Summary
A1: =co_name -> DUKE ENERGY KENTUCKY, INC.
A2: =coss_type -> ELECTRIC COST OF SERVICE STUDY
A5: Page
A6: Number | B6: Title | D6: Purpose | F6: Data to be Requested | H6: To be Requested from | J6: Date Requested
A7: Page 1 | B7: Rate Increase Exhibit | D7: Calculate Proposed Revenue Distribution by Rate Class | F7: None - Pulls from other WPs
A8: Page 2 | B8: Computation of Present Return Earned (NOI) | D8: Computation of Present Return Earned (NOI) | F8: None - Pulls from other WPs
A9: Page 3 | B9: KW, KWH, Allocation Factors - Generation Level | D9: Computation of KW & KWH Allocation Factors @ Gen | F9: None - Pulls from other WPs
A10: Page 4 | B10: KW, KWH and Customer Allocation Factors - Distribution Level | D10: Computation of KW & KWH Allocation Factors @ Distr | F10: None - Pulls from other WPs
A11: Page 5 | B11: Meter Allocation Factors | D11: Compute Allocation Factor for Meters | F11: Cost of meters by rate group | H11: Meter Support - Jason Tharp
A12: Page 6 | B12: Customer Accounts (include uncollectible) allocation factors | D12: Compute Allocation Factor for Customer Accounts | F12: Charge off Study | H12: Tiffany Dennison
A13: Page 7 | B13: Weighted Distribution Line Allocators | D13: Compute Primary & Secondary Distribution Line Alloc | F13: None - Pulls from other WPs
A14: Page 8 | B14: Weighted Services Allocators | D14: Compute Weighted Customer Services Alloc Factor | F14: None - Pulls from other WPs
A15: Page 9 | B15: KWH Energy Analysis | D15: Calculate KWH Sales at Source by applying loss factors | F15: None - Pulls from other WPs
A16: Page 10 | B16: Summary of Adjusted Rate Group Coincident and Non-coincident KW demands | D16: Summarize KW Demands by rate group for use in calculating demand allocation factors | F16: None - Pulls from other WPs
A17: Page 11 | B17: Reconciliation of Rate Group System Peak with System Peak Sendouts at Generation | D17: Summarize KW Demands by rate group for use in calculating demand allocation factors | F17: None - Pulls from other WPs
A18: Page 12 | B18: Reconciliation of Rate Group System Peak with System Peak Sendouts at Generation | D18: Summarize KW Demands by rate group for use in calculating demand allocation factors | F18: None - Pulls from other WPs
A19: Page 13 | B19: RS Coincident and Non-coincident KW Demands | D19: Derive RS Coincident & Non-coincident KW demands | F19: None - Pulls from other WPs
A20: Page 14 | B20: Total DS Coincident and Non-coincident KW Demands | D20: Total DS Coincident & Non-coincident KW demands | F20: None - Pulls from other WPs
A21: Page 15 | B21: Total DS Large - Coincident and Non-coincident KW Demands | D21: Total DS Large - Coincident & Non-coincident KW demands | F21: None - Pulls from other WPs
A22: Page 16 | B22: DS Large - Excl. RTP - Coincident and Non-coincident KW Demands | D22: DS Large - Excl. RTP - Coincident and Non-coincident KW Demands | F22: None - Pulls from other WPs
A23: Page 17 | B23: DS Large - RTP - Coincident and Non-coincident KW Demands | D23: DS Large - RTP - Coincident and Non-coincident KW Demands | F23: None - Pulls from other WPs
A24: Page 18 | B24: DS Large - Interdepartmental - Coincident and Non-coincident KW Demands | D24: DS Large - Interdepartmental - Coincident and Non-coincident KW Demands | F24: None - Pulls from other WPs
A25: Page 19 | B25: DS Small/Medium - Coincident and Non-coincident KW Demands | D25: Derive DS Small/Medium Coincident & Non-coincident KW demands | F25: None - Pulls from other WPs
A26: Page 20 | B26: DP Excluding RTP - Coincident and Non-coincident KW Demands | D26: DP Excluding RTP - Coincident and Non-coincident KW Demands | F26: None - Pulls from other WPs
A27: Page 21 | B27: DP RTP - Coincident and Non-coincident KW Demands | D27: DP RTP - Coincident and Non-coincident KW Demands | F27: None - Pulls from other WPs
A28: Page 22 | B28: Transmission Excluding RTP - Coincident and Non-coincident KW Demands | D28: DP TP - Coincident and Non-coincident KW Demands | F28: None - Pulls from other WPs
A29: Page 23 | B29: Transmission RTP - Coincident and Non-coincident KW Demands | D29: Transmission RTP - Coincident and Non-coincident KW Demands | F29: None - Pulls from other WPs
A30: Page 24 | B30: Lighting Coincident and Non-coincident KW Demands | D30: Lighting Coincident and Non-coincident KW Demands | F30: None - Pulls from other WPs
A31: Page 25 | B31: DT Primary Excl. RTP - Coincident and Non-coincident KW Demands | D31: DT Primary Excl. RTP - Coincident and Non-coincident KW Demands | F31: None - Pulls from other WPs
A32: Page 26 | B32: DT Primary RTP - Coincident and Non-coincident KW Demands | D32: DT Primary RTP - Coincident and Non-coincident KW Demands | F32: None - Pulls from other WPs
A33: Page 27 | B33: DT Secondary Excl. RTP - Coincident and Non-coincident KW Demands | D33: DT Secondary Excl. RTP - Coincident and Non-coincident KW Demands | F33: None - Pulls from other WPs
A34: Page 28 | B34: DT Secondary RTP - Coincident and Non-coincident KW Demands | D34: DT Secondary RTP - Coincident and Non-coincident KW Demands | F34: None - Pulls from other WPs
A35: Page 29 | B35: "Other" Coincident and Non-coincident KW Demands | D35: "Other" Coincident and Non-coincident KW Demands | F35: None - Pulls from other WPs
A36: Page 30 | B36: GSFL Coincident and Non-coincident KW Demands | D36: GSFL Coincident and Non-coincident KW Demands | F36: None - Pulls from other WPs
A37: Page 31 | B37: EH Coincident and Non-coincident KW Demands | D37: Electric Space Heating Coincident and Non-coincident KW Demands | F37: None - Pulls from other WPs
A38: Page 32 | B38: SP Coincident and Non-coincident KW Demands | D38: Seasonal Sports Coincident and Non-coincident KW Demands | F38: None - Pulls from other WPs
A39: Page 33 | B39: Distribution Monthly Loss Ratios | D39: Distribution Monthly Loss Ratios | F39: System Peak KW | H39: FERC Form 1, Page 401b, Column (d)
A40: Page 34 | B40: Transmission Monthly Loss Ratios | D40: Transmission Monthly Loss Ratios | F40: None - Pulls from other WPs
A41: Page 35 | B41: Development of Factors for "KW" demand losses & company use | D41: Development of Factors for "KW" demand losses & company use | F41: None - Pulls from other WPs
A42: Page 36 | B42: Estimated Monthly Coincident KW for Interdepartmental Sales | D42: Estimated Monthly Coincident KW for Interdepartmental Sales | F42: None - Pulls from other WPs | H42: FERC Form 1, Page 401a
A43: Page 37 | B43: Estimated Monthly Coincident KW for Company Use | D43: Estimated Monthly Coincident KW for Company Use | F43: Monthly Company Use KWH | H43: Financial Statements; total ties to FERC Form 1, page 401a, line 26.
A44: Page 38 | B44: Factors for "KW" Losses & Company Use | D44: Development of Factors for "KW" Losses & Company Use | F44: Loss Study for transmission & distribution losses; KWH Available for delivery & sales to other utilities | H44: Jeff Gindling / Jeff Antoni; FERC Form 1, page 401a
A45: Page 39 | B45: RS - Load Research Statistics | D45: Used to Derive Coincident and Non-Coincident Peaks | F45: Load Research Data | H45: Donna Hendrix | J45: 2019-04-05
A46: Page 40 | B46: DS Small & Med - Load Research Statistics | D46: Used to Derive Coincident and Non-Coincident Peaks | F46: Load Research Data | H46: Donna Hendrix | J46: 2019-04-05
A47: Page 41 | B47: DS Large - Load Research Statistics | D47: Used to Derive Coincident and Non-Coincident Peaks | F47: Load Research Data | H47: Donna Hendrix | J47: 2019-04-05
A48: Page 42 | B48: DP - Load Research Statistics | D48: Used to Derive Coincident and Non-Coincident Peaks | F48: Load Research Data | H48: Donna Hendrix | J48: 2019-04-05
A49: Page 43 | B49: DT Secondary - Load Research Statistics | D49: Used to Derive Coincident and Non-Coincident Peaks | F49: Load Research Data | H49: Donna Hendrix | J49: 2019-04-05
A50: Page 44 | B50: DT Primary - Load Research Statistics | D50: Used to Derive Coincident and Non-Coincident Peaks | F50: Load Research Data | H50: Donna Hendrix | J50: 2019-04-05
A51: Page 45 | B51: EH - Load Research Statistics | D51: Used to Derive Coincident and Non-Coincident Peaks | F51: Load Research Data | H51: Donna Hendrix | J51: 2019-04-05
A52: Page 46 | B52: TT - Load Research Statistics | D52: Used to Derive Coincident and Non-Coincident Peaks | F52: Load Research Data | H52: Donna Hendrix | J52: 2019-04-05
A53: Page 47 | B53: Cost Support for Primary and Secondary Line Allocation | D53: To Allocate Primary and Secondary Lines | F53: Circuit Mile Report | H53: Jeff Gindling / Jeff Antoni
A54: Page 48 | B54: Service Cost Weighting | D54: Create a weighting factor for services | F54: Csot of Minimum Size | H54: Wes Needham
A55: Page 49 | B55: Burn Hours | D55: Determine Lighting Demands at CP | F55: Burn Hours used from CMS, Sunrise / Sunset table | H55: Can get from sites on internet
A56: Page 50 | B56: Kwh Sales and Statistics | D56: Used to Derive Coincident and Non-Coincident Peaks | F56: Revenue Stats File | H56: Jim Ziolkowski
A57: Page 51 | B57: Electric Customer count by rate class by month ACTUAL | D57: Used to calculate customer allocation factor | F57: Revenue Stats File | H57: Jim Ziolkowski
A58: Page 52 | B58: Line Transformers Minimum Size Study | D58: Demand / Customer Allocation for line transformers | F58: Gross Plant & Accumulated Depreciation for Account 368 - Line Transformers | H58: Fixed Assets Accounting
A59: Page 53 | B59: Line Transformers Minimum Size Study | D59: Determine customer Component of Transformers | F59: Quantity of Transformers by Engineering in Service Year / Handy Whitman Factor | H59: Fixed Assets Accounting
A60: Page 54 | B60: Line Transformers Minimum Size Study | D60: Determine customer Component of Transformers | F60: Quantity of Transformers by Engineering in Service Year / Handy Whitman Factor | H60: Fixed Assets Accounting
A61: Page 55 | B61: Primary Pole Minimum Size Study | D61: Demand / Customer Allocation for primary poles | F61: Gross Plant & Accumulated Depreciation for Account 364 - Primary Poles | H61: Fixed Assets Accounting
A62: Page 56 | B62: Primary Pole Minimum Size Study | D62: Determine customer Component of Primary Poles | F62: Quantity of Primary Poles by Engineering in Service Year / Handy Whitman Factor | H62: Fixed Assets Accounting
A63: Page 57 | B63: Primary Pole Minimum Size Study | D63: Determine customer Component of Primary Poles | F63: Quantity of Primary Poles by Engineering in Service Year / Handy Whitman Factor | H63: Fixed Assets Accounting
A64: Page 58 | B64: Secondary Pole Minimum Size Study | D64: Demand / Customer Allocation for Secondary poles | F64: Gross Plant & Accumulated Depreciation for Account 364 - Secondary Poles | H64: Fixed Assets Accounting
A65: Page 59 | B65: Secondary Pole Minimum Size Study | D65: Determine customer Component of Secondary Poles | F65: Quantity of Secondary Poles by Engineering in Service Year / Handy Whitman Factor | H65: Fixed Assets Accounting
A66: Page 60 | B66: Secondary Pole Minimum Size Study | D66: Determine customer Component of Secondary Poles | F66: Quantity of Secondary Poles by Engineering in Service Year / Handy Whitman Factor | H66: Fixed Assets Accounting
A67: Page 61 | B67: Overhead Lines - Primary Minimum Size Study | D67: Demand / Customer Allocation for Overhead Lines - Primary | F67: Gross Plant & Accumulated Depreciation for Account 365 - Overhead Lines - Primary | H67: Fixed Assets Accounting
A68: Page 62 | B68: Overhead Lines - Primary Minimum Size Study | D68: Determine customer Component of Overhead Lines - Primary | F68: Quantity of Overhead Lines - Primary by Engineering in Service Year / Handy Whitman Factor | H68: Fixed Assets Accounting
A69: Page 63 | B69: Overhead Lines - Primary Minimum Size Study | D69: Determine customer Component of Overhead Lines - Primary | F69: Quantity of Overhead Lines - Primary by Engineering in Service Year / Handy Whitman Factor | H69: Fixed Assets Accounting
A70: Page 64 | B70: Overhead Lines - Secondary Minimum Size Study | D70: Demand / Customer Allocation for Overhead Lines - Secondary | F70: Gross Plant & Accumulated Depreciation for Account 365 - Overhead Lines - Secondary | H70: Fixed Assets Accounting
A71: Page 65 | B71: Overhead Lines - Secondary Minimum Size Study | D71: Determine customer Component of Overhead Lines - Secondary | F71: Quantity of Overhead Lines - Secondary by Engineering in Service Year / Handy Whitman Factor | H71: Fixed Assets Accounting
A72: Page 66 | B72: Overhead Lines - Secondary Minimum Size Study | D72: Determine customer Component of Overhead Lines - Secondary | F72: Quantity of Overhead Lines - Secondary by Engineering in Service Year / Handy Whitman Factor | H72: Fixed Assets Accounting
A73: Page 67 | B73: Underground Lines - Primary Minimum Size Study | D73: Demand / Customer Allocation for Underground Lines - Primary | F73: Gross Plant & Accumulated Depreciation for Account 367 - Underground Lines - Primary | H73: Fixed Assets Accounting
A74: Page 68 | B74: Underground Lines - Primary Minimum Size Study | D74: Determine customer Component of Underground Lines - Primary | F74: Quantity of Underground Lines - Primary by Engineering in Service Year / Handy Whitman Factor | H74: Fixed Assets Accounting
A75: Page 69 | B75: Underground Lines - Primary Minimum Size Study | D75: Determine customer Component of Underground Lines - Primary | F75: Quantity of Underground Lines - Primary by Engineering in Service Year / Handy Whitman Factor | H75: Fixed Assets Accounting
A76: Page 70 | B76: Underground Lines - Secondary Minimum Size Study | D76: Demand / Customer Allocation for Underground Lines - Secondary | F76: Gross Plant & Accumulated Depreciation for Account 367 - Underground Lines - Secondary | H76: Fixed Assets Accounting
A77: Page 71 | B77: Underground Lines - Secondary Minimum Size Study | D77: Determine customer Component of Underground Lines - Secondary | F77: Quantity of Underground Lines - Secondary by Engineering in Service Year / Handy Whitman Factor | H77: Fixed Assets Accounting
A78: Page 72 | B78: Underground Lines - Secondary Minimum Size Study | D78: Determine customer Component of Underground Lines - Secondary | F78: Quantity of Underground Lines - Secondary by Engineering in Service Year / Handy Whitman Factor | H78: Fixed Assets Accounting
A79: Page 73 | B79: Functional Labor | D79: To allocate General & Common Plant & A&G Exp | F79: Functional Labor | H79: FERC Form 1, Page 354-355

Sheet Print & Input
A1: DUKE ENERGY KENTUCKY, INC. | B1: company_name | C1: WorkingCap | D1: No
A2: ELECTRIC COST OF SERVICE STUDY | B2: coss_type | C2: Pages | D2: 18
A3: CASE NO: 2019-00271 | B3: case_name | C3: Pages2 | D3: 15
A4: TWELVE MONTHS ENDING MARCH 31, 2021 | B4: test_period | C4: WPpages | D4: 73
A5: DATA: 12 MONTHS ACTUAL & 0 MONTHS ESTIMATED | B5: data_filing
A6: JAMES E. ZIOLKOWSKI | B6: witness
A7: JEFF KERN | B7: witness1
A8: TYPE OF FILING: "X" ORIGINAL UPDATED REVISED | B8: type
A9: ALLOCATION FACTORS FOR COST OF SERVICE STUDY | B9: alloc_factors
A10: TWELVE MONTHS ENDING DECEMBER 31, 2018 | B10: time_period
A11: TOTAL KW (12 COIN PEAK) | B11: Allocator
A14: FR-16(7)(v) - Reference | C14: FR-16(7)(v)-1 | D14: FR-16(7)(v)-2 | E14: FR-16(7)(v)-3 | F14: FR-16(7)(v)-4 | G14: FR-16(7)(v)-5 | H14: FR-16(7)(v)-6 | I14: FR-16(7)(v)-7 | J14: FR-16(7)(v)-8 | K14: FR-16(7)(v)-9 | L14: FR-16(7)(v)-10 | M14: FR-16(7)(v)-11 | N14: FR-16(7)(v)-12 | O14: FR-16(7)(v)-13 | P14: FR-16(7)(v)-14 | Q14: FR-16(7)(v)-15 | R14: FR-16(7)(v)-16 | S14: FR-16(7)(v)-17 | T14: FR-16(7)(v)-18 | U14: FR-16(7)(v)-19 | V14: FR-16(7)(v)-20 | W14: FR-16(7)(v)-21 | X14: FR-16(7)(v)-22 | Y14: FR-16(7)(v)-23 | Z14: FR-16(7)(v)-24 | AA14: FR-16(7)(v)-25
E15: Production | F15: Production | G15: Production | I15: Transmission | J15: Transmission | K15: Transmission | M15: Distribution | N15: Distribution | O15: Distribution | P15: Total
D16: Production | E16: Demand | F16: Energy | G16: Customer | H16: Transmission | I16: Demand | J16: Energy | K16: Customer | L16: Distribution | M16: Demand | N16: Energy | O16: Customer | P16: Class | Q16: Res | R16: DS | S16: GSFL | T16: EH | U16: SP | V16: DTS | W16: DTP | X16: DP | Y16: TT | Z16: LT | AA16: Other
A17: Schedule Name | B17: Range name | C17: Functional | D17: Classified | E17: Allocated | F17: Allocated | G17: Allocated | H17: Classified | I17: Allocated | J17: Allocated | K17: Allocated | L17: Classified | M17: Allocated | N17: Allocated | O17: Allocated | P17: Allocated | Q17: Classified | R17: Classified | S17: Classified | T17: Classified | U17: Classified | V17: Classified | W17: Classified | X17: Classified | Y17: Classified | Z17: Classified | AA17: Classified
A19: Schedule 1 - Summary | B19: FR_16(7)(v)_Summary_1
A20: Schedule 2 - Gross Plant | B20: FR_16(7)(v)_Gross_Plant_2
A21: Schedule 3 - Accum Deprec | B21: FR_16(7)(v)_Depreciation_Reserve_3
A22: Schedule 4 - Net Plant | B22: FR_16(7)(v)_Net_Plant_4
A23: Schedule 5 - Subtractive Adjustments | B23: FR_16(7)(v)_RB_Subtractive_Adj_5
A24: Schedule 5.1 - Additive Adjustments | B24: FR_16(7)(v)_RB_Additive_Adj_5.1
A25: Schedule 5.2 - Total Rate Base | B25: FR_16(7)(v)_RB_Total_5.2
A26: Schedule 6 - O & M Expenses | B26: FR_16(7)(v)_OMEXP_6
A27: Schedule 6.1 - O & M Expenses | B27: FR_16(7)(v)_OMEXP_6.1
A28: Schedule 7 - Depreciation Exp | B28: FR_16(7)(v)_Depreciation_Expense_7
A29: Schedule 8 - Oth Tax & Misc Exp | B29: FR_16(7)(v)_Taxes_Other_Than_Income_8
A30: Schedule 9 - Income Tax - Fed | B30: FR_16(7)(v)_FIT_Return_9
A31: Schedule 9.1 - Income Tax - State | B31: FR_16(7)(v)_SIT_Return_9
A32: Schedule 10 - Oth Revenues COS Calc | B32: FR_16(7)(v)_COS_Compute_10
A33: Schedule 11 - Rate of Return & Tax Rates | B33: FR_16(7)(v)_RofR_11
A34: Schedule 12 - Allocation Factors | B34: FR_16(7)(v)_Alloc1
A35: Schedule 13 - Income Tax Calculation | B35: FR_16(7)(v)_FIT_Revenue_13
F555: 0

Sheet Rev req link
C2: COSS | D2: Rev Req Model | E2: Difference
B3: Gross Plant (Sch. B-1) | C3: ='FR-16(7)(v)-1 Functional'!F123 -> 1949359835 | D3: =[3]!PLANT_IN_SERVICE -> 1949359830 | E3: =D3-C3 -> -5 | F3: Linked To Sch. B-1
B4: Depreciation (Sch B-1) | C4: =-'FR-16(7)(v)-1 Functional'!F200 -> -795436883 | D4: =[3]SCH_B1!$I$20 -> -795436884 | E4: =D4-C4 -> -1 | F4: Linked To Sch. B-1
B5: Net Plant | C5: =C3+C4 -> 1153922952 | D5: =D3+D4 -> 1153922946 | E5: =E3-E4 -> -4
B7: CWIP | C7: ='FR-16(7)(v)-1 Functional'!F375 -> 0 | D7: 0 | E7: =D7-C7 -> 0
B9: Schedule B-5
B10: Cash WC | C10: ='FR-16(7)(v)-1 Functional'!F408 -> 14965228 | D10: =[3]SCH_B1!$I$26 -> 14965228 | E10: =D10-C10 -> 0 | F10: Linked To Sch. B-1
B11: Fuel Stock | C11: ='FR-16(7)(v)-1 Functional'!F396 -> 19518014 | D11: =[3]SCH_B5s!$O$27 -> 19518014 | E11: 0 | F11: Linked To Sch. B-5
B12: Emission Allowances | C12: ='FR-16(7)(v)-1 Functional'!F397 -> 0 | D12: =[3]SCH_B5s!$O$33 -> 0 | E12: 0 | F12: Linked To Sch. B-5
B13: Prepayments | C13: ='FR-16(7)(v)-1 Functional'!F405 -> 236038 | D13: =[3]SCH_B5s!$O$37 -> 236038 | E13: 0 | F13: Linked To Sch. B-5
B14: Mat & Supp | C14: ='FR-16(7)(v)-1 Functional'!F395 -> 18759249 | D14: =[3]SCH_B5s!$O$35 -> 18759249 | E14: 0 | F14: Linked To Sch. B-5
B15: Tot Working Capital | C15: =SUM(C10:C14) -> 53478529 | D15: =SUM(D10:D14) -> 53478529 | E15: 0
A17: Rate Base Deductions | B17: Schedule B-6
A18: Customer Advances | B18: Customer Advances - Acct 252 | C18: 0 | D18: 0 | E18: =D18-C18 -> 0
B19: Customer Service Deposits | C19: ='FR-16(7)(v)-1 Functional'!F319 -> 0 | D19: 0 | E19: =D19-C19 -> 0
A20: Post Retirement Benefits | B20: ITC Acct 255 | C20: 0 | D20: 0 | E20: 0
B21: Account 254 - Excess EDIT | C21: ='FR-16(7)(v)-1 Functional'!F322 -> 63555450 | D21: =-[3]SCH_B1!$I$38 -> 63555450 | E21: 0
A22: ITC | B22: Acct 281 | C22: 0 | D22: ='[3]WPB-6''s'!$T$145 -> 0 | E22: 0
B23: Acct 282 | C23: ='FR-16(7)(v)-1 Functional'!F301 -> 202108496 | D23: =-('[3]WPB-6''s'!$R$154-'[3]WPB-6''s'!$R$144-'[3]WPB-6''s'!$R$148-[3]SCH_D1!$AA$297-[3]SCH_D1!$AA$302+[3]SCH_B6!$N$71) -> 202108496 | E23: 0 | F23: Linked To Sch. B-6 | I23: -198366893 | J23: Per Sch. B-1
B24: Acct 283 | C24: ='FR-16(7)(v)-1 Functional'!F315 -> 16147269 | D24: =-'[3]WPB-6''s'!$R$148 -> 16147269 | E24: 0 | F24: Linked To Sch. B-6 | I24: =-D23-D24+D27 -> -198366893
B25: Total Rate Base Reductions | C25: =SUM(C18:C24) -> 281811215 | D25: =SUM(D18:D24) -> 281811215 | E25: 0 | I25: =I24-I23 -> 0 | J25: Need Depreciation Adj
J26: and ADIT Adj on B-6
A27: Rate Base Additions | B27: Acct 190 | C27: ='FR-16(7)(v)-1 Functional'!F361 -> 19888872 | D27: ='[3]WPB-6''s'!$R$144 -> 19888872 | E27: =D27-C27 -> 0 | F27: Linked To Sch. B-6 | I27: =D25-D27 -> 261922343
B28: Other Rate Base Adj. | C28: ='FR-16(7)(v)-1 Functional'!F365 -> 948688 | D28: =[3]SCH_B1!$I$40 -> 948688 | E28: =D28-C28 -> 0
B29: Total Rate Base Additions | C29: =SUM(C27:C28) -> 20837560 | D29: =SUM(D27:D28) -> 20837560 | E29: =D29-C29 -> 0
A31: Jurisdictional Rate Base | B31: Total Rate Base | C31: =C5+C7+C15-C25+C29 -> 946427826 | D31: =D5+D7+D15-D25+D29 -> 946427820 | E31: =D31-C31 -> -6
B33: Schedule C-2
A34: O&M Expenses | B34: Prod O&M | C34: ='FR-16(7)(v)-1 Functional'!F459 -> 141063339 | D34: =[3]SCH_C2!$N$27 -> 141063339 | E34: =D34-C34 -> 0 | F34: Linked To Sch. C-2
B35: Trans | C35: ='FR-16(7)(v)-1 Functional'!F466 -> 23151925 | D35: =[3]SCH_C2!$N$29 -> 23151925 | E35: =D35-C35 -> 0 | F35: Linked To Sch. C-2
B36: Regional Market | C36: ='FR-16(7)(v)-1 Functional'!F470 -> 1826852 | D36: =[3]SCH_C2!$N$30 -> 1826852 | E36: 0 | F36: Linked To Sch. C-2
B37: Dist | C37: ='FR-16(7)(v)-1 Functional'!F492 -> 17847749 | D37: =[3]SCH_C2!$N$31 -> 17847749 | E37: 0 | F37: Linked To Sch. C-2
B38: Cust Acct | C38: ='FR-16(7)(v)-1 Functional'!F503 -> 4160730 | D38: =[3]SCH_C2!$N$32+[3]SCH_C1!$G$20-1241796 -> 4160730 | E38: 0 | F38: Linked To Sch. C-2
B39: Cust serv | C39: ='FR-16(7)(v)-1 Functional'!F518 -> 604867 | D39: =[3]SCH_C2!$N$33 -> 604867 | E39: 0 | F39: Linked To Sch. C-2
B40: Sales | C40: ='FR-16(7)(v)-1 Functional'!F522 -> 1497140 | D40: =[3]SCH_C2!$N$34 -> 1497140 | E40: 0 | F40: Linked To Sch. C-2
B41: A&G & AMORT OF DEF EXP | C41: ='FR-16(7)(v)-1 Functional'!F547 -> 19639682 | D41: =[3]SCH_C2!$N$35+[3]SCH_C2!$N$36 -> 19639682 | E41: 0 | F41: Linked To Sch. C-2
B42: Total O&M | C42: =SUM(C34:C41) -> 209792284 | D42: =SUM(D34:D41) -> 209792284 | E42: =D42-C42 -> 0
A43: Depreciation | B43: Total Deprec Exp | C43: ='FR-16(7)(v)-1 Functional'!F582 -> 58197795 | D43: =[3]SCH_C2!$N$39 -> 58197795 | E43: 0 | F43: Linked To Sch. C-2
A44: Property Tax | B44: Property Tax | C44: ='FR-16(7)(v)-1 Functional'!F598 -> 13645092 | D44: ='[3]SCH_C2.1 - Forecasted Period'!$G$321+'[3]SCH_C2.1 - Forecasted Period'!$G$319 -> 13645092 | E44: 0
A45: Misc taxes | B45: Misc Taxes | C45: ='FR-16(7)(v)-1 Functional'!F605 -> 843976 | D45: =[3]SCH_C2!$N$43-D44 -> 843976 | E45: 0
A46: total prop & misc taxes | B46: Total Prop & Misc Taxes | C46: =C44+C45 -> 14489068 | D46: =D44+D45 -> 14489068 | E46: 0
B47: Misc. Expenses | C47: ='FR-16(7)(v)-1 Functional'!F610 -> 89261 | D47: =[3]SCH_C1!$G$22 -> 89261 | E47: 0
B48: Total O&M, Depr & MISC TAX | C48: =C42+C43+C46+C47 -> 282568408 | D48: =D42+D43+D46+D47 -> 282568408 | E48: =D48-C48 -> 0
B50: Schedule E-1
B51: Tax Calculation
B52: Interest Deduction | C52: ='FR-16(7)(v)-1 Functional'!F632 -> 18775174 | D52: =-[3]SCH_E1!$Q$24 -> 18775174 | E52: =D52-C52 -> 0
B53: Other Deductions | C53: ='FR-16(7)(v)-1 Functional'!F639 -> 70001537 | D53: =-[3]SCH_E1!$Q$27-[3]SCH_E1!$Q$31-[3]SCH_E1!$Q$36 -> 70001537 | E53: =D53-C53 -> 0
B55: State Tax Calc
B56: Total State Inc Tax Payable | C56: ='FR-16(7)(v)-1 Functional'!F720 -> -1203994 | D56: =[3]SCH_E1!$Q$108 -> -1203994 | E56: =D56-C56 -> 0
B57: State prov Acct 410.1 & 411.1 - Net | C57: ='FR-16(7)(v)-1 Functional'!F701 -> 3665560 | D57: =[3]SCH_E1!$Q$114 -> 3665560 | E57: =D57-C57 -> 0
B58: Total SIT Adj | C58: =SUM(C56:C57) -> 2461566 | D58: =SUM(D56:D57) -> 2461566 | E58: =SUM(E56:E57) -> 0
B60: Fed Tax Calc
B61: Total Fed Inc Tax Payable | C61: ='FR-16(7)(v)-1 Functional'!F674 -> -3039279 | D61: =[3]SCH_E1!$Q$128 -> -3039280 | E61: =D61-C61 -> -1
B62: FIT prov Acct 410.1 & 411.1 - Net | C62: ='FR-16(7)(v)-1 Functional'!F649 -> 10163328 | D62: =[3]SCH_E1!$Q$134 -> 10163328 | E62: =D62-C62 -> 0
B63: ITC Amort & Other Credits | C63: =-'FR-16(7)(v)-1 Functional'!F652 -> -428 | D63: =[3]SCH_E1!$Q$136 -> -428 | E63: =D63-C63 -> 0
B64: Total FIT Adj | C64: =SUM(C61:C63) -> 7123621 | D64: =SUM(D61:D63) -> 7123620 | E64: =SUM(E61:E63) -> -1
B66: Total Income Taxes | C66: =C64+C58 -> 9585187 | D66: =D64+D58 -> 9585186 | E66: =D66-C66 -> -1
B68: Other Operating Revenues | C68: ='FR-16(7)(v)-1 Functional'!F750 -> 1695053 | D68: =[3]SCH_C2!$N$19 -> 1695053 | E68: =D68-C68 -> 0
B70: Revenue Tax | C70: ='FR-16(7)(v)-1 Functional'!F767 -> 0
B71: Deficiency @ROR | C71: ='FR-16(7)(v)-1 Functional'!F43 -> 44392659 | D71: ='[3]SCH A Rate Base'!$I$31-1241797 -> 44392659 | E71: =D71-C71 -> 0
B73: Incr Uncollectible Exp | C73: 0 | D73: 0 | E73: =D73-C73 -> 0
B76: Present Revenue (Sch M) vs Sch C-2 | C76: ='FR-16(7)(v)-1 Functional'!F867 -> 309580654 | D76: =[3]SCH_C2!$N$17+[3]SCH_C2!$N$18 -> 309580654 | E76: =D76-C76 -> 0
F565: 0

Sheet CustomerCharge
A1: =co_name -> DUKE ENERGY KENTUCKY, INC.
A2: =case_name -> CASE NO: 2019-00271
A3: CUSTOMER CHARGE ANALYSIS / MINIMUM BILL RATIONALE
A4: =test_period -> TWELVE MONTHS ENDING MARCH 31, 2021
A7: =data_filing -> DATA: 12 MONTHS ACTUAL & 0 MONTHS ESTIMATED | L7: WP FR-16(7)(v)
A8: =type -> TYPE OF FILING: "X" ORIGINAL UPDATED REVISED | L8: PAGE 1 of 1
A9: WORK PAPER REFERENCE NO(S).: FR-16(12)(v)-5, FR-16(12)(v)-9, FR-16(12)(v)-13 | L9: WITNESS RESPONSIBLE:
L10: =Witness1 -> JEFF KERN
D13: DS | E13: GSFL | F13: EH | G13: SP | H13: DT SEC | I13: DT PRI | J13: DP | K13: TT | M13: OTHER
A14: LINE | C14: RS | D14: SECONDARY | E14: SECONDARY | F14: SECONDARY | G14: SECONDARY | H14: SECONDARY | I14: PRIMARY | J14: PRIMARY | K14: TRANSMISSION | L14: LT | M14: WATER
A15: NO. | B15: DESCRIPTION | C15: RESIDENTIAL | D15: DISTRIBUTION | E15: DISTRIBUTION | F15: DISTRIBUTION | G15: DISTRIBUTION | H15: DISTRIBUTION | I15: DISTRIBUTION | J15: DISTRIBUTION | K15: TIME OF DAY | L15: LIGHTING | M15: PUMPING
A17: 1 | B17: Capitalization Allocated to Electric Operations | C17: ='FR-16(7)(v)-5 PROD Cust'!G431+'FR-16(7)(v)-9 TRANS Cust'!G431+'FR-16(7)(v)-13 DIST Cust'!G431 -> 79565687 | D17: ='FR-16(7)(v)-5 PROD Cust'!H431+'FR-16(7)(v)-9 TRANS Cust'!H431+'FR-16(7)(v)-13 DIST Cust'!H431 -> 10557884 | E17: ='FR-16(7)(v)-5 PROD Cust'!I431+'FR-16(7)(v)-9 TRANS Cust'!I431+'FR-16(7)(v)-13 DIST Cust'!I431 -> 87365 | F17: ='FR-16(7)(v)-5 PROD Cust'!J431+'FR-16(7)(v)-9 TRANS Cust'!J431+'FR-16(7)(v)-13 DIST Cust'!J431 -> 105030 | G17: ='FR-16(7)(v)-5 PROD Cust'!K431+'FR-16(7)(v)-9 TRANS Cust'!K431+'FR-16(7)(v)-13 DIST Cust'!K431 -> 12083 | H17: ='FR-16(7)(v)-5 PROD Cust'!L431+'FR-16(7)(v)-9 TRANS Cust'!L431+'FR-16(7)(v)-13 DIST Cust'!L431 -> 303956 | I17: ='FR-16(7)(v)-5 PROD Cust'!M431+'FR-16(7)(v)-9 TRANS Cust'!M431+'FR-16(7)(v)-13 DIST Cust'!M431 -> 31612 | J17: ='FR-16(7)(v)-5 PROD Cust'!N431+'FR-16(7)(v)-9 TRANS Cust'!N431+'FR-16(7)(v)-13 DIST Cust'!N431 -> 14872 | K17: ='FR-16(7)(v)-5 PROD Cust'!O431+'FR-16(7)(v)-9 TRANS Cust'!O431+'FR-16(7)(v)-13 DIST Cust'!O431 -> 11159 | L17: ='FR-16(7)(v)-5 PROD Cust'!P431+'FR-16(7)(v)-9 TRANS Cust'!P431+'FR-16(7)(v)-13 DIST Cust'!P431 -> 2246377 | M17: ='FR-16(7)(v)-5 PROD Cust'!Q431+'FR-16(7)(v)-9 TRANS Cust'!Q431+'FR-16(7)(v)-13 DIST Cust'!Q431 -> 9295
A19: 2 | B19: Operating Expense | C19: ='FR-16(7)(v)-5 PROD Cust'!G26+'FR-16(7)(v)-9 TRANS Cust'!G26+'FR-16(7)(v)-13 DIST Cust'!G26 -> 15900037 | D19: ='FR-16(7)(v)-5 PROD Cust'!H26+'FR-16(7)(v)-9 TRANS Cust'!H26+'FR-16(7)(v)-13 DIST Cust'!H26 -> 2555895 | E19: ='FR-16(7)(v)-5 PROD Cust'!I26+'FR-16(7)(v)-9 TRANS Cust'!I26+'FR-16(7)(v)-13 DIST Cust'!I26 -> 18128 | F19: ='FR-16(7)(v)-5 PROD Cust'!J26+'FR-16(7)(v)-9 TRANS Cust'!J26+'FR-16(7)(v)-13 DIST Cust'!J26 -> 21353 | G19: ='FR-16(7)(v)-5 PROD Cust'!K26+'FR-16(7)(v)-9 TRANS Cust'!K26+'FR-16(7)(v)-13 DIST Cust'!K26 -> 2857 | H19: ='FR-16(7)(v)-5 PROD Cust'!L26+'FR-16(7)(v)-9 TRANS Cust'!L26+'FR-16(7)(v)-13 DIST Cust'!L26 -> 77524 | I19: ='FR-16(7)(v)-5 PROD Cust'!M26+'FR-16(7)(v)-9 TRANS Cust'!M26+'FR-16(7)(v)-13 DIST Cust'!M26 -> 528 | J19: ='FR-16(7)(v)-5 PROD Cust'!N26+'FR-16(7)(v)-9 TRANS Cust'!N26+'FR-16(7)(v)-13 DIST Cust'!N26 -> 3274 | K19: ='FR-16(7)(v)-5 PROD Cust'!O26+'FR-16(7)(v)-9 TRANS Cust'!O26+'FR-16(7)(v)-13 DIST Cust'!O26 -> 1053 | L19: ='FR-16(7)(v)-5 PROD Cust'!P26+'FR-16(7)(v)-9 TRANS Cust'!P26+'FR-16(7)(v)-13 DIST Cust'!P26 -> 847091 | M19: ='FR-16(7)(v)-5 PROD Cust'!Q26+'FR-16(7)(v)-9 TRANS Cust'!Q26+'FR-16(7)(v)-13 DIST Cust'!Q26 -> 2164
A21: 3 | B21: ="Return @ "&TEXT(RofR,"0.00%") -> Return @ 6.71% | C21: ='FR-16(7)(v)-5 PROD Cust'!G28+'FR-16(7)(v)-9 TRANS Cust'!G28+'FR-16(7)(v)-13 DIST Cust'!G28 -> 5339654 | D21: ='FR-16(7)(v)-5 PROD Cust'!H28+'FR-16(7)(v)-9 TRANS Cust'!H28+'FR-16(7)(v)-13 DIST Cust'!H28 -> 708539 | E21: ='FR-16(7)(v)-5 PROD Cust'!I28+'FR-16(7)(v)-9 TRANS Cust'!I28+'FR-16(7)(v)-13 DIST Cust'!I28 -> 5863 | F21: ='FR-16(7)(v)-5 PROD Cust'!J28+'FR-16(7)(v)-9 TRANS Cust'!J28+'FR-16(7)(v)-13 DIST Cust'!J28 -> 7048 | G21: ='FR-16(7)(v)-5 PROD Cust'!K28+'FR-16(7)(v)-9 TRANS Cust'!K28+'FR-16(7)(v)-13 DIST Cust'!K28 -> 811 | H21: ='FR-16(7)(v)-5 PROD Cust'!L28+'FR-16(7)(v)-9 TRANS Cust'!L28+'FR-16(7)(v)-13 DIST Cust'!L28 -> 20399 | I21: ='FR-16(7)(v)-5 PROD Cust'!M28+'FR-16(7)(v)-9 TRANS Cust'!M28+'FR-16(7)(v)-13 DIST Cust'!M28 -> 2122 | J21: ='FR-16(7)(v)-5 PROD Cust'!N28+'FR-16(7)(v)-9 TRANS Cust'!N28+'FR-16(7)(v)-13 DIST Cust'!N28 -> 998 | K21: ='FR-16(7)(v)-5 PROD Cust'!O28+'FR-16(7)(v)-9 TRANS Cust'!O28+'FR-16(7)(v)-13 DIST Cust'!O28 -> 748 | L21: ='FR-16(7)(v)-5 PROD Cust'!P28+'FR-16(7)(v)-9 TRANS Cust'!P28+'FR-16(7)(v)-13 DIST Cust'!P28 -> 150754 | M21: ='FR-16(7)(v)-5 PROD Cust'!Q28+'FR-16(7)(v)-9 TRANS Cust'!Q28+'FR-16(7)(v)-13 DIST Cust'!Q28 -> 624
A23: 4 | B23: Operating Expense Plus Return | C23: =C19+C21 -> 21239691 | D23: =D19+D21 -> 3264434 | E23: =E19+E21 -> 23991 | F23: 28401 | G23: 3668 | H23: 97923 | I23: 2650 | J23: 4272 | K23: 1801 | L23: =L19+L21 -> 997845 | M23: =M19+M21 -> 2788
A25: 5 | B25: Less: Revenue Credits | C25: =-'FR-16(7)(v)-5 PROD Cust'!G29-'FR-16(7)(v)-9 TRANS Cust'!G29-'FR-16(7)(v)-13 DIST Cust'!G29 -> 315588 | D25: =-'FR-16(7)(v)-5 PROD Cust'!H29-'FR-16(7)(v)-9 TRANS Cust'!H29-'FR-16(7)(v)-13 DIST Cust'!H29 -> 39673 | E25: =-'FR-16(7)(v)-5 PROD Cust'!I29-'FR-16(7)(v)-9 TRANS Cust'!I29-'FR-16(7)(v)-13 DIST Cust'!I29 -> 338 | F25: =-'FR-16(7)(v)-5 PROD Cust'!J29-'FR-16(7)(v)-9 TRANS Cust'!J29-'FR-16(7)(v)-13 DIST Cust'!J29 -> 411 | G25: =-'FR-16(7)(v)-5 PROD Cust'!K29-'FR-16(7)(v)-9 TRANS Cust'!K29-'FR-16(7)(v)-13 DIST Cust'!K29 -> 44 | H25: =-'FR-16(7)(v)-5 PROD Cust'!L29-'FR-16(7)(v)-9 TRANS Cust'!L29-'FR-16(7)(v)-13 DIST Cust'!L29 -> 1073 | I25: =-'FR-16(7)(v)-5 PROD Cust'!M29-'FR-16(7)(v)-9 TRANS Cust'!M29-'FR-16(7)(v)-13 DIST Cust'!M29 -> 136 | J25: =-'FR-16(7)(v)-5 PROD Cust'!N29-'FR-16(7)(v)-9 TRANS Cust'!N29-'FR-16(7)(v)-13 DIST Cust'!N29 -> 55 | K25: =-'FR-16(7)(v)-5 PROD Cust'!O29-'FR-16(7)(v)-9 TRANS Cust'!O29-'FR-16(7)(v)-13 DIST Cust'!O29 -> 41 | L25: =-'FR-16(7)(v)-5 PROD Cust'!P29-'FR-16(7)(v)-9 TRANS Cust'!P29-'FR-16(7)(v)-13 DIST Cust'!P29 -> 10034 | M25: =-'FR-16(7)(v)-5 PROD Cust'!Q29-'FR-16(7)(v)-9 TRANS Cust'!Q29-'FR-16(7)(v)-13 DIST Cust'!Q29 -> 33
A27: 6 | B27: Customer Cost Component (Revenue Requirement) | C27: =C23-C25 -> 20924103 | D27: =D23-D25 -> 3224761 | E27: =E23-E25 -> 23653 | F27: 27990 | G27: 3624 | H27: 96850 | I27: 2514 | J27: 4217 | K27: 1760 | L27: =L23-L25 -> 987811 | M27: =M23-M25 -> 2755
A29: 7 | B29: Total Customers | C29: ='WP FR-16(7)(v) AVG CUST'!$O11 -> 128431 | D29: ='WP FR-16(7)(v) AVG CUST'!$O12 -> 12968 | E29: ='WP FR-16(7)(v) AVG CUST'!$O20 -> 172 | F29: ='WP FR-16(7)(v) AVG CUST'!$O18 -> 103 | G29: ='WP FR-16(7)(v) AVG CUST'!$O19 -> 14 | H29: ='WP FR-16(7)(v) AVG CUST'!$O14 -> 155 | I29: ='WP FR-16(7)(v) AVG CUST'!$O16 -> 37 | J29: ='WP FR-16(7)(v) AVG CUST'!$O21 -> 10 | K29: ='WP FR-16(7)(v) AVG CUST'!$O23 -> 11 | L29: ='WP FR-16(7)(v) AVG CUST'!$O25 -> 468 | M29: ='WP FR-16(7)(v) AVG CUST'!$O22 -> 11
A31: 8 | B31: Annual Revenue / Customer | C31: =ROUND(C27/C29,2) -> 162.92 | D31: =ROUND(D27/D29,2) -> 248.67 | E31: =ROUND(E27/E29,2) -> 137.52 | F31: 271.75 | G31: 258.86 | H31: 624.84 | I31: 67.95 | J31: 421.7 | K31: 160 | L31: =ROUND(L27/L29,2) -> 2110.71 | M31: =ROUND(M27/M29,2) -> 250.45
A33: 9 | B33: Monthly Revenue / Customer | C33: =ROUND(C31/12,2) -> 13.58 | D33: =ROUND(D31/12,2) -> 20.72 | E33: =ROUND(E31/12,2) -> 11.46 | F33: 22.65 | G33: 21.57 | H33: 52.07 | I33: 5.66 | J33: 35.14 | K33: 13.33 | L33: =ROUND(L31/12,2) -> 175.89 | M33: =ROUND(M31/12,2) -> 20.87

Sheet FR-16(7)(v)-1 Functional
A1: =co_name -> DUKE ENERGY KENTUCKY, INC. | J1: FR-16(7)(v)-1
A2: FUNCTIONAL ELECTRIC COST OF SERVICE | J2: WITNESS RESPONSIBLE:
A3: =case_name -> CASE NO: 2019-00271 | J3: =Witness -> JAMES E. ZIOLKOWSKI
A4: =data_filing -> DATA: 12 MONTHS ACTUAL & 0 MONTHS ESTIMATED | J4: ="PAGE "&Pages-17&" OF "&Pages -> PAGE 1 OF 18
A5: =type -> TYPE OF FILING: "X" ORIGINAL UPDATED REVISED
A8: LINE | F8: TOTAL | G8: FUNCTIONAL | J8: TOTAL | K8: ALL
A9: NO. | B9: SUMMARY OF RESULTS | D9: ALLO | F9: ELECTRIC | G9: PRODUCTION | H9: TRANSMISSION | I9: DISTRIBUTION | J9: AT ISSUE | K9: OTHER
C10: Schedule 1 | G10: 3 | H10: 4 | I10: 5
A11: 1 | B11: NET INCOME COMPUTATION
A12: 2 | C12: GROSS ELECTRIC PLANT IN SERVICE | F12: =F123 -> 1949359835 | G12: =G123 -> 1279398113 | H12: =H123 -> 76508105 | I12: =I123 -> 593453617 | J12: =SUM(G12:I12) -> 1949359835 | K12: =F12-J12 -> 0
A13: 3 | C13: TOTAL DEPRECIATION RESERVE | F13: =-F200 -> -795436883 | G13: =-G200 -> -621319440 | H13: =-H200 -> -21904404 | I13: =-I200 -> -152213039 | J13: =SUM(G13:I13) -> -795436883 | K13: =F13-J13 -> 0
A14: 4 | C14: TOTAL RATE BASE ADJUSTMENTS | F14: =F421 -> -207495126 | G14: =G421 -> -103578968 | H14: =H421 -> -12562247 | I14: =I421 -> -91353911 | J14: =SUM(G14:I14) -> -207495126 | K14: =F14-J14 -> 0
A15: 5 | C15: TOTAL RATE BASE | F15: =SUM(F12:F14) -> 946427826 | G15: 554499705 | H15: 42041454 | I15: 349886667 | J15: 946427826 | K15: 0
A16: 6
A17: 7 | B17: OPERATING EXPENSES
A18: 8 | C18: TOTAL O&M EXPENSE | F18: =F549 -> 209792284 | G18: =G549 -> 154356566 | H18: =H549 -> 25891009 | I18: =I549 -> 29544709 | J18: =SUM(G18:I18) -> 209792284 | K18: =F18-J18 -> 0
A19: 9 | C19: TOTAL DEPRECIATION EXPENSE | F19: =F582 -> 58197795 | G19: =G582 -> 41854660 | H19: =H582 -> 1721902 | I19: =I582 -> 14621233 | J19: =SUM(G19:I19) -> 58197795 | K19: 0
A20: 10 | C20: TOTAL OTHER TAX & MISC EXPENSE | F20: =F612 -> 14578329 | G20: =G612 -> 8383957 | H20: =H612 -> 689082 | I20: =I612 -> 5505290 | J20: =SUM(G20:I20) -> 14578329 | K20: 0
A21: 11 | C21: TOTAL OP EXP EXCLUDING INC & REV TAX | F21: =SUM(F17:F20) -> 282568408 | G21: =SUM(G17:G20) -> 204595183 | H21: =SUM(H17:H20) -> 28301993 | I21: =SUM(I17:I20) -> 49671232 | J21: =SUM(J17:J20) -> 282568408 | K21: 0
A22: 12 | C22: NET FED INCOME TAX EXP ALLOWABLE | F22: =F676 -> 7123621 | G22: =G676 -> 4058141 | H22: =H676 -> 1988925 | I22: =I676 -> 1076379 | J22: =SUM(G22:I22) -> 7123445 | K22: 176
A23: 13 | C23: NET STATE INCOME TAX EXP ALLOWABLE | F23: =F722 -> 2461566 | G23: =G722 -> 1182568 | H23: =H722 -> 258160 | I23: =I722 -> 1020829 | J23: =SUM(G23:I23) -> 2461557 | K23: 9
A24: 14 | C24: RESERVED | D24: CW29 | F24: 0 | G24: =F24-SUM(H24:I24) -> 0 | H24: =ROUND(F24*VLOOKUP(D24,ALLOCTABLE_FUNCTIONAL,$H$10,FALSE),0) -> 0 | I24: =ROUND(F24*VLOOKUP(D24,ALLOCTABLE_FUNCTIONAL,$I$10,FALSE),0) -> 0 | J24: =SUM(G24:I24) -> 0 | K24: =F24-J24 -> 0
A25: 15 | C25: REVENUE TAX | F25: =F767 -> 0 | G25: =G767 -> 0 | H25: =H767 -> 0 | I25: =I767 -> 0 | J25: =SUM(G25:I25) -> 0 | K25: 0
A26: 16 | C26: TOTAL OPERATING EXPENSE | F26: =SUM(F21:F25) -> 292153595 | G26: =SUM(G21:G25) -> 209835892 | H26: =SUM(H21:H25) -> 30549078 | I26: =SUM(I21:I25) -> 51768440 | J26: =SUM(J21:J25) -> 292153410 | K26: 185
A27: 17
A28: 18 | B28: RETURN ON RATE BASE | F28: =F433 -> 63514771 | G28: =G433 -> 37212475 | H28: =H433 -> 2821326 | I28: =I433 -> 23480970 | J28: =SUM(G28:I28) -> 63514771 | K28: =F28-J28 -> 0
A29: 19 | B29: TOTAL OTHER OPERATING REVENUES | F29: =-F750 -> -1695053 | G29: =-G750 -> 0 | H29: =-H750 -> -169516 | I29: =-I750 -> -1525537 | J29: =SUM(G29:I29) -> -1695053 | K29: 0
A30: 20 | C30: TOTAL ELECTRIC COST OF SERVICE | F30: =SUM(F26:F29) -> 353973313 | G30: =SUM(G26:G29) -> 247048367 | H30: =SUM(H26:H29) -> 33200888 | I30: =SUM(I26:I29) -> 73723873 | J30: =SUM(J26:J29) -> 353973128 | K30: 185
A31: 21 | B31: ADJUSTMENT FOR INTERCLASS SUBSIDIZATION | D31: =1-'WP FR-16(7)(v) Rate Incr'!I11 -> 0.95 | F31: =SUM(G31:I31) -> 0 | G31: ='WP FR-16(7)(v) Rate Incr'!Q27 -> 0 | H31: ='WP FR-16(7)(v) Rate Incr'!R27 -> 0 | I31: ='WP FR-16(7)(v) Rate Incr'!S27 -> 0 | J31: =SUM(G31:I31) -> 0 | K31: 0
A32: 22 | B32: REQUESTED REVENUES (COST OF SERVICE ADJUSTED FOR SUBSIDIES) | F32: =F31+F30 -> 353973313 | G32: =G31+G30 -> 247048367 | H32: =H31+H30 -> 33200888 | I32: =I31+I30 -> 73723873 | J32: =SUM(G32:I32) -> 353973128 | K32: 185
A33: 23 | B33: PROPOSED REVENUES | F33: =F868 -> 355094168 | G33: =G868 -> 229117410 | H33: =H868 -> 16511879 | I33: =I868 -> 109464879 | J33: =J868 -> 355094168 | K33: 0
A34: 24 | B34: DIFFERENCE (REQUESTED LESS PROPOSED) | F34: =F32-F33 -> -1120855 | G34: 17930957 | H34: 16689009 | I34: -35741006 | J34: -1121040 | K34: 185
A35: 25
A36: 26 | B36: TOTAL RETURN EARNED | F36: =F777+F28 -> 64356252 | G36: =G777+G28 -> 23750876 | H36: =H777+H28 -> -9707928 | I36: =I777+I28 -> 50313489 | J36: =J777+J28 -> 64356437 | K36: =F36-J36 -> -185
A37: 27 | B37: RATE OF RETURN EARNED | F37: =IF(F431=0,0,ROUND(F36/F431,5)) -> 0.068 | G37: =IF(G431=0,0,ROUND(G36/G431,5)) -> 0.04283 | H37: -0.23092 | I37: 0.1438 | J37: 0.068 | K37: 0
A38: 28 | B38: TOTAL RATE OF RETURN ALLOWABLE | F38: =$F$811 -> 0.06711 | G38: =F811 -> 0.06711 | H38: =F811 -> 0.06711 | I38: =F811 -> 0.06711 | J38: =F811 -> 0.06711 | K38: =F811 -> 0.06711 | N38: Not Part of print range
A39: 29 | B39: RETURN EARNED ON COMMON EQUITY | F39: =IF(Equity=0,0,(F37-$F$806-$F$807-$F$809)*TotalCap/Equity) -> 0.09984583279 | G39: =IF(Equity=0,0,(G37-$F$806-$F$807-$F$809)*TotalCap/Equity) -> 0.04766311661 | H39: =IF(Equity=0,0,(H37-F806-F807-F809)*TotalCap/Equity) -> -0.5198783437 | I39: =IF(Equity=0,0,(I37-F806-F807-F809)*TotalCap/Equity) -> 0.2569952125 | J39: =IF(Equity=0,0,(J37-F806-F807-F809)*TotalCap/Equity) -> 0.09984583279 | K39: =IF(Equity=0,0,(K37-F806-F807-F809)*TotalCap/Equity) -> -0.04113250255 | N39: Not Filed
A40: 30 | B40: ALLOWED RETURN ON COMMON EQUITY | F40: =IF(Equity=0,0,(F38-$F$806-$F$807-$F$809)*TotalCap/Equity) -> 0.09800067517 | G40: =IF(Equity=0,0,(G38-F806-F807-F809)*TotalCap/Equity) -> 0.09800067517 | H40: =IF(Equity=0,0,(H38-F806-F807-F809)*TotalCap/Equity) -> 0.09800067517 | I40: =IF(Equity=0,0,(I38-F806-F807-F809)*TotalCap/Equity) -> 0.09800067517 | J40: =IF(Equity=0,0,(J38-F806-F807-F809)*TotalCap/Equity) -> 0.09800067517 | K40: =IF(Equity=0,0,(K38-F806-F807-F809)*TotalCap/Equity) -> 0.09800067517
A41: 31
A42: 32 | B42: PRESENT REVENUES | F42: =F867 -> 309580654 | G42: =G867 -> 216065589 | H42: =H867 -> 29037083 | I42: =I867 -> 64477982 | J42: =J867 -> 309580654 | K42: =F42-J42 -> 0
A43: 33 | B43: REVENUE INCREASE JUSTIFIED | F43: =F30-F42 -> 44392659 | G43: =G30-G42 -> 30982778 | H43: 4163805 | I43: 9245891 | J43: 44392474 | K43: 185
A44: 34 | C44: PER UNIT PRES REV | F44: =IF(F42=0,0,ROUND(F43/F42,5)) -> 0.1434 | G44: =IF(G42=0,0,ROUND(G43/G42,5)) -> 0.1434 | H44: =IF(H42=0,0,ROUND(H43/H42,5)) -> 0.1434 | I44: =IF(I42=0,0,ROUND(I43/I42,5)) -> 0.1434 | J44: 0.1434 | K44: 0
A45: 35 | B45: REVENUE INCREASE REQUESTED | F45: =F33-F42 -> 45513514 | G45: 13051821 | H45: -12525204 | I45: 44986897 | J45: 45513514 | K45: 0
A46: 36 | C46: PER UNIT PRES REV | F46: =IF(F42=0,0,ROUND(F45/F42,5)) -> 0.14702 | G46: =IF(G42=0,0,ROUND(G45/G42,5)) -> 0.06041 | H46: =IF(H42=0,0,ROUND(H45/H42,5)) -> -0.43135 | I46: =IF(I42=0,0,ROUND(I45/I42,5)) -> 0.69771 | J46: 0.14702 | K46: 0
A48: =co_name -> DUKE ENERGY KENTUCKY, INC. | J48: =J1 -> FR-16(7)(v)-1
A49: =$A$2 -> FUNCTIONAL ELECTRIC COST OF SERVICE | J49: =J2 -> WITNESS RESPONSIBLE:
A50: =case_name -> CASE NO: 2019-00271 | J50: =Witness -> JAMES E. ZIOLKOWSKI
A51: =data_filing -> DATA: 12 MONTHS ACTUAL & 0 MONTHS ESTIMATED | J51: ="PAGE "&Pages-16&" OF "&Pages -> PAGE 2 OF 18
A52: =type -> TYPE OF FILING: "X" ORIGINAL UPDATED REVISED
A55: LINE | F55: TOTAL | G55: FUNCTIONAL | J55: TOTAL | K55: ALL
A56: NO. | B56: GROSS ELECTRIC PLANT IN SERVICE | D56: ALLO | F56: =$F$9 -> ELECTRIC | G56: =G9 -> PRODUCTION | H56: TRANSMISSION | I56: DISTRIBUTION | J56: AT ISSUE | K56: OTHER
C57: Schedule 2 | G57: 3 | H57: 4 | I57: 5
A58: 1 | B58: PRODUCTION PLANT
A59: 2 | C59: PRODUCTION STEAM | D59: K201 | F59: ='[3]SCH B-2.1'!$I$294 -> 835340554 | G59: =F59-SUM(H59:I59) -> 835340554 | H59: =ROUND(F59*VLOOKUP(D59,ALLOCTABLE_FUNCTIONAL,$H$10,FALSE),0) -> 0 | I59: =ROUND(F59*VLOOKUP(D59,ALLOCTABLE_FUNCTIONAL,$I$10,FALSE),0) -> 0 | J59: =SUM(G59:I59) -> 835340554 | K59: =F59-J59 -> 0
A60: 3 | C60: PRODUCTION OTHER | D60: K201 | F60: ='[3]SCH B-2.1'!$I$335 -> 373451984 | G60: =F60-SUM(H60:I60) -> 373451984 | H60: =ROUND(F60*VLOOKUP(D60,ALLOCTABLE_FUNCTIONAL,$H$10,FALSE),0) -> 0 | I60: =ROUND(F60*VLOOKUP(D60,ALLOCTABLE_FUNCTIONAL,$I$10,FALSE),0) -> 0 | J60: =SUM(G60:I60) -> 373451984 | K60: =F60-J60 -> 0
A61: 4 | C61: ADJUSTMENT | D61: K201 | F61: 0 | G61: =F61-SUM(H61:I61) -> 0 | H61: =ROUND(F61*VLOOKUP(D61,ALLOCTABLE_FUNCTIONAL,$H$10,FALSE),0) -> 0 | I61: =ROUND(F61*VLOOKUP(D61,ALLOCTABLE_FUNCTIONAL,$I$10,FALSE),0) -> 0 | J61: =SUM(G61:I61) -> 0 | K61: =F61-J61 -> 0
A62: 5 | C62: PRODUCTION PLANT IN SERVICE | F62: =SUM(F59:F61) -> 1208792538 | G62: 1208792538 | H62: 0 | I62: 0 | J62: 1208792538 | K62: 0
A63: 6
A64: 7 | B64: TRANSMISSION PLANT
A65: 8 | C65: MAIN STEP-UP TRANSFORMERS | D65: K202 | F65: 0 | G65: =F65-SUM(H65:I65) -> 0 | H65: =ROUND(F65*VLOOKUP(D65,ALLOCTABLE_FUNCTIONAL,$H$10,FALSE),0) -> 0 | I65: =ROUND(F65*VLOOKUP(D65,ALLOCTABLE_FUNCTIONAL,$I$10,FALSE),0) -> 0 | J65: =SUM(G65:I65) -> 0 | K65: =F65-J65 -> 0
A66: 9 | C66: OTHER TRANSMISSION | D66: K202 | F66: ='[3]SCH B-2.1'!$I$374 -> 72371702 | G66: =F66-SUM(H66:I66) -> 0 | H66: =ROUND(F66*VLOOKUP(D66,ALLOCTABLE_FUNCTIONAL,$H$10,FALSE),0) -> 72371702 | I66: =ROUND(F66*VLOOKUP(D66,ALLOCTABLE_FUNCTIONAL,$I$10,FALSE),0) -> 0 | J66: =SUM(G66:I66) -> 72371702 | K66: =F66-J66 -> 0
A67: 10 | C67: ADJUSTMENT | D67: K202 | F67: 0 | G67: =F67-SUM(H67:I67) -> 0 | H67: =ROUND(F67*VLOOKUP(D67,ALLOCTABLE_FUNCTIONAL,$H$10,FALSE),0) -> 0 | I67: =ROUND(F67*VLOOKUP(D67,ALLOCTABLE_FUNCTIONAL,$I$10,FALSE),0) -> 0 | J67: =SUM(G67:I67) -> 0 | K67: =F67-J67 -> 0
A68: 11 | C68: TRANSMISSION PLANT IN SERVICE | F68: =SUM(F65:F67) -> 72371702 | G68: 0 | H68: 72371702 | I68: 0 | J68: 72371702 | K68: 0
A69: 12
A70: 13 | B70: TOTAL PROD & TRANS PLANT | F70: =F68+F62 -> 1281164240 | G70: 1208792538 | H70: 72371702 | I70: 0 | J70: 1281164240 | K70: 0
A71: 14
A72: 15 | B72: DISTRIBUTION PLANT
A73: 16 | C73: SUBSTATIONS | D73: K215 | F73: ='[3]SCH B-2.1'!$I$399+'[3]SCH B-2.1'!$I$400+'[3]SCH B-2.1'!$I$401+'[3]SCH B-2.1'!$I$402+'[3]SCH B-2.1'!$I$403+'[3]SCH B-2.1'!$I$404+4 -> 90976376 | G73: =F73-SUM(H73:I73) -> 0 | H73: =ROUND(F73*VLOOKUP(D73,ALLOCTABLE_FUNCTIONAL,$H$10,FALSE),0) -> 0 | I73: =ROUND(F73*VLOOKUP(D73,ALLOCTABLE_FUNCTIONAL,$I$10,FALSE),0) -> 90976376 | J73: =SUM(G73:I73) -> 90976376 | K73: =F73-J73 -> 0
A74: 17 | C74: POLES, TOWERS & FIXTURES - PRIMARY - DEMAND | D74: K205 | F74: ='WP FR-16(7)(v) MinSizPrimPole1'!F16 -> 33009975 | G74: =F74-SUM(H74:I74) -> 0 | H74: =ROUND(F74*VLOOKUP(D74,ALLOCTABLE_FUNCTIONAL,$H$10,FALSE),0) -> 0 | I74: =ROUND(F74*VLOOKUP(D74,ALLOCTABLE_FUNCTIONAL,$I$10,FALSE),0) -> 33009975 | J74: =SUM(G74:I74) -> 33009975 | K74: =F74-J74 -> 0
A75: 18 | C75: POLES, TOWERS & FIXTURES - PRIMARY - CUSTOMER | D75: K405 | F75: ='WP FR-16(7)(v) MinSizPrimPole1'!G16 -> 15106661 | G75: =F75-SUM(H75:I75) -> 0 | H75: =ROUND(F75*VLOOKUP(D75,ALLOCTABLE_FUNCTIONAL,$H$10,FALSE),0) -> 0 | I75: =ROUND(F75*VLOOKUP(D75,ALLOCTABLE_FUNCTIONAL,$I$10,FALSE),0) -> 15106661 | J75: =SUM(G75:I75) -> 15106661 | K75: =F75-J75 -> 0
A76: 19 | C76: POLES, TOWERS & FIXTURES - SECONDARY - DEMAND | D76: K206 | F76: ='WP FR-16(7)(v) MinSizSecPole1'!F16 -> 12624115 | G76: 0 | H76: 0 | I76: 12624115 | J76: 12624115 | K76: 0
A77: 20 | C77: POLES, TOWERS & FIXTURES - SECONDARY - CUSTOMER | D77: K405 | F77: ='WP FR-16(7)(v) MinSizSecPole1'!G16 -> 3414764 | G77: 0 | H77: 0 | I77: 3414764 | J77: 3414764 | K77: 0
A78: 21 | C78: CONDUCTORS - OVERHEAD / PRIMARY - DEMAND | D78: K205 | F78: ='WP FR-16(7)(v) MinSizOHPRIM1'!F16 -> 75222822 | G78: 0 | H78: 0 | I78: 75222822 | J78: 75222822 | K78: 0
A79: 22 | C79: CONDUCTORS - OVERHEAD / PRIMARY - CUSTOMER | D79: K405 | F79: ='WP FR-16(7)(v) MinSizOHPRIM1'!G16 -> 16426781 | G79: 0 | H79: 0 | I79: 16426781 | J79: 16426781 | K79: 0
A80: 23 | C80: CONDUCTORS - OVERHEAD / SECONDARY - DEMAND | D80: K206 | F80: ='WP FR-16(7)(v) MinSizOHSEC1'!F16 -> 30629852 | G80: 0 | H80: 0 | I80: 30629852 | J80: 30629852 | K80: 0
A81: 24 | C81: CONDUCTORS - OVERHEAD / SECONDARY - CUSTOMER | D81: K405 | F81: ='WP FR-16(7)(v) MinSizOHSEC1'!G16 -> 6804493 | G81: 0 | H81: 0 | I81: 6804493 | J81: 6804493 | K81: 0
A82: 25 | C82: CONDUCTORS - UNDERGROUND / PRIMARY - DEMAND | D82: K205 | F82: ='WP FR-16(7)(v) MinSizUGPRIM1'!F16 -> 56141307 | G82: 0 | H82: 0 | I82: 56141307 | J82: 56141307 | K82: 0
A83: 26 | C83: CONDUCTORS - UNDERGROUND / PRIMARY - CUSTOMER | D83: K405 | F83: ='WP FR-16(7)(v) MinSizUGPRIM1'!G16 -> 17434066 | G83: 0 | H83: 0 | I83: 17434066 | J83: 17434066 | K83: 0
A84: 27 | C84: CONDUCTORS - UNDERGROUND / SECONDARY - DEMAND | D84: K206 | F84: ='WP FR-16(7)(v) MinSizUGSEC1'!F16 -> 9617808 | G84: 0 | H84: 0 | I84: 9617808 | J84: 9617808 | K84: 0
A85: 28 | C85: CONDUCTORS - UNDERGROUND / SECONDARY - CUSTOMER | D85: K405 | F85: ='WP FR-16(7)(v) MinSizUGSEC1'!G16 -> 5451847 | G85: 0 | H85: 0 | I85: 5451847 | J85: 5451847 | K85: 0
A86: 29 | C86: TRANSFORMERS DEMAND RELATED | D86: K215 | F86: ='WP FR-16(7)(v) Min Siz Trans 1'!F17 -> 47116092 | G86: =F86-SUM(H86:I86) -> 0 | H86: =ROUND(F86*VLOOKUP(D86,ALLOCTABLE_FUNCTIONAL,$H$10,FALSE),0) -> 0 | I86: =ROUND(F86*VLOOKUP(D86,ALLOCTABLE_FUNCTIONAL,$I$10,FALSE),0) -> 47116092 | J86: =SUM(G86:I86) -> 47116092 | K86: =F86-J86 -> 0
A87: 30 | C87: TRANSFORMERS CUSTOMER RELATED | D87: K405 | F87: ='WP FR-16(7)(v) Min Siz Trans 1'!G17 -> 15311023 | G87: 0 | H87: 0 | I87: 15311023 | J87: 15311023 | K87: 0
A88: 31 | C88: SERVICES | D88: K217 | F88: ='[3]SCH B-2.1'!$I$412+'[3]SCH B-2.1'!$I$413 -> 21226508 | G88: 0 | H88: 0 | I88: 21226508 | J88: 21226508 | K88: 0
A89: 32 | C89: METERS | D89: K407 | F89: ='[3]SCH B-2.1'!$I$414+'[3]SCH B-2.1'!$I$415 -> 22573919 | G89: 0 | H89: 5192 | I89: 22568727 | J89: 22573919 | K89: 0
A90: 33 | C90: STREET LIGHTS | D90: K401 | F90: ='[3]SCH B-2.1'!$I$416+'[3]SCH B-2.1'!$I$417+'[3]SCH B-2.1'!$I$418+'[3]SCH B-2.1'!$I$419+'[3]SCH B-2.1'!$I$420+'[3]SCH B-2.1'!$I$421 -> 5595857 | G90: 0 | H90: 0 | I90: 5595857 | J90: =SUM(G90:I90) -> 5595857 | K90: 0
A91: 34 | C91: ADJUSTMENT | D91: K209 | F91: 0 | G91: 0 | H91: 0 | I91: 0 | J91: 0 | K91: 0
A92: 35 | C92: CONSTRUCTION NOT CLASSIFIED | D92: K209 | F92: ='[3]SCH B-2.1'!$I$422 -> 94687831 | G92: 0 | H92: 947 | I92: 94686884 | J92: 94687831 | K92: 0
A93: 36 | C93: RWIP | D93: K215 | F93: 0 | G93: =F93-SUM(H93:I93) -> 0 | H93: =ROUND(F93*VLOOKUP(D93,ALLOCTABLE_FUNCTIONAL,$H$10,FALSE),0) -> 0 | I93: =ROUND(F93*VLOOKUP(D93,ALLOCTABLE_FUNCTIONAL,$I$10,FALSE),0) -> 0 | J93: =SUM(G93:I93) -> 0 | K93: =F93-J93 -> 0
A94: 37 | C94: DISTRIBUTION PLANT IN SERVICE | F94: =SUM(F73:F93) -> 579372097 | G94: =SUM(G73:G92) -> 0 | H94: 6139 | I94: 579365958 | J94: 579372097 | K94: 0
A95: 38
A96: 39 | B96: TOTAL TRANS & DIST PLANT | F96: =F94+F68 -> 651743799 | G96: 0 | H96: 72377841 | I96: 579365958 | J96: 651743799 | K96: 0
A97: 40 | B97: TOTAL GROSS PTD PLANT | F97: =F94+F70 -> 1860536337 | G97: 1208792538 | H97: 72377841 | I97: 579365958 | J97: 1860536337 | K97: 0
A98: 41
A99: 42 | B99: GENERAL & INTANGIBLE PLANT
A100: 43 | C100: PRODUCTION - DEMAND | D100: K201 | F100: ='WP FR-16(7)(v) A&G WP'!D12 -> 16704047 | G100: =F100-SUM(H100:I100) -> 16704047 | H100: =ROUND(F100*VLOOKUP(D100,ALLOCTABLE_FUNCTIONAL,$H$10,FALSE),0) -> 0 | I100: =ROUND(F100*VLOOKUP(D100,ALLOCTABLE_FUNCTIONAL,$I$10,FALSE),0) -> 0 | J100: =SUM(G100:I100) -> 16704047 | K100: =F100-J100 -> 0
A101: 44 | C101: PRODUCTION - ENERGY | D101: K301 | F101: ='WP FR-16(7)(v) A&G WP'!D13 -> 19517654 | G101: 19517654 | H101: 0 | I101: 0 | J101: 19517654 | K101: 0
A102: 45 | C102: TRANSMISSION | D102: K202 | F102: ='WP FR-16(7)(v) A&G WP'!D14 -> 2639608 | G102: 0 | H102: 2639608 | I102: 0 | J102: 2639608 | K102: 0
A103: 46 | C103: DISTRIBUTION - DEMAND | D103: K201 | F103: =ROUND('WP FR-16(7)(v) A&G WP'!D15*NPdemand,0) -> 8865387 | G103: 8865387 | H103: 0 | I103: 0 | J103: 8865387 | K103: 0
A104: 47 | C104: DISTRIBUTION - CUSTOMER | D104: K405 | F104: =ROUND('WP FR-16(7)(v) A&G WP'!D15-F103,0) -> 1946061 | G104: =F104-SUM(H104:I104) -> 0 | H104: =ROUND(F104*VLOOKUP(D104,ALLOCTABLE_FUNCTIONAL,$H$10,FALSE),0) -> 0 | I104: =ROUND(F104*VLOOKUP(D104,ALLOCTABLE_FUNCTIONAL,$I$10,FALSE),0) -> 1946061 | J104: =SUM(G104:I104) -> 1946061 | K104: =F104-J104 -> 0
A105: 48 | C105: CUSTOMER ACCOUNTING | D105: A308 | F105: ='WP FR-16(7)(v) A&G WP'!D16 -> 6615123 | G105: =F105-SUM(H105:I105) -> 0 | H105: -2117 | I105: 6617240 | J105: =SUM(G105:I105) -> 6615123 | K105: =F105-J105 -> 0
A106: 49 | C106: CUSTOMER SERVICE & INFORMATION | D106: A310 | F106: ='WP FR-16(7)(v) A&G WP'!D17 -> 432753 | G106: 0 | H106: 0 | I106: 432753 | J106: 432753 | K106: 0
A107: 50 | C107: SALES | D107: A312 | F107: ='WP FR-16(7)(v) A&G WP'!D18 -> 0 | G107: =F107-SUM(H107:I107) -> 0 | H107: 0 | I107: 0 | J107: =SUM(G107:I107) -> 0 | K107: =F107-J107 -> 0
A108: 51 | C108: ADJUSTMENT | D108: A315 | F108: 0 | G108: 0 | H108: 0 | I108: 0 | J108: 0 | K108: 0
A109: 52 | C109: GEN & INTANG PLANT IN SERVICE | F109: =SUM(F100:F108) -> 56720633 | G109: 45087088 | H109: 2637491 | I109: 8996054 | J109: 56720633 | K109: 0
A110: 53
A111: 54 | B111: COMMON & OTHER PLANT
A112: 55 | C112: PRODUCTION - DEMAND | D112: K201 | F112: ='WP FR-16(7)(v) A&G WP'!F12 -> 9454192 | G112: =F112-SUM(H112:I112) -> 9454192 | H112: =ROUND(F112*VLOOKUP(D112,ALLOCTABLE_FUNCTIONAL,$H$10,FALSE),0) -> 0 | I112: =ROUND(F112*VLOOKUP(D112,ALLOCTABLE_FUNCTIONAL,$I$10,FALSE),0) -> 0 | J112: =SUM(G112:I112) -> 9454192 | K112: =F112-J112 -> 0
A113: 56 | C113: PRODUCTION - ENERGY | D113: K301 | F113: ='WP FR-16(7)(v) A&G WP'!F13 -> 11046644 | G113: 11046644 | H113: 0 | I113: 0 | J113: 11046644 | K113: 0
A114: 57 | C114: TRANSMISSION | D114: K202 | F114: ='WP FR-16(7)(v) A&G WP'!F14 -> 1493971 | G114: =F114-SUM(H114:I114) -> 0 | H114: 1493971 | I114: 0 | J114: =SUM(G114:I114) -> 1493971 | K114: =F114-J114 -> 0
A115: 58 | C115: DISTRIBUTION - DEMAND | D115: K201 | F115: =ROUND('WP FR-16(7)(v) A&G WP'!F15*NPdemand,0) -> 5017651 | G115: 5017651 | H115: 0 | I115: 0 | J115: 5017651 | K115: 0
A116: 59 | C116: DISTRIBUTION - CUSTOMER | D116: K405 | F116: =ROUND('WP FR-16(7)(v) A&G WP'!F15-F115,0) -> 1101435 | G116: =F116-SUM(H116:I116) -> 0 | H116: =ROUND(F116*VLOOKUP(D116,ALLOCTABLE_FUNCTIONAL,$H$10,FALSE),0) -> 0 | I116: =ROUND(F116*VLOOKUP(D116,ALLOCTABLE_FUNCTIONAL,$I$10,FALSE),0) -> 1101435 | J116: =SUM(G116:I116) -> 1101435 | K116: =F116-J116 -> 0
A117: 60 | C117: CUSTOMER ACCOUNTING | D117: A308 | F117: ='WP FR-16(7)(v) A&G WP'!F16 -> 3744042 | G117: 0 | H117: -1198 | I117: 3745240 | J117: 3744042 | K117: 0
A118: 61 | C118: CUSTOMER SERVICE & INFORMATION | D118: A310 | F118: ='WP FR-16(7)(v) A&G WP'!F17 -> 244930 | G118: 0 | H118: 0 | I118: 244930 | J118: 244930 | K118: 0
A119: 62 | C119: SALES | D119: A312 | F119: ='WP FR-16(7)(v) A&G WP'!F18 -> 0 | G119: =F119-SUM(H119:I119) -> 0 | H119: 0 | I119: 0 | J119: =SUM(G119:I119) -> 0 | K119: =F119-J119 -> 0
A120: 63 | C120: ADJUSTMENT | D120: A315 | F120: 0 | G120: 0 | H120: 0 | I120: 0 | J120: 0 | K120: 0
A121: 64 | C121: COMMON & OTHER PLANT IN SERVICE | F121: =SUM(F112:F120) -> 32102865 | G121: 25518487 | H121: 1492773 | I121: 5091605 | J121: 32102865 | K121: 0
A122: 65
A123: 66 | B123: GROSS ELECTRIC PLANT IN SERVICE | F123: =F97+F109+F121 -> 1949359835 | G123: 1279398113 | H123: 76508105 | I123: 593453617 | J123: 1949359835 | K123: 0 | M123: =ROUND(G123/F123,4) -> 0.6563 | N123: =ROUND(H123/F123,4) -> 0.0392 | O123: =ROUND(I123/F123,4) -> 0.3044
A125: =co_name -> DUKE ENERGY KENTUCKY, INC. | J125: =J1 -> FR-16(7)(v)-1
A126: =$A$2 -> FUNCTIONAL ELECTRIC COST OF SERVICE | J126: =J2 -> WITNESS RESPONSIBLE:
A127: =case_name -> CASE NO: 2019-00271 | J127: =Witness -> JAMES E. ZIOLKOWSKI
A128: =data_filing -> DATA: 12 MONTHS ACTUAL & 0 MONTHS ESTIMATED | J128: ="PAGE "&Pages-15&" OF "&Pages -> PAGE 3 OF 18
A129: =type -> TYPE OF FILING: "X" ORIGINAL UPDATED REVISED
A132: LINE | F132: TOTAL | G132: FUNCTIONAL | J132: TOTAL | K132: ALL
A133: NO. | B133: DEPRECIATION RESERVE | D133: ALLO | F133: =$F$9 -> ELECTRIC | G133: =G9 -> PRODUCTION | H133: TRANSMISSION | I133: DISTRIBUTION | J133: AT ISSUE | K133: OTHER
C134: Schedule 3 | G134: 3 | H134: 4 | I134: 5
A135: 1 | B135: PRODUCTION PLANT
A136: 2 | C136: PRODUCTION STEAM | D136: K201 | F136: ='[3]SCH B-3'!$K$315 -> 401160304 | G136: =F136-SUM(H136:I136) -> 401160304 | H136: =ROUND(F136*VLOOKUP(D136,ALLOCTABLE_FUNCTIONAL,$H$10,FALSE),0) -> 0 | I136: =ROUND(F136*VLOOKUP(D136,ALLOCTABLE_FUNCTIONAL,$I$10,FALSE),0) -> 0 | J136: =SUM(G136:I136) -> 401160304 | K136: =F136-J136 -> 0
A137: 3 | C137: PRODUCTION OTHER | D137: K201 | F137: ='[3]SCH B-3'!$K$358 -> 184221788 | G137: =F137-SUM(H137:I137) -> 184221788 | H137: =ROUND(F137*VLOOKUP(D137,ALLOCTABLE_FUNCTIONAL,$H$10,FALSE),0) -> 0 | I137: =ROUND(F137*VLOOKUP(D137,ALLOCTABLE_FUNCTIONAL,$I$10,FALSE),0) -> 0 | J137: =SUM(G137:I137) -> 184221788 | K137: =F137-J137 -> 0
A138: 4 | C138: ADJUSTMENT | D138: K201 | F138: =[3]SCH_D2.24!$V$52 -> 1553366 | G138: =F138-SUM(H138:I138) -> 1553366 | H138: =ROUND(F138*VLOOKUP(D138,ALLOCTABLE_FUNCTIONAL,$H$10,FALSE),0) -> 0 | I138: =ROUND(F138*VLOOKUP(D138,ALLOCTABLE_FUNCTIONAL,$I$10,FALSE),0) -> 0 | J138: =SUM(G138:I138) -> 1553366 | K138: =F138-J138 -> 0
A139: 5 | C139: TOTAL PROD DEPREC RESERVE | F139: =SUM(F136:F138) -> 586935458 | G139: 586935458 | H139: 0 | I139: 0 | J139: 586935458 | K139: 0
A140: 6
A141: 7 | B141: TRANSMISSION PLANT
A142: 8 | C142: MAIN STEP-UP TRANSFORMERS | D142: K202 | F142: 0 | G142: =F142-SUM(H142:I142) -> 0 | H142: =ROUND(F142*VLOOKUP(D142,ALLOCTABLE_FUNCTIONAL,$H$10,FALSE),0) -> 0 | I142: =ROUND(F142*VLOOKUP(D142,ALLOCTABLE_FUNCTIONAL,$I$10,FALSE),0) -> 0 | J142: =SUM(G142:I142) -> 0 | K142: =F142-J142 -> 0
A143: 9 | C143: OTHER TRANSMISSION | D143: K202 | F143: ='[3]SCH B-3'!$K$398 -> 19959025 | G143: =F143-SUM(H143:I143) -> 0 | H143: =ROUND(F143*VLOOKUP(D143,ALLOCTABLE_FUNCTIONAL,$H$10,FALSE),0) -> 19959025 | I143: =ROUND(F143*VLOOKUP(D143,ALLOCTABLE_FUNCTIONAL,$I$10,FALSE),0) -> 0 | J143: =SUM(G143:I143) -> 19959025 | K143: =F143-J143 -> 0
A144: 10 | C144: ADJUSTMENT | D144: K202 | F144: =[3]SCH_D2.24!$W$52 -> -70176 | G144: =F144-SUM(H144:I144) -> 0 | H144: =ROUND(F144*VLOOKUP(D144,ALLOCTABLE_FUNCTIONAL,$H$10,FALSE),0) -> -70176 | I144: =ROUND(F144*VLOOKUP(D144,ALLOCTABLE_FUNCTIONAL,$I$10,FALSE),0) -> 0 | J144: =SUM(G144:I144) -> -70176 | K144: =F144-J144 -> 0
A145: 11 | C145: TOTAL TRANS DEPREC RESERVE | F145: =SUM(F142:F144) -> 19888849 | G145: 0 | H145: 19888849 | I145: 0 | J145: 19888849 | K145: 0
A146: 12
A147: 13 | C147: TOTAL PROD & TRANS DEPREC RESERVE | F147: =F145+F139 -> 606824307 | G147: =G145+G139 -> 586935458 | H147: =H145+H139 -> 19888849 | I147: =I145+I139 -> 0 | J147: =J145+J139 -> 606824307 | K147: =F147-J147 -> 0
A148: 14
A149: 15 | B149: DISTRIBUTION PLANT
A150: 16 | C150: SUBSTATIONS | D150: K215 | F150: ='[3]SCH B-3'!$K$424+'[3]SCH B-3'!$K$425+'[3]SCH B-3'!$K$426+'[3]SCH B-3'!$K$427+'[3]SCH B-3'!$K$428+'[3]SCH B-3'!$K$429 -> 18483835 | G150: =F150-SUM(H150:I150) -> 0 | H150: =ROUND(F150*VLOOKUP(D150,ALLOCTABLE_FUNCTIONAL,$H$10,FALSE),0) -> 0 | I150: =ROUND(F150*VLOOKUP(D150,ALLOCTABLE_FUNCTIONAL,$I$10,FALSE),0) -> 18483835 | J150: =SUM(G150:I150) -> 18483835 | K150: =F150-J150 -> 0
A151: 17 | C151: POLES, TOWERS & FIXTURES - PRIMARY - DEMAND | D151: K205 | F151: ='WP FR-16(7)(v) MinSizPrimPole1'!F22 -> 15103464 | G151: =F151-SUM(H151:I151) -> 0 | H151: =ROUND(F151*VLOOKUP(D151,ALLOCTABLE_FUNCTIONAL,$H$10,FALSE),0) -> 0 | I151: =ROUND(F151*VLOOKUP(D151,ALLOCTABLE_FUNCTIONAL,$I$10,FALSE),0) -> 15103464 | J151: =SUM(G151:I151) -> 15103464 | K151: =F151-J151 -> 0
A152: 18 | C152: POLES, TOWERS & FIXTURES - PRIMARY - CUSTOMER | D152: K405 | F152: ='WP FR-16(7)(v) MinSizPrimPole1'!G22 -> 6911939 | G152: =F152-SUM(H152:I152) -> 0 | H152: =ROUND(F152*VLOOKUP(D152,ALLOCTABLE_FUNCTIONAL,$H$10,FALSE),0) -> 0 | I152: =ROUND(F152*VLOOKUP(D152,ALLOCTABLE_FUNCTIONAL,$I$10,FALSE),0) -> 6911939 | J152: =SUM(G152:I152) -> 6911939 | K152: =F152-J152 -> 0
A153: 19 | C153: POLES, TOWERS & FIXTURES - SECONDARY - DEMAND | D153: K206 | F153: ='WP FR-16(7)(v) MinSizSecPole1'!F22 -> 5776068 | G153: 0 | H153: 0 | I153: 5776068 | J153: 5776068 | K153: 0
A154: 20 | C154: POLES, TOWERS & FIXTURES - SECONDARY - CUSTOMER | D154: K405 | F154: ='WP FR-16(7)(v) MinSizSecPole1'!G22 -> 1562400 | G154: 0 | H154: 0 | I154: 1562400 | J154: 1562400 | K154: 0
A155: 21 | C155: CONDUCTORS - OVERHEAD / PRIMARY - DEMAND | D155: K205 | F155: ='WP FR-16(7)(v) MinSizOHPRIM1'!F22 -> 22430547 | G155: 0 | H155: 0 | I155: 22430547 | J155: 22430547 | K155: 0
A156: 22 | C156: CONDUCTORS - OVERHEAD / PRIMARY - CUSTOMER | D156: K405 | F156: ='WP FR-16(7)(v) MinSizOHPRIM1'!G22 -> 4898270 | G156: 0 | H156: 0 | I156: 4898270 | J156: 4898270 | K156: 0
A157: 23 | C157: CONDUCTORS - OVERHEAD / SECONDARY - DEMAND | D157: K206 | F157: ='WP FR-16(7)(v) MinSizOHSEC1'!F22 -> 9133457 | G157: 0 | H157: 0 | I157: 9133457 | J157: 9133457 | K157: 0
A158: 24 | C158: CONDUCTORS - OVERHEAD / SECONDARY - CUSTOMER | D158: K405 | F158: ='WP FR-16(7)(v) MinSizOHSEC1'!G22 -> 2029018 | G158: 0 | H158: 0 | I158: 2029018 | J158: 2029018 | K158: 0
A159: 25 | C159: CONDUCTORS - UNDERGROUND / PRIMARY - DEMAND | D159: K205 | F159: ='WP FR-16(7)(v) MinSizUGPRIM1'!F22 -> 16606325 | G159: 0 | H159: 0 | I159: 16606325 | J159: 16606325 | K159: 0
A160: 26 | C160: CONDUCTORS - UNDERGROUND / PRIMARY - CUSTOMER | D160: K405 | F160: ='WP FR-16(7)(v) MinSizUGPRIM1'!G22 -> 5156912 | G160: 0 | H160: 0 | I160: 5156912 | J160: 5156912 | K160: 0
A161: 27 | C161: CONDUCTORS - UNDERGROUND / SECONDARY - DEMAND | D161: K206 | F161: ='WP FR-16(7)(v) MinSizUGSEC1'!F22 -> 2844900 | G161: 0 | H161: 0 | I161: 2844900 | J161: 2844900 | K161: 0
A162: 28 | C162: CONDUCTORS - UNDERGROUND / SECONDARY - CUSTOMER | D162: K405 | F162: ='WP FR-16(7)(v) MinSizUGSEC1'!G22 -> 1612630 | G162: 0 | H162: 0 | I162: 1612630 | J162: 1612630 | K162: 0
A163: 29 | C163: TRANSFORMERS DEMAND RELATED | D163: K215 | F163: ='WP FR-16(7)(v) Min Siz Trans 1'!F23 -> 20506142 | G163: =F163-SUM(H163:I163) -> 0 | H163: =ROUND(F163*VLOOKUP(D163,ALLOCTABLE_FUNCTIONAL,$H$10,FALSE),0) -> 0 | I163: =ROUND(F163*VLOOKUP(D163,ALLOCTABLE_FUNCTIONAL,$I$10,FALSE),0) -> 20506142 | J163: =SUM(G163:I163) -> 20506142 | K163: =F163-J163 -> 0
A164: 30 | C164: TRANSFORMERS CUSTOMER RELATED | D164: K405 | F164: ='WP FR-16(7)(v) Min Siz Trans 1'!G23 -> 6663753 | G164: 0 | H164: 0 | I164: 6663753 | J164: 6663753 | K164: 0
A165: 31 | C165: SERVICES | D165: K217 | F165: ='[3]SCH B-3'!$K$437+'[3]SCH B-3'!$K$438 -> 11659391 | G165: 0 | H165: 0 | I165: 11659391 | J165: 11659391 | K165: 0
A166: 32 | C166: METERS | D166: K407 | F166: ='[3]SCH B-3'!$K$439+'[3]SCH B-3'!$K$440 -> 4965805 | G166: 0 | H166: 1142 | I166: 4964663 | J166: 4965805 | K166: 0
A167: 33 | C167: STREET LIGHTS | D167: K401 | F167: ='[3]SCH B-3'!$K$441+'[3]SCH B-3'!$K$442+'[3]SCH B-3'!$K$443+'[3]SCH B-3'!$K$444+'[3]SCH B-3'!$K$445+'[3]SCH B-3'!$K$446 -> 4073494 | G167: 0 | H167: 0 | I167: 4073494 | J167: 4073494 | K167: 0
A168: 34 | C168: ADJUSTMENT | D168: K209 | F168: =[3]SCH_D2.24!$X$52 -> 467132 | G168: 0 | H168: 5 | I168: 467127 | J168: 467132 | K168: 0
A169: 35 | C169: CONSTRUCTION NOT CLASSIFIED | D169: K209 | F169: ='[3]SCH B-3'!$K$447 -> 1525727 | G169: 0 | H169: 15 | I169: 1525712 | J169: 1525727 | K169: 0
A170: 36 | C170: RWIP | D170: K215 | F170: ='[3]SCH B-3'!$K$448 -> -17119217 | G170: =F170-SUM(H170:I170) -> 0 | H170: =ROUND(F170*VLOOKUP(D170,ALLOCTABLE_FUNCTIONAL,$H$10,FALSE),0) -> 0 | I170: =ROUND(F170*VLOOKUP(D170,ALLOCTABLE_FUNCTIONAL,$I$10,FALSE),0) -> -17119217 | J170: =SUM(G170:I170) -> -17119217 | K170: =F170-J170 -> 0
A171: 37 | C171: TOTAL DIST DEPREC RESERVE | F171: =SUM(F149:F170) -> 145291992 | G171: =SUM(G149:G169) -> 0 | H171: =SUM(H149:H170) -> 1162 | I171: =SUM(I149:I170) -> 145290830 | J171: =SUM(J149:J170) -> 145291992 | K171: =SUM(K149:K169) -> 0
A172: 38
A173: 39 | C173: TOTAL TRANS & DIST DEPREC RESERVE | F173: =F171+F145 -> 165180841 | G173: =G171+G145 -> 0 | H173: =H171+H145 -> 19890011 | I173: =I171+I145 -> 145290830 | J173: =J171+J145 -> 165180841 | K173: =F173-J173 -> 0
A174: 40 | C174: TOTAL GROSS PTD PLANT DEPREC RESERVE | F174: =F147+F171 -> 752116299 | G174: =G147+G171 -> 586935458 | H174: =H147+H171 -> 19890011 | I174: =I147+I171 -> 145290830 | J174: =J147+J171 -> 752116299 | K174: =F174-J174 -> 0
A175: 41
A176: 42 | B176: GENERAL & INTANGIBLE PLANT
A177: 43 | C177: PRODUCTION - DEMAND | D177: K201 | F177: ='WP FR-16(7)(v) A&G WP'!E12 -> 5383063 | G177: =F177-SUM(H177:I177) -> 5383063 | H177: =ROUND(F177*VLOOKUP(D177,ALLOCTABLE_FUNCTIONAL,$H$10,FALSE),0) -> 0 | I177: =ROUND(F177*VLOOKUP(D177,ALLOCTABLE_FUNCTIONAL,$I$10,FALSE),0) -> 0 | J177: =SUM(G177:I177) -> 5383063 | K177: =F177-J177 -> 0
A178: 44 | C178: PRODUCTION - ENERGY | D178: K301 | F178: ='WP FR-16(7)(v) A&G WP'!E13 -> 6289780 | G178: 6289780 | H178: 0 | I178: 0 | J178: 6289780 | K178: 0
A179: 45 | C179: TRANSMISSION | D179: K202 | F179: ='WP FR-16(7)(v) A&G WP'!E14 -> 850643 | G179: 0 | H179: 850643 | I179: 0 | J179: 850643 | K179: 0
A180: 46 | C180: DISTRIBUTION - DEMAND | D180: K201 | F180: =ROUND('WP FR-16(7)(v) A&G WP'!E15*NPdemand,0) -> 2856969 | G180: 2856969 | H180: 0 | I180: 0 | J180: 2856969 | K180: 0
A181: 47 | C181: DISTRIBUTION - CUSTOMER | D181: K405 | F181: =ROUND('WP FR-16(7)(v) A&G WP'!E15-F180,0) -> 627139 | G181: =F181-SUM(H181:I181) -> 0 | H181: 0 | I181: 627139 | J181: =SUM(G181:I181) -> 627139 | K181: =F181-J181 -> 0
A182: 48 | C182: CUSTOMER ACCOUNTING | D182: A308 | F182: ='WP FR-16(7)(v) A&G WP'!E16 -> 2131797 | G182: 0 | H182: -682 | I182: 2132479 | J182: 2131797 | K182: 0
A183: 49 | C183: CUSTOMER SERVICE & INFORMATION | D183: A310 | F183: ='WP FR-16(7)(v) A&G WP'!E17 -> 139459 | G183: =F183-SUM(H183:I183) -> 0 | H183: =ROUND(F183*VLOOKUP(D183,ALLOCTABLE_FUNCTIONAL,H10,FALSE),0) -> 0 | I183: =ROUND(F183*VLOOKUP(D183,ALLOCTABLE_FUNCTIONAL,I10,FALSE),0) -> 139459 | J183: =SUM(G183:I183) -> 139459 | K183: =F183-J183 -> 0
A184: 50 | C184: SALES | D184: A312 | F184: ='WP FR-16(7)(v) A&G WP'!E18 -> 0 | G184: =F184-SUM(H184:I184) -> 0 | H184: =ROUND(F184*VLOOKUP(D184,ALLOCTABLE_FUNCTIONAL,H10,FALSE),0) -> 0 | I184: =ROUND(F184*VLOOKUP(D184,ALLOCTABLE_FUNCTIONAL,I10,FALSE),0) -> 0 | J184: =SUM(G184:I184) -> 0 | K184: =F184-J184 -> 0
A185: 51 | C185: ADJUSTMENT | D185: A315 | F185: =[3]SCH_D2.24!$Y$52 -> 325445 | G185: 209990 | H185: =ROUND(F185*VLOOKUP(D185,ALLOCTABLE_FUNCTIONAL,$H$10,FALSE),0) -> 15133 | I185: =ROUND(F185*VLOOKUP(D185,ALLOCTABLE_FUNCTIONAL,$I$10,FALSE),0) -> 100322 | J185: 325445 | K185: 0
A186: 52 | C186: GENERAL & INTANG PLANT | F186: =SUM(F176:F185) -> 18604295 | G186: 14739802 | H186: 865094 | I186: 2999399 | J186: 18604295 | K186: 0
A187: 53
A188: 54 | B188: COMMON & OTHER PLANT
A189: 55 | C189: PRODUCTION - DEMAND | D189: K201 | F189: ='WP FR-16(7)(v) A&G WP'!G12 -> 7273485 | G189: =F189-SUM(H189:I189) -> 7273485 | H189: =ROUND(F189*VLOOKUP(D189,ALLOCTABLE_FUNCTIONAL,$H$10,FALSE),0) -> 0 | I189: =ROUND(F189*VLOOKUP(D189,ALLOCTABLE_FUNCTIONAL,$I$10,FALSE),0) -> 0 | J189: =SUM(G189:I189) -> 7273485 | K189: =F189-J189 -> 0
A190: 56 | C190: PRODUCTION - ENERGY | D190: K301 | F190: ='WP FR-16(7)(v) A&G WP'!G13 -> 8498622 | G190: 8498622 | H190: 0 | I190: 0 | J190: 8498622 | K190: 0
A191: 57 | C191: TRANSMISSION | D191: K202 | F191: ='WP FR-16(7)(v) A&G WP'!G14 -> 1149371 | G191: 0 | H191: 1149371 | I191: 0 | J191: 1149371 | K191: 0
A192: 58 | C192: DISTRIBUTION - DEMAND | D192: K201 | F192: =ROUND('WP FR-16(7)(v) A&G WP'!G15*NPdemand,0) -> 3860278 | G192: 3860278 | H192: 0 | I192: 0 | J192: 3860278 | K192: 0
A193: 59 | C193: DISTRIBUTION - CUSTOMER | D193: K405 | F193: =ROUND('WP FR-16(7)(v) A&G WP'!G15-F192,0) -> 847378 | G193: =F193-SUM(H193:I193) -> 0 | H193: 0 | I193: 847378 | J193: =SUM(G193:I193) -> 847378 | K193: =F193-J193 -> 0
A194: 60 | C194: CUSTOMER ACCOUNTING | D194: A308 | F194: ='WP FR-16(7)(v) A&G WP'!G16 -> 2880440 | G194: 0 | H194: -922 | I194: 2881362 | J194: 2880440 | K194: 0
A195: 61 | C195: CUSTOMER SERVICE & INFORMATION | D195: A310 | F195: ='WP FR-16(7)(v) A&G WP'!G17 -> 188435 | G195: =F195-SUM(H195:I195) -> 0 | H195: =ROUND(F195*VLOOKUP(D195,ALLOCTABLE_FUNCTIONAL,H10,FALSE),0) -> 0 | I195: =ROUND(F195*VLOOKUP(D195,ALLOCTABLE_FUNCTIONAL,I10,FALSE),0) -> 188435 | J195: =SUM(G195:I195) -> 188435 | K195: =F195-J195 -> 0
A196: 62 | C196: SALES | D196: A312 | F196: ='WP FR-16(7)(v) A&G WP'!G18 -> 0 | G196: =F196-SUM(H196:I196) -> 0 | H196: =ROUND(F196*VLOOKUP(D196,ALLOCTABLE_FUNCTIONAL,H10,FALSE),0) -> 0 | I196: =ROUND(F196*VLOOKUP(D196,ALLOCTABLE_FUNCTIONAL,I10,FALSE),0) -> 0 | J196: =SUM(G196:I196) -> 0 | K196: =F196-J196 -> 0
A197: 63 | C197: ADJUSTMENT | D197: A315 | F197: =[3]SCH_D2.24!$Z$52 -> 18280 | G197: 11795 | H197: =ROUND(F197*VLOOKUP(D197,ALLOCTABLE_FUNCTIONAL,$H$10,FALSE),0) -> 850 | I197: =ROUND(F197*VLOOKUP(D197,ALLOCTABLE_FUNCTIONAL,$I$10,FALSE),0) -> 5635 | J197: 18280 | K197: 0
A198: 64 | C198: COMMON & OTHER PLANT IN SERVICE | F198: =SUM(F189:F197) -> 24716289 | G198: =SUM(G188:G197) -> 19644180 | H198: =SUM(H188:H197) -> 1149299 | I198: =SUM(I188:I197) -> 3922810 | J198: =SUM(J188:J197) -> 24716289 | K198: =SUM(K188:K197) -> 0
A199: 65
A200: 66 | B200: TOTAL DEPRECIATION RESERVE | F200: =F198+F186+F171+F145+F139 -> 795436883 | G200: 621319440 | H200: 21904404 | I200: 152213039 | J200: 795436883 | K200: 0 | M200: =ROUND(G200/F200,4) -> 0.7811 | N200: =ROUND(H200/F200,4) -> 0.0275 | O200: =ROUND(I200/F200,4) -> 0.1914
A202: =co_name -> DUKE ENERGY KENTUCKY, INC. | J202: =J1 -> FR-16(7)(v)-1
A203: =$A$2 -> FUNCTIONAL ELECTRIC COST OF SERVICE | J203: =J2 -> WITNESS RESPONSIBLE:
A204: =case_name -> CASE NO: 2019-00271 | J204: =Witness -> JAMES E. ZIOLKOWSKI
A205: =data_filing -> DATA: 12 MONTHS ACTUAL & 0 MONTHS ESTIMATED | J205: ="PAGE "&Pages-14&" OF "&Pages -> PAGE 4 OF 18
A206: =type -> TYPE OF FILING: "X" ORIGINAL UPDATED REVISED
A209: LINE | F209: TOTAL | G209: FUNCTIONAL | J209: TOTAL | K209: ALL
A210: NO. | B210: ="NET ELECTRIC PLANT" -> NET ELECTRIC PLANT | D210: ALLO | F210: =$F$9 -> ELECTRIC | G210: =G9 -> PRODUCTION | H210: TRANSMISSION | I210: DISTRIBUTION | J210: AT ISSUE | K210: OTHER
C211: Schedule 4 | G211: 3 | H211: 4 | I211: 5
... 768 more rows

Sheet FR-16(7)(v)-2 PROD Classified
A1: =co_name -> DUKE ENERGY KENTUCKY, INC. | J1: FR-16(7)(v)-2
A2: PRODUCTION CLASSIFIED - ELECTRIC COST OF SERVICE | J2: WITNESS RESPONSIBLE:
A3: =case_name -> CASE NO: 2019-00271 | J3: =Witness -> JAMES E. ZIOLKOWSKI
A4: =data_filing -> DATA: 12 MONTHS ACTUAL & 0 MONTHS ESTIMATED | J4: ="PAGE "&Pages-17&" OF "&Pages -> PAGE 1 OF 18
A5: =type -> TYPE OF FILING: "X" ORIGINAL UPDATED REVISED
A8: LINE | F8: TOTAL | G8: CLASSIFIED | J8: TOTAL | K8: ALL
A9: NO. | B9: SUMMARY OF RESULTS | D9: ALLO | F9: PRODUCTION | G9: DEMAND | H9: ENERGY | I9: CUSTOMER | J9: AT ISSUE | K9: OTHER
C10: Schedule 1 | G10: 3 | H10: 4 | I10: 5
A11: 1 | B11: NET INCOME COMPUTATION
A12: 2 | C12: ='FR-16(7)(v)-1 Functional'!C12 -> GROSS ELECTRIC PLANT IN SERVICE | F12: =F123 -> 1279398113 | G12: =G123 -> 1248833815 | H12: =H123 -> 30564298 | I12: =I123 -> 0 | J12: =SUM(G12:I12) -> 1279398113 | K12: =F12-J12 -> 0
A13: 3 | C13: ='FR-16(7)(v)-1 Functional'!C13 -> TOTAL DEPRECIATION RESERVE | F13: =-F200 -> -621319440 | G13: =-G200 -> -606412760 | H13: =-H200 -> -14906680 | I13: =-I200 -> 0 | J13: =SUM(G13:I13) -> -621319440 | K13: =F13-J13 -> 0
A14: 4 | C14: ='FR-16(7)(v)-1 Functional'!C14 -> TOTAL RATE BASE ADJUSTMENTS | F14: =F421 -> -103578968 | G14: =G421 -> -119636775 | H14: =H421 -> 16057807 | I14: =I421 -> 0 | J14: =SUM(G14:I14) -> -103578968 | K14: =F14-J14 -> 0
A15: 5 | C15: ='FR-16(7)(v)-1 Functional'!C15 -> TOTAL RATE BASE | F15: =SUM(F12:F14) -> 554499705 | G15: 522784280 | H15: 31715425 | I15: 0 | J15: 554499705 | K15: 0
A16: 6
A17: 7 | B17: OPERATING EXPENSES
A18: 8 | C18: ='FR-16(7)(v)-1 Functional'!C18 -> TOTAL O&M EXPENSE | F18: =F549 -> 154356566 | G18: =G549 -> 6535241 | H18: =H549 -> 147821325 | I18: =I549 -> 0 | J18: =SUM(G18:I18) -> 154356566 | K18: =F18-J18 -> 0
A19: 9 | C19: ='FR-16(7)(v)-1 Functional'!C19 -> TOTAL DEPRECIATION EXPENSE | F19: =F582 -> 41854660 | G19: =G582 -> 39987838 | H19: =H582 -> 1866822 | I19: =I582 -> 0 | J19: =SUM(G19:I19) -> 41854660 | K19: 0
A20: 10 | C20: ='FR-16(7)(v)-1 Functional'!C20 -> TOTAL OTHER TAX & MISC EXPENSE | F20: =F612 -> 8383957 | G20: =G612 -> 7877695 | H20: =H612 -> 506262 | I20: =I612 -> 0 | J20: =SUM(G20:I20) -> 8383957 | K20: 0
A21: 11 | C21: ='FR-16(7)(v)-1 Functional'!C21 -> TOTAL OP EXP EXCLUDING INC & REV TAX | F21: =SUM(F17:F20) -> 204595183 | G21: =SUM(G17:G20) -> 54400774 | H21: =SUM(H17:H20) -> 150194409 | I21: =SUM(I17:I20) -> 0 | J21: =SUM(J17:J20) -> 204595183 | K21: 0
A22: 12 | C22: ='FR-16(7)(v)-1 Functional'!C22 -> NET FED INCOME TAX EXP ALLOWABLE | F22: =F676 -> 4058141 | G22: =G676 -> -6959929 | H22: =H676 -> 11018070 | I22: =I676 -> 0 | J22: =SUM(G22:I22) -> 4058141 | K22: 0
A23: 13 | C23: NET STATE INCOME TAX EXP ALLOWABLE | F23: =F722 -> 1182568 | G23: =G722 -> -682555 | H23: =H722 -> 1865123 | I23: =I722 -> 0 | J23: =SUM(G23:I23) -> 1182568 | K23: 0
A24: 14 | C24: RESERVED | D24: ='FR-16(7)(v)-1 Functional'!D24 -> CW29 | F24: ='FR-16(7)(v)-1 Functional'!G24 -> 0 | G24: =ROUND(F24*VLOOKUP(D24,AllocTable_Classified_Production,$G$10,FALSE),0) -> 0 | H24: =ROUND(F24*VLOOKUP(D24,AllocTable_Classified_Production,$H$10,FALSE),0) -> 0 | I24: =ROUND(F24*VLOOKUP(D24,AllocTable_Classified_Production,$I$10,FALSE),0) -> 0 | J24: =SUM(G24:I24) -> 0 | K24: =F24-J24 -> 0
A25: 15 | C25: ='FR-16(7)(v)-1 Functional'!C25 -> REVENUE TAX | F25: =F767 -> 0 | G25: =G767 -> 0 | H25: =H767 -> 0 | I25: =I767 -> 0 | J25: =SUM(G25:I25) -> 0 | K25: 0
A26: 16 | C26: ='FR-16(7)(v)-1 Functional'!C26 -> TOTAL OPERATING EXPENSE | F26: =SUM(F21:F25) -> 209835892 | G26: =SUM(G21:G25) -> 46758290 | H26: =SUM(H21:H25) -> 163077602 | I26: =SUM(I21:I25) -> 0 | J26: =SUM(G26:I26) -> 209835892 | K26: 0
A27: 17
A28: 18 | B28: RETURN ON RATE BASE | F28: =F433 -> 37212475 | G28: =G433 -> 35083921 | H28: =H433 -> 2128554 | I28: =I433 -> 0 | J28: =SUM(G28:I28) -> 37212475 | K28: =F28-J28 -> 0
A29: 19 | B29: TOTAL OTHER OPERATING REVENUES | F29: =-F750 -> 0 | G29: =-G750 -> 0 | H29: =-H750 -> 0 | I29: =-I750 -> 0 | J29: =SUM(G29:I29) -> 0 | K29: 0
A30: 20 | C30: ='FR-16(7)(v)-1 Functional'!C30 -> TOTAL ELECTRIC COST OF SERVICE | F30: =SUM(F26:F29) -> 247048367 | G30: =SUM(G26:G29) -> 81842211 | H30: =SUM(H26:H29) -> 165206156 | I30: =SUM(I26:I29) -> 0 | J30: =SUM(J26:J29) -> 247048367 | K30: 0
A31: 21 | B31: ADJUSTMENT FOR INTERCLASS SUBSIDIZATION | D31: =1-'WP FR-16(7)(v) Rate Incr'!I11 -> 0.95 | F31: ='WP FR-16(7)(v) Rate Incr'!Q27 -> 0 | G31: 0 | H31: 0 | I31: 0 | J31: =SUM(G31:I31) -> 0 | K31: 0
A32: 22 | B32: ='FR-16(7)(v)-1 Functional'!$B$32 -> REQUESTED REVENUES (COST OF SERVICE ADJUSTED FOR SUBSIDIES) | F32: =F31+F30 -> 247048367 | G32: =G31+G30 -> 81842211 | H32: =H31+H30 -> 165206156 | I32: =I31+I30 -> 0 | J32: =J31+J30 -> 247048367 | K32: 0
A33: 23 | B33: PROPOSED REVENUES | F33: =F868 -> 229117410 | G33: =G868 -> 106929095 | H33: =H868 -> 122188315 | I33: =I868 -> 0 | J33: =J868 -> 229117410 | K33: 0
A34: 24 | B34: DIFFERENCE (REQUESTED LESS PROPOSED) | F34: =F32-F33 -> 17930957 | G34: -25086884 | H34: 43017841 | I34: 0 | J34: 17930957 | K34: 0
A35: 25
A36: 26 | B36: TOTAL RETURN EARNED | F36: =F777+F28 -> 23750830 | G36: =G777+G28 -> 53917871 | H36: =H777+H28 -> -30167041 | I36: =I777+I28 -> 0 | J36: =J777+J28 -> 23750830 | K36: =F36-J36 -> 0
A37: 27 | B37: RATE OF RETURN EARNED | F37: =IF(F431=0,0,ROUND(F36/F431,5)) -> 0.04283 | G37: 0.10314 | H37: -0.95112 | I37: 0 | J37: 0.04283 | K37: 0
A38: 28 | B38: TOTAL RATE OF RETURN ALLOWABLE | F38: =$F$811 -> 0.06711 | G38: =F811 -> 0.06711 | H38: =F811 -> 0.06711 | I38: =F811 -> 0.06711 | J38: =F811 -> 0.06711 | K38: =F811 -> 0.06711 | N38: Not Part of print range
A39: 29 | B39: RETURN EARNED ON COMMON EQUITY | F39: =IF(Equity=0,0,(F37-$F$806-$F$807-$F$809)*TotalCap/Equity) -> 0.04766311661 | G39: =IF(Equity=0,0,(G37-$F$806-$F$807-$F$809)*TotalCap/Equity) -> 0.1726984608 | H39: =IF(Equity=0,0,(H37-F806-F807-F809)*TotalCap/Equity) -> -2.013004772 | I39: =IF(Equity=0,0,(I37-F806-F807-F809)*TotalCap/Equity) -> -0.04113250255 | J39: =IF(Equity=0,0,(J37-F806-F807-F809)*TotalCap/Equity) -> 0.04766311661 | K39: =IF(Equity=0,0,(K37-F806-F807-F809)*TotalCap/Equity) -> -0.04113250255 | N39: Not Filed
A40: 30 | B40: ALLOWED RETURN ON COMMON EQUITY | F40: =IF(Equity=0,0,(F38-$F$806-$F$807-$F$809)*TotalCap/Equity) -> 0.09800067517 | G40: =IF(Equity=0,0,(G38-F806-F807-F809)*TotalCap/Equity) -> 0.09800067517 | H40: =IF(Equity=0,0,(H38-F806-F807-F809)*TotalCap/Equity) -> 0.09800067517 | I40: =IF(Equity=0,0,(I38-F806-F807-F809)*TotalCap/Equity) -> 0.09800067517 | J40: =IF(Equity=0,0,(J38-F806-F807-F809)*TotalCap/Equity) -> 0.09800067517 | K40: =IF(Equity=0,0,(K38-F806-F807-F809)*TotalCap/Equity) -> 0.09800067517
A41: 31
A42: 32 | B42: PRESENT REVENUES | F42: =F867 -> 216065589 | G42: =G867 -> 71578233 | H42: =H867 -> 144487356 | I42: =I867 -> 0 | J42: =J867 -> 216065589 | K42: =F42-J42 -> 0
A43: 33 | B43: REVENUE INCREASE JUSTIFIED | F43: =F30-F42 -> 30982778 | G43: 10263978 | H43: 20718800 | I43: 0 | J43: 30982778 | K43: 0
A44: 34 | C44: PER UNIT PRES REV | F44: =IF(F42=0,0,ROUND(F43/F42,5)) -> 0.1434 | G44: 0.1434 | H44: 0.1434 | I44: 0 | J44: 0.1434 | K44: 0
A45: 35 | B45: REVENUE INCREASE REQUESTED | F45: =F33-F42 -> 13051821 | G45: 35350862 | H45: -22299041 | I45: 0 | J45: 13051821 | K45: 0
A46: 36 | C46: PER UNIT PRES REV | F46: =IF(F42=0,0,ROUND(F45/F42,5)) -> 0.06041 | G46: 0.49388 | H46: -0.15433 | I46: 0 | J46: 0.06041 | K46: 0
A48: =co_name -> DUKE ENERGY KENTUCKY, INC. | J48: =J1 -> FR-16(7)(v)-2
A49: =$A$2 -> PRODUCTION CLASSIFIED - ELECTRIC COST OF SERVICE | J49: =J2 -> WITNESS RESPONSIBLE:
A50: =case_name -> CASE NO: 2019-00271 | J50: =Witness -> JAMES E. ZIOLKOWSKI
A51: =data_filing -> DATA: 12 MONTHS ACTUAL & 0 MONTHS ESTIMATED | J51: ="PAGE "&Pages-16&" OF "&Pages -> PAGE 2 OF 18
A52: =type -> TYPE OF FILING: "X" ORIGINAL UPDATED REVISED
A55: LINE | F55: =$F$8 -> TOTAL | G55: CLASSIFIED | J55: TOTAL | K55: ALL
A56: NO. | B56: GROSS ELECTRIC PLANT IN SERVICE | D56: ALLO | F56: =$F$9 -> PRODUCTION | G56: =G9 -> DEMAND | H56: ENERGY | I56: CUSTOMER | J56: AT ISSUE | K56: OTHER
C57: Schedule 2 | G57: 3 | H57: 4 | I57: 5
A58: 1 | B58: PRODUCTION PLANT
A59: 2 | C59: PRODUCTION STEAM | D59: ='FR-16(7)(v)-1 Functional'!D59 -> K201 | F59: ='FR-16(7)(v)-1 Functional'!G59 -> 835340554 | G59: =ROUND(F59*VLOOKUP(D59,AllocTable_Classified_Production,$G$10,FALSE),0) -> 835340554 | H59: =ROUND(F59*VLOOKUP(D59,AllocTable_Classified_Production,$H$10,FALSE),0) -> 0 | I59: =ROUND(F59*VLOOKUP(D59,AllocTable_Classified_Production,$I$10,FALSE),0) -> 0 | J59: =SUM(G59:I59) -> 835340554 | K59: =F59-J59 -> 0
A60: 3 | C60: PRODUCTION OTHER | D60: ='FR-16(7)(v)-1 Functional'!D60 -> K201 | F60: ='FR-16(7)(v)-1 Functional'!G60 -> 373451984 | G60: =ROUND(F60*VLOOKUP(D60,AllocTable_Classified_Production,$G$10,FALSE),0) -> 373451984 | H60: =ROUND(F60*VLOOKUP(D60,AllocTable_Classified_Production,$H$10,FALSE),0) -> 0 | I60: =ROUND(F60*VLOOKUP(D60,AllocTable_Classified_Production,$I$10,FALSE),0) -> 0 | J60: =SUM(G60:I60) -> 373451984 | K60: =F60-J60 -> 0
A61: 4 | C61: ='FR-16(7)(v)-1 Functional'!C61 -> ADJUSTMENT | D61: ='FR-16(7)(v)-1 Functional'!D61 -> K201 | F61: ='FR-16(7)(v)-1 Functional'!G61 -> 0 | G61: =ROUND(F61*VLOOKUP(D61,AllocTable_Classified_Production,$G$10,FALSE),0) -> 0 | H61: =ROUND(F61*VLOOKUP(D61,AllocTable_Classified_Production,$H$10,FALSE),0) -> 0 | I61: =ROUND(F61*VLOOKUP(D61,AllocTable_Classified_Production,$I$10,FALSE),0) -> 0 | J61: =SUM(G61:I61) -> 0 | K61: =F61-J61 -> 0
A62: 5 | C62: ='FR-16(7)(v)-1 Functional'!C62 -> PRODUCTION PLANT IN SERVICE | F62: =SUM(F59:F61) -> 1208792538 | G62: 1208792538 | H62: 0 | I62: 0 | J62: 1208792538 | K62: 0
A63: 6
A64: 7 | B64: TRANSMISSION PLANT
A65: 8 | C65: MAIN STEP-UP TRANSFORMERS | D65: ='FR-16(7)(v)-1 Functional'!D65 -> K202 | F65: ='FR-16(7)(v)-1 Functional'!G65 -> 0 | G65: =ROUND(F65*VLOOKUP(D65,AllocTable_Classified_Production,$G$10,FALSE),0) -> 0 | H65: =ROUND(F65*VLOOKUP(D65,AllocTable_Classified_Production,$H$10,FALSE),0) -> 0 | I65: =ROUND(F65*VLOOKUP(D65,AllocTable_Classified_Production,$I$10,FALSE),0) -> 0 | J65: =SUM(G65:I65) -> 0 | K65: =F65-J65 -> 0
A66: 9 | C66: OTHER TRANSMISSION | D66: ='FR-16(7)(v)-1 Functional'!D66 -> K202 | F66: ='FR-16(7)(v)-1 Functional'!G66 -> 0 | G66: =ROUND(F66*VLOOKUP(D66,AllocTable_Classified_Production,$G$10,FALSE),0) -> 0 | H66: =ROUND(F66*VLOOKUP(D66,AllocTable_Classified_Production,$H$10,FALSE),0) -> 0 | I66: =ROUND(F66*VLOOKUP(D66,AllocTable_Classified_Production,$I$10,FALSE),0) -> 0 | J66: =SUM(G66:I66) -> 0 | K66: =F66-J66 -> 0
A67: 10 | C67: ADJUSTMENT | D67: ='FR-16(7)(v)-1 Functional'!D67 -> K202 | F67: ='FR-16(7)(v)-1 Functional'!G67 -> 0 | G67: =ROUND(F67*VLOOKUP(D67,AllocTable_Classified_Production,$G$10,FALSE),0) -> 0 | H67: =ROUND(F67*VLOOKUP(D67,AllocTable_Classified_Production,$H$10,FALSE),0) -> 0 | I67: =ROUND(F67*VLOOKUP(D67,AllocTable_Classified_Production,$I$10,FALSE),0) -> 0 | J67: =SUM(G67:I67) -> 0 | K67: =F67-J67 -> 0
A68: 11 | C68: ='FR-16(7)(v)-1 Functional'!C68 -> TRANSMISSION PLANT IN SERVICE | F68: =SUM(F65:F67) -> 0 | G68: 0 | H68: 0 | I68: 0 | J68: 0 | K68: 0
A69: 12
A70: 13 | B70: TOTAL PROD & TRANS PLANT | F70: =F68+F62 -> 1208792538 | G70: 1208792538 | H70: 0 | I70: 0 | J70: 1208792538 | K70: 0
A71: 14
A72: 15 | B72: DISTRIBUTION PLANT
A73: 16 | C73: ='FR-16(7)(v)-1 Functional'!C73 -> SUBSTATIONS | D73: ='FR-16(7)(v)-1 Functional'!D73 -> K215 | F73: ='FR-16(7)(v)-1 Functional'!G73 -> 0 | G73: =ROUND(F73*VLOOKUP(D73,AllocTable_Classified_Production,$G$10,FALSE),0) -> 0 | H73: =ROUND(F73*VLOOKUP(D73,AllocTable_Classified_Production,$H$10,FALSE),0) -> 0 | I73: =ROUND(F73*VLOOKUP(D73,AllocTable_Classified_Production,$I$10,FALSE),0) -> 0 | J73: =SUM(G73:I73) -> 0 | K73: =F73-J73 -> 0
A74: 17 | C74: ='FR-16(7)(v)-1 Functional'!C74 -> POLES, TOWERS & FIXTURES - PRIMARY - DEMAND | D74: ='FR-16(7)(v)-1 Functional'!D74 -> K205 | F74: ='FR-16(7)(v)-1 Functional'!G74 -> 0 | G74: =ROUND(F74*VLOOKUP(D74,AllocTable_Classified_Production,$G$10,FALSE),0) -> 0 | H74: =ROUND(F74*VLOOKUP(D74,AllocTable_Classified_Production,$H$10,FALSE),0) -> 0 | I74: =ROUND(F74*VLOOKUP(D74,AllocTable_Classified_Production,$I$10,FALSE),0) -> 0 | J74: =SUM(G74:I74) -> 0 | K74: =F74-J74 -> 0
A75: 18 | C75: ='FR-16(7)(v)-1 Functional'!C75 -> POLES, TOWERS & FIXTURES - PRIMARY - CUSTOMER | D75: ='FR-16(7)(v)-1 Functional'!D75 -> K405 | F75: ='FR-16(7)(v)-1 Functional'!G75 -> 0 | G75: =ROUND(F75*VLOOKUP(D75,AllocTable_Classified_Production,$G$10,FALSE),0) -> 0 | H75: =ROUND(F75*VLOOKUP(D75,AllocTable_Classified_Production,$H$10,FALSE),0) -> 0 | I75: =ROUND(F75*VLOOKUP(D75,AllocTable_Classified_Production,$I$10,FALSE),0) -> 0 | J75: =SUM(G75:I75) -> 0 | K75: =F75-J75 -> 0
A76: 19 | C76: ='FR-16(7)(v)-1 Functional'!C76 -> POLES, TOWERS & FIXTURES - SECONDARY - DEMAND | D76: ='FR-16(7)(v)-1 Functional'!D76 -> K206 | F76: ='FR-16(7)(v)-1 Functional'!G76 -> 0 | G76: 0 | H76: 0 | I76: 0 | J76: 0 | K76: 0
A77: 20 | C77: ='FR-16(7)(v)-1 Functional'!C77 -> POLES, TOWERS & FIXTURES - SECONDARY - CUSTOMER | D77: ='FR-16(7)(v)-1 Functional'!D77 -> K405 | F77: ='FR-16(7)(v)-1 Functional'!G77 -> 0 | G77: 0 | H77: 0 | I77: 0 | J77: 0 | K77: 0
A78: 21 | C78: ='FR-16(7)(v)-1 Functional'!C78 -> CONDUCTORS - OVERHEAD / PRIMARY - DEMAND | D78: ='FR-16(7)(v)-1 Functional'!D78 -> K205 | F78: ='FR-16(7)(v)-1 Functional'!G78 -> 0 | G78: 0 | H78: 0 | I78: 0 | J78: 0 | K78: 0
A79: 22 | C79: ='FR-16(7)(v)-1 Functional'!C79 -> CONDUCTORS - OVERHEAD / PRIMARY - CUSTOMER | D79: ='FR-16(7)(v)-1 Functional'!D79 -> K405 | F79: ='FR-16(7)(v)-1 Functional'!G79 -> 0 | G79: 0 | H79: 0 | I79: 0 | J79: 0 | K79: 0
A80: 23 | C80: ='FR-16(7)(v)-1 Functional'!C80 -> CONDUCTORS - OVERHEAD / SECONDARY - DEMAND | D80: ='FR-16(7)(v)-1 Functional'!D80 -> K206 | F80: ='FR-16(7)(v)-1 Functional'!G80 -> 0 | G80: 0 | H80: 0 | I80: 0 | J80: 0 | K80: 0
A81: 24 | C81: ='FR-16(7)(v)-1 Functional'!C81 -> CONDUCTORS - OVERHEAD / SECONDARY - CUSTOMER | D81: ='FR-16(7)(v)-1 Functional'!D81 -> K405 | F81: ='FR-16(7)(v)-1 Functional'!G81 -> 0 | G81: 0 | H81: 0 | I81: 0 | J81: 0 | K81: 0
A82: 25 | C82: ='FR-16(7)(v)-1 Functional'!C82 -> CONDUCTORS - UNDERGROUND / PRIMARY - DEMAND | D82: ='FR-16(7)(v)-1 Functional'!D82 -> K205 | F82: ='FR-16(7)(v)-1 Functional'!G82 -> 0 | G82: 0 | H82: 0 | I82: 0 | J82: 0 | K82: 0
A83: 26 | C83: ='FR-16(7)(v)-1 Functional'!C83 -> CONDUCTORS - UNDERGROUND / PRIMARY - CUSTOMER | D83: ='FR-16(7)(v)-1 Functional'!D83 -> K405 | F83: ='FR-16(7)(v)-1 Functional'!G83 -> 0 | G83: 0 | H83: 0 | I83: 0 | J83: 0 | K83: 0
A84: 27 | C84: ='FR-16(7)(v)-1 Functional'!C84 -> CONDUCTORS - UNDERGROUND / SECONDARY - DEMAND | D84: ='FR-16(7)(v)-1 Functional'!D84 -> K206 | F84: ='FR-16(7)(v)-1 Functional'!G84 -> 0 | G84: 0 | H84: 0 | I84: 0 | J84: 0 | K84: 0
A85: 28 | C85: ='FR-16(7)(v)-1 Functional'!C85 -> CONDUCTORS - UNDERGROUND / SECONDARY - CUSTOMER | D85: ='FR-16(7)(v)-1 Functional'!D85 -> K405 | F85: ='FR-16(7)(v)-1 Functional'!G85 -> 0 | G85: 0 | H85: 0 | I85: 0 | J85: 0 | K85: 0
A86: 29 | C86: ='FR-16(7)(v)-1 Functional'!C86 -> TRANSFORMERS DEMAND RELATED | D86: ='FR-16(7)(v)-1 Functional'!D86 -> K215 | F86: ='FR-16(7)(v)-1 Functional'!G86 -> 0 | G86: =ROUND(F86*VLOOKUP(D86,AllocTable_Classified_Production,$G$10,FALSE),0) -> 0 | H86: =ROUND(F86*VLOOKUP(D86,AllocTable_Classified_Production,$H$10,FALSE),0) -> 0 | I86: =ROUND(F86*VLOOKUP(D86,AllocTable_Classified_Production,$I$10,FALSE),0) -> 0 | J86: =SUM(G86:I86) -> 0 | K86: =F86-J86 -> 0
A87: 30 | C87: ='FR-16(7)(v)-1 Functional'!C87 -> TRANSFORMERS CUSTOMER RELATED | D87: ='FR-16(7)(v)-1 Functional'!D87 -> K405 | F87: ='FR-16(7)(v)-1 Functional'!G87 -> 0 | G87: 0 | H87: 0 | I87: 0 | J87: 0 | K87: 0
A88: 31 | C88: ='FR-16(7)(v)-1 Functional'!C88 -> SERVICES | D88: ='FR-16(7)(v)-1 Functional'!D88 -> K217 | F88: ='FR-16(7)(v)-1 Functional'!G88 -> 0 | G88: 0 | H88: 0 | I88: 0 | J88: 0 | K88: 0
A89: 32 | C89: ='FR-16(7)(v)-1 Functional'!C89 -> METERS | D89: ='FR-16(7)(v)-1 Functional'!D89 -> K407 | F89: ='FR-16(7)(v)-1 Functional'!G89 -> 0 | G89: 0 | H89: 0 | I89: 0 | J89: 0 | K89: 0
A90: 33 | C90: ='FR-16(7)(v)-1 Functional'!C90 -> STREET LIGHTS | D90: ='FR-16(7)(v)-1 Functional'!D90 -> K401 | F90: ='FR-16(7)(v)-1 Functional'!G90 -> 0 | G90: 0 | H90: 0 | I90: 0 | J90: 0 | K90: 0
A91: 34 | C91: ='FR-16(7)(v)-1 Functional'!C91 -> ADJUSTMENT | D91: ='FR-16(7)(v)-1 Functional'!D91 -> K209 | F91: ='FR-16(7)(v)-1 Functional'!G91 -> 0 | G91: 0 | H91: 0 | I91: 0 | J91: 0 | K91: 0
A92: 35 | C92: ='FR-16(7)(v)-1 Functional'!C92 -> CONSTRUCTION NOT CLASSIFIED | D92: ='FR-16(7)(v)-1 Functional'!D92 -> K209 | F92: ='FR-16(7)(v)-1 Functional'!G92 -> 0 | G92: 0 | H92: 0 | I92: 0 | J92: 0 | K92: 0
A93: 36 | C93: ='FR-16(7)(v)-1 Functional'!C93 -> RWIP | D93: ='FR-16(7)(v)-1 Functional'!D93 -> K215 | F93: ='FR-16(7)(v)-1 Functional'!G93 -> 0 | G93: =ROUND(F93*VLOOKUP(D93,AllocTable_Classified_Production,$G$10,FALSE),0) -> 0 | H93: =ROUND(F93*VLOOKUP(D93,AllocTable_Classified_Production,$H$10,FALSE),0) -> 0 | I93: =ROUND(F93*VLOOKUP(D93,AllocTable_Classified_Production,$I$10,FALSE),0) -> 0 | J93: =SUM(G93:I93) -> 0 | K93: =F93-J93 -> 0
A94: 37 | C94: ='FR-16(7)(v)-1 Functional'!C94 -> DISTRIBUTION PLANT IN SERVICE | F94: =SUM(F73:F93) -> 0 | G94: =SUM(G73:G92) -> 0 | H94: 0 | I94: 0 | J94: 0 | K94: 0
A95: 38
A96: 39 | B96: TOTAL TRANS & DIST PLANT | F96: =F94+F68 -> 0 | G96: 0 | H96: 0 | I96: 0 | J96: 0 | K96: 0
A97: 40 | B97: TOTAL GROSS PTD PLANT | F97: =F94+F70 -> 1208792538 | G97: 1208792538 | H97: 0 | I97: 0 | J97: 1208792538 | K97: 0
A98: 41
A99: 42 | B99: GENERAL & INTANGIBLE PLANT
A100: 43 | C100: ='FR-16(7)(v)-1 Functional'!C100 -> PRODUCTION - DEMAND | D100: ='FR-16(7)(v)-1 Functional'!D100 -> K201 | F100: ='FR-16(7)(v)-1 Functional'!G100 -> 16704047 | G100: =ROUND(F100*VLOOKUP(D100,AllocTable_Classified_Production,$G$10,FALSE),0) -> 16704047 | H100: =ROUND(F100*VLOOKUP(D100,AllocTable_Classified_Production,$H$10,FALSE),0) -> 0 | I100: =ROUND(F100*VLOOKUP(D100,AllocTable_Classified_Production,$I$10,FALSE),0) -> 0 | J100: =SUM(G100:I100) -> 16704047 | K100: =F100-J100 -> 0
A101: 44 | C101: ='FR-16(7)(v)-1 Functional'!C101 -> PRODUCTION - ENERGY | D101: ='FR-16(7)(v)-1 Functional'!D101 -> K301 | F101: ='FR-16(7)(v)-1 Functional'!G101 -> 19517654 | G101: 0 | H101: 19517654 | I101: 0 | J101: =SUM(G101:I101) -> 19517654 | K101: =F101-J101 -> 0
A102: 45 | C102: ='FR-16(7)(v)-1 Functional'!C102 -> TRANSMISSION | D102: ='FR-16(7)(v)-1 Functional'!D102 -> K202 | F102: ='FR-16(7)(v)-1 Functional'!G102 -> 0 | G102: 0 | H102: 0 | I102: 0 | J102: 0 | K102: 0
A103: 46 | C103: ='FR-16(7)(v)-1 Functional'!C103 -> DISTRIBUTION - DEMAND | D103: ='FR-16(7)(v)-1 Functional'!D103 -> K201 | F103: ='FR-16(7)(v)-1 Functional'!G103 -> 8865387 | G103: 8865387 | H103: 0 | I103: 0 | J103: 8865387 | K103: 0
A104: 47 | C104: ='FR-16(7)(v)-1 Functional'!C104 -> DISTRIBUTION - CUSTOMER | D104: ='FR-16(7)(v)-1 Functional'!D104 -> K405 | F104: ='FR-16(7)(v)-1 Functional'!G104 -> 0 | G104: 0 | H104: 0 | I104: 0 | J104: 0 | K104: 0
A105: 48 | C105: ='FR-16(7)(v)-1 Functional'!C105 -> CUSTOMER ACCOUNTING | D105: ='FR-16(7)(v)-1 Functional'!D105 -> A308 | F105: ='FR-16(7)(v)-1 Functional'!G105 -> 0 | G105: 0 | H105: 0 | I105: 0 | J105: 0 | K105: 0
A106: 49 | C106: ='FR-16(7)(v)-1 Functional'!C106 -> CUSTOMER SERVICE & INFORMATION | D106: ='FR-16(7)(v)-1 Functional'!D106 -> A310 | F106: ='FR-16(7)(v)-1 Functional'!G106 -> 0 | G106: 0 | H106: 0 | I106: 0 | J106: 0 | K106: 0
A107: 50 | C107: ='FR-16(7)(v)-1 Functional'!C107 -> SALES | D107: ='FR-16(7)(v)-1 Functional'!D107 -> A312 | F107: ='FR-16(7)(v)-1 Functional'!G107 -> 0 | G107: 0 | H107: 0 | I107: 0 | J107: 0 | K107: 0
A108: 51 | C108: ='FR-16(7)(v)-1 Functional'!C108 -> ADJUSTMENT | D108: ='FR-16(7)(v)-1 Functional'!D108 -> A315 | F108: ='FR-16(7)(v)-1 Functional'!G108 -> 0 | G108: 0 | H108: 0 | I108: 0 | J108: 0 | K108: 0
A109: 52 | C109: ='FR-16(7)(v)-1 Functional'!C109 -> GEN & INTANG PLANT IN SERVICE | F109: =SUM(F100:F108) -> 45087088 | G109: 25569434 | H109: 19517654 | I109: 0 | J109: 45087088 | K109: 0
A110: 53
A111: 54 | B111: COMMON & OTHER PLANT
A112: 55 | C112: ='FR-16(7)(v)-1 Functional'!C112 -> PRODUCTION - DEMAND | D112: ='FR-16(7)(v)-1 Functional'!D112 -> K201 | F112: ='FR-16(7)(v)-1 Functional'!G112 -> 9454192 | G112: =ROUND(F112*VLOOKUP(D112,AllocTable_Classified_Production,$G$10,FALSE),0) -> 9454192 | H112: =ROUND(F112*VLOOKUP(D112,AllocTable_Classified_Production,$H$10,FALSE),0) -> 0 | I112: =ROUND(F112*VLOOKUP(D112,AllocTable_Classified_Production,$I$10,FALSE),0) -> 0 | J112: =SUM(G112:I112) -> 9454192 | K112: =F112-J112 -> 0
A113: 56 | C113: ='FR-16(7)(v)-1 Functional'!C113 -> PRODUCTION - ENERGY | D113: ='FR-16(7)(v)-1 Functional'!D113 -> K301 | F113: ='FR-16(7)(v)-1 Functional'!G113 -> 11046644 | G113: =ROUND(F113*VLOOKUP(D113,AllocTable_Classified_Production,$G$10,FALSE),0) -> 0 | H113: =ROUND(F113*VLOOKUP(D113,AllocTable_Classified_Production,$H$10,FALSE),0) -> 11046644 | I113: =ROUND(F113*VLOOKUP(D113,AllocTable_Classified_Production,$I$10,FALSE),0) -> 0 | J113: =SUM(G113:I113) -> 11046644 | K113: =F113-J113 -> 0
A114: 57 | C114: ='FR-16(7)(v)-1 Functional'!C114 -> TRANSMISSION | D114: ='FR-16(7)(v)-1 Functional'!D114 -> K202 | F114: ='FR-16(7)(v)-1 Functional'!G114 -> 0 | G114: 0 | H114: 0 | I114: 0 | J114: 0 | K114: 0
A115: 58 | C115: ='FR-16(7)(v)-1 Functional'!C115 -> DISTRIBUTION - DEMAND | D115: ='FR-16(7)(v)-1 Functional'!D115 -> K201 | F115: ='FR-16(7)(v)-1 Functional'!G115 -> 5017651 | G115: 5017651 | H115: 0 | I115: 0 | J115: 5017651 | K115: 0
A116: 59 | C116: ='FR-16(7)(v)-1 Functional'!C116 -> DISTRIBUTION - CUSTOMER | D116: ='FR-16(7)(v)-1 Functional'!D116 -> K405 | F116: ='FR-16(7)(v)-1 Functional'!G116 -> 0 | G116: 0 | H116: 0 | I116: 0 | J116: 0 | K116: 0
A117: 60 | C117: ='FR-16(7)(v)-1 Functional'!C117 -> CUSTOMER ACCOUNTING | D117: ='FR-16(7)(v)-1 Functional'!D117 -> A308 | F117: ='FR-16(7)(v)-1 Functional'!G117 -> 0 | G117: 0 | H117: 0 | I117: 0 | J117: 0 | K117: 0
A118: 61 | C118: ='FR-16(7)(v)-1 Functional'!C118 -> CUSTOMER SERVICE & INFORMATION | D118: ='FR-16(7)(v)-1 Functional'!D118 -> A310 | F118: ='FR-16(7)(v)-1 Functional'!G118 -> 0 | G118: 0 | H118: 0 | I118: 0 | J118: 0 | K118: 0
A119: 62 | C119: ='FR-16(7)(v)-1 Functional'!C119 -> SALES | D119: ='FR-16(7)(v)-1 Functional'!D119 -> A312 | F119: ='FR-16(7)(v)-1 Functional'!G119 -> 0 | G119: 0 | H119: 0 | I119: 0 | J119: 0 | K119: 0
A120: 63 | C120: ='FR-16(7)(v)-1 Functional'!C120 -> ADJUSTMENT | D120: ='FR-16(7)(v)-1 Functional'!D120 -> A315 | F120: ='FR-16(7)(v)-1 Functional'!G120 -> 0 | G120: 0 | H120: 0 | I120: 0 | J120: 0 | K120: 0
A121: 64 | C121: ='FR-16(7)(v)-1 Functional'!C121 -> COMMON & OTHER PLANT IN SERVICE | F121: =SUM(F112:F120) -> 25518487 | G121: 14471843 | H121: 11046644 | I121: 0 | J121: 25518487 | K121: 0
A122: 65
A123: 66 | B123: GROSS ELECTRIC PLANT IN SERVICE | F123: =F97+F109+F121 -> 1279398113 | G123: 1248833815 | H123: 30564298 | I123: 0 | J123: 1279398113 | K123: 0
A125: =co_name -> DUKE ENERGY KENTUCKY, INC. | J125: =J1 -> FR-16(7)(v)-2
A126: =$A$2 -> PRODUCTION CLASSIFIED - ELECTRIC COST OF SERVICE | J126: =J2 -> WITNESS RESPONSIBLE:
A127: =case_name -> CASE NO: 2019-00271 | J127: =Witness -> JAMES E. ZIOLKOWSKI
A128: =data_filing -> DATA: 12 MONTHS ACTUAL & 0 MONTHS ESTIMATED | J128: ="PAGE "&Pages-15&" OF "&Pages -> PAGE 3 OF 18
A129: =type -> TYPE OF FILING: "X" ORIGINAL UPDATED REVISED
A132: LINE | F132: =$F$8 -> TOTAL | G132: CLASSIFIED | J132: TOTAL | K132: ALL
A133: NO. | B133: DEPRECIATION RESERVE | D133: ALLO | F133: =$F$9 -> PRODUCTION | G133: =G9 -> DEMAND | H133: ENERGY | I133: CUSTOMER | J133: AT ISSUE | K133: OTHER
C134: Schedule 3 | G134: 3 | H134: 4 | I134: 5
A135: 1 | B135: PRODUCTION PLANT
A136: 2 | C136: ='FR-16(7)(v)-1 Functional'!C136 -> PRODUCTION STEAM | D136: ='FR-16(7)(v)-1 Functional'!D136 -> K201 | F136: ='FR-16(7)(v)-1 Functional'!G136 -> 401160304 | G136: =F136-SUM(H136:I136) -> 401160304 | H136: =ROUND(F136*VLOOKUP(D136,AllocTable_Classified_Production,$H$10,FALSE),0) -> 0 | I136: =ROUND(F136*VLOOKUP(D136,AllocTable_Classified_Production,$I$10,FALSE),0) -> 0 | J136: =SUM(G136:I136) -> 401160304 | K136: =F136-J136 -> 0
A137: 3 | C137: ='FR-16(7)(v)-1 Functional'!C137 -> PRODUCTION OTHER | D137: ='FR-16(7)(v)-1 Functional'!D137 -> K201 | F137: ='FR-16(7)(v)-1 Functional'!G137 -> 184221788 | G137: =F137-SUM(H137:I137) -> 184221788 | H137: =ROUND(F137*VLOOKUP(D137,AllocTable_Classified_Production,$H$10,FALSE),0) -> 0 | I137: =ROUND(F137*VLOOKUP(D137,AllocTable_Classified_Production,$I$10,FALSE),0) -> 0 | J137: =SUM(G137:I137) -> 184221788 | K137: =F137-J137 -> 0
A138: 4 | C138: ='FR-16(7)(v)-1 Functional'!C138 -> ADJUSTMENT | D138: ='FR-16(7)(v)-1 Functional'!D138 -> K201 | F138: ='FR-16(7)(v)-1 Functional'!G138 -> 1553366 | G138: =F138-SUM(H138:I138) -> 1553366 | H138: =ROUND(F138*VLOOKUP(D138,AllocTable_Classified_Production,$H$10,FALSE),0) -> 0 | I138: =ROUND(F138*VLOOKUP(D138,AllocTable_Classified_Production,$I$10,FALSE),0) -> 0 | J138: =SUM(G138:I138) -> 1553366 | K138: =F138-J138 -> 0
A139: 5 | C139: ='FR-16(7)(v)-1 Functional'!C139 -> TOTAL PROD DEPREC RESERVE | F139: =SUM(F136:F138) -> 586935458 | G139: 586935458 | H139: 0 | I139: 0 | J139: 586935458 | K139: 0
A140: 6
A141: 7 | B141: TRANSMISSION PLANT
A142: 8 | C142: ='FR-16(7)(v)-1 Functional'!C142 -> MAIN STEP-UP TRANSFORMERS | D142: ='FR-16(7)(v)-1 Functional'!D142 -> K202 | F142: ='FR-16(7)(v)-1 Functional'!G142 -> 0 | G142: =F142-SUM(H142:I142) -> 0 | H142: =ROUND(F142*VLOOKUP(D142,AllocTable_Classified_Production,$H$10,FALSE),0) -> 0 | I142: =ROUND(F142*VLOOKUP(D142,AllocTable_Classified_Production,$I$10,FALSE),0) -> 0 | J142: =SUM(G142:I142) -> 0 | K142: =F142-J142 -> 0
A143: 9 | C143: ='FR-16(7)(v)-1 Functional'!C143 -> OTHER TRANSMISSION | D143: ='FR-16(7)(v)-1 Functional'!D143 -> K202 | F143: ='FR-16(7)(v)-1 Functional'!G143 -> 0 | G143: =F143-SUM(H143:I143) -> 0 | H143: =ROUND(F143*VLOOKUP(D143,AllocTable_Classified_Production,$H$10,FALSE),0) -> 0 | I143: =ROUND(F143*VLOOKUP(D143,AllocTable_Classified_Production,$I$10,FALSE),0) -> 0 | J143: =SUM(G143:I143) -> 0 | K143: =F143-J143 -> 0
A144: 10 | C144: ='FR-16(7)(v)-1 Functional'!C144 -> ADJUSTMENT | D144: ='FR-16(7)(v)-1 Functional'!D144 -> K202 | F144: ='FR-16(7)(v)-1 Functional'!G144 -> 0 | G144: =F144-SUM(H144:I144) -> 0 | H144: =ROUND(F144*VLOOKUP(D144,AllocTable_Classified_Production,$H$10,FALSE),0) -> 0 | I144: =ROUND(F144*VLOOKUP(D144,AllocTable_Classified_Production,$I$10,FALSE),0) -> 0 | J144: =SUM(G144:I144) -> 0 | K144: =F144-J144 -> 0
A145: 11 | C145: ='FR-16(7)(v)-1 Functional'!C145 -> TOTAL TRANS DEPREC RESERVE | F145: =SUM(F142:F144) -> 0 | G145: 0 | H145: 0 | I145: 0 | J145: 0 | K145: 0
A146: 12
A147: 13 | C147: ='FR-16(7)(v)-1 Functional'!C147 -> TOTAL PROD & TRANS DEPREC RESERVE | F147: =F145+F139 -> 586935458 | G147: =G145+G139 -> 586935458 | H147: =H145+H139 -> 0 | I147: =I145+I139 -> 0 | J147: =J145+J139 -> 586935458 | K147: =F147-J147 -> 0
A148: 14
A149: 15 | B149: DISTRIBUTION PLANT
A150: 16 | C150: ='FR-16(7)(v)-1 Functional'!C150 -> SUBSTATIONS | D150: ='FR-16(7)(v)-1 Functional'!D150 -> K215 | F150: ='FR-16(7)(v)-1 Functional'!G150 -> 0 | G150: =F150-SUM(H150:I150) -> 0 | H150: =ROUND(F150*VLOOKUP(D150,AllocTable_Classified_Production,$H$10,FALSE),0) -> 0 | I150: =ROUND(F150*VLOOKUP(D150,AllocTable_Classified_Production,$I$10,FALSE),0) -> 0 | J150: =SUM(G150:I150) -> 0 | K150: =F150-J150 -> 0
A151: 17 | C151: ='FR-16(7)(v)-1 Functional'!C151 -> POLES, TOWERS & FIXTURES - PRIMARY - DEMAND | D151: ='FR-16(7)(v)-1 Functional'!D151 -> K205 | F151: ='FR-16(7)(v)-1 Functional'!G151 -> 0 | G151: =F151-SUM(H151:I151) -> 0 | H151: =ROUND(F151*VLOOKUP(D151,AllocTable_Classified_Production,$H$10,FALSE),0) -> 0 | I151: =ROUND(F151*VLOOKUP(D151,AllocTable_Classified_Production,$I$10,FALSE),0) -> 0 | J151: =SUM(G151:I151) -> 0 | K151: =F151-J151 -> 0
A152: 18 | C152: ='FR-16(7)(v)-1 Functional'!C152 -> POLES, TOWERS & FIXTURES - PRIMARY - CUSTOMER | D152: ='FR-16(7)(v)-1 Functional'!D152 -> K405 | F152: ='FR-16(7)(v)-1 Functional'!G152 -> 0 | G152: =F152-SUM(H152:I152) -> 0 | H152: =ROUND(F152*VLOOKUP(D152,AllocTable_Classified_Production,$H$10,FALSE),0) -> 0 | I152: =ROUND(F152*VLOOKUP(D152,AllocTable_Classified_Production,$I$10,FALSE),0) -> 0 | J152: =SUM(G152:I152) -> 0 | K152: =F152-J152 -> 0
A153: 19 | C153: ='FR-16(7)(v)-1 Functional'!C153 -> POLES, TOWERS & FIXTURES - SECONDARY - DEMAND | D153: ='FR-16(7)(v)-1 Functional'!D153 -> K206 | F153: ='FR-16(7)(v)-1 Functional'!G153 -> 0 | G153: 0 | H153: 0 | I153: 0 | J153: 0 | K153: 0
A154: 20 | C154: ='FR-16(7)(v)-1 Functional'!C154 -> POLES, TOWERS & FIXTURES - SECONDARY - CUSTOMER | D154: ='FR-16(7)(v)-1 Functional'!D154 -> K405 | F154: ='FR-16(7)(v)-1 Functional'!G154 -> 0 | G154: 0 | H154: 0 | I154: 0 | J154: 0 | K154: 0
A155: 21 | C155: ='FR-16(7)(v)-1 Functional'!C155 -> CONDUCTORS - OVERHEAD / PRIMARY - DEMAND | D155: ='FR-16(7)(v)-1 Functional'!D155 -> K205 | F155: ='FR-16(7)(v)-1 Functional'!G155 -> 0 | G155: 0 | H155: 0 | I155: 0 | J155: 0 | K155: 0
A156: 22 | C156: ='FR-16(7)(v)-1 Functional'!C156 -> CONDUCTORS - OVERHEAD / PRIMARY - CUSTOMER | D156: ='FR-16(7)(v)-1 Functional'!D156 -> K405 | F156: ='FR-16(7)(v)-1 Functional'!G156 -> 0 | G156: 0 | H156: 0 | I156: 0 | J156: 0 | K156: 0
A157: 23 | C157: ='FR-16(7)(v)-1 Functional'!C157 -> CONDUCTORS - OVERHEAD / SECONDARY - DEMAND | D157: ='FR-16(7)(v)-1 Functional'!D157 -> K206 | F157: ='FR-16(7)(v)-1 Functional'!G157 -> 0 | G157: 0 | H157: 0 | I157: 0 | J157: 0 | K157: 0
A158: 24 | C158: ='FR-16(7)(v)-1 Functional'!C158 -> CONDUCTORS - OVERHEAD / SECONDARY - CUSTOMER | D158: ='FR-16(7)(v)-1 Functional'!D158 -> K405 | F158: ='FR-16(7)(v)-1 Functional'!G158 -> 0 | G158: 0 | H158: 0 | I158: 0 | J158: 0 | K158: 0
A159: 25 | C159: ='FR-16(7)(v)-1 Functional'!C159 -> CONDUCTORS - UNDERGROUND / PRIMARY - DEMAND | D159: ='FR-16(7)(v)-1 Functional'!D159 -> K205 | F159: ='FR-16(7)(v)-1 Functional'!G159 -> 0 | G159: 0 | H159: 0 | I159: 0 | J159: 0 | K159: 0
A160: 26 | C160: ='FR-16(7)(v)-1 Functional'!C160 -> CONDUCTORS - UNDERGROUND / PRIMARY - CUSTOMER | D160: ='FR-16(7)(v)-1 Functional'!D160 -> K405 | F160: ='FR-16(7)(v)-1 Functional'!G160 -> 0 | G160: 0 | H160: 0 | I160: 0 | J160: 0 | K160: 0
A161: 27 | C161: ='FR-16(7)(v)-1 Functional'!C161 -> CONDUCTORS - UNDERGROUND / SECONDARY - DEMAND | D161: ='FR-16(7)(v)-1 Functional'!D161 -> K206 | F161: ='FR-16(7)(v)-1 Functional'!G161 -> 0 | G161: 0 | H161: 0 | I161: 0 | J161: 0 | K161: 0
A162: 28 | C162: ='FR-16(7)(v)-1 Functional'!C162 -> CONDUCTORS - UNDERGROUND / SECONDARY - CUSTOMER | D162: ='FR-16(7)(v)-1 Functional'!D162 -> K405 | F162: ='FR-16(7)(v)-1 Functional'!G162 -> 0 | G162: 0 | H162: 0 | I162: 0 | J162: 0 | K162: 0
A163: 29 | C163: ='FR-16(7)(v)-1 Functional'!C163 -> TRANSFORMERS DEMAND RELATED | D163: ='FR-16(7)(v)-1 Functional'!D163 -> K215 | F163: ='FR-16(7)(v)-1 Functional'!G163 -> 0 | G163: =F163-SUM(H163:I163) -> 0 | H163: =ROUND(F163*VLOOKUP(D163,AllocTable_Classified_Production,$H$10,FALSE),0) -> 0 | I163: =ROUND(F163*VLOOKUP(D163,AllocTable_Classified_Production,$I$10,FALSE),0) -> 0 | J163: =SUM(G163:I163) -> 0 | K163: =F163-J163 -> 0
A164: 30 | C164: ='FR-16(7)(v)-1 Functional'!C164 -> TRANSFORMERS CUSTOMER RELATED | D164: ='FR-16(7)(v)-1 Functional'!D164 -> K405 | F164: ='FR-16(7)(v)-1 Functional'!G164 -> 0 | G164: 0 | H164: 0 | I164: 0 | J164: 0 | K164: 0
A165: 31 | C165: ='FR-16(7)(v)-1 Functional'!C165 -> SERVICES | D165: ='FR-16(7)(v)-1 Functional'!D165 -> K217 | F165: ='FR-16(7)(v)-1 Functional'!G165 -> 0 | G165: 0 | H165: 0 | I165: 0 | J165: 0 | K165: 0
A166: 32 | C166: ='FR-16(7)(v)-1 Functional'!C166 -> METERS | D166: ='FR-16(7)(v)-1 Functional'!D166 -> K407 | F166: ='FR-16(7)(v)-1 Functional'!G166 -> 0 | G166: 0 | H166: 0 | I166: 0 | J166: 0 | K166: 0
A167: 33 | C167: ='FR-16(7)(v)-1 Functional'!C167 -> STREET LIGHTS | D167: ='FR-16(7)(v)-1 Functional'!D167 -> K401 | F167: ='FR-16(7)(v)-1 Functional'!G167 -> 0 | G167: 0 | H167: 0 | I167: 0 | J167: 0 | K167: 0
A168: 34 | C168: ='FR-16(7)(v)-1 Functional'!C168 -> ADJUSTMENT | D168: ='FR-16(7)(v)-1 Functional'!D168 -> K209 | F168: ='FR-16(7)(v)-1 Functional'!G168 -> 0 | G168: 0 | H168: 0 | I168: 0 | J168: 0 | K168: 0
A169: 35 | C169: ='FR-16(7)(v)-1 Functional'!C169 -> CONSTRUCTION NOT CLASSIFIED | D169: ='FR-16(7)(v)-1 Functional'!D169 -> K209 | F169: ='FR-16(7)(v)-1 Functional'!G169 -> 0 | G169: 0 | H169: 0 | I169: 0 | J169: 0 | K169: 0
A170: 36 | C170: ='FR-16(7)(v)-1 Functional'!C170 -> RWIP | D170: ='FR-16(7)(v)-1 Functional'!D170 -> K215 | F170: ='FR-16(7)(v)-1 Functional'!G170 -> 0 | G170: =F170-SUM(H170:I170) -> 0 | H170: =ROUND(F170*VLOOKUP(D170,AllocTable_Classified_Production,$H$10,FALSE),0) -> 0 | I170: =ROUND(F170*VLOOKUP(D170,AllocTable_Classified_Production,$I$10,FALSE),0) -> 0 | J170: =SUM(G170:I170) -> 0 | K170: =F170-J170 -> 0
A171: 37 | C171: ='FR-16(7)(v)-1 Functional'!C171 -> TOTAL DIST DEPREC RESERVE | F171: =SUM(F149:F170) -> 0 | G171: =SUM(G149:G170) -> 0 | H171: =SUM(H149:H170) -> 0 | I171: =SUM(I149:I170) -> 0 | J171: =SUM(J149:J169) -> 0 | K171: 0
A172: 38
A173: 39 | C173: TOTAL TRANS & DIST DEPREC RESERVE | F173: =F171+F145 -> 0 | G173: =G171+G145 -> 0 | H173: =H171+H145 -> 0 | I173: =I171+I145 -> 0 | J173: =J171+J145 -> 0 | K173: =F173-J173 -> 0
A174: 40 | C174: TOTAL GROSS PTD PLANT DEPREC RESERVE | F174: =F147+F171 -> 586935458 | G174: =G147+G171 -> 586935458 | H174: =H147+H171 -> 0 | I174: =I147+I171 -> 0 | J174: =J147+J171 -> 586935458 | K174: =F174-J174 -> 0
A175: 41
A176: 42 | B176: GENERAL & INTANGIBLE PLANT
A177: 43 | C177: ='FR-16(7)(v)-1 Functional'!C177 -> PRODUCTION - DEMAND | D177: ='FR-16(7)(v)-1 Functional'!D177 -> K201 | F177: ='FR-16(7)(v)-1 Functional'!G177 -> 5383063 | G177: =F177-SUM(H177:I177) -> 5383063 | H177: =ROUND(F177*VLOOKUP(D177,AllocTable_Classified_Production,$H$10,FALSE),0) -> 0 | I177: =ROUND(F177*VLOOKUP(D177,AllocTable_Classified_Production,$I$10,FALSE),0) -> 0 | J177: =SUM(G177:I177) -> 5383063 | K177: =F177-J177 -> 0
A178: 44 | C178: ='FR-16(7)(v)-1 Functional'!C178 -> PRODUCTION - ENERGY | D178: ='FR-16(7)(v)-1 Functional'!D178 -> K301 | F178: ='FR-16(7)(v)-1 Functional'!G178 -> 6289780 | G178: =F178-SUM(H178:I178) -> 0 | H178: 6289780 | I178: 0 | J178: =SUM(G178:I178) -> 6289780 | K178: =F178-J178 -> 0
A179: 45 | C179: ='FR-16(7)(v)-1 Functional'!C179 -> TRANSMISSION | D179: ='FR-16(7)(v)-1 Functional'!D179 -> K202 | F179: ='FR-16(7)(v)-1 Functional'!G179 -> 0 | G179: 0 | H179: 0 | I179: 0 | J179: 0 | K179: 0
A180: 46 | C180: ='FR-16(7)(v)-1 Functional'!C180 -> DISTRIBUTION - DEMAND | D180: ='FR-16(7)(v)-1 Functional'!D180 -> K201 | F180: ='FR-16(7)(v)-1 Functional'!G180 -> 2856969 | G180: 2856969 | H180: 0 | I180: 0 | J180: 2856969 | K180: 0
A181: 47 | C181: ='FR-16(7)(v)-1 Functional'!C181 -> DISTRIBUTION - CUSTOMER | D181: ='FR-16(7)(v)-1 Functional'!D181 -> K405 | F181: ='FR-16(7)(v)-1 Functional'!G181 -> 0 | G181: 0 | H181: 0 | I181: 0 | J181: 0 | K181: 0
A182: 48 | C182: ='FR-16(7)(v)-1 Functional'!C182 -> CUSTOMER ACCOUNTING | D182: ='FR-16(7)(v)-1 Functional'!D182 -> A308 | F182: ='FR-16(7)(v)-1 Functional'!G182 -> 0 | G182: 0 | H182: 0 | I182: 0 | J182: 0 | K182: 0
A183: 49 | C183: ='FR-16(7)(v)-1 Functional'!C183 -> CUSTOMER SERVICE & INFORMATION | D183: ='FR-16(7)(v)-1 Functional'!D183 -> A310 | F183: ='FR-16(7)(v)-1 Functional'!G183 -> 0 | G183: 0 | H183: 0 | I183: 0 | J183: 0 | K183: 0
A184: 50 | C184: ='FR-16(7)(v)-1 Functional'!C184 -> SALES | D184: ='FR-16(7)(v)-1 Functional'!D184 -> A312 | F184: ='FR-16(7)(v)-1 Functional'!G184 -> 0 | G184: 0 | H184: 0 | I184: 0 | J184: 0 | K184: 0
A185: 51 | C185: ='FR-16(7)(v)-1 Functional'!C185 -> ADJUSTMENT | D185: ='FR-16(7)(v)-1 Functional'!D185 -> A315 | F185: ='FR-16(7)(v)-1 Functional'!G185 -> 209990 | G185: 98002 | H185: 111988 | I185: 0 | J185: 209990 | K185: 0
A186: 52 | C186: ='FR-16(7)(v)-1 Functional'!C186 -> GENERAL & INTANG PLANT | F186: =SUM(F176:F185) -> 14739802 | G186: 8338034 | H186: 6401768 | I186: 0 | J186: 14739802 | K186: 0
A187: 53
A188: 54 | B188: COMMON & OTHER PLANT
A189: 55 | C189: ='FR-16(7)(v)-1 Functional'!C189 -> PRODUCTION - DEMAND | D189: ='FR-16(7)(v)-1 Functional'!D189 -> K201 | F189: ='FR-16(7)(v)-1 Functional'!G189 -> 7273485 | G189: =F189-SUM(H189:I189) -> 7273485 | H189: =ROUND(F189*VLOOKUP(D189,AllocTable_Classified_Production,$H$10,FALSE),0) -> 0 | I189: =ROUND(F189*VLOOKUP(D189,AllocTable_Classified_Production,$I$10,FALSE),0) -> 0 | J189: =SUM(G189:I189) -> 7273485 | K189: =F189-J189 -> 0
A190: 56 | C190: ='FR-16(7)(v)-1 Functional'!C190 -> PRODUCTION - ENERGY | D190: ='FR-16(7)(v)-1 Functional'!D190 -> K301 | F190: ='FR-16(7)(v)-1 Functional'!G190 -> 8498622 | G190: =F190-SUM(H190:I190) -> 0 | H190: 8498622 | I190: 0 | J190: =SUM(G190:I190) -> 8498622 | K190: =F190-J190 -> 0
A191: 57 | C191: ='FR-16(7)(v)-1 Functional'!C191 -> TRANSMISSION | D191: ='FR-16(7)(v)-1 Functional'!D191 -> K202 | F191: ='FR-16(7)(v)-1 Functional'!G191 -> 0 | G191: 0 | H191: 0 | I191: 0 | J191: 0 | K191: 0
A192: 58 | C192: ='FR-16(7)(v)-1 Functional'!C192 -> DISTRIBUTION - DEMAND | D192: ='FR-16(7)(v)-1 Functional'!D192 -> K201 | F192: ='FR-16(7)(v)-1 Functional'!G192 -> 3860278 | G192: 3860278 | H192: 0 | I192: 0 | J192: 3860278 | K192: 0
A193: 59 | C193: ='FR-16(7)(v)-1 Functional'!C193 -> DISTRIBUTION - CUSTOMER | D193: ='FR-16(7)(v)-1 Functional'!D193 -> K405 | F193: ='FR-16(7)(v)-1 Functional'!G193 -> 0 | G193: 0 | H193: 0 | I193: 0 | J193: 0 | K193: 0
A194: 60 | C194: ='FR-16(7)(v)-1 Functional'!C194 -> CUSTOMER ACCOUNTING | D194: ='FR-16(7)(v)-1 Functional'!D194 -> A308 | F194: ='FR-16(7)(v)-1 Functional'!G194 -> 0 | G194: 0 | H194: 0 | I194: 0 | J194: 0 | K194: 0
A195: 61 | C195: ='FR-16(7)(v)-1 Functional'!C195 -> CUSTOMER SERVICE & INFORMATION | D195: ='FR-16(7)(v)-1 Functional'!D195 -> A310 | F195: ='FR-16(7)(v)-1 Functional'!G195 -> 0 | G195: 0 | H195: 0 | I195: 0 | J195: 0 | K195: 0
A196: 62 | C196: ='FR-16(7)(v)-1 Functional'!C196 -> SALES | D196: ='FR-16(7)(v)-1 Functional'!D196 -> A312 | F196: ='FR-16(7)(v)-1 Functional'!G196 -> 0 | G196: 0 | H196: 0 | I196: 0 | J196: 0 | K196: 0
A197: 63 | C197: ='FR-16(7)(v)-1 Functional'!C197 -> ADJUSTMENT | D197: ='FR-16(7)(v)-1 Functional'!D197 -> A315 | F197: ='FR-16(7)(v)-1 Functional'!G197 -> 11795 | G197: 5505 | H197: 6290 | I197: 0 | J197: 11795 | K197: 0
A198: 64 | C198: ='FR-16(7)(v)-1 Functional'!C198 -> COMMON & OTHER PLANT IN SERVICE | F198: =SUM(F189:F197) -> 19644180 | G198: =SUM(G188:G197) -> 11139268 | H198: =SUM(H188:H197) -> 8504912 | I198: =SUM(I188:I197) -> 0 | J198: =SUM(J188:J197) -> 19644180 | K198: =SUM(K188:K197) -> 0
A199: 65
A200: 66 | B200: TOTAL DEPRECIATION RESERVE | F200: =F198+F186+F171+F145+F139 -> 621319440 | G200: 606412760 | H200: 14906680 | I200: 0 | J200: 621319440 | K200: 0
A202: =co_name -> DUKE ENERGY KENTUCKY, INC. | J202: =J1 -> FR-16(7)(v)-2
A203: =$A$2 -> PRODUCTION CLASSIFIED - ELECTRIC COST OF SERVICE | J203: =J2 -> WITNESS RESPONSIBLE:
A204: =case_name -> CASE NO: 2019-00271 | J204: =Witness -> JAMES E. ZIOLKOWSKI
A205: =data_filing -> DATA: 12 MONTHS ACTUAL & 0 MONTHS ESTIMATED | J205: ="PAGE "&Pages-14&" OF "&Pages -> PAGE 4 OF 18
A206: =type -> TYPE OF FILING: "X" ORIGINAL UPDATED REVISED
A209: LINE | F209: =$F$8 -> TOTAL | G209: CLASSIFIED | J209: TOTAL | K209: ALL
A210: NO. | B210: ="NET ELECTRIC PLANT" -> NET ELECTRIC PLANT | D210: ALLO | F210: =$F$9 -> PRODUCTION | G210: =G9 -> DEMAND | H210: ENERGY | I210: CUSTOMER | J210: AT ISSUE | K210: OTHER
C211: Schedule 4 | G211: 3 | H211: 4 | I211: 5
... 768 more rows

Sheet FR-16(7)(v)-3 PROD Demand
A1: =co_name -> DUKE ENERGY KENTUCKY, INC. | R1: FR-16(7)(v)-3
A2: =F8&" "&F9&" ALLOCATED - ELECTRIC COST OF SERVICE" -> PRODUCTION DEMAND ALLOCATED - ELECTRIC COST OF SERVICE | R2: WITNESS RESPONSIBLE:
A3: =case_name -> CASE NO: 2019-00271 | R3: =Witness -> JAMES E. ZIOLKOWSKI
A4: =data_filing -> DATA: 12 MONTHS ACTUAL & 0 MONTHS ESTIMATED | R4: ="PAGE "&Pages-17&" OF "&Pages -> PAGE 1 OF 18
A5: =type -> TYPE OF FILING: "X" ORIGINAL UPDATED REVISED
F7: TOTAL | H7: DS | I7: GSFL | J7: EH | K7: SP | L7: DT SEC | M7: DT PRI | N7: DP | O7: TT | Q7: OTHER
A8: LINE | F8: PRODUCTION | G8: RS | H8: SECONDARY | I8: SECONDARY | J8: SECONDARY | K8: SECONDARY | L8: SECONDARY | M8: PRIMARY | N8: PRIMARY | O8: TRANSMISSION | P8: LT | Q8: WATER | R8: TOTAL | S8: ALL
A9: NO. | B9: SUMMARY OF RESULTS | D9: ALLO | F9: DEMAND | G9: RESIDENTIAL | H9: DISTRIBUTION | I9: DISTRIBUTION | J9: DISTRIBUTION | K9: DISTRIBUTION | L9: DISTRIBUTION | M9: DISTRIBUTION | N9: DISTRIBUTION | O9: TIME OF DAY | P9: LIGHTING | Q9: PUMPING | R9: AT ISSUE | S9: OTHER
C10: Schedule 1 | G10: 3 | H10: 4 | I10: 5 | J10: 6 | K10: 7 | L10: 8 | M10: 9 | N10: 10 | O10: 11 | P10: 12 | Q10: 13
A11: 1 | B11: NET INCOME COMPUTATION
A12: 2 | C12: ='FR-16(7)(v)-1 Functional'!C12 -> GROSS ELECTRIC PLANT IN SERVICE | F12: =F123 -> 1248833815 | G12: =G123 -> 562949308 | H12: =H123 -> 337984384 | I12: =I123 -> 1623484 | J12: =J123 -> 6406518 | K12: 87419 | L12: 168517635 | M12: 111408464 | N12: 5382474 | O12: 52788205 | P12: 1548553 | Q12: =Q123 -> 137371 | R12: =SUM(G12:Q12) -> 1248833815 | S12: =F12-R12 -> 0
A13: 3 | C13: ='FR-16(7)(v)-1 Functional'!C13 -> TOTAL DEPRECIATION RESERVE | F13: =-F200 -> -606412760 | G13: =-G200 -> -273414340 | H13: =-H200 -> -164092154 | I13: =-I200 -> -788204 | J13: =-J200 -> -3110378 | K13: -42442 | L13: -81815677 | M13: -54089053 | N13: -2613203 | O13: -25628788 | P13: -751827 | Q13: =-Q200 -> -66694 | R13: =SUM(G13:Q13) -> -606412760 | S13: =F13-R13 -> 0
A14: 4 | C14: ='FR-16(7)(v)-1 Functional'!C14 -> TOTAL RATE BASE ADJUSTMENTS | F14: =F421 -> -119636775 | G14: =G421 -> -52493518 | H14: =H421 -> -33086355 | I14: =I421 -> -158898 | J14: =J421 -> -627065 | K14: -8560 | L14: -16496735 | M14: -10905699 | N14: -526843 | O14: -5168090 | P14: -151560 | Q14: =Q421 -> -13452 | R14: =SUM(G14:Q14) -> -119636775 | S14: =F14-R14 -> 0
A15: 5 | C15: ='FR-16(7)(v)-1 Functional'!C15 -> TOTAL RATE BASE | F15: =SUM($F$12:F14) -> 522784280 | G15: =SUM(G12:G14) -> 237041450 | H15: =SUM(H12:H14) -> 140805875 | I15: =SUM(I12:I14) -> 676382 | J15: =SUM(J12:J14) -> 2669075 | K15: 36417 | L15: 70205223 | M15: 46413712 | N15: 2242428 | O15: 21991327 | P15: 645166 | Q15: =SUM(Q12:Q14) -> 57225 | R15: =SUM(R12:R14) -> 522784280 | S15: =F15-R15 -> 0
A16: 6
A17: 7 | B17: OPERATING EXPENSES
A18: 8 | C18: ='FR-16(7)(v)-1 Functional'!C18 -> TOTAL O&M EXPENSE | F18: =F549 -> 6535241 | G18: =G549 -> 6122502 | H18: =H549 -> 203378 | I18: =I549 -> 972 | J18: =J549 -> 3865 | K18: 58 | L18: 101408 | M18: 67019 | N18: 3257 | O18: 31769 | P18: 922 | Q18: =Q549 -> 91 | R18: =SUM(G18:Q18) -> 6535241 | S18: =F18-R18 -> 0
A19: 9 | C19: ='FR-16(7)(v)-1 Functional'!C19 -> TOTAL DEPRECIATION EXPENSE | F19: =F582 -> 39987838 | G19: =G582 -> 18018226 | H19: =H582 -> 10825994 | I19: =I582 -> 52008 | J19: =J582 -> 205211 | K19: 2799 | L19: 5397789 | M19: 3568535 | N19: 172396 | O19: 1690872 | P19: 49609 | Q19: =Q582 -> 4399 | R19: =SUM(G19:Q19) -> 39987838 | S19: 0
A20: 10 | C20: ='FR-16(7)(v)-1 Functional'!C20 -> TOTAL OTHER TAX & MISC EXPENSE | F20: =F612 -> 7877695 | G20: =G612 -> 3686034 | H20: =H612 -> 2065471 | I20: =I612 -> 9933 | J20: =J612 -> 39050 | K20: 535 | L20: 1029975 | M20: 680814 | N20: 32882 | O20: 322577 | P20: 9587 | Q20: =$Q$612 -> 837 | R20: =SUM(G20:Q20) -> 7877695 | S20: 0
A21: 11 | C21: ='FR-16(7)(v)-1 Functional'!C21 -> TOTAL OP EXP EXCLUDING INC & REV TAX | F21: =SUM($F$17:F20) -> 54400774 | G21: =SUM(G17:G20) -> 27826762 | H21: =SUM(H17:H20) -> 13094843 | I21: =SUM(I17:I20) -> 62913 | J21: =SUM(J17:J20) -> 248126 | K21: 3392 | L21: 6529172 | M21: 4316368 | N21: 208535 | O21: 2045218 | P21: 60118 | Q21: =SUM(Q17:Q20) -> 5327 | R21: =SUM(R17:R20) -> 54400774 | S21: 0
A22: 12 | C22: ='FR-16(7)(v)-1 Functional'!C22 -> NET FED INCOME TAX EXP ALLOWABLE | F22: =F676 -> -6959928 | G22: =G676 -> -3430658 | H22: =H676 -> -1739140 | I22: =I676 -> -8374 | J22: =J676 -> -32909 | K22: -446 | L22: -867202 | M22: -573274 | N22: -27675 | O22: -271555 | P22: -7992 | Q22: =$Q$676 -> -703 | R22: =SUM(G22:Q22) -> -6959928 | S22: 0
A23: 13 | C23: NET STATE INCOME TAX EXP ALLOWABLE | F23: =F722 -> -682555 | G23: =G722 -> 308320 | H23: -488275 | I23: -2349 | J23: -9246 | K23: -127 | L23: -243473 | M23: -160956 | N23: -7765 | O23: -76245 | P23: -2239 | Q23: -200 | R23: =SUM(G23:Q23) -> -682555 | S23: 0
A24: 14 | C24: RESERVED | D24: ='FR-16(7)(v)-1 Functional'!D24 -> CW29 | F24: ='FR-16(7)(v)-2 PROD Classified'!G24 -> 0 | G24: =F24-SUM(H24:Q24) -> 0 | H24: =ROUND(F24*VLOOKUP(D73,ALLOCTABLE_Prod_Demand,$H$10,FALSE),0) -> 0 | I24: =ROUND(F24*VLOOKUP($D$24,ALLOCTABLE_Prod_Demand,$I$10,FALSE),0) -> 0 | J24: =ROUND(F24*VLOOKUP($D$24,ALLOCTABLE_Prod_Demand,$J$10,FALSE),0) -> 0 | K24: =ROUND(F24*VLOOKUP($D$24,ALLOCTABLE_Prod_Demand,$K$10,FALSE),0) -> 0 | L24: =ROUND(F24*VLOOKUP($D$24,ALLOCTABLE_Prod_Demand,$L$10,FALSE),0) -> 0 | M24: =ROUND(F24*VLOOKUP($D$24,ALLOCTABLE_Prod_Demand,$M$10,FALSE),0) -> 0 | N24: =ROUND(F24*VLOOKUP($D$24,ALLOCTABLE_Prod_Demand,$N$10,FALSE),0) -> 0 | O24: =ROUND(F24*VLOOKUP($D$24,ALLOCTABLE_Prod_Demand,$O$10,FALSE),0) -> 0 | P24: =ROUND(F24*VLOOKUP($D$24,ALLOCTABLE_Prod_Demand,$P$10,FALSE),0) -> 0 | Q24: =ROUND(F24*VLOOKUP(D24,ALLOCTABLE_Prod_Demand,$Q$10,FALSE),0) -> 0 | R24: =SUM(G24:Q24) -> 0 | S24: =F24-R24 -> 0
A25: 15 | C25: ='FR-16(7)(v)-1 Functional'!C25 -> REVENUE TAX | F25: =F767 -> 0 | G25: =G767 -> 0 | H25: =H767 -> 0 | I25: =I767 -> 0 | J25: =J767 -> 0 | K25: 0 | L25: 0 | M25: 0 | N25: 0 | O25: 0 | P25: 0 | Q25: =Q767 -> 0 | R25: =SUM(G25:Q25) -> 0 | S25: 0
A26: 16 | C26: ='FR-16(7)(v)-1 Functional'!C26 -> TOTAL OPERATING EXPENSE | F26: =SUM($F$21:F25) -> 46758291 | G26: =SUM(G21:G25) -> 24704424 | H26: =SUM(H21:H25) -> 10867428 | I26: =SUM(I21:I25) -> 52190 | J26: =SUM(J21:J25) -> 205971 | K26: 2819 | L26: 5418497 | M26: 3582138 | N26: 173095 | O26: 1697418 | P26: 49887 | Q26: =SUM(Q21:Q25) -> 4424 | R26: =SUM(R21:R25) -> 46758291 | S26: 0
A27: 17
A28: 18 | B28: RETURN ON RATE BASE | F28: =F433 -> 35083922 | G28: 15907752 | H28: 9449503 | I28: 45258 | J28: 179279 | K28: 2456 | L28: 4711420 | M28: 3114751 | N28: 150510 | O28: 1475981 | P28: 43153 | Q28: 3859 | R28: =SUM(G28:Q28) -> 35083922 | S28: =F28-R28 -> 0
A29: 19 | B29: TOTAL OTHER OPERATING REVENUES | F29: =-F750 -> 0 | G29: =-G750 -> 0 | H29: =-H750 -> 0 | I29: =-I750 -> 0 | J29: =-J750 -> 0 | K29: 0 | L29: 0 | M29: 0 | N29: 0 | O29: 0 | P29: 0 | Q29: =-$Q$750 -> 0 | R29: =SUM(G29:Q29) -> 0 | S29: 0
A30: 20 | C30: ='FR-16(7)(v)-1 Functional'!C30 -> TOTAL ELECTRIC COST OF SERVICE | F30: =SUM($F$26:F29) -> 81842213 | G30: =SUM(G26:G29) -> 40612176 | H30: =SUM(H26:H29) -> 20316931 | I30: =SUM(I26:I29) -> 97448 | J30: =SUM(J26:J29) -> 385250 | K30: 5275 | L30: 10129917 | M30: 6696889 | N30: 323605 | O30: 3173399 | P30: 93040 | Q30: =SUM(Q26:Q29) -> 8283 | R30: =SUM(R26:R29) -> 81842213 | S30: 0
A31: 21 | B31: ADJUSTMENT FOR INTERCLASS SUBSIDIZATION | D31: =1-'WP FR-16(7)(v) Rate Incr'!I11 -> 0.95 | F31: ='WP FR-16(7)(v) Rate Incr'!Q27 -> 0 | G31: ='WP FR-16(7)(v) Rate Incr'!Q15 -> -9336840 | H31: ='WP FR-16(7)(v) Rate Incr'!Q16 -> 6445498 | I31: ='WP FR-16(7)(v) Rate Incr'!Q17 -> 89344 | J31: ='WP FR-16(7)(v) Rate Incr'!R17 -> 6774 | K31: ='WP FR-16(7)(v) Rate Incr'!S17 -> 56376 | L31: ='WP FR-16(7)(v) Rate Incr'!T17 -> 111986 | M31: ='WP FR-16(7)(v) Rate Incr'!U17 -> 0 | N31: ='WP FR-16(7)(v) Rate Incr'!V17 -> 40507 | O31: ='WP FR-16(7)(v) Rate Incr'!W17 -> 0 | P31: ='WP FR-16(7)(v) Rate Incr'!X17 -> 0 | Q31: ='WP FR-16(7)(v) Rate Incr'!Q25 -> -9875 | R31: =SUM(G31:Q31) -> -2596230 | S31: 2596230
A32: 22 | B32: ='FR-16(7)(v)-1 Functional'!$B$32 -> REQUESTED REVENUES (COST OF SERVICE ADJUSTED FOR SUBSIDIES) | F32: =F31+F30 -> 81842213 | G32: 31275336 | H32: 26762429 | I32: 186792 | J32: =J31+J30 -> 392024 | K32: 61651 | L32: 10241903 | M32: 6696889 | N32: 364112 | O32: 3173399 | P32: 93040 | Q32: -1592 | R32: 79245983 | S32: 2596230
A33: 23 | B33: PROPOSED REVENUES | F33: =F868 -> 106929095 | G33: 105636323 | H33: 637297 | I33: 3208 | J33: =J868 -> 11762 | K33: 0 | L33: 317579 | M33: 209581 | N33: 10693 | O33: 99444 | P33: 3208 | Q33: 0 | R33: 106929095 | S33: 0
A34: 24 | B34: DIFFERENCE (REQUESTED LESS PROPOSED) | F34: =F32-F33 -> -25086882 | G34: =G32-G33 -> -74360987 | H34: 26125132 | I34: 183584 | J34: =J32-J33 -> 380262 | K34: 61651 | L34: 9924324 | M34: 6487308 | N34: 353419 | O34: 3073955 | P34: 89832 | Q34: -1592 | R34: -27683112 | S34: 2596230
A35: 25
A36: 26 | B36: TOTAL RETURN EARNED | F36: =F777+F28 -> 53917870 | G36: =G777+G28 -> 64724555 | H36: =H777+H28 -> -5324960 | I36: =I777+I28 -> -25493 | J36: =J777+J28 -> -101117 | K36: -1504 | L36: -2655181 | M36: -1755588 | N36: -84408 | O36: -831787 | P36: -24288 | Q36: =Q777+Q28 -> -2359 | R36: =R777+R28 -> 53917870 | S36: =F36-R36 -> 0
A37: 27 | B37: RATE OF RETURN EARNED | F37: =IF($F$431=0,0,ROUND($F$36/F431,5)) -> 0.10314 | G37: =IF(G431=0,0,ROUND(G36/G431,5)) -> 0.27305 | H37: -0.03782 | I37: -0.0378 | J37: -0.03785 | K37: -0.0411 | L37: -0.03782 | M37: -0.03783 | N37: -0.03764 | O37: -0.03782 | P37: -0.03777 | Q37: -0.04102 | R37: 0.10314 | S37: 0
A38: 28 | B38: TOTAL RATE OF RETURN ALLOWABLE | F38: =$F$811 -> 0.0671 | G38: =$F$811 -> 0.0671 | H38: 0.0671 | I38: 0.0671 | J38: 0.0671 | K38: 0.0671 | L38: 0.0671 | M38: 0.0671 | N38: 0.0671 | O38: 0.0671 | P38: 0.0671 | Q38: 0.0671 | R38: =F811 -> 0.0671 | S38: =F811 -> 0.0671 | V38: Not Part of print range
A39: 29 | B39: RETURN EARNED ON COMMON EQUITY | F39: =IF(Equity=0,0,(F37-$F$806-$F$807-$F$809)*TotalCap/Equity) -> 0.1727813892 | G39: 0.5250406386 | H39: -0.1194584071 | I39: -0.1194169429 | J39: -0.1195206034 | K39: -0.1262585386 | L39: -0.1194584071 | M39: -0.1194791392 | N39: -0.1190852291 | O39: -0.1194584071 | P39: -0.1193547466 | Q39: -0.1260926817 | R39: =IF(Equity=0,0,(R37-F806-F807-F809)*TotalCap/Equity) -> 0.1727813892 | S39: =IF(Equity=0,0,(S37-F806-F807-F809)*TotalCap/Equity) -> -0.04104957411 | V39: Not Filed
A40: 30 | B40: ALLOWED RETURN ON COMMON EQUITY | F40: =IF(Equity=0,0,(F38-$F$806-$F$807-$F$809)*TotalCap/Equity) -> 0.09806287149 | G40: 0.09806287149 | H40: 0.09806287149 | I40: 0.09806287149 | J40: 0.09806287149 | K40: 0.09806287149 | L40: 0.09806287149 | M40: 0.09806287149 | N40: 0.09806287149 | O40: 0.09806287149 | P40: 0.09806287149 | Q40: 0.09806287149 | R40: =IF(Equity=0,0,(R38-F806-F807-F809)*TotalCap/Equity) -> 0.09806287149 | S40: =IF(Equity=0,0,(S38-F806-F807-F809)*TotalCap/Equity) -> 0.09806287149
A41: 31
A42: 32 | B42: PRESENT REVENUES | F42: =F867 -> 71578233 | G42: 35518930 | H42: 17768948 | I42: 85227 | J42: =J867 -> 336935 | K42: 4613 | L42: 8859506 | M42: 5857020 | N42: 283021 | O42: 2775417 | P42: 81372 | Q42: 7244 | R42: 71578233 | S42: =F42-R42 -> 0
A43: 33 | B43: REVENUE INCREASE JUSTIFIED | F43: =F30-F42 -> 10263980 | G43: 5093246 | H43: 2547983 | I43: 12221 | J43: =J30-J42 -> 48315 | K43: 662 | L43: 1270411 | M43: 839869 | N43: 40584 | O43: 397982 | P43: 11668 | Q43: 1039 | R43: 10263980 | S43: 0
A44: 34 | C44: PER UNIT PRES REV | F44: =IF($F$42=0,0,ROUND($F$43/F42,5)) -> 0.1434 | G44: =IF(G42=0,0,ROUND(G43/G42,5)) -> 0.1434 | H44: 0.1434 | I44: 0.14339 | J44: =IF(J42=0,0,ROUND(J43/J42,5)) -> 0.1434 | K44: 0.14351 | L44: 0.1434 | M44: 0.1434 | N44: 0.1434 | O44: 0.1434 | P44: 0.14339 | Q44: 0.14343 | R44: 0.1434 | S44: 0
A45: 35 | B45: REVENUE INCREASE REQUESTED | F45: =F33-F42 -> 35350862 | G45: 70117393 | H45: -17131651 | I45: -82019 | J45: =J33-J42 -> -325173 | K45: -4613 | L45: -8541927 | M45: -5647439 | N45: -272328 | O45: -2675973 | P45: -78164 | Q45: -7244 | R45: 35350862 | S45: 0
A46: 36 | C46: PER UNIT PRES REV | F46: =IF($F$42=0,0,ROUND($F$45/F42,5)) -> 0.49388 | G46: =IF(G42=0,0,ROUND(G45/G42,5)) -> 1.97409 | H46: -0.96413 | I46: -0.96236 | J46: =IF(J42=0,0,ROUND(J45/J42,5)) -> -0.96509 | K46: -1 | L46: -0.96415 | M46: -0.96422 | N46: -0.96222 | O46: -0.96417 | P46: -0.96058 | Q46: -1 | R46: 0.49388 | S46: 0
A48: =co_name -> DUKE ENERGY KENTUCKY, INC. | R48: =R1 -> FR-16(7)(v)-3
A49: =$A$2 -> PRODUCTION DEMAND ALLOCATED - ELECTRIC COST OF SERVICE | R49: =R2 -> WITNESS RESPONSIBLE:
A50: =case_name -> CASE NO: 2019-00271 | R50: =Witness -> JAMES E. ZIOLKOWSKI
A51: =data_filing -> DATA: 12 MONTHS ACTUAL & 0 MONTHS ESTIMATED | R51: ="PAGE "&Pages-16&" OF "&Pages -> PAGE 2 OF 18
A52: =type -> TYPE OF FILING: "X" ORIGINAL UPDATED REVISED
F54: =F$7 -> TOTAL | H54: =H$7 -> DS | I54: =I$7 -> GSFL | J54: =J$7 -> EH | K54: =K$7 -> SP | L54: DT SEC | M54: DT PRI | N54: DP | O54: TT | Q54: OTHER
A55: LINE | F55: =F$8 -> PRODUCTION | G55: =G$8 -> RS | H55: =H$8 -> SECONDARY | I55: =I$8 -> SECONDARY | J55: =J$8 -> SECONDARY | K55: =K$8 -> SECONDARY | L55: SECONDARY | M55: PRIMARY | N55: PRIMARY | O55: TRANSMISSION | P55: LT | Q55: WATER | R55: =R8 -> TOTAL | S55: ALL
A56: NO. | B56: GROSS ELECTRIC PLANT IN SERVICE | D56: ALLO | F56: =F$9 -> DEMAND | G56: =G$9 -> RESIDENTIAL | H56: =H$9 -> DISTRIBUTION | I56: =I$9 -> DISTRIBUTION | J56: =J$9 -> DISTRIBUTION | K56: =K$9 -> DISTRIBUTION | L56: DISTRIBUTION | M56: DISTRIBUTION | N56: DISTRIBUTION | O56: TIME OF DAY | P56: LIGHTING | Q56: PUMPING | R56: =R9 -> AT ISSUE | S56: OTHER
C57: Schedule 2 | G57: =G$10 -> 3 | H57: =H$10 -> 4 | I57: =I$10 -> 5 | J57: =J$10 -> 6 | K57: =K$10 -> 7 | L57: 8 | M57: 9 | N57: 10 | O57: 11 | P57: 12 | Q57: 13
A58: 1 | B58: PRODUCTION PLANT
A59: 2 | C59: PRODUCTION STEAM | D59: ='FR-16(7)(v)-1 Functional'!D59 -> K201 | F59: ='FR-16(7)(v)-2 PROD Classified'!G59 -> 835340554 | G59: =F59-SUM(H59:Q59) -> 376554815 | H59: =ROUND($F$59*VLOOKUP(D59,ALLOCTABLE_Prod_Demand,$H$10,FALSE),0) -> 226076568 | I59: =ROUND($F$59*VLOOKUP($D$59,ALLOCTABLE_Prod_Demand,$I$10,FALSE),0) -> 1085943 | J59: =ROUND($F$59*VLOOKUP($D$59,ALLOCTABLE_Prod_Demand,$J$10,FALSE),0) -> 4285297 | K59: =ROUND($F$59*VLOOKUP($D$59,ALLOCTABLE_Prod_Demand,$K$10,FALSE),0) -> 58474 | L59: =ROUND($F$59*VLOOKUP($D$59,ALLOCTABLE_Prod_Demand,$L$10,FALSE),0) -> 112720854 | M59: =ROUND($F$59*VLOOKUP($D$59,ALLOCTABLE_Prod_Demand,$M$10,FALSE),0) -> 74520731 | N59: =ROUND($F$59*VLOOKUP($D$59,ALLOCTABLE_Prod_Demand,$N$10,FALSE),0) -> 3600318 | O59: =ROUND($F$59*VLOOKUP($D$59,ALLOCTABLE_Prod_Demand,$O$10,FALSE),0) -> 35309845 | P59: =ROUND($F$59*VLOOKUP($D$59,ALLOCTABLE_Prod_Demand,$P$10,FALSE),0) -> 1035822 | Q59: =ROUND($F$59*VLOOKUP(D59,ALLOCTABLE_Prod_Demand,$Q$10,FALSE),0) -> 91887 | R59: =SUM(G59:Q59) -> 835340554 | S59: =F59-R59 -> 0
A60: 3 | C60: PRODUCTION OTHER | D60: ='FR-16(7)(v)-1 Functional'!D60 -> K201 | F60: ='FR-16(7)(v)-2 PROD Classified'!G60 -> 373451984 | G60: =F60-SUM(H60:Q60) -> 168344685 | H60: =ROUND($F$60*VLOOKUP(D60,ALLOCTABLE_Prod_Demand,$H$10,FALSE),0) -> 101071045 | I60: =ROUND($F$60*VLOOKUP($D$60,ALLOCTABLE_Prod_Demand,$I$10,FALSE),0) -> 485488 | J60: =ROUND($F$60*VLOOKUP($D$60,ALLOCTABLE_Prod_Demand,$J$10,FALSE),0) -> 1915809 | K60: =ROUND($F$60*VLOOKUP($D$60,ALLOCTABLE_Prod_Demand,$K$10,FALSE),0) -> 26142 | L60: =ROUND($F$60*VLOOKUP($D$60,ALLOCTABLE_Prod_Demand,$L$10,FALSE),0) -> 50393611 | M60: =ROUND($F$60*VLOOKUP($D$60,ALLOCTABLE_Prod_Demand,$M$10,FALSE),0) -> 33315651 | N60: =ROUND($F$60*VLOOKUP($D$60,ALLOCTABLE_Prod_Demand,$N$10,FALSE),0) -> 1609578 | O60: =ROUND($F$60*VLOOKUP($D$60,ALLOCTABLE_Prod_Demand,$O$10,FALSE),0) -> 15785815 | P60: =ROUND($F$60*VLOOKUP($D$60,ALLOCTABLE_Prod_Demand,$P$10,FALSE),0) -> 463080 | Q60: =ROUND($F$60*VLOOKUP(D60,ALLOCTABLE_Prod_Demand,$Q$10,FALSE),0) -> 41080 | R60: =SUM(G60:Q60) -> 373451984 | S60: =F60-R60 -> 0
A61: 4 | C61: ='FR-16(7)(v)-1 Functional'!C61 -> ADJUSTMENT | D61: ='FR-16(7)(v)-1 Functional'!D61 -> K201 | F61: ='FR-16(7)(v)-2 PROD Classified'!G61 -> 0 | G61: =F61-SUM(H61:Q61) -> 0 | H61: =ROUND($F$61*VLOOKUP(D61,ALLOCTABLE_Prod_Demand,$H$10,FALSE),0) -> 0 | I61: =ROUND($F$61*VLOOKUP($D$61,ALLOCTABLE_Prod_Demand,$I$10,FALSE),0) -> 0 | J61: =ROUND($F$61*VLOOKUP($D$61,ALLOCTABLE_Prod_Demand,$J$10,FALSE),0) -> 0 | K61: =ROUND($F$61*VLOOKUP($D$61,ALLOCTABLE_Prod_Demand,$K$10,FALSE),0) -> 0 | L61: =ROUND($F$61*VLOOKUP($D$61,ALLOCTABLE_Prod_Demand,$L$10,FALSE),0) -> 0 | M61: =ROUND($F$61*VLOOKUP($D$61,ALLOCTABLE_Prod_Demand,$M$10,FALSE),0) -> 0 | N61: =ROUND($F$61*VLOOKUP($D$61,ALLOCTABLE_Prod_Demand,$N$10,FALSE),0) -> 0 | O61: =ROUND($F$61*VLOOKUP($D$61,ALLOCTABLE_Prod_Demand,$O$10,FALSE),0) -> 0 | P61: =ROUND($F$61*VLOOKUP($D$61,ALLOCTABLE_Prod_Demand,$P$10,FALSE),0) -> 0 | Q61: =ROUND($F$61*VLOOKUP(D61,ALLOCTABLE_Prod_Demand,$Q$10,FALSE),0) -> 0 | R61: =SUM(G61:Q61) -> 0 | S61: =F61-R61 -> 0
A62: 5 | C62: ='FR-16(7)(v)-1 Functional'!C62 -> PRODUCTION PLANT IN SERVICE | F62: =SUM($F$59:F61) -> 1208792538 | G62: =SUM(G59:G61) -> 544899500 | H62: =SUM(H59:H61) -> 327147613 | I62: =SUM(I59:I61) -> 1571431 | J62: =SUM(J59:J61) -> 6201106 | K62: 84616 | L62: 163114465 | M62: 107836382 | N62: 5209896 | O62: 51095660 | P62: 1498902 | Q62: =SUM($Q$59:$Q$61) -> 132967 | R62: =SUM(R59:R61) -> 1208792538 | S62: =SUM(S59:S61) -> 0
A63: 6
A64: 7 | B64: TRANSMISSION PLANT
A65: 8 | C65: MAIN STEP-UP TRANSFORMERS | D65: ='FR-16(7)(v)-1 Functional'!D65 -> K202 | F65: ='FR-16(7)(v)-2 PROD Classified'!G65 -> 0 | G65: =F65-SUM(H65:Q65) -> 0 | H65: =ROUND($F$65*VLOOKUP(D65,ALLOCTABLE_Prod_Demand,$H$10,FALSE),0) -> 0 | I65: =ROUND($F$65*VLOOKUP($D$65,ALLOCTABLE_Prod_Demand,$I$10,FALSE),0) -> 0 | J65: =ROUND($F$65*VLOOKUP($D$65,ALLOCTABLE_Prod_Demand,$J$10,FALSE),0) -> 0 | K65: =ROUND($F$65*VLOOKUP($D$65,ALLOCTABLE_Prod_Demand,$K$10,FALSE),0) -> 0 | L65: =ROUND($F$65*VLOOKUP($D$65,ALLOCTABLE_Prod_Demand,$L$10,FALSE),0) -> 0 | M65: =ROUND($F$65*VLOOKUP($D$65,ALLOCTABLE_Prod_Demand,$M$10,FALSE),0) -> 0 | N65: =ROUND($F$65*VLOOKUP($D$65,ALLOCTABLE_Prod_Demand,$N$10,FALSE),0) -> 0 | O65: =ROUND($F$65*VLOOKUP($D$65,ALLOCTABLE_Prod_Demand,$O$10,FALSE),0) -> 0 | P65: =ROUND($F$65*VLOOKUP($D$65,ALLOCTABLE_Prod_Demand,$P$10,FALSE),0) -> 0 | Q65: =ROUND($F$65*VLOOKUP(D65,ALLOCTABLE_Prod_Demand,$Q$10,FALSE),0) -> 0 | R65: =SUM(G65:Q65) -> 0 | S65: =F65-R65 -> 0
A66: 9 | C66: OTHER TRANSMISSION | D66: ='FR-16(7)(v)-1 Functional'!D66 -> K202 | F66: ='FR-16(7)(v)-2 PROD Classified'!G66 -> 0 | G66: =F66-SUM(H66:Q66) -> 0 | H66: =ROUND($F$66*VLOOKUP(D66,ALLOCTABLE_Prod_Demand,$H$10,FALSE),0) -> 0 | I66: =ROUND($F$66*VLOOKUP($D$66,ALLOCTABLE_Prod_Demand,$I$10,FALSE),0) -> 0 | J66: =ROUND($F$66*VLOOKUP($D$66,ALLOCTABLE_Prod_Demand,$J$10,FALSE),0) -> 0 | K66: =ROUND($F$66*VLOOKUP($D$66,ALLOCTABLE_Prod_Demand,$K$10,FALSE),0) -> 0 | L66: =ROUND($F$66*VLOOKUP($D$66,ALLOCTABLE_Prod_Demand,$L$10,FALSE),0) -> 0 | M66: =ROUND($F$66*VLOOKUP($D$66,ALLOCTABLE_Prod_Demand,$M$10,FALSE),0) -> 0 | N66: =ROUND($F$66*VLOOKUP($D$66,ALLOCTABLE_Prod_Demand,$N$10,FALSE),0) -> 0 | O66: =ROUND($F$66*VLOOKUP($D$66,ALLOCTABLE_Prod_Demand,$O$10,FALSE),0) -> 0 | P66: =ROUND($F$66*VLOOKUP($D$66,ALLOCTABLE_Prod_Demand,$P$10,FALSE),0) -> 0 | Q66: =ROUND($F$66*VLOOKUP(D66,ALLOCTABLE_Prod_Demand,$Q$10,FALSE),0) -> 0 | R66: =SUM(G66:Q66) -> 0 | S66: =F66-R66 -> 0
A67: 10 | C67: ADJUSTMENT | D67: ='FR-16(7)(v)-1 Functional'!D67 -> K202 | F67: ='FR-16(7)(v)-2 PROD Classified'!G67 -> 0 | G67: =F67-SUM(H67:Q67) -> 0 | H67: =ROUND($F$67*VLOOKUP(D67,ALLOCTABLE_Prod_Demand,$H$10,FALSE),0) -> 0 | I67: =ROUND($F$67*VLOOKUP($D$67,ALLOCTABLE_Prod_Demand,$I$10,FALSE),0) -> 0 | J67: =ROUND($F$67*VLOOKUP($D$67,ALLOCTABLE_Prod_Demand,$J$10,FALSE),0) -> 0 | K67: =ROUND($F$67*VLOOKUP($D$67,ALLOCTABLE_Prod_Demand,$K$10,FALSE),0) -> 0 | L67: =ROUND($F$67*VLOOKUP($D$67,ALLOCTABLE_Prod_Demand,$L$10,FALSE),0) -> 0 | M67: =ROUND($F$67*VLOOKUP($D$67,ALLOCTABLE_Prod_Demand,$M$10,FALSE),0) -> 0 | N67: =ROUND($F$67*VLOOKUP($D$67,ALLOCTABLE_Prod_Demand,$N$10,FALSE),0) -> 0 | O67: =ROUND($F$67*VLOOKUP($D$67,ALLOCTABLE_Prod_Demand,$O$10,FALSE),0) -> 0 | P67: =ROUND($F$67*VLOOKUP($D$67,ALLOCTABLE_Prod_Demand,$P$10,FALSE),0) -> 0 | Q67: =ROUND($F$67*VLOOKUP(D67,ALLOCTABLE_Prod_Demand,$Q$10,FALSE),0) -> 0 | R67: =SUM(G67:Q67) -> 0 | S67: =F67-R67 -> 0
A68: 11 | C68: ='FR-16(7)(v)-1 Functional'!C68 -> TRANSMISSION PLANT IN SERVICE | F68: =SUM($F$65:F67) -> 0 | G68: =SUM(G65:G67) -> 0 | H68: 0 | I68: 0 | J68: 0 | K68: 0 | L68: 0 | M68: 0 | N68: 0 | O68: 0 | P68: 0 | Q68: 0 | R68: 0 | S68: =SUM(S65) -> 0
A69: 12
A70: 13 | B70: TOTAL PROD & TRANS PLANT | F70: =F68+F62 -> 1208792538 | G70: =G68+G62 -> 544899500 | H70: =H68+H62 -> 327147613 | I70: =I68+I62 -> 1571431 | J70: =J68+J62 -> 6201106 | K70: 84616 | L70: 163114465 | M70: 107836382 | N70: 5209896 | O70: 51095660 | P70: 1498902 | Q70: =$Q$68+$Q$62 -> 132967 | R70: =R68+R62 -> 1208792538 | S70: =S68+S62 -> 0
A71: 14
A72: 15 | B72: DISTRIBUTION PLANT
A73: 16 | C73: ='FR-16(7)(v)-1 Functional'!C73 -> SUBSTATIONS | D73: ='FR-16(7)(v)-1 Functional'!D73 -> K215 | F73: ='FR-16(7)(v)-2 PROD Classified'!G73 -> 0 | G73: =F73-SUM(H73:Q73) -> 0 | H73: =ROUND($F$73*VLOOKUP(D73,ALLOCTABLE_Prod_Demand,$H$10,FALSE),0) -> 0 | I73: =ROUND($F$73*VLOOKUP($D$73,ALLOCTABLE_Prod_Demand,$I$10,FALSE),0) -> 0 | J73: =ROUND($F$73*VLOOKUP($D$73,ALLOCTABLE_Prod_Demand,$J$10,FALSE),0) -> 0 | K73: =ROUND($F$73*VLOOKUP($D$73,ALLOCTABLE_Prod_Demand,$K$10,FALSE),0) -> 0 | L73: =ROUND($F$73*VLOOKUP($D$73,ALLOCTABLE_Prod_Demand,$L$10,FALSE),0) -> 0 | M73: =ROUND($F$73*VLOOKUP($D$73,ALLOCTABLE_Prod_Demand,$M$10,FALSE),0) -> 0 | N73: =ROUND($F$73*VLOOKUP($D$73,ALLOCTABLE_Prod_Demand,$N$10,FALSE),0) -> 0 | O73: =ROUND($F$73*VLOOKUP($D$73,ALLOCTABLE_Prod_Demand,$O$10,FALSE),0) -> 0 | P73: =ROUND($F$73*VLOOKUP($D$73,ALLOCTABLE_Prod_Demand,$P$10,FALSE),0) -> 0 | Q73: =ROUND($F$73*VLOOKUP(D73,ALLOCTABLE_Prod_Demand,$Q$10,FALSE),0) -> 0 | R73: =SUM(G73:Q73) -> 0 | S73: =F73-R73 -> 0
A74: 17 | C74: ='FR-16(7)(v)-1 Functional'!C74 -> POLES, TOWERS & FIXTURES - PRIMARY - DEMAND | D74: ='FR-16(7)(v)-1 Functional'!D74 -> K205 | F74: ='FR-16(7)(v)-2 PROD Classified'!G74 -> 0 | G74: =F74-SUM(H74:Q74) -> 0 | H74: =ROUND(F74*VLOOKUP(D74,ALLOCTABLE_Prod_Demand,$H$10,FALSE),0) -> 0 | I74: =ROUND(F74*VLOOKUP(D74,ALLOCTABLE_Prod_Demand,$I$10,FALSE),0) -> 0 | J74: =ROUND(F74*VLOOKUP(D74,ALLOCTABLE_Prod_Demand,$J$10,FALSE),0) -> 0 | K74: =ROUND(F74*VLOOKUP(D74,ALLOCTABLE_Prod_Demand,$K$10,FALSE),0) -> 0 | L74: =ROUND(F74*VLOOKUP(D74,ALLOCTABLE_Prod_Demand,$L$10,FALSE),0) -> 0 | M74: =ROUND(F74*VLOOKUP(D74,ALLOCTABLE_Prod_Demand,$M$10,FALSE),0) -> 0 | N74: =ROUND(F74*VLOOKUP(D74,ALLOCTABLE_Prod_Demand,$N$10,FALSE),0) -> 0 | O74: =ROUND(F74*VLOOKUP(D74,ALLOCTABLE_Prod_Demand,$O$10,FALSE),0) -> 0 | P74: =ROUND(F74*VLOOKUP(D74,ALLOCTABLE_Prod_Demand,$P$10,FALSE),0) -> 0 | Q74: =ROUND(F74*VLOOKUP(D74,ALLOCTABLE_Prod_Demand,$Q$10,FALSE),0) -> 0 | R74: =SUM(G74:Q74) -> 0 | S74: =F74-R74 -> 0
A75: 18 | C75: ='FR-16(7)(v)-1 Functional'!C75 -> POLES, TOWERS & FIXTURES - PRIMARY - CUSTOMER | D75: ='FR-16(7)(v)-1 Functional'!D75 -> K405 | F75: ='FR-16(7)(v)-2 PROD Classified'!G75 -> 0 | G75: =F75-SUM(H75:Q75) -> 0 | H75: 0 | I75: 0 | J75: 0 | K75: 0 | L75: 0 | M75: 0 | N75: 0 | O75: 0 | P75: =ROUND(F75*VLOOKUP(D75,ALLOCTABLE_Prod_Demand,$P$10,FALSE),0) -> 0 | Q75: =ROUND(F75*VLOOKUP(D75,ALLOCTABLE_Prod_Demand,$Q$10,FALSE),0) -> 0 | R75: =SUM(G75:Q75) -> 0 | S75: =F75-R75 -> 0
A76: 19 | C76: ='FR-16(7)(v)-1 Functional'!C76 -> POLES, TOWERS & FIXTURES - SECONDARY - DEMAND | D76: ='FR-16(7)(v)-1 Functional'!D76 -> K206 | F76: ='FR-16(7)(v)-2 PROD Classified'!G76 -> 0 | G76: 0 | H76: 0 | I76: 0 | J76: 0 | K76: 0 | L76: 0 | M76: 0 | N76: 0 | O76: 0 | P76: 0 | Q76: 0 | R76: 0 | S76: 0
A77: 20 | C77: ='FR-16(7)(v)-1 Functional'!C77 -> POLES, TOWERS & FIXTURES - SECONDARY - CUSTOMER | D77: ='FR-16(7)(v)-1 Functional'!D77 -> K405 | F77: ='FR-16(7)(v)-2 PROD Classified'!G77 -> 0 | G77: 0 | H77: 0 | I77: 0 | J77: 0 | K77: 0 | L77: 0 | M77: 0 | N77: 0 | O77: 0 | P77: 0 | Q77: 0 | R77: 0 | S77: 0
A78: 21 | C78: ='FR-16(7)(v)-1 Functional'!C78 -> CONDUCTORS - OVERHEAD / PRIMARY - DEMAND | D78: ='FR-16(7)(v)-1 Functional'!D78 -> K205 | F78: ='FR-16(7)(v)-2 PROD Classified'!G78 -> 0 | G78: 0 | H78: 0 | I78: 0 | J78: 0 | K78: 0 | L78: 0 | M78: 0 | N78: 0 | O78: 0 | P78: 0 | Q78: 0 | R78: 0 | S78: 0
A79: 22 | C79: ='FR-16(7)(v)-1 Functional'!C79 -> CONDUCTORS - OVERHEAD / PRIMARY - CUSTOMER | D79: ='FR-16(7)(v)-1 Functional'!D79 -> K405 | F79: ='FR-16(7)(v)-2 PROD Classified'!G79 -> 0 | G79: 0 | H79: 0 | I79: 0 | J79: 0 | K79: 0 | L79: 0 | M79: 0 | N79: 0 | O79: 0 | P79: 0 | Q79: 0 | R79: 0 | S79: 0
A80: 23 | C80: ='FR-16(7)(v)-1 Functional'!C80 -> CONDUCTORS - OVERHEAD / SECONDARY - DEMAND | D80: ='FR-16(7)(v)-1 Functional'!D80 -> K206 | F80: ='FR-16(7)(v)-2 PROD Classified'!G80 -> 0 | G80: 0 | H80: 0 | I80: 0 | J80: 0 | K80: 0 | L80: 0 | M80: 0 | N80: 0 | O80: 0 | P80: 0 | Q80: 0 | R80: 0 | S80: 0
A81: 24 | C81: ='FR-16(7)(v)-1 Functional'!C81 -> CONDUCTORS - OVERHEAD / SECONDARY - CUSTOMER | D81: ='FR-16(7)(v)-1 Functional'!D81 -> K405 | F81: ='FR-16(7)(v)-2 PROD Classified'!G81 -> 0 | G81: 0 | H81: 0 | I81: 0 | J81: 0 | K81: 0 | L81: 0 | M81: 0 | N81: 0 | O81: 0 | P81: 0 | Q81: 0 | R81: 0 | S81: 0
A82: 25 | C82: ='FR-16(7)(v)-1 Functional'!C82 -> CONDUCTORS - UNDERGROUND / PRIMARY - DEMAND | D82: ='FR-16(7)(v)-1 Functional'!D82 -> K205 | F82: ='FR-16(7)(v)-2 PROD Classified'!G82 -> 0 | G82: 0 | H82: 0 | I82: 0 | J82: 0 | K82: 0 | L82: 0 | M82: 0 | N82: 0 | O82: 0 | P82: 0 | Q82: 0 | R82: 0 | S82: 0
A83: 26 | C83: ='FR-16(7)(v)-1 Functional'!C83 -> CONDUCTORS - UNDERGROUND / PRIMARY - CUSTOMER | D83: ='FR-16(7)(v)-1 Functional'!D83 -> K405 | F83: ='FR-16(7)(v)-2 PROD Classified'!G83 -> 0 | G83: 0 | H83: 0 | I83: 0 | J83: 0 | K83: 0 | L83: 0 | M83: 0 | N83: 0 | O83: 0 | P83: 0 | Q83: 0 | R83: 0 | S83: 0
A84: 27 | C84: ='FR-16(7)(v)-1 Functional'!C84 -> CONDUCTORS - UNDERGROUND / SECONDARY - DEMAND | D84: ='FR-16(7)(v)-1 Functional'!D84 -> K206 | F84: ='FR-16(7)(v)-2 PROD Classified'!G84 -> 0 | G84: 0 | H84: 0 | I84: 0 | J84: 0 | K84: 0 | L84: 0 | M84: 0 | N84: 0 | O84: 0 | P84: 0 | Q84: 0 | R84: 0 | S84: 0
A85: 28 | C85: ='FR-16(7)(v)-1 Functional'!C85 -> CONDUCTORS - UNDERGROUND / SECONDARY - CUSTOMER | D85: ='FR-16(7)(v)-1 Functional'!D85 -> K405 | F85: ='FR-16(7)(v)-2 PROD Classified'!G85 -> 0 | G85: 0 | H85: 0 | I85: 0 | J85: 0 | K85: 0 | L85: 0 | M85: 0 | N85: 0 | O85: 0 | P85: 0 | Q85: 0 | R85: 0 | S85: 0
A86: 29 | C86: ='FR-16(7)(v)-1 Functional'!C86 -> TRANSFORMERS DEMAND RELATED | D86: ='FR-16(7)(v)-1 Functional'!D86 -> K215 | F86: ='FR-16(7)(v)-2 PROD Classified'!G86 -> 0 | G86: =F86-SUM(H86:Q86) -> 0 | H86: =ROUND($F$86*VLOOKUP(D86,ALLOCTABLE_Prod_Demand,$H$10,FALSE),0) -> 0 | I86: =ROUND($F$86*VLOOKUP($D$86,ALLOCTABLE_Prod_Demand,$I$10,FALSE),0) -> 0 | J86: =ROUND($F$86*VLOOKUP($D$86,ALLOCTABLE_Prod_Demand,$J$10,FALSE),0) -> 0 | K86: =ROUND($F$86*VLOOKUP($D$86,ALLOCTABLE_Prod_Demand,$K$10,FALSE),0) -> 0 | L86: =ROUND($F$86*VLOOKUP($D$86,ALLOCTABLE_Prod_Demand,$L$10,FALSE),0) -> 0 | M86: =ROUND($F$86*VLOOKUP($D$86,ALLOCTABLE_Prod_Demand,$M$10,FALSE),0) -> 0 | N86: =ROUND($F$86*VLOOKUP($D$86,ALLOCTABLE_Prod_Demand,$N$10,FALSE),0) -> 0 | O86: =ROUND($F$86*VLOOKUP($D$86,ALLOCTABLE_Prod_Demand,$O$10,FALSE),0) -> 0 | P86: =ROUND(F86*VLOOKUP(D86,ALLOCTABLE_Prod_Demand,$P$10,FALSE),0) -> 0 | Q86: =ROUND(F86*VLOOKUP(D86,ALLOCTABLE_Prod_Demand,$Q$10,FALSE),0) -> 0 | R86: =SUM(G86:Q86) -> 0 | S86: =F86-R86 -> 0
A87: 30 | C87: ='FR-16(7)(v)-1 Functional'!C87 -> TRANSFORMERS CUSTOMER RELATED | D87: ='FR-16(7)(v)-1 Functional'!D87 -> K405 | F87: ='FR-16(7)(v)-2 PROD Classified'!G87 -> 0 | G87: 0 | H87: =ROUND($F$86*VLOOKUP(D87,ALLOCTABLE_Prod_Demand,$H$10,FALSE),0) -> 0 | I87: =ROUND($F$86*VLOOKUP($D$86,ALLOCTABLE_Prod_Demand,$I$10,FALSE),0) -> 0 | J87: =ROUND($F$86*VLOOKUP($D$86,ALLOCTABLE_Prod_Demand,$J$10,FALSE),0) -> 0 | K87: =ROUND($F$86*VLOOKUP($D$86,ALLOCTABLE_Prod_Demand,$K$10,FALSE),0) -> 0 | L87: =ROUND($F$86*VLOOKUP($D$86,ALLOCTABLE_Prod_Demand,$L$10,FALSE),0) -> 0 | M87: =ROUND($F$86*VLOOKUP($D$86,ALLOCTABLE_Prod_Demand,$M$10,FALSE),0) -> 0 | N87: =ROUND($F$86*VLOOKUP($D$86,ALLOCTABLE_Prod_Demand,$N$10,FALSE),0) -> 0 | O87: =ROUND($F$86*VLOOKUP($D$86,ALLOCTABLE_Prod_Demand,$O$10,FALSE),0) -> 0 | P87: =ROUND(F87*VLOOKUP(D87,ALLOCTABLE_Prod_Demand,$P$10,FALSE),0) -> 0 | Q87: =ROUND(F87*VLOOKUP(D87,ALLOCTABLE_Prod_Demand,$Q$10,FALSE),0) -> 0 | R87: 0 | S87: 0
A88: 31 | C88: ='FR-16(7)(v)-1 Functional'!C88 -> SERVICES | D88: ='FR-16(7)(v)-1 Functional'!D88 -> K217 | F88: ='FR-16(7)(v)-2 PROD Classified'!G88 -> 0 | G88: 0 | H88: =ROUND($F$88*VLOOKUP(D88,ALLOCTABLE_Prod_Demand,$H$10,FALSE),0) -> 0 | I88: =ROUND($F$88*VLOOKUP($D$88,ALLOCTABLE_Prod_Demand,$I$10,FALSE),0) -> 0 | J88: =ROUND($F$88*VLOOKUP($D$88,ALLOCTABLE_Prod_Demand,$J$10,FALSE),0) -> 0 | K88: =ROUND($F$88*VLOOKUP($D$88,ALLOCTABLE_Prod_Demand,$K$10,FALSE),0) -> 0 | L88: =ROUND($F$88*VLOOKUP($D$88,ALLOCTABLE_Prod_Demand,$L$10,FALSE),0) -> 0 | M88: =ROUND($F$88*VLOOKUP($D$88,ALLOCTABLE_Prod_Demand,$M$10,FALSE),0) -> 0 | N88: =ROUND($F$88*VLOOKUP($D$88,ALLOCTABLE_Prod_Demand,$N$10,FALSE),0) -> 0 | O88: =ROUND($F$88*VLOOKUP($D$88,ALLOCTABLE_Prod_Demand,$O$10,FALSE),0) -> 0 | P88: =ROUND($F$88*VLOOKUP($D$88,ALLOCTABLE_Prod_Demand,$P$10,FALSE),0) -> 0 | Q88: =ROUND($F$88*VLOOKUP(D88,ALLOCTABLE_Prod_Demand,$Q$10,FALSE),0) -> 0 | R88: 0 | S88: 0
A89: 32 | C89: ='FR-16(7)(v)-1 Functional'!C89 -> METERS | D89: ='FR-16(7)(v)-1 Functional'!D89 -> K407 | F89: ='FR-16(7)(v)-2 PROD Classified'!G89 -> 0 | G89: 0 | H89: =ROUND($F$89*VLOOKUP(D89,ALLOCTABLE_Prod_Demand,$H$10,FALSE),0) -> 0 | I89: =ROUND($F$89*VLOOKUP($D$89,ALLOCTABLE_Prod_Demand,$I$10,FALSE),0) -> 0 | J89: =ROUND($F$89*VLOOKUP($D$89,ALLOCTABLE_Prod_Demand,$J$10,FALSE),0) -> 0 | K89: =ROUND($F$89*VLOOKUP($D$89,ALLOCTABLE_Prod_Demand,$K$10,FALSE),0) -> 0 | L89: =ROUND($F$89*VLOOKUP($D$89,ALLOCTABLE_Prod_Demand,$L$10,FALSE),0) -> 0 | M89: =ROUND($F$89*VLOOKUP($D$89,ALLOCTABLE_Prod_Demand,$M$10,FALSE),0) -> 0 | N89: =ROUND($F$89*VLOOKUP($D$89,ALLOCTABLE_Prod_Demand,$N$10,FALSE),0) -> 0 | O89: =ROUND($F$89*VLOOKUP($D$89,ALLOCTABLE_Prod_Demand,$O$10,FALSE),0) -> 0 | P89: =ROUND($F$89*VLOOKUP($D$89,ALLOCTABLE_Prod_Demand,$P$10,FALSE),0) -> 0 | Q89: =ROUND($F$89*VLOOKUP(D89,ALLOCTABLE_Prod_Demand,$Q$10,FALSE),0) -> 0 | R89: 0 | S89: 0
A90: 33 | C90: ='FR-16(7)(v)-1 Functional'!C90 -> STREET LIGHTS | D90: ='FR-16(7)(v)-1 Functional'!D90 -> K401 | F90: ='FR-16(7)(v)-2 PROD Classified'!G90 -> 0 | G90: 0 | H90: =ROUND($F$90*VLOOKUP(D90,ALLOCTABLE_Prod_Demand,$H$10,FALSE),0) -> 0 | I90: =ROUND($F$90*VLOOKUP($D$90,ALLOCTABLE_Prod_Demand,$I$10,FALSE),0) -> 0 | J90: =ROUND($F$90*VLOOKUP($D$90,ALLOCTABLE_Prod_Demand,$J$10,FALSE),0) -> 0 | K90: =ROUND($F$90*VLOOKUP($D$90,ALLOCTABLE_Prod_Demand,$K$10,FALSE),0) -> 0 | L90: =ROUND($F$90*VLOOKUP($D$90,ALLOCTABLE_Prod_Demand,$L$10,FALSE),0) -> 0 | M90: =ROUND($F$90*VLOOKUP($D$90,ALLOCTABLE_Prod_Demand,$M$10,FALSE),0) -> 0 | N90: =ROUND($F$90*VLOOKUP($D$90,ALLOCTABLE_Prod_Demand,$N$10,FALSE),0) -> 0 | O90: =ROUND($F$90*VLOOKUP($D$90,ALLOCTABLE_Prod_Demand,$O$10,FALSE),0) -> 0 | P90: =ROUND($F$90*VLOOKUP($D$90,ALLOCTABLE_Prod_Demand,$P$10,FALSE),0) -> 0 | Q90: =ROUND($F$90*VLOOKUP(D90,ALLOCTABLE_Prod_Demand,$Q$10,FALSE),0) -> 0 | R90: 0 | S90: 0
A91: 34 | C91: ='FR-16(7)(v)-1 Functional'!C91 -> ADJUSTMENT | D91: ='FR-16(7)(v)-1 Functional'!D91 -> K209 | F91: ='FR-16(7)(v)-2 PROD Classified'!G91 -> 0 | G91: 0 | H91: =ROUND($F$91*VLOOKUP(D91,ALLOCTABLE_Prod_Demand,$H$10,FALSE),0) -> 0 | I91: =ROUND($F$91*VLOOKUP($D$91,ALLOCTABLE_Prod_Demand,$I$10,FALSE),0) -> 0 | J91: =ROUND($F$91*VLOOKUP($D$91,ALLOCTABLE_Prod_Demand,$J$10,FALSE),0) -> 0 | K91: =ROUND($F$91*VLOOKUP($D$91,ALLOCTABLE_Prod_Demand,$K$10,FALSE),0) -> 0 | L91: =ROUND($F$91*VLOOKUP($D$91,ALLOCTABLE_Prod_Demand,$L$10,FALSE),0) -> 0 | M91: =ROUND($F$91*VLOOKUP($D$91,ALLOCTABLE_Prod_Demand,$M$10,FALSE),0) -> 0 | N91: =ROUND($F$91*VLOOKUP($D$91,ALLOCTABLE_Prod_Demand,$N$10,FALSE),0) -> 0 | O91: =ROUND($F$91*VLOOKUP($D$91,ALLOCTABLE_Prod_Demand,$O$10,FALSE),0) -> 0 | P91: =ROUND($F$91*VLOOKUP($D$91,ALLOCTABLE_Prod_Demand,$P$10,FALSE),0) -> 0 | Q91: =ROUND($F$91*VLOOKUP(D91,ALLOCTABLE_Prod_Demand,$Q$10,FALSE),0) -> 0 | R91: 0 | S91: 0
A92: 35 | C92: ='FR-16(7)(v)-1 Functional'!C92 -> CONSTRUCTION NOT CLASSIFIED | D92: ='FR-16(7)(v)-1 Functional'!D92 -> K209 | F92: ='FR-16(7)(v)-2 PROD Classified'!G92 -> 0 | G92: 0 | H92: =ROUND($F$92*VLOOKUP(D92,ALLOCTABLE_Prod_Demand,$H$10,FALSE),0) -> 0 | I92: =ROUND($F$92*VLOOKUP($D$92,ALLOCTABLE_Prod_Demand,$I$10,FALSE),0) -> 0 | J92: =ROUND($F$92*VLOOKUP($D$92,ALLOCTABLE_Prod_Demand,$J$10,FALSE),0) -> 0 | K92: =ROUND($F$92*VLOOKUP($D$92,ALLOCTABLE_Prod_Demand,$K$10,FALSE),0) -> 0 | L92: =ROUND($F$92*VLOOKUP($D$92,ALLOCTABLE_Prod_Demand,$L$10,FALSE),0) -> 0 | M92: =ROUND($F$92*VLOOKUP($D$92,ALLOCTABLE_Prod_Demand,$M$10,FALSE),0) -> 0 | N92: =ROUND($F$92*VLOOKUP($D$92,ALLOCTABLE_Prod_Demand,$N$10,FALSE),0) -> 0 | O92: =ROUND($F$92*VLOOKUP($D$92,ALLOCTABLE_Prod_Demand,$O$10,FALSE),0) -> 0 | P92: =ROUND($F$92*VLOOKUP($D$92,ALLOCTABLE_Prod_Demand,$P$10,FALSE),0) -> 0 | Q92: =ROUND($F$92*VLOOKUP(D92,ALLOCTABLE_Prod_Demand,$Q$10,FALSE),0) -> 0 | R92: 0 | S92: 0
A93: 36 | C93: ='FR-16(7)(v)-1 Functional'!C93 -> RWIP | D93: ='FR-16(7)(v)-1 Functional'!D93 -> K215 | F93: ='FR-16(7)(v)-2 PROD Classified'!G93 -> 0 | G93: =F93-SUM(H93:Q93) -> 0 | H93: =ROUND($F$92*VLOOKUP(D93,ALLOCTABLE_Prod_Demand,$H$10,FALSE),0) -> 0 | I93: =ROUND($F$92*VLOOKUP($D$92,ALLOCTABLE_Prod_Demand,$I$10,FALSE),0) -> 0 | J93: =ROUND($F$92*VLOOKUP($D$92,ALLOCTABLE_Prod_Demand,$J$10,FALSE),0) -> 0 | K93: =ROUND($F$92*VLOOKUP($D$92,ALLOCTABLE_Prod_Demand,$K$10,FALSE),0) -> 0
A94: 37 | C94: ='FR-16(7)(v)-1 Functional'!C94 -> DISTRIBUTION PLANT IN SERVICE | F94: =SUM(F73:F93) -> 0 | G94: =SUM(G73:G92) -> 0 | H94: =SUM(H73:H92) -> 0 | I94: =SUM(I73:I92) -> 0 | J94: =SUM(J73:J92) -> 0 | K94: 0 | L94: 0 | M94: 0 | N94: 0 | O94: 0 | P94: 0 | Q94: =SUM(Q73:Q92) -> 0 | R94: =SUM(R73:R92) -> 0 | S94: =SUM(S73:S92) -> 0
A95: 38
A96: 39 | B96: TOTAL TRANS & DIST PLANT | F96: =F94+F68 -> 0 | G96: =G94+G68 -> 0 | H96: =H94+H68 -> 0 | I96: =I94+I68 -> 0 | J96: =J94+J68 -> 0 | K96: 0 | L96: 0 | M96: 0 | N96: 0 | O96: 0 | P96: 0 | Q96: =Q94+$Q$68 -> 0 | R96: =R94+R68 -> 0 | S96: =S94+S68 -> 0
A97: 40 | B97: TOTAL GROSS PTD PLANT | F97: =F94+F70 -> 1208792538 | G97: =G94+G70 -> 544899500 | H97: =H94+H70 -> 327147613 | I97: =I94+I70 -> 1571431 | J97: =J94+J70 -> 6201106 | K97: 84616 | L97: 163114465 | M97: 107836382 | N97: 5209896 | O97: 51095660 | P97: 1498902 | Q97: =Q94+Q70 -> 132967 | R97: =R94+R70 -> 1208792538 | S97: =S94+S70 -> 0
A98: 41
A99: 42 | B99: GENERAL & INTANGIBLE PLANT
A100: 43 | C100: ='FR-16(7)(v)-1 Functional'!C100 -> PRODUCTION - DEMAND | D100: ='FR-16(7)(v)-1 Functional'!D100 -> K201 | F100: ='FR-16(7)(v)-2 PROD Classified'!G100 -> 16704047 | G100: =F100-SUM(H100:Q100) -> 7529852 | H100: =ROUND(F100*VLOOKUP(D100,ALLOCTABLE_Prod_Demand,$H$10,FALSE),0) -> 4520783 | I100: =ROUND(F100*VLOOKUP(D100,ALLOCTABLE_Prod_Demand,$I$10,FALSE),0) -> 21715 | J100: =ROUND(F100*VLOOKUP(D100,ALLOCTABLE_Prod_Demand,$J$10,FALSE),0) -> 85692 | K100: =ROUND(F100*VLOOKUP(D100,ALLOCTABLE_Prod_Demand,$K$10,FALSE),0) -> 1169 | L100: =ROUND(F100*VLOOKUP(D100,ALLOCTABLE_Prod_Demand,$L$10,FALSE),0) -> 2254044 | M100: =ROUND(F100*VLOOKUP(D100,ALLOCTABLE_Prod_Demand,$M$10,FALSE),0) -> 1490168 | N100: =ROUND(F100*VLOOKUP(D100,ALLOCTABLE_Prod_Demand,$N$10,FALSE),0) -> 71994 | O100: =ROUND(F100*VLOOKUP(D100,ALLOCTABLE_Prod_Demand,$O$10,FALSE),0) -> 706080 | P100: =ROUND(F100*VLOOKUP(D100,ALLOCTABLE_Prod_Demand,$P$10,FALSE),0) -> 20713 | Q100: =ROUND(F100*VLOOKUP(D100,ALLOCTABLE_Prod_Demand,$Q$10,FALSE),0) -> 1837 | R100: =SUM(G100:Q100) -> 16704047 | S100: =F100-R100 -> 0
A101: 44 | C101: ='FR-16(7)(v)-1 Functional'!C101 -> PRODUCTION - ENERGY | D101: ='FR-16(7)(v)-1 Functional'!D101 -> K301 | F101: ='FR-16(7)(v)-2 PROD Classified'!G101 -> 0 | G101: =F101-SUM(H101:Q101) -> 0 | H101: 0 | I101: 0 | J101: 0 | K101: 0 | L101: 0 | M101: 0 | N101: 0 | O101: 0 | P101: 0 | Q101: 0 | R101: =SUM(G101:Q101) -> 0 | S101: =F101-R101 -> 0
A102: 45 | C102: ='FR-16(7)(v)-1 Functional'!C102 -> TRANSMISSION | D102: ='FR-16(7)(v)-1 Functional'!D102 -> K202 | F102: ='FR-16(7)(v)-2 PROD Classified'!G102 -> 0 | G102: 0 | H102: 0 | I102: 0 | J102: 0 | K102: 0 | L102: 0 | M102: 0 | N102: 0 | O102: 0 | P102: 0 | Q102: 0 | R102: 0 | S102: 0
A103: 46 | C103: ='FR-16(7)(v)-1 Functional'!C103 -> DISTRIBUTION - DEMAND | D103: ='FR-16(7)(v)-1 Functional'!D103 -> K201 | F103: ='FR-16(7)(v)-2 PROD Classified'!G103 -> 8865387 | G103: 3996340 | H103: 2399328 | I103: 11525 | J103: 45479 | K103: 621 | L103: 1196295 | M103: 790881 | N103: 38210 | O103: 374740 | P103: 10993 | Q103: 975 | R103: 8865387 | S103: 0
A104: 47 | C104: ='FR-16(7)(v)-1 Functional'!C104 -> DISTRIBUTION - CUSTOMER | D104: ='FR-16(7)(v)-1 Functional'!D104 -> K405 | F104: ='FR-16(7)(v)-2 PROD Classified'!G104 -> 0 | G104: 0 | H104: 0 | I104: 0 | J104: 0 | K104: 0 | L104: 0 | M104: 0 | N104: 0 | O104: 0 | P104: 0 | Q104: 0 | R104: 0 | S104: 0
A105: 48 | C105: ='FR-16(7)(v)-1 Functional'!C105 -> CUSTOMER ACCOUNTING | D105: ='FR-16(7)(v)-1 Functional'!D105 -> A308 | F105: ='FR-16(7)(v)-2 PROD Classified'!G105 -> 0 | G105: 0 | H105: 0 | I105: 0 | J105: 0 | K105: 0 | L105: 0 | M105: 0 | N105: 0 | O105: 0 | P105: 0 | Q105: 0 | R105: 0 | S105: 0
A106: 49 | C106: ='FR-16(7)(v)-1 Functional'!C106 -> CUSTOMER SERVICE & INFORMATION | D106: ='FR-16(7)(v)-1 Functional'!D106 -> A310 | F106: ='FR-16(7)(v)-2 PROD Classified'!G106 -> 0 | G106: 0 | H106: 0 | I106: 0 | J106: 0 | K106: 0 | L106: 0 | M106: 0 | N106: 0 | O106: 0 | P106: 0 | Q106: 0 | R106: 0 | S106: 0
A107: 50 | C107: ='FR-16(7)(v)-1 Functional'!C107 -> SALES | D107: ='FR-16(7)(v)-1 Functional'!D107 -> A312 | F107: ='FR-16(7)(v)-2 PROD Classified'!G107 -> 0 | G107: 0 | H107: 0 | I107: 0 | J107: 0 | K107: 0 | L107: 0 | M107: 0 | N107: 0 | O107: 0 | P107: 0 | Q107: 0 | R107: 0 | S107: 0
A108: 51 | C108: ='FR-16(7)(v)-1 Functional'!C108 -> ADJUSTMENT | D108: ='FR-16(7)(v)-1 Functional'!D108 -> A315 | F108: ='FR-16(7)(v)-2 PROD Classified'!G108 -> 0 | G108: 0 | H108: 0 | I108: 0 | J108: 0 | K108: 0 | L108: 0 | M108: 0 | N108: 0 | O108: 0 | P108: 0 | Q108: 0 | R108: 0 | S108: 0
A109: 52 | C109: ='FR-16(7)(v)-1 Functional'!C109 -> GEN & INTANG PLANT IN SERVICE | F109: =SUM($F$100:F108) -> 25569434 | G109: =SUM(G100:G108) -> 11526192 | H109: =SUM(H100:H108) -> 6920111 | I109: =SUM(I100:I108) -> 33240 | J109: =SUM(J100:J108) -> 131171 | K109: 1790 | L109: 3450339 | M109: 2281049 | N109: 110204 | O109: 1080820 | P109: 31706 | Q109: =SUM(Q100:Q108) -> 2812 | R109: =SUM(R100:R108) -> 25569434 | S109: =SUM(S100:S108) -> 0
A110: 53
A111: 54 | B111: COMMON & OTHER PLANT
A112: 55 | C112: ='FR-16(7)(v)-1 Functional'!C112 -> PRODUCTION - DEMAND | D112: ='FR-16(7)(v)-1 Functional'!D112 -> K201 | F112: ='FR-16(7)(v)-2 PROD Classified'!G112 -> 9454192 | G112: =F112-SUM(H112:Q112) -> 4261760 | H112: =ROUND(F112*VLOOKUP(D112,ALLOCTABLE_Prod_Demand,$H$10,FALSE),0) -> 2558683 | I112: =ROUND(F112*VLOOKUP(D112,ALLOCTABLE_Prod_Demand,$I$10,FALSE),0) -> 12290 | J112: =ROUND(F112*VLOOKUP(D112,ALLOCTABLE_Prod_Demand,$J$10,FALSE),0) -> 48500 | K112: =ROUND(F112*VLOOKUP(D112,ALLOCTABLE_Prod_Demand,$K$10,FALSE),0) -> 662 | L112: =ROUND(F112*VLOOKUP(D112,ALLOCTABLE_Prod_Demand,$L$10,FALSE),0) -> 1275749 | M112: =ROUND(F112*VLOOKUP(D112,ALLOCTABLE_Prod_Demand,$M$10,FALSE),0) -> 843408 | N112: =ROUND(F112*VLOOKUP(D112,ALLOCTABLE_Prod_Demand,$N$10,FALSE),0) -> 40748 | O112: =ROUND(F112*VLOOKUP(D112,ALLOCTABLE_Prod_Demand,$O$10,FALSE),0) -> 399629 | P112: =ROUND(F112*VLOOKUP(D112,ALLOCTABLE_Prod_Demand,$P$10,FALSE),0) -> 11723 | Q112: =ROUND(F112*VLOOKUP(D112,ALLOCTABLE_Prod_Demand,$Q$10,FALSE),0) -> 1040 | R112: =SUM(G112:Q112) -> 9454192 | S112: =F112-R112 -> 0
A113: 56 | C113: ='FR-16(7)(v)-1 Functional'!C113 -> PRODUCTION - ENERGY | D113: ='FR-16(7)(v)-1 Functional'!D113 -> K301 | F113: ='FR-16(7)(v)-2 PROD Classified'!G113 -> 0 | G113: 0 | H113: 0 | I113: 0 | J113: 0 | K113: 0 | L113: 0 | M113: 0 | N113: 0 | O113: 0 | P113: 0 | Q113: 0 | R113: 0 | S113: 0
A114: 57 | C114: ='FR-16(7)(v)-1 Functional'!C114 -> TRANSMISSION | D114: ='FR-16(7)(v)-1 Functional'!D114 -> K202 | F114: ='FR-16(7)(v)-2 PROD Classified'!G114 -> 0 | G114: 0 | H114: 0 | I114: 0 | J114: 0 | K114: 0 | L114: 0 | M114: 0 | N114: 0 | O114: 0 | P114: 0 | Q114: 0 | R114: 0 | S114: 0
A115: 58 | C115: ='FR-16(7)(v)-1 Functional'!C115 -> DISTRIBUTION - DEMAND | D115: ='FR-16(7)(v)-1 Functional'!D115 -> K201 | F115: ='FR-16(7)(v)-2 PROD Classified'!G115 -> 5017651 | G115: 2261856 | H115: 1357977 | I115: 6523 | J115: 25741 | K115: 351 | L115: 677082 | M115: 447625 | N115: 21626 | O115: 212096 | P115: 6222 | Q115: 552 | R115: 5017651 | S115: 0
A116: 59 | C116: ='FR-16(7)(v)-1 Functional'!C116 -> DISTRIBUTION - CUSTOMER | D116: ='FR-16(7)(v)-1 Functional'!D116 -> K405 | F116: ='FR-16(7)(v)-2 PROD Classified'!G116 -> 0 | G116: 0 | H116: 0 | I116: 0 | J116: 0 | K116: 0 | L116: 0 | M116: 0 | N116: 0 | O116: 0 | P116: 0 | Q116: 0 | R116: 0 | S116: 0
A117: 60 | C117: ='FR-16(7)(v)-1 Functional'!C117 -> CUSTOMER ACCOUNTING | D117: ='FR-16(7)(v)-1 Functional'!D117 -> A308 | F117: ='FR-16(7)(v)-2 PROD Classified'!G117 -> 0 | G117: 0 | H117: 0 | I117: 0 | J117: 0 | K117: 0 | L117: 0 | M117: 0 | N117: 0 | O117: 0 | P117: 0 | Q117: 0 | R117: 0 | S117: 0
A118: 61 | C118: ='FR-16(7)(v)-1 Functional'!C118 -> CUSTOMER SERVICE & INFORMATION | D118: ='FR-16(7)(v)-1 Functional'!D118 -> A310 | F118: ='FR-16(7)(v)-2 PROD Classified'!G118 -> 0 | G118: 0 | H118: 0 | I118: 0 | J118: 0 | K118: 0 | L118: 0 | M118: 0 | N118: 0 | O118: 0 | P118: 0 | Q118: 0 | R118: 0 | S118: 0
A119: 62 | C119: ='FR-16(7)(v)-1 Functional'!C119 -> SALES | D119: ='FR-16(7)(v)-1 Functional'!D119 -> A312 | F119: ='FR-16(7)(v)-2 PROD Classified'!G119 -> 0 | G119: 0 | H119: 0 | I119: 0 | J119: 0 | K119: 0 | L119: 0 | M119: 0 | N119: 0 | O119: 0 | P119: 0 | Q119: 0 | R119: 0 | S119: 0
A120: 63 | C120: ='FR-16(7)(v)-1 Functional'!C120 -> ADJUSTMENT | D120: ='FR-16(7)(v)-1 Functional'!D120 -> A315 | F120: ='FR-16(7)(v)-2 PROD Classified'!G120 -> 0 | G120: 0 | H120: 0 | I120: 0 | J120: 0 | K120: 0 | L120: 0 | M120: 0 | N120: 0 | O120: 0 | P120: 0 | Q120: 0 | R120: 0 | S120: 0
A121: 64 | C121: ='FR-16(7)(v)-1 Functional'!C121 -> COMMON & OTHER PLANT IN SERVICE | F121: =SUM($F$112:F120) -> 14471843 | G121: =SUM(G112:G120) -> 6523616 | H121: =SUM(H112:H120) -> 3916660 | I121: =SUM(I112:I120) -> 18813 | J121: =SUM(J112:J120) -> 74241 | K121: 1013 | L121: 1952831 | M121: 1291033 | N121: 62374 | O121: 611725 | P121: 17945 | Q121: =SUM(Q112:Q120) -> 1592 | R121: =SUM(R112:R120) -> 14471843 | S121: =SUM(S112:S120) -> 0
A122: 65
A123: 66 | B123: GROSS ELECTRIC PLANT IN SERVICE | F123: =F97+F109+F121 -> 1248833815 | G123: =G97+G109+G121 -> 562949308 | H123: =H97+H109+H121 -> 337984384 | I123: =I97+I109+I121 -> 1623484 | J123: =J97+J109+J121 -> 6406518 | K123: 87419 | L123: 168517635 | M123: 111408464 | N123: 5382474 | O123: 52788205 | P123: 1548553 | Q123: =Q97+Q109+Q121 -> 137371 | R123: =R97+R109+R121 -> 1248833815 | S123: =S97+S109+S121 -> 0
A125: =co_name -> DUKE ENERGY KENTUCKY, INC. | R125: =R1 -> FR-16(7)(v)-3
A126: =$A$2 -> PRODUCTION DEMAND ALLOCATED - ELECTRIC COST OF SERVICE | R126: =R2 -> WITNESS RESPONSIBLE:
A127: =case_name -> CASE NO: 2019-00271 | R127: =Witness -> JAMES E. ZIOLKOWSKI
A128: =data_filing -> DATA: 12 MONTHS ACTUAL & 0 MONTHS ESTIMATED | R128: ="PAGE "&Pages-15&" OF "&Pages -> PAGE 3 OF 18
A129: =type -> TYPE OF FILING: "X" ORIGINAL UPDATED REVISED
F131: =F$7 -> TOTAL | H131: =H$7 -> DS | I131: =I$7 -> GSFL | J131: =J$7 -> EH | K131: =K$7 -> SP | L131: DT SEC | M131: DT PRI | N131: DP | O131: TT | Q131: OTHER
A132: LINE | F132: =F$8 -> PRODUCTION | G132: =G$8 -> RS | H132: =H$8 -> SECONDARY | I132: =I$8 -> SECONDARY | J132: =J$8 -> SECONDARY | K132: =K$8 -> SECONDARY | L132: SECONDARY | M132: PRIMARY | N132: PRIMARY | O132: TRANSMISSION | P132: LT | Q132: WATER | R132: =R8 -> TOTAL | S132: ALL
A133: NO. | B133: DEPRECIATION RESERVE | D133: ALLO | F133: =F$9 -> DEMAND | G133: =G$9 -> RESIDENTIAL | H133: =H$9 -> DISTRIBUTION | I133: =I$9 -> DISTRIBUTION | J133: =J$9 -> DISTRIBUTION | K133: =K$9 -> DISTRIBUTION | L133: DISTRIBUTION | M133: DISTRIBUTION | N133: DISTRIBUTION | O133: TIME OF DAY | P133: LIGHTING | Q133: PUMPING | R133: =R9 -> AT ISSUE | S133: OTHER
C134: Schedule 3 | G134: =G$10 -> 3 | H134: =H$10 -> 4 | I134: =I$10 -> 5 | J134: =J$10 -> 6 | K134: =K$10 -> 7 | L134: 8 | M134: 9 | N134: 10 | O134: 11 | P134: 12 | Q134: 13
A135: 1 | B135: PRODUCTION PLANT
A136: 2 | C136: PRODUCTION STEAM | D136: ='FR-16(7)(v)-1 Functional'!D136 -> K201 | F136: ='FR-16(7)(v)-2 PROD Classified'!G136 -> 401160304 | G136: =F136-SUM(H136:Q136) -> 180835042 | H136: =ROUND(F136*VLOOKUP(D136,ALLOCTABLE_Prod_Demand,$H$10,FALSE),0) -> 108570025 | I136: =ROUND(F136*VLOOKUP(D136,ALLOCTABLE_Prod_Demand,$I$10,FALSE),0) -> 521508 | J136: =ROUND(F136*VLOOKUP(D136,ALLOCTABLE_Prod_Demand,$J$10,FALSE),0) -> 2057952 | K136: =ROUND(F136*VLOOKUP(D136,ALLOCTABLE_Prod_Demand,$K$10,FALSE),0) -> 28081 | L136: =ROUND(F136*VLOOKUP(D136,ALLOCTABLE_Prod_Demand,$L$10,FALSE),0) -> 54132571 | M136: =ROUND(F136*VLOOKUP(D136,ALLOCTABLE_Prod_Demand,$M$10,FALSE),0) -> 35787511 | N136: =ROUND(F136*VLOOKUP(D136,ALLOCTABLE_Prod_Demand,$N$10,FALSE),0) -> 1729001 | O136: =ROUND(F136*VLOOKUP(D136,ALLOCTABLE_Prod_Demand,$O$10,FALSE),0) -> 16957046 | P136: =ROUND(F136*VLOOKUP(D136,ALLOCTABLE_Prod_Demand,$P$10,FALSE),0) -> 497439 | Q136: =ROUND(F136*VLOOKUP(D136,ALLOCTABLE_Prod_Demand,$Q$10,FALSE),0) -> 44128 | R136: =SUM(G136:Q136) -> 401160304 | S136: =F136-R136 -> 0
A137: 3 | C137: PRODUCTION OTHER | D137: ='FR-16(7)(v)-1 Functional'!D137 -> K201 | F137: ='FR-16(7)(v)-2 PROD Classified'!G137 -> 184221788 | G137: =F137-SUM(H137:Q137) -> 83043497 | H137: =ROUND(F137*VLOOKUP(D137,ALLOCTABLE_Prod_Demand,$H$10,FALSE),0) -> 49857785 | I137: =ROUND(F137*VLOOKUP(D137,ALLOCTABLE_Prod_Demand,$I$10,FALSE),0) -> 239488 | J137: =ROUND(F137*VLOOKUP(D137,ALLOCTABLE_Prod_Demand,$J$10,FALSE),0) -> 945058 | K137: =ROUND(F137*VLOOKUP(D137,ALLOCTABLE_Prod_Demand,$K$10,FALSE),0) -> 12896 | L137: =ROUND(F137*VLOOKUP(D137,ALLOCTABLE_Prod_Demand,$L$10,FALSE),0) -> 24858888 | M137: =ROUND(F137*VLOOKUP(D137,ALLOCTABLE_Prod_Demand,$M$10,FALSE),0) -> 16434426 | N137: =ROUND(F137*VLOOKUP(D137,ALLOCTABLE_Prod_Demand,$N$10,FALSE),0) -> 793996 | O137: =ROUND(F137*VLOOKUP(D137,ALLOCTABLE_Prod_Demand,$O$10,FALSE),0) -> 7787055 | P137: =ROUND(F137*VLOOKUP(D137,ALLOCTABLE_Prod_Demand,$P$10,FALSE),0) -> 228435 | Q137: =ROUND(F137*VLOOKUP(D137,ALLOCTABLE_Prod_Demand,$Q$10,FALSE),0) -> 20264 | R137: =SUM(G137:Q137) -> 184221788 | S137: =F137-R137 -> 0
A138: 4 | C138: ='FR-16(7)(v)-1 Functional'!C138 -> ADJUSTMENT | D138: ='FR-16(7)(v)-1 Functional'!D138 -> K201 | F138: ='FR-16(7)(v)-2 PROD Classified'!G138 -> 1553366 | G138: =F138-SUM(H138:Q138) -> 700226 | H138: =ROUND(F138*VLOOKUP(D138,ALLOCTABLE_Prod_Demand,$H$10,FALSE),0) -> 420403 | I138: =ROUND(F138*VLOOKUP(D138,ALLOCTABLE_Prod_Demand,$I$10,FALSE),0) -> 2019 | J138: =ROUND(F138*VLOOKUP(D138,ALLOCTABLE_Prod_Demand,$J$10,FALSE),0) -> 7969 | K138: =ROUND(F138*VLOOKUP(D138,ALLOCTABLE_Prod_Demand,$K$10,FALSE),0) -> 109 | L138: =ROUND(F138*VLOOKUP(D138,ALLOCTABLE_Prod_Demand,$L$10,FALSE),0) -> 209611 | M138: =ROUND(F138*VLOOKUP(D138,ALLOCTABLE_Prod_Demand,$M$10,FALSE),0) -> 138576 | N138: =ROUND(F138*VLOOKUP(D138,ALLOCTABLE_Prod_Demand,$N$10,FALSE),0) -> 6695 | O138: =ROUND(F138*VLOOKUP(D138,ALLOCTABLE_Prod_Demand,$O$10,FALSE),0) -> 65661 | P138: =ROUND(F138*VLOOKUP(D138,ALLOCTABLE_Prod_Demand,$P$10,FALSE),0) -> 1926 | Q138: =ROUND(F138*VLOOKUP(D138,ALLOCTABLE_Prod_Demand,$Q$10,FALSE),0) -> 171 | R138: =SUM(G138:Q138) -> 1553366 | S138: =F138-R138 -> 0
A139: 5 | C139: ='FR-16(7)(v)-1 Functional'!C139 -> TOTAL PROD DEPREC RESERVE | F139: =SUM($F$136:F138) -> 586935458 | G139: =SUM(G136:G138) -> 264578765 | H139: 158848213 | I139: 763015 | J139: 3010979 | K139: 41086 | L139: 79201070 | M139: 52360513 | N139: 2529692 | O139: 24809762 | P139: 727800 | Q139: 64563 | R139: 586935458 | S139: =SUM(S136:S136) -> 0
A140: 6
A141: 7 | B141: TRANSMISSION PLANT
A142: 8 | C142: MAIN STEP-UP TRANSFORMERS | D142: ='FR-16(7)(v)-1 Functional'!D142 -> K202 | F142: ='FR-16(7)(v)-2 PROD Classified'!G142 -> 0 | G142: =F142-SUM(H142:Q142) -> 0 | H142: =ROUND(F142*VLOOKUP(D142,ALLOCTABLE_Prod_Demand,$H$10,FALSE),0) -> 0 | I142: =ROUND(F142*VLOOKUP(D142,ALLOCTABLE_Prod_Demand,$I$10,FALSE),0) -> 0 | J142: =ROUND(F142*VLOOKUP(D142,ALLOCTABLE_Prod_Demand,$J$10,FALSE),0) -> 0 | K142: =ROUND(F142*VLOOKUP(D142,ALLOCTABLE_Prod_Demand,$K$10,FALSE),0) -> 0 | L142: =ROUND(F142*VLOOKUP(D142,ALLOCTABLE_Prod_Demand,$L$10,FALSE),0) -> 0 | M142: =ROUND(F142*VLOOKUP(D142,ALLOCTABLE_Prod_Demand,$M$10,FALSE),0) -> 0 | N142: =ROUND(F142*VLOOKUP(D142,ALLOCTABLE_Prod_Demand,$N$10,FALSE),0) -> 0 | O142: =ROUND(F142*VLOOKUP(D142,ALLOCTABLE_Prod_Demand,$O$10,FALSE),0) -> 0 | P142: =ROUND(F142*VLOOKUP(D142,ALLOCTABLE_Prod_Demand,$P$10,FALSE),0) -> 0 | Q142: =ROUND(F142*VLOOKUP(D142,ALLOCTABLE_Prod_Demand,$Q$10,FALSE),0) -> 0 | R142: =SUM(G142:Q142) -> 0 | S142: =F142-R142 -> 0
A143: 9 | C143: OTHER TRANSMISSION | D143: ='FR-16(7)(v)-1 Functional'!D143 -> K202 | F143: ='FR-16(7)(v)-2 PROD Classified'!G143 -> 0 | G143: =F143-SUM(H143:Q143) -> 0 | H143: =ROUND(F143*VLOOKUP(D143,ALLOCTABLE_Prod_Demand,$H$10,FALSE),0) -> 0 | I143: =ROUND(F143*VLOOKUP(D143,ALLOCTABLE_Prod_Demand,$I$10,FALSE),0) -> 0 | J143: =ROUND(F143*VLOOKUP(D143,ALLOCTABLE_Prod_Demand,$J$10,FALSE),0) -> 0 | K143: =ROUND(F143*VLOOKUP(D143,ALLOCTABLE_Prod_Demand,$K$10,FALSE),0) -> 0 | L143: =ROUND(F143*VLOOKUP(D143,ALLOCTABLE_Prod_Demand,$L$10,FALSE),0) -> 0 | M143: =ROUND(F143*VLOOKUP(D143,ALLOCTABLE_Prod_Demand,$M$10,FALSE),0) -> 0 | N143: =ROUND(F143*VLOOKUP(D143,ALLOCTABLE_Prod_Demand,$N$10,FALSE),0) -> 0 | O143: =ROUND(F143*VLOOKUP(D143,ALLOCTABLE_Prod_Demand,$O$10,FALSE),0) -> 0 | P143: =ROUND(F143*VLOOKUP(D143,ALLOCTABLE_Prod_Demand,$P$10,FALSE),0) -> 0 | Q143: =ROUND(F143*VLOOKUP(D143,ALLOCTABLE_Prod_Demand,$Q$10,FALSE),0) -> 0 | R143: =SUM(G143:Q143) -> 0 | S143: =F143-R143 -> 0
A144: 10 | C144: ADJUSTMENT | D144: ='FR-16(7)(v)-1 Functional'!D144 -> K202 | F144: ='FR-16(7)(v)-2 PROD Classified'!G144 -> 0 | G144: =F144-SUM(H144:Q144) -> 0 | H144: =ROUND(F144*VLOOKUP(D144,ALLOCTABLE_Prod_Demand,$H$10,FALSE),0) -> 0 | I144: =ROUND(F144*VLOOKUP(D144,ALLOCTABLE_Prod_Demand,$I$10,FALSE),0) -> 0 | J144: =ROUND(F144*VLOOKUP(D144,ALLOCTABLE_Prod_Demand,$J$10,FALSE),0) -> 0 | K144: =ROUND(F144*VLOOKUP(D144,ALLOCTABLE_Prod_Demand,$K$10,FALSE),0) -> 0 | L144: =ROUND(F144*VLOOKUP(D144,ALLOCTABLE_Prod_Demand,$L$10,FALSE),0) -> 0 | M144: =ROUND(F144*VLOOKUP(D144,ALLOCTABLE_Prod_Demand,$M$10,FALSE),0) -> 0 | N144: =ROUND(F144*VLOOKUP(D144,ALLOCTABLE_Prod_Demand,$N$10,FALSE),0) -> 0 | O144: =ROUND(F144*VLOOKUP(D144,ALLOCTABLE_Prod_Demand,$O$10,FALSE),0) -> 0 | P144: =ROUND(F144*VLOOKUP(D144,ALLOCTABLE_Prod_Demand,$P$10,FALSE),0) -> 0 | Q144: =ROUND(F144*VLOOKUP(D144,ALLOCTABLE_Prod_Demand,$Q$10,FALSE),0) -> 0 | R144: =SUM(G144:Q144) -> 0 | S144: =F144-R144 -> 0
A145: 11 | C145: TOTAL TRANS DEPREC RESERVE | F145: =SUM($F$142:F144) -> 0 | G145: =SUM(G142:G144) -> 0 | H145: 0 | I145: 0 | J145: 0 | K145: 0 | L145: 0 | M145: 0 | N145: 0 | O145: 0 | P145: 0 | Q145: 0 | R145: =SUM(R142:R144) -> 0 | S145: =SUM(S142:S142) -> 0
A146: 12
A147: 13 | C147: TOTAL PROD & TRANS DEPREC RESERVE | F147: =F145+F139 -> 586935458 | G147: =G145+G139 -> 264578765 | H147: =$H$114+H139 -> 158848213 | I147: =$I$114+I139 -> 763015 | J147: =$J$114+J139 -> 3010979 | K147: =$K$114+K139 -> 41086 | L147: =$L$114+L139 -> 79201070 | M147: =$M$114+M139 -> 52360513 | N147: =$N$114+N139 -> 2529692 | O147: =$O$114+O139 -> 24809762 | P147: =$P$114+P139 -> 727800 | Q147: =$Q$114+Q139 -> 64563 | R147: =SUM(G147:Q147) -> 586935458 | S147: =F147-R147 -> 0
A148: 14
A149: 15 | B149: DISTRIBUTION PLANT
A150: 16 | C150: ='FR-16(7)(v)-1 Functional'!C150 -> SUBSTATIONS | D150: ='FR-16(7)(v)-1 Functional'!D150 -> K215 | F150: ='FR-16(7)(v)-2 PROD Classified'!G150 -> 0 | G150: =F150-SUM(H150:Q150) -> 0 | H150: =ROUND($F$150*VLOOKUP(D150,ALLOCTABLE_Prod_Demand,$H$10,FALSE),0) -> 0 | I150: =ROUND($F$150*VLOOKUP($D$150,ALLOCTABLE_Prod_Demand,$I$10,FALSE),0) -> 0 | J150: =ROUND($F$150*VLOOKUP($D$150,ALLOCTABLE_Prod_Demand,$J$10,FALSE),0) -> 0 | K150: =ROUND($F$150*VLOOKUP($D$150,ALLOCTABLE_Prod_Demand,$K$10,FALSE),0) -> 0 | L150: =ROUND($F$150*VLOOKUP($D$150,ALLOCTABLE_Prod_Demand,$L$10,FALSE),0) -> 0 | M150: =ROUND($F$150*VLOOKUP($D$150,ALLOCTABLE_Prod_Demand,$M$10,FALSE),0) -> 0 | N150: =ROUND($F$150*VLOOKUP($D$150,ALLOCTABLE_Prod_Demand,$N$10,FALSE),0) -> 0 | O150: =ROUND($F$150*VLOOKUP($D$150,ALLOCTABLE_Prod_Demand,$O$10,FALSE),0) -> 0 | P150: =ROUND($F$150*VLOOKUP($D$150,ALLOCTABLE_Prod_Demand,$P$10,FALSE),0) -> 0 | Q150: =ROUND($F$150*VLOOKUP(D150,ALLOCTABLE_Prod_Demand,$Q$10,FALSE),0) -> 0 | R150: =SUM(G150:Q150) -> 0 | S150: =F150-R150 -> 0
A151: 17 | C151: ='FR-16(7)(v)-1 Functional'!C151 -> POLES, TOWERS & FIXTURES - PRIMARY - DEMAND | D151: ='FR-16(7)(v)-1 Functional'!D151 -> K205 | F151: ='FR-16(7)(v)-2 PROD Classified'!G151 -> 0 | G151: =F151-SUM(H151:Q151) -> 0 | H151: =ROUND(F151*VLOOKUP(D151,ALLOCTABLE_Prod_Demand,$H$10,FALSE),0) -> 0 | I151: =ROUND(F151*VLOOKUP(D151,ALLOCTABLE_Prod_Demand,$I$10,FALSE),0) -> 0 | J151: =ROUND(F151*VLOOKUP(D151,ALLOCTABLE_Prod_Demand,$J$10,FALSE),0) -> 0 | K151: =ROUND(F151*VLOOKUP(D151,ALLOCTABLE_Prod_Demand,$K$10,FALSE),0) -> 0 | L151: =ROUND(F151*VLOOKUP(D151,ALLOCTABLE_Prod_Demand,$L$10,FALSE),0) -> 0 | M151: =ROUND(F151*VLOOKUP(D151,ALLOCTABLE_Prod_Demand,$M$10,FALSE),0) -> 0 | N151: =ROUND(F151*VLOOKUP(D151,ALLOCTABLE_Prod_Demand,$N$10,FALSE),0) -> 0 | O151: =ROUND(F151*VLOOKUP(D151,ALLOCTABLE_Prod_Demand,$O$10,FALSE),0) -> 0 | P151: =ROUND(F151*VLOOKUP(D151,ALLOCTABLE_Prod_Demand,$P$10,FALSE),0) -> 0 | Q151: =ROUND(F151*VLOOKUP(D151,ALLOCTABLE_Prod_Demand,$Q$10,FALSE),0) -> 0 | R151: =SUM(G151:Q151) -> 0 | S151: =F151-R151 -> 0
A152: 18 | C152: ='FR-16(7)(v)-1 Functional'!C152 -> POLES, TOWERS & FIXTURES - PRIMARY - CUSTOMER | D152: ='FR-16(7)(v)-1 Functional'!D152 -> K405 | F152: ='FR-16(7)(v)-2 PROD Classified'!G152 -> 0 | G152: =F152-SUM(H152:Q152) -> 0 | H152: 0 | I152: 0 | J152: 0 | K152: 0 | L152: 0 | M152: 0 | N152: 0 | O152: 0 | P152: =ROUND(F152*VLOOKUP(D152,ALLOCTABLE_Prod_Demand,$P$10,FALSE),0) -> 0 | Q152: =ROUND(F152*VLOOKUP(D152,ALLOCTABLE_Prod_Demand,$Q$10,FALSE),0) -> 0 | R152: =SUM(G152:Q152) -> 0 | S152: =F152-R152 -> 0
A153: 19 | C153: ='FR-16(7)(v)-1 Functional'!C153 -> POLES, TOWERS & FIXTURES - SECONDARY - DEMAND | D153: ='FR-16(7)(v)-1 Functional'!D153 -> K206 | F153: ='FR-16(7)(v)-2 PROD Classified'!G153 -> 0 | G153: 0 | H153: 0 | I153: 0 | J153: 0 | K153: 0 | L153: 0 | M153: 0 | N153: 0 | O153: 0 | P153: 0 | Q153: 0 | R153: 0 | S153: 0
A154: 20 | C154: ='FR-16(7)(v)-1 Functional'!C154 -> POLES, TOWERS & FIXTURES - SECONDARY - CUSTOMER | D154: ='FR-16(7)(v)-1 Functional'!D154 -> K405 | F154: ='FR-16(7)(v)-2 PROD Classified'!G154 -> 0 | G154: 0 | H154: 0 | I154: 0 | J154: 0 | K154: 0 | L154: 0 | M154: 0 | N154: 0 | O154: 0 | P154: 0 | Q154: 0 | R154: 0 | S154: 0
A155: 21 | C155: ='FR-16(7)(v)-1 Functional'!C155 -> CONDUCTORS - OVERHEAD / PRIMARY - DEMAND | D155: ='FR-16(7)(v)-1 Functional'!D155 -> K205 | F155: ='FR-16(7)(v)-2 PROD Classified'!G155 -> 0 | G155: 0 | H155: 0 | I155: 0 | J155: 0 | K155: 0 | L155: 0 | M155: 0 | N155: 0 | O155: 0 | P155: 0 | Q155: 0 | R155: 0 | S155: 0
A156: 22 | C156: ='FR-16(7)(v)-1 Functional'!C156 -> CONDUCTORS - OVERHEAD / PRIMARY - CUSTOMER | D156: ='FR-16(7)(v)-1 Functional'!D156 -> K405 | F156: ='FR-16(7)(v)-2 PROD Classified'!G156 -> 0 | G156: 0 | H156: 0 | I156: 0 | J156: 0 | K156: 0 | L156: 0 | M156: 0 | N156: 0 | O156: 0 | P156: 0 | Q156: 0 | R156: 0 | S156: 0
A157: 23 | C157: ='FR-16(7)(v)-1 Functional'!C157 -> CONDUCTORS - OVERHEAD / SECONDARY - DEMAND | D157: ='FR-16(7)(v)-1 Functional'!D157 -> K206 | F157: ='FR-16(7)(v)-2 PROD Classified'!G157 -> 0 | G157: 0 | H157: 0 | I157: 0 | J157: 0 | K157: 0 | L157: 0 | M157: 0 | N157: 0 | O157: 0 | P157: 0 | Q157: 0 | R157: 0 | S157: 0
A158: 24 | C158: ='FR-16(7)(v)-1 Functional'!C158 -> CONDUCTORS - OVERHEAD / SECONDARY - CUSTOMER | D158: ='FR-16(7)(v)-1 Functional'!D158 -> K405 | F158: ='FR-16(7)(v)-2 PROD Classified'!G158 -> 0 | G158: 0 | H158: 0 | I158: 0 | J158: 0 | K158: 0 | L158: 0 | M158: 0 | N158: 0 | O158: 0 | P158: 0 | Q158: 0 | R158: 0 | S158: 0
A159: 25 | C159: ='FR-16(7)(v)-1 Functional'!C159 -> CONDUCTORS - UNDERGROUND / PRIMARY - DEMAND | D159: ='FR-16(7)(v)-1 Functional'!D159 -> K205 | F159: ='FR-16(7)(v)-2 PROD Classified'!G159 -> 0 | G159: 0 | H159: 0 | I159: 0 | J159: 0 | K159: 0 | L159: 0 | M159: 0 | N159: 0 | O159: 0 | P159: 0 | Q159: 0 | R159: 0 | S159: 0
A160: 26 | C160: ='FR-16(7)(v)-1 Functional'!C160 -> CONDUCTORS - UNDERGROUND / PRIMARY - CUSTOMER | D160: ='FR-16(7)(v)-1 Functional'!D160 -> K405 | F160: ='FR-16(7)(v)-2 PROD Classified'!G160 -> 0 | G160: 0 | H160: 0 | I160: 0 | J160: 0 | K160: 0 | L160: 0 | M160: 0 | N160: 0 | O160: 0 | P160: 0 | Q160: 0 | R160: 0 | S160: 0
A161: 27 | C161: ='FR-16(7)(v)-1 Functional'!C161 -> CONDUCTORS - UNDERGROUND / SECONDARY - DEMAND | D161: ='FR-16(7)(v)-1 Functional'!D161 -> K206 | F161: ='FR-16(7)(v)-2 PROD Classified'!G161 -> 0 | G161: 0 | H161: 0 | I161: 0 | J161: 0 | K161: 0 | L161: 0 | M161: 0 | N161: 0 | O161: 0 | P161: 0 | Q161: 0 | R161: 0 | S161: 0
A162: 28 | C162: ='FR-16(7)(v)-1 Functional'!C162 -> CONDUCTORS - UNDERGROUND / SECONDARY - CUSTOMER | D162: ='FR-16(7)(v)-1 Functional'!D162 -> K405 | F162: ='FR-16(7)(v)-2 PROD Classified'!G162 -> 0 | G162: 0 | H162: 0 | I162: 0 | J162: 0 | K162: 0 | L162: 0 | M162: 0 | N162: 0 | O162: 0 | P162: 0 | Q162: 0 | R162: 0 | S162: 0
A163: 29 | C163: ='FR-16(7)(v)-1 Functional'!C163 -> TRANSFORMERS DEMAND RELATED | D163: ='FR-16(7)(v)-1 Functional'!D163 -> K215 | F163: ='FR-16(7)(v)-2 PROD Classified'!G163 -> 0 | G163: =F163-SUM(H163:Q163) -> 0 | H163: =ROUND($F$163*VLOOKUP(D163,ALLOCTABLE_Prod_Demand,$H$10,FALSE),0) -> 0 | I163: =ROUND($F$163*VLOOKUP($D$163,ALLOCTABLE_Prod_Demand,$I$10,FALSE),0) -> 0 | J163: =ROUND($F$163*VLOOKUP($D$163,ALLOCTABLE_Prod_Demand,$J$10,FALSE),0) -> 0 | K163: =ROUND($F$163*VLOOKUP($D$163,ALLOCTABLE_Prod_Demand,$K$10,FALSE),0) -> 0 | L163: =ROUND($F$163*VLOOKUP($D$163,ALLOCTABLE_Prod_Demand,$L$10,FALSE),0) -> 0 | M163: =ROUND($F$163*VLOOKUP($D$163,ALLOCTABLE_Prod_Demand,$M$10,FALSE),0) -> 0 | N163: =ROUND($F$163*VLOOKUP($D$163,ALLOCTABLE_Prod_Demand,$N$10,FALSE),0) -> 0 | O163: =ROUND($F$163*VLOOKUP($D$163,ALLOCTABLE_Prod_Demand,$O$10,FALSE),0) -> 0 | P163: =ROUND(F163*VLOOKUP(D163,ALLOCTABLE_Prod_Demand,$P$10,FALSE),0) -> 0 | Q163: =ROUND(F163*VLOOKUP(D163,ALLOCTABLE_Prod_Demand,$Q$10,FALSE),0) -> 0 | R163: =SUM(G163:Q163) -> 0 | S163: =F163-R163 -> 0
A164: 30 | C164: ='FR-16(7)(v)-1 Functional'!C164 -> TRANSFORMERS CUSTOMER RELATED | D164: ='FR-16(7)(v)-1 Functional'!D164 -> K405 | F164: ='FR-16(7)(v)-2 PROD Classified'!G164 -> 0 | G164: 0 | H164: =ROUND($F$163*VLOOKUP(D164,ALLOCTABLE_Prod_Demand,$H$10,FALSE),0) -> 0 | I164: =ROUND($F$163*VLOOKUP($D$163,ALLOCTABLE_Prod_Demand,$I$10,FALSE),0) -> 0 | J164: =ROUND($F$163*VLOOKUP($D$163,ALLOCTABLE_Prod_Demand,$J$10,FALSE),0) -> 0 | K164: =ROUND($F$163*VLOOKUP($D$163,ALLOCTABLE_Prod_Demand,$K$10,FALSE),0) -> 0 | L164: =ROUND($F$163*VLOOKUP($D$163,ALLOCTABLE_Prod_Demand,$L$10,FALSE),0) -> 0 | M164: =ROUND($F$163*VLOOKUP($D$163,ALLOCTABLE_Prod_Demand,$M$10,FALSE),0) -> 0 | N164: =ROUND($F$163*VLOOKUP($D$163,ALLOCTABLE_Prod_Demand,$N$10,FALSE),0) -> 0 | O164: =ROUND($F$163*VLOOKUP($D$163,ALLOCTABLE_Prod_Demand,$O$10,FALSE),0) -> 0 | P164: =ROUND(F164*VLOOKUP(D164,ALLOCTABLE_Prod_Demand,$P$10,FALSE),0) -> 0 | Q164: =ROUND(F164*VLOOKUP(D164,ALLOCTABLE_Prod_Demand,$Q$10,FALSE),0) -> 0 | R164: 0 | S164: 0
A165: 31 | C165: ='FR-16(7)(v)-1 Functional'!C165 -> SERVICES | D165: ='FR-16(7)(v)-1 Functional'!D165 -> K217 | F165: ='FR-16(7)(v)-2 PROD Classified'!G165 -> 0 | G165: 0 | H165: =ROUND($F$165*VLOOKUP(D165,ALLOCTABLE_Prod_Demand,$H$10,FALSE),0) -> 0 | I165: =ROUND($F$165*VLOOKUP($D$165,ALLOCTABLE_Prod_Demand,$I$10,FALSE),0) -> 0 | J165: =ROUND($F$165*VLOOKUP($D$165,ALLOCTABLE_Prod_Demand,$J$10,FALSE),0) -> 0 | K165: =ROUND($F$165*VLOOKUP($D$165,ALLOCTABLE_Prod_Demand,$K$10,FALSE),0) -> 0 | L165: =ROUND($F$165*VLOOKUP($D$165,ALLOCTABLE_Prod_Demand,$L$10,FALSE),0) -> 0 | M165: =ROUND($F$165*VLOOKUP($D$165,ALLOCTABLE_Prod_Demand,$M$10,FALSE),0) -> 0 | N165: =ROUND($F$165*VLOOKUP($D$165,ALLOCTABLE_Prod_Demand,$N$10,FALSE),0) -> 0 | O165: =ROUND($F$165*VLOOKUP($D$165,ALLOCTABLE_Prod_Demand,$O$10,FALSE),0) -> 0 | P165: =ROUND($F$165*VLOOKUP($D$165,ALLOCTABLE_Prod_Demand,$P$10,FALSE),0) -> 0 | Q165: =ROUND($F$165*VLOOKUP(D165,ALLOCTABLE_Prod_Demand,$Q$10,FALSE),0) -> 0 | R165: 0 | S165: 0
A166: 32 | C166: ='FR-16(7)(v)-1 Functional'!C166 -> METERS | D166: ='FR-16(7)(v)-1 Functional'!D166 -> K407 | F166: ='FR-16(7)(v)-2 PROD Classified'!G166 -> 0 | G166: 0 | H166: =ROUND($F$166*VLOOKUP(D166,ALLOCTABLE_Prod_Demand,$H$10,FALSE),0) -> 0 | I166: =ROUND($F$166*VLOOKUP($D$166,ALLOCTABLE_Prod_Demand,$I$10,FALSE),0) -> 0 | J166: =ROUND($F$166*VLOOKUP($D$166,ALLOCTABLE_Prod_Demand,$J$10,FALSE),0) -> 0 | K166: =ROUND($F$166*VLOOKUP($D$166,ALLOCTABLE_Prod_Demand,$K$10,FALSE),0) -> 0 | L166: =ROUND($F$166*VLOOKUP($D$166,ALLOCTABLE_Prod_Demand,$L$10,FALSE),0) -> 0 | M166: =ROUND($F$166*VLOOKUP($D$166,ALLOCTABLE_Prod_Demand,$M$10,FALSE),0) -> 0 | N166: =ROUND($F$166*VLOOKUP($D$166,ALLOCTABLE_Prod_Demand,$N$10,FALSE),0) -> 0 | O166: =ROUND($F$166*VLOOKUP($D$166,ALLOCTABLE_Prod_Demand,$O$10,FALSE),0) -> 0 | P166: =ROUND($F$166*VLOOKUP($D$166,ALLOCTABLE_Prod_Demand,$P$10,FALSE),0) -> 0 | Q166: =ROUND($F$166*VLOOKUP(D166,ALLOCTABLE_Prod_Demand,$Q$10,FALSE),0) -> 0 | R166: 0 | S166: 0
A167: 33 | C167: ='FR-16(7)(v)-1 Functional'!C167 -> STREET LIGHTS | D167: ='FR-16(7)(v)-1 Functional'!D167 -> K401 | F167: ='FR-16(7)(v)-2 PROD Classified'!G167 -> 0 | G167: 0 | H167: =ROUND($F$167*VLOOKUP(D167,ALLOCTABLE_Prod_Demand,$H$10,FALSE),0) -> 0 | I167: =ROUND($F$167*VLOOKUP($D$167,ALLOCTABLE_Prod_Demand,$I$10,FALSE),0) -> 0 | J167: =ROUND($F$167*VLOOKUP($D$167,ALLOCTABLE_Prod_Demand,$J$10,FALSE),0) -> 0 | K167: =ROUND($F$167*VLOOKUP($D$167,ALLOCTABLE_Prod_Demand,$K$10,FALSE),0) -> 0 | L167: =ROUND($F$167*VLOOKUP($D$167,ALLOCTABLE_Prod_Demand,$L$10,FALSE),0) -> 0 | M167: =ROUND($F$167*VLOOKUP($D$167,ALLOCTABLE_Prod_Demand,$M$10,FALSE),0) -> 0 | N167: =ROUND($F$167*VLOOKUP($D$167,ALLOCTABLE_Prod_Demand,$N$10,FALSE),0) -> 0 | O167: =ROUND($F$167*VLOOKUP($D$167,ALLOCTABLE_Prod_Demand,$O$10,FALSE),0) -> 0 | P167: =ROUND($F$167*VLOOKUP($D$167,ALLOCTABLE_Prod_Demand,$P$10,FALSE),0) -> 0 | Q167: =ROUND($F$167*VLOOKUP(D167,ALLOCTABLE_Prod_Demand,$Q$10,FALSE),0) -> 0 | R167: 0 | S167: 0
A168: 34 | C168: ='FR-16(7)(v)-1 Functional'!C168 -> ADJUSTMENT | D168: ='FR-16(7)(v)-1 Functional'!D168 -> K209 | F168: ='FR-16(7)(v)-2 PROD Classified'!G168 -> 0 | G168: 0 | H168: =ROUND($F$168*VLOOKUP(D168,ALLOCTABLE_Prod_Demand,$H$10,FALSE),0) -> 0 | I168: =ROUND($F$168*VLOOKUP($D$168,ALLOCTABLE_Prod_Demand,$I$10,FALSE),0) -> 0 | J168: =ROUND($F$168*VLOOKUP($D$168,ALLOCTABLE_Prod_Demand,$J$10,FALSE),0) -> 0 | K168: =ROUND($F$168*VLOOKUP($D$168,ALLOCTABLE_Prod_Demand,$K$10,FALSE),0) -> 0 | L168: =ROUND($F$168*VLOOKUP($D$168,ALLOCTABLE_Prod_Demand,$L$10,FALSE),0) -> 0 | M168: =ROUND($F$168*VLOOKUP($D$168,ALLOCTABLE_Prod_Demand,$M$10,FALSE),0) -> 0 | N168: =ROUND($F$168*VLOOKUP($D$168,ALLOCTABLE_Prod_Demand,$N$10,FALSE),0) -> 0 | O168: =ROUND($F$168*VLOOKUP($D$168,ALLOCTABLE_Prod_Demand,$O$10,FALSE),0) -> 0 | P168: =ROUND($F$168*VLOOKUP($D$168,ALLOCTABLE_Prod_Demand,$P$10,FALSE),0) -> 0 | Q168: =ROUND($F$168*VLOOKUP(D168,ALLOCTABLE_Prod_Demand,$Q$10,FALSE),0) -> 0 | R168: 0 | S168: 0
A169: 35 | C169: ='FR-16(7)(v)-1 Functional'!C169 -> CONSTRUCTION NOT CLASSIFIED | D169: ='FR-16(7)(v)-1 Functional'!D169 -> K209 | F169: ='FR-16(7)(v)-2 PROD Classified'!G169 -> 0 | G169: 0 | H169: =ROUND($F$169*VLOOKUP(D169,ALLOCTABLE_Prod_Demand,$H$10,FALSE),0) -> 0 | I169: =ROUND($F$169*VLOOKUP($D$169,ALLOCTABLE_Prod_Demand,$I$10,FALSE),0) -> 0 | J169: =ROUND($F$169*VLOOKUP($D$169,ALLOCTABLE_Prod_Demand,$J$10,FALSE),0) -> 0 | K169: =ROUND($F$169*VLOOKUP($D$169,ALLOCTABLE_Prod_Demand,$K$10,FALSE),0) -> 0 | L169: =ROUND($F$169*VLOOKUP($D$169,ALLOCTABLE_Prod_Demand,$L$10,FALSE),0) -> 0 | M169: =ROUND($F$169*VLOOKUP($D$169,ALLOCTABLE_Prod_Demand,$M$10,FALSE),0) -> 0 | N169: =ROUND($F$169*VLOOKUP($D$169,ALLOCTABLE_Prod_Demand,$N$10,FALSE),0) -> 0 | O169: =ROUND($F$169*VLOOKUP($D$169,ALLOCTABLE_Prod_Demand,$O$10,FALSE),0) -> 0 | P169: =ROUND($F$169*VLOOKUP($D$169,ALLOCTABLE_Prod_Demand,$P$10,FALSE),0) -> 0 | Q169: =ROUND($F$169*VLOOKUP(D169,ALLOCTABLE_Prod_Demand,$Q$10,FALSE),0) -> 0 | R169: 0 | S169: 0
A170: 36 | C170: ='FR-16(7)(v)-1 Functional'!C170 -> RWIP | D170: ='FR-16(7)(v)-1 Functional'!D170 -> K215 | F170: ='FR-16(7)(v)-2 PROD Classified'!G170 -> 0 | G170: =F170-SUM(H170:Q170) -> 0 | H170: =ROUND($F$170*VLOOKUP($D170,ALLOCTABLE_Prod_Demand,H$10,FALSE),0) -> 0 | I170: 0 | J170: 0 | K170: 0 | L170: 0 | M170: 0 | N170: 0 | O170: 0 | P170: 0 | Q170: 0 | R170: =SUM(G170:Q170) -> 0 | S170: =F170-R170 -> 0
A171: 37 | C171: ='FR-16(7)(v)-1 Functional'!C171 -> TOTAL DIST DEPREC RESERVE | F171: =SUM(F149:F170) -> 0 | G171: =SUM(G149:G170) -> 0 | H171: =SUM(H149:H170) -> 0 | I171: 0 | J171: 0 | K171: 0 | L171: 0 | M171: 0 | N171: 0 | O171: 0 | P171: 0 | Q171: 0 | R171: 0 | S171: 0
A172: 38
A173: 39 | C173: TOTAL TRANS & DIST DEPREC RESERVE | F173: =F171+F145 -> 0 | G173: =G171+G145 -> 0 | H173: =H171+$H$114 -> 0 | I173: =I171+$I$114 -> 0 | J173: =J171+$J$114 -> 0 | K173: =K171+$K$114 -> 0 | L173: =L171+$L$114 -> 0 | M173: =M171+$M$114 -> 0 | N173: =N171+$N$114 -> 0 | O173: =O171+$O$114 -> 0 | P173: =P171+$P$114 -> 0 | Q173: =Q171+$Q$114 -> 0 | R173: =SUM(G173:Q173) -> 0 | S173: =F173-R173 -> 0
A174: 40 | C174: TOTAL GROSS PTD PLANT DEPREC RESERVE | F174: =F147+F171 -> 586935458 | G174: =G147+G171 -> 264578765 | H174: 158848213 | I174: 763015 | J174: 3010979 | K174: 41086 | L174: 79201070 | M174: 52360513 | N174: 2529692 | O174: 24809762 | P174: 727800 | Q174: 64563 | R174: =SUM(G174:Q174) -> 586935458 | S174: =F174-R174 -> 0
A175: 41
A176: 42 | B176: GENERAL & INTANGIBLE PLANT
A177: 43 | C177: ='FR-16(7)(v)-1 Functional'!C177 -> PRODUCTION - DEMAND | D177: ='FR-16(7)(v)-1 Functional'!D177 -> K201 | F177: ='FR-16(7)(v)-2 PROD Classified'!G177 -> 5383063 | G177: =F177-SUM(H177:Q177) -> 2426577 | H177: =ROUND(F177*VLOOKUP(D177,ALLOCTABLE_Prod_Demand,$H$10,FALSE),0) -> 1456872 | I177: =ROUND(F177*VLOOKUP(D177,ALLOCTABLE_Prod_Demand,$I$10,FALSE),0) -> 6998 | J177: =ROUND(F177*VLOOKUP(D177,ALLOCTABLE_Prod_Demand,$J$10,FALSE),0) -> 27615 | K177: =ROUND(F177*VLOOKUP(D177,ALLOCTABLE_Prod_Demand,$K$10,FALSE),0) -> 377 | L177: =ROUND(F177*VLOOKUP(D177,ALLOCTABLE_Prod_Demand,$L$10,FALSE),0) -> 726391 | M177: =ROUND(F177*VLOOKUP(D177,ALLOCTABLE_Prod_Demand,$M$10,FALSE),0) -> 480223 | N177: =ROUND(F177*VLOOKUP(D177,ALLOCTABLE_Prod_Demand,$N$10,FALSE),0) -> 23201 | O177: =ROUND(F177*VLOOKUP(D177,ALLOCTABLE_Prod_Demand,$O$10,FALSE),0) -> 227542 | P177: =ROUND(F177*VLOOKUP(D177,ALLOCTABLE_Prod_Demand,$P$10,FALSE),0) -> 6675 | Q177: =ROUND(F177*VLOOKUP(D177,ALLOCTABLE_Prod_Demand,$Q$10,FALSE),0) -> 592 | R177: =SUM(G177:Q177) -> 5383063 | S177: =F177-R177 -> 0
A178: 44 | C178: ='FR-16(7)(v)-1 Functional'!C178 -> PRODUCTION - ENERGY | D178: ='FR-16(7)(v)-1 Functional'!D178 -> K301 | F178: ='FR-16(7)(v)-2 PROD Classified'!G178 -> 0 | G178: 0 | H178: 0 | I178: 0 | J178: 0 | K178: 0 | L178: 0 | M178: 0 | N178: 0 | O178: 0 | P178: 0 | Q178: 0 | R178: 0 | S178: 0
A179: 45 | C179: ='FR-16(7)(v)-1 Functional'!C179 -> TRANSMISSION | D179: ='FR-16(7)(v)-1 Functional'!D179 -> K202 | F179: ='FR-16(7)(v)-2 PROD Classified'!G179 -> 0 | G179: 0 | H179: 0 | I179: 0 | J179: 0 | K179: 0 | L179: 0 | M179: 0 | N179: 0 | O179: 0 | P179: 0 | Q179: 0 | R179: 0 | S179: 0
A180: 46 | C180: ='FR-16(7)(v)-1 Functional'!C180 -> DISTRIBUTION - DEMAND | D180: ='FR-16(7)(v)-1 Functional'!D180 -> K201 | F180: ='FR-16(7)(v)-2 PROD Classified'!G180 -> 2856969 | G180: 1287865 | H180: 773210 | I180: 3714 | J180: 14656 | K180: 200 | L180: 385519 | M180: 254870 | N180: 12314 | O180: 120764 | P180: 3543 | Q180: 314 | R180: 2856969 | S180: 0
A181: 47 | C181: ='FR-16(7)(v)-1 Functional'!C181 -> DISTRIBUTION - CUSTOMER | D181: ='FR-16(7)(v)-1 Functional'!D181 -> K405 | F181: ='FR-16(7)(v)-2 PROD Classified'!G181 -> 0 | G181: 0 | H181: 0 | I181: 0 | J181: 0 | K181: 0 | L181: 0 | M181: 0 | N181: 0 | O181: 0 | P181: 0 | Q181: 0 | R181: 0 | S181: 0
A182: 48 | C182: ='FR-16(7)(v)-1 Functional'!C182 -> CUSTOMER ACCOUNTING | D182: ='FR-16(7)(v)-1 Functional'!D182 -> A308 | F182: ='FR-16(7)(v)-2 PROD Classified'!G182 -> 0 | G182: 0 | H182: 0 | I182: 0 | J182: 0 | K182: 0 | L182: 0 | M182: 0 | N182: 0 | O182: 0 | P182: 0 | Q182: 0 | R182: 0 | S182: 0
A183: 49 | C183: ='FR-16(7)(v)-1 Functional'!C183 -> CUSTOMER SERVICE & INFORMATION | D183: ='FR-16(7)(v)-1 Functional'!D183 -> A310 | F183: ='FR-16(7)(v)-2 PROD Classified'!G183 -> 0 | G183: 0 | H183: 0 | I183: 0 | J183: 0 | K183: 0 | L183: 0 | M183: 0 | N183: 0 | O183: 0 | P183: 0 | Q183: 0 | R183: 0 | S183: 0
A184: 50 | C184: ='FR-16(7)(v)-1 Functional'!C184 -> SALES | D184: ='FR-16(7)(v)-1 Functional'!D184 -> A312 | F184: ='FR-16(7)(v)-2 PROD Classified'!G184 -> 0 | G184: 0 | H184: 0 | I184: 0 | J184: 0 | K184: 0 | L184: 0 | M184: 0 | N184: 0 | O184: 0 | P184: 0 | Q184: 0 | R184: 0 | S184: 0
A185: 51 | C185: ='FR-16(7)(v)-1 Functional'!C185 -> ADJUSTMENT | D185: ='FR-16(7)(v)-1 Functional'!D185 -> A315 | F185: ='FR-16(7)(v)-2 PROD Classified'!G185 -> 98002 | G185: 96817 | H185: 584 | I185: 3 | J185: 11 | K185: 0 | L185: 291 | M185: 193 | N185: 9 | O185: 91 | P185: 3 | Q185: 0 | R185: 98002 | S185: 0
A186: 52 | C186: GENERAL & INTANG PLANT | F186: =SUM($F$176:F185) -> 8338034 | G186: =SUM(G176:G185) -> 3811259 | H186: =SUM(H176:H185) -> 2230666 | I186: =SUM(I176:I185) -> 10715 | J186: =SUM(J176:J185) -> 42282 | K186: 577 | L186: 1112201 | M186: 735286 | N186: 35524 | O186: 348397 | P186: 10221 | Q186: =SUM(Q176:Q185) -> 906 | R186: =SUM(R176:R185) -> 8338034 | S186: =SUM(S176:S185) -> 0
A187: 53
A188: 54 | B188: COMMON & OTHER PLANT
A189: 55 | C189: ='FR-16(7)(v)-1 Functional'!C189 -> PRODUCTION - DEMAND | D189: ='FR-16(7)(v)-1 Functional'!D189 -> K201 | F189: ='FR-16(7)(v)-2 PROD Classified'!G189 -> 7273485 | G189: =F189-SUM(H189:Q189) -> 3278741 | H189: =ROUND(F189*VLOOKUP(D189,ALLOCTABLE_Prod_Demand,$H$10,FALSE),0) -> 1968496 | I189: =ROUND(F189*VLOOKUP(D189,ALLOCTABLE_Prod_Demand,$I$10,FALSE),0) -> 9456 | J189: =ROUND(F189*VLOOKUP(D189,ALLOCTABLE_Prod_Demand,$J$10,FALSE),0) -> 37313 | K189: =ROUND(F189*VLOOKUP(D189,ALLOCTABLE_Prod_Demand,$K$10,FALSE),0) -> 509 | L189: =ROUND(F189*VLOOKUP(D189,ALLOCTABLE_Prod_Demand,$L$10,FALSE),0) -> 981484 | M189: =ROUND(F189*VLOOKUP(D189,ALLOCTABLE_Prod_Demand,$M$10,FALSE),0) -> 648868 | N189: =ROUND(F189*VLOOKUP(D189,ALLOCTABLE_Prod_Demand,$N$10,FALSE),0) -> 31349 | O189: =ROUND(F189*VLOOKUP(D189,ALLOCTABLE_Prod_Demand,$O$10,FALSE),0) -> 307450 | P189: =ROUND(F189*VLOOKUP(D189,ALLOCTABLE_Prod_Demand,$P$10,FALSE),0) -> 9019 | Q189: =ROUND(F189*VLOOKUP(D189,ALLOCTABLE_Prod_Demand,$Q$10,FALSE),0) -> 800 | R189: =SUM(G189:Q189) -> 7273485 | S189: =F189-R189 -> 0
A190: 56 | C190: ='FR-16(7)(v)-1 Functional'!C190 -> PRODUCTION - ENERGY | D190: ='FR-16(7)(v)-1 Functional'!D190 -> K301 | F190: ='FR-16(7)(v)-2 PROD Classified'!G190 -> 0 | G190: 0 | H190: 0 | I190: 0 | J190: 0 | K190: 0 | L190: 0 | M190: 0 | N190: 0 | O190: 0 | P190: 0 | Q190: 0 | R190: 0 | S190: 0
A191: 57 | C191: ='FR-16(7)(v)-1 Functional'!C191 -> TRANSMISSION | D191: ='FR-16(7)(v)-1 Functional'!D191 -> K202 | F191: ='FR-16(7)(v)-2 PROD Classified'!G191 -> 0 | G191: 0 | H191: 0 | I191: 0 | J191: 0 | K191: 0 | L191: 0 | M191: 0 | N191: 0 | O191: 0 | P191: 0 | Q191: 0 | R191: 0 | S191: 0
A192: 58 | C192: ='FR-16(7)(v)-1 Functional'!C192 -> DISTRIBUTION - DEMAND | D192: ='FR-16(7)(v)-1 Functional'!D192 -> K201 | F192: ='FR-16(7)(v)-2 PROD Classified'!G192 -> 3860278 | G192: 1740136 | H192: 1044746 | I192: 5018 | J192: 19803 | K192: 270 | L192: 520906 | M192: 344375 | N192: 16638 | O192: 163174 | P192: 4787 | Q192: 425 | R192: 3860278 | S192: 0
A193: 59 | C193: ='FR-16(7)(v)-1 Functional'!C193 -> DISTRIBUTION - CUSTOMER | D193: ='FR-16(7)(v)-1 Functional'!D193 -> K405 | F193: ='FR-16(7)(v)-2 PROD Classified'!G193 -> 0 | G193: 0 | H193: 0 | I193: 0 | J193: 0 | K193: 0 | L193: 0 | M193: 0 | N193: 0 | O193: 0 | P193: 0 | Q193: 0 | R193: 0 | S193: 0
A194: 60 | C194: ='FR-16(7)(v)-1 Functional'!C194 -> CUSTOMER ACCOUNTING | D194: ='FR-16(7)(v)-1 Functional'!D194 -> A308 | F194: ='FR-16(7)(v)-2 PROD Classified'!G194 -> 0 | G194: 0 | H194: 0 | I194: 0 | J194: 0 | K194: 0 | L194: 0 | M194: 0 | N194: 0 | O194: 0 | P194: 0 | Q194: 0 | R194: 0 | S194: 0
A195: 61 | C195: ='FR-16(7)(v)-1 Functional'!C195 -> CUSTOMER SERVICE & INFORMATION | D195: ='FR-16(7)(v)-1 Functional'!D195 -> A310 | F195: ='FR-16(7)(v)-2 PROD Classified'!G195 -> 0 | G195: 0 | H195: 0 | I195: 0 | J195: 0 | K195: 0 | L195: 0 | M195: 0 | N195: 0 | O195: 0 | P195: 0 | Q195: 0 | R195: 0 | S195: 0
A196: 62 | C196: ='FR-16(7)(v)-1 Functional'!C196 -> SALES | D196: ='FR-16(7)(v)-1 Functional'!D196 -> A312 | F196: ='FR-16(7)(v)-2 PROD Classified'!G196 -> 0 | G196: 0 | H196: 0 | I196: 0 | J196: 0 | K196: 0 | L196: 0 | M196: 0 | N196: 0 | O196: 0 | P196: 0 | Q196: 0 | R196: 0 | S196: 0
A197: 63 | C197: ='FR-16(7)(v)-1 Functional'!C197 -> ADJUSTMENT | D197: ='FR-16(7)(v)-1 Functional'!D197 -> A315 | F197: ='FR-16(7)(v)-2 PROD Classified'!G197 -> 5505 | G197: 5439 | H197: 33 | I197: 0 | J197: 1 | K197: 0 | L197: 16 | M197: 11 | N197: 0 | O197: 5 | P197: 0 | Q197: 0 | R197: 5505 | S197: 0
A198: 64 | C198: ='FR-16(7)(v)-1 Functional'!C198 -> COMMON & OTHER PLANT IN SERVICE | F198: =SUM($F$189:F197) -> 11139268 | G198: =SUM(G188:G197) -> 5024316 | H198: 3013275 | I198: 14474 | J198: =SUM(J188:J197) -> 57117 | K198: 779 | L198: 1502406 | M198: 993254 | N198: 47987 | O198: 470629 | P198: 13806 | Q198: 1225 | R198: 11139268 | S198: 0
A199: 65
A200: 66 | B200: TOTAL DEPRECIATION RESERVE | F200: =F198+F186+F171+F145+F139 -> 606412760 | G200: =G198+G186+G171+G145+G139 -> 273414340 | H200: =H198+H186+H171+$H$114+H139 -> 164092154 | I200: =I198+I186+I171+$I$114+I139 -> 788204 | J200: =J198+J186+J171+$J$114+J139 -> 3110378 | K200: =K198+K186+K171+$K$114+K139 -> 42442 | L200: =L198+L186+L171+$L$114+L139 -> 81815677 | M200: =M198+M186+M171+$M$114+M139 -> 54089053 | N200: =N198+N186+N171+$N$114+N139 -> 2613203 | O200: =O198+O186+O171+$O$114+O139 -> 25628788 | P200: =P198+P186+P171+$P$114+P139 -> 751827 | Q200: =Q198+Q186+Q171+$Q$114+Q139 -> 66694 | R200: =R198+R186+R171+R145+R139 -> 606412760 | S200: =S198+S186+S171+S145+S139 -> 0
A202: =co_name -> DUKE ENERGY KENTUCKY, INC. | R202: =R1 -> FR-16(7)(v)-3
A203: =$A$2 -> PRODUCTION DEMAND ALLOCATED - ELECTRIC COST OF SERVICE | R203: =R2 -> WITNESS RESPONSIBLE:
A204: =case_name -> CASE NO: 2019-00271 | R204: =Witness -> JAMES E. ZIOLKOWSKI
A205: =data_filing -> DATA: 12 MONTHS ACTUAL & 0 MONTHS ESTIMATED | R205: ="PAGE "&Pages-14&" OF "&Pages -> PAGE 4 OF 18
A206: =type -> TYPE OF FILING: "X" ORIGINAL UPDATED REVISED
... 787 more rows

Sheet FR-16(7)(v)-4 PROD Energy
A1: =co_name -> DUKE ENERGY KENTUCKY, INC. | R1: FR-16(7)(v)-4
A2: =F8&" "&F9&" ALLOCATED - ELECTRIC COST OF SERVICE" -> PRODUCTION ENERGY ALLOCATED - ELECTRIC COST OF SERVICE | R2: WITNESS RESPONSIBLE:
A3: =case_name -> CASE NO: 2019-00271 | R3: =Witness -> JAMES E. ZIOLKOWSKI
A4: =data_filing -> DATA: 12 MONTHS ACTUAL & 0 MONTHS ESTIMATED | R4: ="PAGE "&Pages-17&" OF "&Pages -> PAGE 1 OF 18
A5: =type -> TYPE OF FILING: "X" ORIGINAL UPDATED REVISED
F7: ='FR-16(7)(v)-3 PROD Demand'!F7 -> TOTAL | H7: ='FR-16(7)(v)-3 PROD Demand'!H7 -> DS | I7: ='FR-16(7)(v)-3 PROD Demand'!I7 -> GSFL | J7: ='FR-16(7)(v)-3 PROD Demand'!J7 -> EH | K7: ='FR-16(7)(v)-3 PROD Demand'!K7 -> SP | L7: ='FR-16(7)(v)-3 PROD Demand'!L7 -> DT SEC | M7: ='FR-16(7)(v)-3 PROD Demand'!M7 -> DT PRI | N7: ='FR-16(7)(v)-3 PROD Demand'!N7 -> DP | O7: ='FR-16(7)(v)-3 PROD Demand'!O7 -> TT | Q7: ='FR-16(7)(v)-3 PROD Demand'!Q7 -> OTHER
A8: LINE | F8: ='FR-16(7)(v)-3 PROD Demand'!F8 -> PRODUCTION | G8: ='FR-16(7)(v)-3 PROD Demand'!G8 -> RS | H8: ='FR-16(7)(v)-3 PROD Demand'!H8 -> SECONDARY | I8: ='FR-16(7)(v)-3 PROD Demand'!I8 -> SECONDARY | J8: ='FR-16(7)(v)-3 PROD Demand'!J8 -> SECONDARY | K8: ='FR-16(7)(v)-3 PROD Demand'!K8 -> SECONDARY | L8: ='FR-16(7)(v)-3 PROD Demand'!L8 -> SECONDARY | M8: ='FR-16(7)(v)-3 PROD Demand'!M8 -> PRIMARY | N8: ='FR-16(7)(v)-3 PROD Demand'!N8 -> PRIMARY | O8: ='FR-16(7)(v)-3 PROD Demand'!O8 -> TRANSMISSION | P8: ='FR-16(7)(v)-3 PROD Demand'!P8 -> LT | Q8: ='FR-16(7)(v)-3 PROD Demand'!Q8 -> WATER | R8: ='FR-16(7)(v)-3 PROD Demand'!R8 -> TOTAL | S8: ='FR-16(7)(v)-3 PROD Demand'!S8 -> ALL
A9: NO. | B9: SUMMARY OF RESULTS | D9: ALLO | F9: ENERGY | G9: ='FR-16(7)(v)-3 PROD Demand'!G9 -> RESIDENTIAL | H9: ='FR-16(7)(v)-3 PROD Demand'!H9 -> DISTRIBUTION | I9: ='FR-16(7)(v)-3 PROD Demand'!I9 -> DISTRIBUTION | J9: ='FR-16(7)(v)-3 PROD Demand'!J9 -> DISTRIBUTION | K9: ='FR-16(7)(v)-3 PROD Demand'!K9 -> DISTRIBUTION | L9: ='FR-16(7)(v)-3 PROD Demand'!L9 -> DISTRIBUTION | M9: ='FR-16(7)(v)-3 PROD Demand'!M9 -> DISTRIBUTION | N9: ='FR-16(7)(v)-3 PROD Demand'!N9 -> DISTRIBUTION | O9: ='FR-16(7)(v)-3 PROD Demand'!O9 -> TIME OF DAY | P9: ='FR-16(7)(v)-3 PROD Demand'!P9 -> LIGHTING | Q9: ='FR-16(7)(v)-3 PROD Demand'!Q9 -> PUMPING | R9: ='FR-16(7)(v)-3 PROD Demand'!R9 -> AT ISSUE | S9: ='FR-16(7)(v)-3 PROD Demand'!S9 -> OTHER
C10: Schedule 1 | G10: 3 | H10: 4 | I10: 5 | J10: 6 | K10: 7 | L10: 8 | M10: 9 | N10: 10 | O10: 11 | P10: 12 | Q10: 13
A11: 1 | B11: NET INCOME COMPUTATION
A12: 2 | C12: ='FR-16(7)(v)-1 Functional'!C12 -> GROSS ELECTRIC PLANT IN SERVICE | F12: =F123 -> 30564298 | G12: =G123 -> 11536800 | H12: =H123 -> 8231577 | I12: =I123 -> 46152 | J12: =J123 -> 130816 | K12: 2139 | L12: 5043415 | M12: 3502974 | N12: 164130 | O12: 1769673 | P12: 133260 | Q12: =Q123 -> 3362 | R12: =SUM(G12:Q12) -> 30564298 | S12: =F12-R12 -> 0
A13: 3 | C13: ='FR-16(7)(v)-1 Functional'!C13 -> TOTAL DEPRECIATION RESERVE | F13: =-F200 -> -14906680 | G13: =-G200 -> -5626812 | H13: =-H200 -> -4014744 | I13: =-I200 -> -22509 | J13: =-J200 -> -63801 | K13: -1043 | L13: -2459762 | M13: -1708495 | N13: -80052 | O13: -862829 | P13: -64993 | Q13: =-Q200 -> -1640 | R13: =SUM(G13:Q13) -> -14906680 | S13: =F13-R13 -> 0
A14: 4 | C14: ='FR-16(7)(v)-1 Functional'!C14 -> TOTAL RATE BASE ADJUSTMENTS | F14: =F421 -> 16057807 | G14: =G421 -> 6055355 | H14: =H421 -> 4321323 | I14: =I421 -> 24246 | J14: =J421 -> 68673 | K14: 1123 | L14: 2649232 | M14: 1838624 | N14: 86127 | O14: 941379 | P14: 69961 | Q14: =Q421 -> 1764 | R14: =SUM(G14:Q14) -> 16057807 | S14: =F14-R14 -> 0
A15: 5 | C15: ='FR-16(7)(v)-1 Functional'!C15 -> TOTAL RATE BASE | F15: =SUM(F12:F14) -> 31715425 | G15: =SUM(G12:G14) -> 11965343 | H15: =SUM(H12:H14) -> 8538156 | I15: =SUM(I12:I14) -> 47889 | J15: =SUM(J12:J14) -> 135688 | K15: 2219 | L15: 5232885 | M15: 3633103 | N15: 170205 | O15: 1848223 | P15: 138228 | Q15: =SUM(Q12:Q14) -> 3486 | R15: =SUM(R12:R14) -> 31715425 | S15: =F15-R15 -> 0
A16: 6
A17: 7 | B17: OPERATING EXPENSES
A18: 8 | C18: ='FR-16(7)(v)-1 Functional'!C18 -> TOTAL O&M EXPENSE | F18: =F549 -> 147821325 | G18: =G549 -> 55963941 | H18: =H549 -> 39907982 | I18: =I549 -> 223210 | J18: =J549 -> 633748 | K18: 10348 | L18: 24405654 | M18: 16992283 | N18: 796946 | O18: 8224374 | P18: 646578 | Q18: =Q549 -> 16261 | R18: =SUM(G18:Q18) -> 147821325 | S18: =F18-R18 -> 0
A19: 9 | C19: ='FR-16(7)(v)-1 Functional'!C19 -> TOTAL DEPRECIATION EXPENSE | F19: =F582 -> 1866822 | G19: =G582 -> 704631 | H19: =H582 -> 502754 | I19: =I582 -> 2819 | J19: =J582 -> 7990 | K19: 131 | L19: 308044 | M19: 213957 | N19: 10025 | O19: 108127 | P19: 8139 | Q19: =Q582 -> 205 | R19: =SUM(G19:Q19) -> 1866822 | S19: 0
A20: 10 | C20: ='FR-16(7)(v)-1 Functional'!C20 -> TOTAL OTHER TAX & MISC EXPENSE | F20: =F612 -> 506262 | G20: =G612 -> 192559 | H20: =H612 -> 137051 | I20: =I612 -> 775 | J20: =J612 -> 2096 | K20: 36 | L20: 83039 | M20: 57501 | N20: 2693 | O20: 28200 | P20: 2258 | Q20: =$Q$612 -> 54 | R20: =SUM(G20:Q20) -> 506262 | S20: 0
A21: 11 | C21: ='FR-16(7)(v)-1 Functional'!C21 -> TOTAL OP EXP EXCLUDING INC & REV TAX | F21: =SUM(F17:F20) -> 150194409 | G21: 56861131 | H21: 40547787 | I21: 226804 | J21: =SUM(J17:J20) -> 643834 | K21: 10515 | L21: 24796737 | M21: 17263741 | N21: 809664 | O21: 8360701 | P21: 656975 | Q21: 16520 | R21: 150194409 | S21: 0
A22: 12 | C22: ='FR-16(7)(v)-1 Functional'!C22 -> NET FED INCOME TAX EXP ALLOWABLE | F22: =F676 -> 11018070 | G22: =G676 -> 4171600 | H22: =H676 -> 2974642 | I22: =I676 -> 16638 | J22: =J676 -> 47270 | K22: 771 | L22: 1819094 | M22: 1266572 | N22: 59391 | O22: 612729 | P22: 48151 | Q22: =$Q$676 -> 1212 | R22: =SUM(G22:Q22) -> 11018070 | S22: 0
A23: 13 | C23: NET STATE INCOME TAX EXP ALLOWABLE | F23: =F722 -> 1865123 | G23: =G722 -> 706182 | H23: 503554 | I23: 2817 | J23: 8002 | K23: 130 | L23: 307935 | M23: 214409 | N23: 10055 | O23: 103683 | P23: 8151 | Q23: 205 | R23: =SUM(G23:Q23) -> 1865123 | S23: 0
A24: 14 | C24: RESERVED | D24: ='FR-16(7)(v)-1 Functional'!D24 -> CW29 | F24: ='FR-16(7)(v)-2 PROD Classified'!H24 -> 0 | G24: =F24-SUM(H24:Q24) -> 0 | H24: =ROUND(F24*VLOOKUP(D73,ALLOCTABLE_Prod_Energy,$H$10,FALSE),0) -> 0 | I24: =ROUND(F24*VLOOKUP(D24,ALLOCTABLE_Prod_Energy,$I$10,FALSE),0) -> 0 | J24: =ROUND(F24*VLOOKUP(D24,ALLOCTABLE_Prod_Energy,$J$10,FALSE),0) -> 0 | K24: =ROUND(F24*VLOOKUP(D24,ALLOCTABLE_Prod_Energy,$K$10,FALSE),0) -> 0 | L24: =ROUND(F24*VLOOKUP(D24,ALLOCTABLE_Prod_Energy,$L$10,FALSE),0) -> 0 | M24: =ROUND(F24*VLOOKUP(D24,ALLOCTABLE_Prod_Energy,$M$10,FALSE),0) -> 0 | N24: =ROUND(F24*VLOOKUP(D24,ALLOCTABLE_Prod_Energy,$N$10,FALSE),0) -> 0 | O24: =ROUND(F24*VLOOKUP(D24,ALLOCTABLE_Prod_Energy,$O$10,FALSE),0) -> 0 | P24: =ROUND(F24*VLOOKUP(D24,ALLOCTABLE_Prod_Energy,$P$10,FALSE),0) -> 0 | Q24: =ROUND(F24*VLOOKUP(D24,ALLOCTABLE_Prod_Energy,$Q$10,FALSE),0) -> 0 | R24: =SUM(G24:Q24) -> 0 | S24: =F24-R24 -> 0
A25: 15 | C25: ='FR-16(7)(v)-1 Functional'!C25 -> REVENUE TAX | F25: =F767 -> 0 | G25: =G767 -> 0 | H25: =H767 -> 0 | I25: =I767 -> 0 | J25: =J767 -> 0 | K25: 0 | L25: 0 | M25: 0 | N25: 0 | O25: 0 | P25: 0 | Q25: =Q767 -> 0 | R25: =SUM(G25:Q25) -> 0 | S25: 0
A26: 16 | C26: ='FR-16(7)(v)-1 Functional'!C26 -> TOTAL OPERATING EXPENSE | F26: =SUM(F21:F25) -> 163077602 | G26: 61738913 | H26: 44025983 | I26: 246259 | J26: =SUM(J21:J25) -> 699106 | K26: 11416 | L26: 26923766 | M26: 18744722 | N26: 879110 | O26: 9077113 | P26: 713277 | Q26: 17937 | R26: 163077602 | S26: 0
A27: 17
A28: 18 | B28: RETURN ON RATE BASE | F28: =F433 -> 2128554 | G28: 803040 | H28: 573028 | I28: 3214 | J28: 9110 | K28: 149 | L28: 351190 | M28: 243826 | N28: 11430 | O28: 124052 | P28: 9281 | Q28: 234 | R28: =SUM(G28:Q28) -> 2128554 | S28: =F28-R28 -> 0
A29: 19 | B29: TOTAL OTHER OPERATING REVENUES | F29: =-F750 -> 0 | G29: =-G750 -> 0 | H29: =-H750 -> 0 | I29: =-I750 -> 0 | J29: =-J750 -> 0 | K29: 0 | L29: 0 | M29: 0 | N29: 0 | O29: 0 | P29: 0 | Q29: =-$Q$750 -> 0 | R29: =SUM(G29:Q29) -> 0 | S29: 0
A30: 20 | C30: ='FR-16(7)(v)-1 Functional'!C30 -> TOTAL ELECTRIC COST OF SERVICE | F30: =SUM(F26:F29) -> 165206156 | G30: 62541953 | H30: 44599011 | I30: 249473 | J30: =SUM(J26:J29) -> 708216 | K30: 11565 | L30: 27274956 | M30: 18988548 | N30: 890540 | O30: 9201165 | P30: 722558 | Q30: 18171 | R30: 165206156 | S30: 0
A31: 21 | B31: ADJUSTMENT FOR INTERCLASS SUBSIDIZATION | D31: =1-'WP FR-16(7)(v) Rate Incr'!I11 -> 0.95 | F31: ='WP FR-16(7)(v) Rate Incr'!Q27 -> 0 | G31: ='WP FR-16(7)(v) Rate Incr'!Q15 -> -9336840 | H31: ='WP FR-16(7)(v) Rate Incr'!Q16 -> 6445498 | I31: ='WP FR-16(7)(v) Rate Incr'!Q17 -> 89344 | J31: ='WP FR-16(7)(v) Rate Incr'!R17 -> 6774 | K31: ='WP FR-16(7)(v) Rate Incr'!S17 -> 56376 | L31: ='WP FR-16(7)(v) Rate Incr'!T17 -> 111986 | M31: ='WP FR-16(7)(v) Rate Incr'!U17 -> 0 | N31: ='WP FR-16(7)(v) Rate Incr'!V17 -> 40507 | O31: ='WP FR-16(7)(v) Rate Incr'!W17 -> 0 | P31: ='WP FR-16(7)(v) Rate Incr'!X17 -> 0 | Q31: ='WP FR-16(7)(v) Rate Incr'!Q25 -> -9875 | R31: =SUM(G31:Q31) -> -2596230 | S31: 2596230
A32: 22 | B32: ='FR-16(7)(v)-1 Functional'!$B$32 -> REQUESTED REVENUES (COST OF SERVICE ADJUSTED FOR SUBSIDIES) | F32: =F31+F30 -> 165206156 | G32: 53205113 | H32: 51044509 | I32: 338817 | J32: =J31+J30 -> 714990 | K32: 67941 | L32: 27386942 | M32: 18988548 | N32: 931047 | O32: 9201165 | P32: 722558 | Q32: 8296 | R32: 162609926 | S32: 2596230
A33: 23 | B33: PROPOSED REVENUES | F33: =F868 -> 122188315 | G33: 46260496 | H33: 32987179 | I33: 184504 | J33: =J868 -> 524188 | K33: 8553 | L33: 20173291 | M33: 14045547 | N33: 658595 | O33: 6798558 | P33: 533963 | Q33: 13441 | R33: 122188315 | S33: 0
A34: 24 | B34: DIFFERENCE (REQUESTED LESS PROPOSED) | F34: =F32-F33 -> 43017841 | G34: =G32-G33 -> 6944617 | H34: 18057330 | I34: 154313 | J34: =J32-J33 -> 190802 | K34: 59388 | L34: 7213651 | M34: 4943001 | N34: 272452 | O34: 2402607 | P34: 188595 | Q34: -5145 | R34: 40421611 | S34: 2596230
A35: 25
A36: 26 | B36: TOTAL RETURN EARNED | F36: =F777+F28 -> -30167041 | G36: =G777+G28 -> -11420247 | H36: =H777+H28 -> -8144542 | I36: =I777+I28 -> -45561 | J36: =J777+J28 -> -129049 | K36: -2112 | L36: -4980377 | M36: -3467126 | N36: -162702 | O36: -1679702 | P36: -132306 | Q36: =Q777+Q28 -> -3317 | R36: =R777+R28 -> -30167041 | S36: =F36-R36 -> 0
A37: 27 | B37: RATE OF RETURN EARNED | F37: =IF(F431=0,0,ROUND(F36/F431,5)) -> -0.95112 | G37: -0.95439 | H37: -0.95385 | I37: -0.95131 | J37: -0.95064 | K37: -0.95135 | L37: =IF(F431=0,0,ROUND(F36/L431,5)) -> -5.76471 | M37: =IF(F431=0,0,ROUND(F36/M431,5)) -> -8.3031 | N37: =IF(N431=0,0,ROUND(N36/N431,5)) -> -0.95526 | O37: -0.90869 | P37: -0.95674 | Q37: -0.9507 | R37: -0.95112 | S37: 0
A38: 28 | B38: TOTAL RATE OF RETURN ALLOWABLE | F38: =$F$811 -> 0.0671 | G38: =$F$811 -> 0.0671 | H38: 0.0671 | I38: 0.0671 | J38: 0.0671 | K38: 0.0671 | L38: 0.0671 | M38: 0.0671 | N38: 0.0671 | O38: 0.0671 | P38: 0.0671 | Q38: 0.0671 | R38: =F811 -> 0.0671 | S38: =F811 -> 0.0671 | V38: Not Part of print range
A39: 29 | B39: RETURN EARNED ON COMMON EQUITY | F39: =IF(Equity=0,0,(F37-$F$806-$F$807-$F$809)*TotalCap/Equity) -> -2.012921843 | G39: -2.019701243 | H39: -2.018581709 | I39: -2.013315753 | J39: -2.011926702 | K39: -2.013398682 | L39: -11.99250868 | M39: -17.25512628 | N39: -2.021504936 | O39: -1.924955509 | P39: -2.024573288 | Q39: -2.012051095 | R39: =IF(Equity=0,0,(R37-F806-F807-F809)*TotalCap/Equity) -> -2.012921843 | S39: =IF(Equity=0,0,(S37-F806-F807-F809)*TotalCap/Equity) -> -0.04104957411 | V39: Not Filed
A40: 30 | B40: ALLOWED RETURN ON COMMON EQUITY | F40: =IF(Equity=0,0,(F38-$F$806-$F$807-$F$809)*TotalCap/Equity) -> 0.09806287149 | G40: 0.09806287149 | H40: 0.09806287149 | I40: 0.09806287149 | J40: 0.09806287149 | K40: 0.09806287149 | L40: 0.09806287149 | M40: 0.09806287149 | N40: 0.09806287149 | O40: 0.09806287149 | P40: 0.09806287149 | Q40: 0.09806287149 | R40: =IF(Equity=0,0,(R38-F806-F807-F809)*TotalCap/Equity) -> 0.09806287149 | S40: =IF(Equity=0,0,(S38-F806-F807-F809)*TotalCap/Equity) -> 0.09806287149
A41: 31
A42: 32 | B42: PRESENT REVENUES | F42: =F867 -> 144487356 | G42: 54698455 | H42: 39005769 | I42: 218186 | J42: =J867 -> 619397 | K42: 10115 | L42: 23854355 | M42: 16607160 | N42: 778856 | O42: 8047230 | P42: 631941 | Q42: 15892 | R42: 144487356 | S42: =F42-R42 -> 0
A43: 33 | B43: REVENUE INCREASE JUSTIFIED | F43: =F30-F42 -> 20718800 | G43: 7843498 | H43: 5593242 | I43: 31287 | J43: =J30-J42 -> 88819 | K43: 1450 | L43: 3420601 | M43: 2381388 | N43: 111684 | O43: 1153935 | P43: 90617 | Q43: 2279 | R43: 20718800 | S43: 0
A44: 34 | C44: PER UNIT PRES REV | F44: =IF(F42=0,0,ROUND(F43/F42,5)) -> 0.1434 | G44: 0.1434 | H44: 0.1434 | I44: 0.1434 | J44: =IF(J42=0,0,ROUND(J43/J42,5)) -> 0.1434 | K44: 0.14335 | L44: =IF(F42=0,0,ROUND(F43/L42,5)) -> 0.86855 | M44: =IF(F42=0,0,ROUND(F43/M42,5)) -> 1.24758 | N44: 0.14339 | O44: 0.1434 | P44: 0.14339 | Q44: 0.14341 | R44: 0.1434 | S44: 0
A45: 35 | B45: REVENUE INCREASE REQUESTED | F45: =F33-F42 -> -22299041 | G45: -8437959 | H45: -6018590 | I45: -33682 | J45: =J33-J42 -> -95209 | K45: -1562 | L45: -3681064 | M45: -2561613 | N45: -120261 | O45: -1248672 | P45: -97978 | Q45: -2451 | R45: -22299041 | S45: 0
A46: 36 | C46: PER UNIT PRES REV | F46: =IF(F42=0,0,ROUND(F45/F42,5)) -> -0.15433 | G46: -0.15426 | H46: -0.1543 | I46: -0.15437 | J46: =IF(J42=0,0,ROUND(J45/J42,5)) -> -0.15371 | K46: -0.15442 | L46: =IF(F42=0,0,ROUND(F45/L42,5)) -> -0.9348 | M46: =IF(F42=0,0,ROUND(F45/M42,5)) -> -1.34274 | N46: -0.15441 | O46: -0.15517 | P46: -0.15504 | Q46: -0.15423 | R46: -0.15433 | S46: 0
A48: =co_name -> DUKE ENERGY KENTUCKY, INC. | R48: =R1 -> FR-16(7)(v)-4
A49: =$A$2 -> PRODUCTION ENERGY ALLOCATED - ELECTRIC COST OF SERVICE | R49: =R2 -> WITNESS RESPONSIBLE:
A50: =case_name -> CASE NO: 2019-00271 | R50: =Witness -> JAMES E. ZIOLKOWSKI
A51: =data_filing -> DATA: 12 MONTHS ACTUAL & 0 MONTHS ESTIMATED | R51: ="PAGE "&Pages-16&" OF "&Pages -> PAGE 2 OF 18
A52: =type -> TYPE OF FILING: "X" ORIGINAL UPDATED REVISED
F54: =F$7 -> TOTAL | H54: =H$7 -> DS | I54: =I$7 -> GSFL | J54: =J$7 -> EH | K54: =K$7 -> SP | L54: DT SEC | M54: DT PRI | N54: DP | O54: TT | Q54: OTHER
A55: LINE | F55: =F$8 -> PRODUCTION | G55: =G$8 -> RS | H55: =H$8 -> SECONDARY | I55: =I$8 -> SECONDARY | J55: =J$8 -> SECONDARY | K55: =K$8 -> SECONDARY | L55: SECONDARY | M55: PRIMARY | N55: PRIMARY | O55: TRANSMISSION | P55: LT | Q55: WATER | R55: =R8 -> TOTAL | S55: ALL
A56: NO. | B56: GROSS ELECTRIC PLANT IN SERVICE | D56: ALLO | F56: =F$9 -> ENERGY | G56: =G$9 -> RESIDENTIAL | H56: =H$9 -> DISTRIBUTION | I56: =I$9 -> DISTRIBUTION | J56: =J$9 -> DISTRIBUTION | K56: =K$9 -> DISTRIBUTION | L56: DISTRIBUTION | M56: DISTRIBUTION | N56: DISTRIBUTION | O56: TIME OF DAY | P56: LIGHTING | Q56: PUMPING | R56: =R9 -> AT ISSUE | S56: OTHER
C57: Schedule 2 | G57: =G$10 -> 3 | H57: =H$10 -> 4 | I57: =I$10 -> 5 | J57: =J$10 -> 6 | K57: =K$10 -> 7 | L57: 8 | M57: 9 | N57: 10 | O57: 11 | P57: 12 | Q57: 13
A58: 1 | B58: PRODUCTION PLANT
A59: 2 | C59: PRODUCTION STEAM | D59: ='FR-16(7)(v)-1 Functional'!D59 -> K201 | F59: ='FR-16(7)(v)-2 PROD Classified'!H59 -> 0 | G59: =F59-SUM(H59:Q59) -> 0 | H59: =ROUND(F59*VLOOKUP(D59,ALLOCTABLE_Prod_Energy,$H$10,FALSE),0) -> 0 | I59: =ROUND(F59*VLOOKUP(D59,ALLOCTABLE_Prod_Energy,$I$10,FALSE),0) -> 0 | J59: =ROUND(F59*VLOOKUP(D59,ALLOCTABLE_Prod_Energy,$J$10,FALSE),0) -> 0 | K59: =ROUND(F59*VLOOKUP(D59,ALLOCTABLE_Prod_Energy,$K$10,FALSE),0) -> 0 | L59: =ROUND(F59*VLOOKUP(D59,ALLOCTABLE_Prod_Energy,$L$10,FALSE),0) -> 0 | M59: =ROUND(F59*VLOOKUP(D59,ALLOCTABLE_Prod_Energy,$M$10,FALSE),0) -> 0 | N59: =ROUND(F59*VLOOKUP(D59,ALLOCTABLE_Prod_Energy,$N$10,FALSE),0) -> 0 | O59: =ROUND(F59*VLOOKUP(D59,ALLOCTABLE_Prod_Energy,$O$10,FALSE),0) -> 0 | P59: =ROUND(F59*VLOOKUP(D59,ALLOCTABLE_Prod_Energy,$P$10,FALSE),0) -> 0 | Q59: =ROUND(F59*VLOOKUP(D59,ALLOCTABLE_Prod_Energy,$Q$10,FALSE),0) -> 0 | R59: =SUM(G59:Q59) -> 0 | S59: =F59-R59 -> 0
A60: 3 | C60: PRODUCTION OTHER | D60: ='FR-16(7)(v)-1 Functional'!D60 -> K201 | F60: ='FR-16(7)(v)-2 PROD Classified'!H60 -> 0 | G60: =F60-SUM(H60:Q60) -> 0 | H60: =ROUND(F60*VLOOKUP(D60,ALLOCTABLE_Prod_Energy,$H$10,FALSE),0) -> 0 | I60: =ROUND(F60*VLOOKUP(D60,ALLOCTABLE_Prod_Energy,$I$10,FALSE),0) -> 0 | J60: =ROUND(F60*VLOOKUP(D60,ALLOCTABLE_Prod_Energy,$J$10,FALSE),0) -> 0 | K60: =ROUND(F60*VLOOKUP(D60,ALLOCTABLE_Prod_Energy,$K$10,FALSE),0) -> 0 | L60: =ROUND(F60*VLOOKUP(D60,ALLOCTABLE_Prod_Energy,$L$10,FALSE),0) -> 0 | M60: =ROUND(F60*VLOOKUP(D60,ALLOCTABLE_Prod_Energy,$M$10,FALSE),0) -> 0 | N60: =ROUND(F60*VLOOKUP(D60,ALLOCTABLE_Prod_Energy,$N$10,FALSE),0) -> 0 | O60: =ROUND(F60*VLOOKUP(D60,ALLOCTABLE_Prod_Energy,$O$10,FALSE),0) -> 0 | P60: =ROUND(F60*VLOOKUP(D60,ALLOCTABLE_Prod_Energy,$P$10,FALSE),0) -> 0 | Q60: =ROUND(F60*VLOOKUP(D60,ALLOCTABLE_Prod_Energy,$Q$10,FALSE),0) -> 0 | R60: =SUM(G60:Q60) -> 0 | S60: =F60-R60 -> 0
A61: 4 | C61: ='FR-16(7)(v)-1 Functional'!C61 -> ADJUSTMENT | D61: ='FR-16(7)(v)-1 Functional'!D61 -> K201 | F61: ='FR-16(7)(v)-2 PROD Classified'!H61 -> 0 | G61: =F61-SUM(H61:Q61) -> 0 | H61: =ROUND(F61*VLOOKUP(D61,ALLOCTABLE_Prod_Energy,$H$10,FALSE),0) -> 0 | I61: =ROUND(F61*VLOOKUP(D61,ALLOCTABLE_Prod_Energy,$I$10,FALSE),0) -> 0 | J61: =ROUND(F61*VLOOKUP(D61,ALLOCTABLE_Prod_Energy,$J$10,FALSE),0) -> 0 | K61: =ROUND(F61*VLOOKUP(D61,ALLOCTABLE_Prod_Energy,$K$10,FALSE),0) -> 0 | L61: =ROUND(F61*VLOOKUP(D61,ALLOCTABLE_Prod_Energy,$L$10,FALSE),0) -> 0 | M61: =ROUND(F61*VLOOKUP(D61,ALLOCTABLE_Prod_Energy,$M$10,FALSE),0) -> 0 | N61: =ROUND(F61*VLOOKUP(D61,ALLOCTABLE_Prod_Energy,$N$10,FALSE),0) -> 0 | O61: =ROUND(F61*VLOOKUP(D61,ALLOCTABLE_Prod_Energy,$O$10,FALSE),0) -> 0 | P61: =ROUND(F61*VLOOKUP(D61,ALLOCTABLE_Prod_Energy,$P$10,FALSE),0) -> 0 | Q61: =ROUND(F61*VLOOKUP(D61,ALLOCTABLE_Prod_Energy,$Q$10,FALSE),0) -> 0 | R61: =SUM(G61:Q61) -> 0 | S61: =F61-R61 -> 0
A62: 5 | C62: ='FR-16(7)(v)-1 Functional'!C62 -> PRODUCTION PLANT IN SERVICE | F62: =SUM(F59:F61) -> 0 | G62: =SUM(G59:G61) -> 0 | H62: =SUM(H59:H61) -> 0 | I62: =SUM(I59:I61) -> 0 | J62: =SUM(J59:J61) -> 0 | K62: 0 | L62: 0 | M62: 0 | N62: 0 | O62: 0 | P62: 0 | Q62: =SUM($Q$59:$Q$61) -> 0 | R62: =SUM(R59:R61) -> 0 | S62: =SUM(S59:S61) -> 0
A63: 6
A64: 7 | B64: TRANSMISSION PLANT
A65: 8 | C65: MAIN STEP-UP TRANSFORMERS | D65: ='FR-16(7)(v)-1 Functional'!D65 -> K202 | F65: ='FR-16(7)(v)-2 PROD Classified'!H65 -> 0 | G65: =F65-SUM(H65:Q65) -> 0 | H65: =ROUND(F65*VLOOKUP(D65,ALLOCTABLE_Prod_Energy,$H$10,FALSE),0) -> 0 | I65: =ROUND(F65*VLOOKUP(D65,ALLOCTABLE_Prod_Energy,$I$10,FALSE),0) -> 0 | J65: =ROUND(F65*VLOOKUP(D65,ALLOCTABLE_Prod_Energy,$J$10,FALSE),0) -> 0 | K65: =ROUND(F65*VLOOKUP(D65,ALLOCTABLE_Prod_Energy,$K$10,FALSE),0) -> 0 | L65: =ROUND(F65*VLOOKUP(D65,ALLOCTABLE_Prod_Energy,$L$10,FALSE),0) -> 0 | M65: =ROUND(F65*VLOOKUP(D65,ALLOCTABLE_Prod_Energy,$M$10,FALSE),0) -> 0 | N65: =ROUND(F65*VLOOKUP(D65,ALLOCTABLE_Prod_Energy,$N$10,FALSE),0) -> 0 | O65: =ROUND(F65*VLOOKUP(D65,ALLOCTABLE_Prod_Energy,$O$10,FALSE),0) -> 0 | P65: =ROUND(F65*VLOOKUP(D65,ALLOCTABLE_Prod_Energy,$P$10,FALSE),0) -> 0 | Q65: =ROUND(F65*VLOOKUP(D65,ALLOCTABLE_Prod_Energy,$Q$10,FALSE),0) -> 0 | R65: =SUM(G65:Q65) -> 0 | S65: =F65-R65 -> 0
A66: 9 | C66: OTHER TRANSMISSION | D66: ='FR-16(7)(v)-1 Functional'!D66 -> K202 | F66: ='FR-16(7)(v)-2 PROD Classified'!H66 -> 0 | G66: =F66-SUM(H66:Q66) -> 0 | H66: =ROUND(F66*VLOOKUP(D66,ALLOCTABLE_Prod_Energy,$H$10,FALSE),0) -> 0 | I66: =ROUND(F66*VLOOKUP(D66,ALLOCTABLE_Prod_Energy,$I$10,FALSE),0) -> 0 | J66: =ROUND(F66*VLOOKUP(D66,ALLOCTABLE_Prod_Energy,$J$10,FALSE),0) -> 0 | K66: =ROUND(F66*VLOOKUP(D66,ALLOCTABLE_Prod_Energy,$K$10,FALSE),0) -> 0 | L66: =ROUND(F66*VLOOKUP(D66,ALLOCTABLE_Prod_Energy,$L$10,FALSE),0) -> 0 | M66: =ROUND(F66*VLOOKUP(D66,ALLOCTABLE_Prod_Energy,$M$10,FALSE),0) -> 0 | N66: =ROUND(F66*VLOOKUP(D66,ALLOCTABLE_Prod_Energy,$N$10,FALSE),0) -> 0 | O66: =ROUND(F66*VLOOKUP(D66,ALLOCTABLE_Prod_Energy,$O$10,FALSE),0) -> 0 | P66: =ROUND(F66*VLOOKUP(D66,ALLOCTABLE_Prod_Energy,$P$10,FALSE),0) -> 0 | Q66: =ROUND(F66*VLOOKUP(D66,ALLOCTABLE_Prod_Energy,$Q$10,FALSE),0) -> 0 | R66: =SUM(G66:Q66) -> 0 | S66: =F66-R66 -> 0
A67: 10 | C67: ADJUSTMENT | D67: ='FR-16(7)(v)-1 Functional'!D67 -> K202 | F67: ='FR-16(7)(v)-2 PROD Classified'!H67 -> 0 | G67: =F67-SUM(H67:Q67) -> 0 | H67: =ROUND(F67*VLOOKUP(D67,ALLOCTABLE_Prod_Energy,$H$10,FALSE),0) -> 0 | I67: =ROUND(F67*VLOOKUP(D67,ALLOCTABLE_Prod_Energy,$I$10,FALSE),0) -> 0 | J67: =ROUND(F67*VLOOKUP(D67,ALLOCTABLE_Prod_Energy,$J$10,FALSE),0) -> 0 | K67: =ROUND(F67*VLOOKUP(D67,ALLOCTABLE_Prod_Energy,$K$10,FALSE),0) -> 0 | L67: =ROUND(F67*VLOOKUP(D67,ALLOCTABLE_Prod_Energy,$L$10,FALSE),0) -> 0 | M67: =ROUND(F67*VLOOKUP(D67,ALLOCTABLE_Prod_Energy,$M$10,FALSE),0) -> 0 | N67: =ROUND(F67*VLOOKUP(D67,ALLOCTABLE_Prod_Energy,$N$10,FALSE),0) -> 0 | O67: =ROUND(F67*VLOOKUP(D67,ALLOCTABLE_Prod_Energy,$O$10,FALSE),0) -> 0 | P67: =ROUND(F67*VLOOKUP(D67,ALLOCTABLE_Prod_Energy,$P$10,FALSE),0) -> 0 | Q67: =ROUND(F67*VLOOKUP(D67,ALLOCTABLE_Prod_Energy,$Q$10,FALSE),0) -> 0 | R67: =SUM(G67:Q67) -> 0 | S67: =F67-R67 -> 0
A68: 11 | C68: ='FR-16(7)(v)-1 Functional'!C68 -> TRANSMISSION PLANT IN SERVICE | F68: =SUM(F65:F67) -> 0 | G68: 0 | H68: 0 | I68: 0 | J68: 0 | K68: 0 | L68: 0 | M68: 0 | N68: 0 | O68: 0 | P68: 0 | Q68: 0 | R68: 0 | S68: =SUM(S65) -> 0
A69: 12
A70: 13 | B70: TOTAL PROD & TRANS PLANT | F70: =F68+F62 -> 0 | G70: =G68+G62 -> 0 | H70: =H68+H62 -> 0 | I70: =I68+I62 -> 0 | J70: =J68+J62 -> 0 | K70: 0 | L70: 0 | M70: 0 | N70: 0 | O70: 0 | P70: 0 | Q70: =$Q$68+$Q$62 -> 0 | R70: =R68+R62 -> 0 | S70: =S68+S62 -> 0
A71: 14
A72: 15 | B72: DISTRIBUTION PLANT
A73: 16 | C73: ='FR-16(7)(v)-1 Functional'!C73 -> SUBSTATIONS | D73: ='FR-16(7)(v)-1 Functional'!D73 -> K215 | F73: ='FR-16(7)(v)-2 PROD Classified'!H73 -> 0 | G73: =F73-SUM(H73:Q73) -> 0 | H73: =ROUND(F73*VLOOKUP(D73,ALLOCTABLE_Prod_Energy,$H$10,FALSE),0) -> 0 | I73: =ROUND(F73*VLOOKUP(D73,ALLOCTABLE_Prod_Energy,$I$10,FALSE),0) -> 0 | J73: =ROUND(F73*VLOOKUP(D73,ALLOCTABLE_Prod_Energy,$J$10,FALSE),0) -> 0 | K73: =ROUND(F73*VLOOKUP(D73,ALLOCTABLE_Prod_Energy,$K$10,FALSE),0) -> 0 | L73: =ROUND(F73*VLOOKUP(D73,ALLOCTABLE_Prod_Energy,$L$10,FALSE),0) -> 0 | M73: =ROUND(F73*VLOOKUP(D73,ALLOCTABLE_Prod_Energy,$M$10,FALSE),0) -> 0 | N73: =ROUND(F73*VLOOKUP(D73,ALLOCTABLE_Prod_Energy,$N$10,FALSE),0) -> 0 | O73: =ROUND(F73*VLOOKUP(D73,ALLOCTABLE_Prod_Energy,$O$10,FALSE),0) -> 0 | P73: =ROUND(F73*VLOOKUP(D73,ALLOCTABLE_Prod_Energy,$P$10,FALSE),0) -> 0 | Q73: =ROUND(F73*VLOOKUP(D73,ALLOCTABLE_Prod_Energy,$Q$10,FALSE),0) -> 0 | R73: =SUM(G73:Q73) -> 0 | S73: =F73-R73 -> 0
A74: 17 | C74: ='FR-16(7)(v)-1 Functional'!C74 -> POLES, TOWERS & FIXTURES - PRIMARY - DEMAND | D74: ='FR-16(7)(v)-1 Functional'!D74 -> K205 | F74: ='FR-16(7)(v)-2 PROD Classified'!H74 -> 0 | G74: =F74-SUM(H74:Q74) -> 0 | H74: =ROUND(F74*VLOOKUP(D74,ALLOCTABLE_Prod_Energy,$H$10,FALSE),0) -> 0 | I74: 0 | J74: 0 | K74: 0 | L74: 0 | M74: 0 | N74: 0 | O74: 0 | P74: 0 | Q74: =ROUND(F74*VLOOKUP(D74,ALLOCTABLE_Prod_Energy,$Q$10,FALSE),0) -> 0 | R74: =SUM(G74:Q74) -> 0 | S74: =F74-R74 -> 0
A75: 18 | C75: ='FR-16(7)(v)-1 Functional'!C75 -> POLES, TOWERS & FIXTURES - PRIMARY - CUSTOMER | D75: ='FR-16(7)(v)-1 Functional'!D75 -> K405 | F75: ='FR-16(7)(v)-2 PROD Classified'!H75 -> 0 | G75: =F75-SUM(H75:Q75) -> 0 | H75: =ROUND(F75*VLOOKUP(D75,ALLOCTABLE_Prod_Energy,$H$10,FALSE),0) -> 0 | I75: 0 | J75: 0 | K75: 0 | L75: 0 | M75: 0 | N75: 0 | O75: 0 | P75: 0 | Q75: =ROUND(F75*VLOOKUP(D75,ALLOCTABLE_Prod_Energy,$Q$10,FALSE),0) -> 0 | R75: =SUM(G75:Q75) -> 0 | S75: =F75-R75 -> 0
A76: 19 | C76: ='FR-16(7)(v)-1 Functional'!C76 -> POLES, TOWERS & FIXTURES - SECONDARY - DEMAND | D76: ='FR-16(7)(v)-1 Functional'!D76 -> K206 | F76: ='FR-16(7)(v)-2 PROD Classified'!H76 -> 0 | G76: 0 | H76: 0 | I76: 0 | J76: 0 | K76: 0 | L76: 0 | M76: 0 | N76: 0 | O76: 0 | P76: 0 | Q76: 0 | R76: 0 | S76: 0
A77: 20 | C77: ='FR-16(7)(v)-1 Functional'!C77 -> POLES, TOWERS & FIXTURES - SECONDARY - CUSTOMER | D77: ='FR-16(7)(v)-1 Functional'!D77 -> K405 | F77: ='FR-16(7)(v)-2 PROD Classified'!H77 -> 0 | G77: 0 | H77: 0 | I77: 0 | J77: 0 | K77: 0 | L77: 0 | M77: 0 | N77: 0 | O77: 0 | P77: 0 | Q77: 0 | R77: 0 | S77: 0
A78: 21 | C78: ='FR-16(7)(v)-1 Functional'!C78 -> CONDUCTORS - OVERHEAD / PRIMARY - DEMAND | D78: ='FR-16(7)(v)-1 Functional'!D78 -> K205 | F78: ='FR-16(7)(v)-2 PROD Classified'!H78 -> 0 | G78: 0 | H78: 0 | I78: 0 | J78: 0 | K78: 0 | L78: 0 | M78: 0 | N78: 0 | O78: 0 | P78: 0 | Q78: 0 | R78: 0 | S78: 0
A79: 22 | C79: ='FR-16(7)(v)-1 Functional'!C79 -> CONDUCTORS - OVERHEAD / PRIMARY - CUSTOMER | D79: ='FR-16(7)(v)-1 Functional'!D79 -> K405 | F79: ='FR-16(7)(v)-2 PROD Classified'!H79 -> 0 | G79: 0 | H79: 0 | I79: 0 | J79: 0 | K79: 0 | L79: 0 | M79: 0 | N79: 0 | O79: 0 | P79: 0 | Q79: 0 | R79: 0 | S79: 0
A80: 23 | C80: ='FR-16(7)(v)-1 Functional'!C80 -> CONDUCTORS - OVERHEAD / SECONDARY - DEMAND | D80: ='FR-16(7)(v)-1 Functional'!D80 -> K206 | F80: ='FR-16(7)(v)-2 PROD Classified'!H80 -> 0 | G80: 0 | H80: 0 | I80: 0 | J80: 0 | K80: 0 | L80: 0 | M80: 0 | N80: 0 | O80: 0 | P80: 0 | Q80: 0 | R80: 0 | S80: 0
A81: 24 | C81: ='FR-16(7)(v)-1 Functional'!C81 -> CONDUCTORS - OVERHEAD / SECONDARY - CUSTOMER | D81: ='FR-16(7)(v)-1 Functional'!D81 -> K405 | F81: ='FR-16(7)(v)-2 PROD Classified'!H81 -> 0 | G81: 0 | H81: 0 | I81: 0 | J81: 0 | K81: 0 | L81: 0 | M81: 0 | N81: 0 | O81: 0 | P81: 0 | Q81: 0 | R81: 0 | S81: 0
A82: 25 | C82: ='FR-16(7)(v)-1 Functional'!C82 -> CONDUCTORS - UNDERGROUND / PRIMARY - DEMAND | D82: ='FR-16(7)(v)-1 Functional'!D82 -> K205 | F82: ='FR-16(7)(v)-2 PROD Classified'!H82 -> 0 | G82: 0 | H82: 0 | I82: 0 | J82: 0 | K82: 0 | L82: 0 | M82: 0 | N82: 0 | O82: 0 | P82: 0 | Q82: 0 | R82: 0 | S82: 0
A83: 26 | C83: ='FR-16(7)(v)-1 Functional'!C83 -> CONDUCTORS - UNDERGROUND / PRIMARY - CUSTOMER | D83: ='FR-16(7)(v)-1 Functional'!D83 -> K405 | F83: ='FR-16(7)(v)-2 PROD Classified'!H83 -> 0 | G83: 0 | H83: 0 | I83: 0 | J83: 0 | K83: 0 | L83: 0 | M83: 0 | N83: 0 | O83: 0 | P83: 0 | Q83: 0 | R83: 0 | S83: 0
A84: 27 | C84: ='FR-16(7)(v)-1 Functional'!C84 -> CONDUCTORS - UNDERGROUND / SECONDARY - DEMAND | D84: ='FR-16(7)(v)-1 Functional'!D84 -> K206 | F84: ='FR-16(7)(v)-2 PROD Classified'!H84 -> 0 | G84: 0 | H84: 0 | I84: 0 | J84: 0 | K84: 0 | L84: 0 | M84: 0 | N84: 0 | O84: 0 | P84: 0 | Q84: 0 | R84: 0 | S84: 0
A85: 28 | C85: ='FR-16(7)(v)-1 Functional'!C85 -> CONDUCTORS - UNDERGROUND / SECONDARY - CUSTOMER | D85: ='FR-16(7)(v)-1 Functional'!D85 -> K405 | F85: ='FR-16(7)(v)-2 PROD Classified'!H85 -> 0 | G85: 0 | H85: 0 | I85: 0 | J85: 0 | K85: 0 | L85: 0 | M85: 0 | N85: 0 | O85: 0 | P85: 0 | Q85: =ROUND(F85*VLOOKUP(D85,ALLOCTABLE_Prod_Energy,$Q$10,FALSE),0) -> 0 | R85: =SUM(G85:Q85) -> 0 | S85: 0
A86: 29 | C86: ='FR-16(7)(v)-1 Functional'!C86 -> TRANSFORMERS DEMAND RELATED | D86: ='FR-16(7)(v)-1 Functional'!D86 -> K215 | F86: ='FR-16(7)(v)-2 PROD Classified'!H86 -> 0 | G86: =F86-SUM(H86:Q86) -> 0 | H86: =ROUND(F86*VLOOKUP(D86,ALLOCTABLE_Prod_Energy,$H$10,FALSE),0) -> 0 | I86: 0 | J86: 0 | K86: 0 | L86: 0 | M86: 0 | N86: 0 | O86: 0 | P86: 0 | Q86: 0 | R86: 0 | S86: =F86-R86 -> 0
A87: 30 | C87: ='FR-16(7)(v)-1 Functional'!C87 -> TRANSFORMERS CUSTOMER RELATED | D87: ='FR-16(7)(v)-1 Functional'!D87 -> K405 | F87: ='FR-16(7)(v)-2 PROD Classified'!H87 -> 0 | G87: 0 | H87: 0 | I87: =ROUND(F87*VLOOKUP(D86,ALLOCTABLE_Prod_Energy,$I$10,FALSE),0) -> 0 | J87: =ROUND(F87*VLOOKUP(D86,ALLOCTABLE_Prod_Energy,$J$10,FALSE),0) -> 0 | K87: =ROUND(F87*VLOOKUP(D86,ALLOCTABLE_Prod_Energy,$K$10,FALSE),0) -> 0 | L87: =ROUND(F87*VLOOKUP(D86,ALLOCTABLE_Prod_Energy,$L$10,FALSE),0) -> 0 | M87: =ROUND(F87*VLOOKUP(D86,ALLOCTABLE_Prod_Energy,$M$10,FALSE),0) -> 0 | N87: =ROUND(F87*VLOOKUP(D86,ALLOCTABLE_Prod_Energy,$N$10,FALSE),0) -> 0 | O87: =ROUND(F87*VLOOKUP(D86,ALLOCTABLE_Prod_Energy,$O$10,FALSE),0) -> 0 | P87: 0 | Q87: 0 | R87: 0 | S87: 0
A88: 31 | C88: ='FR-16(7)(v)-1 Functional'!C88 -> SERVICES | D88: ='FR-16(7)(v)-1 Functional'!D88 -> K217 | F88: ='FR-16(7)(v)-2 PROD Classified'!H88 -> 0 | G88: 0 | H88: 0 | I88: =ROUND(F88*VLOOKUP(D88,ALLOCTABLE_Prod_Energy,$I$10,FALSE),0) -> 0 | J88: =ROUND(F88*VLOOKUP(D88,ALLOCTABLE_Prod_Energy,$J$10,FALSE),0) -> 0 | K88: =ROUND(F88*VLOOKUP(D88,ALLOCTABLE_Prod_Energy,$K$10,FALSE),0) -> 0 | L88: =ROUND(F88*VLOOKUP(D88,ALLOCTABLE_Prod_Energy,$L$10,FALSE),0) -> 0 | M88: =ROUND(F88*VLOOKUP(D88,ALLOCTABLE_Prod_Energy,$M$10,FALSE),0) -> 0 | N88: =ROUND(F88*VLOOKUP(D88,ALLOCTABLE_Prod_Energy,$N$10,FALSE),0) -> 0 | O88: =ROUND(F88*VLOOKUP(D88,ALLOCTABLE_Prod_Energy,$O$10,FALSE),0) -> 0 | P88: 0 | Q88: 0 | R88: 0 | S88: 0
A89: 32 | C89: ='FR-16(7)(v)-1 Functional'!C89 -> METERS | D89: ='FR-16(7)(v)-1 Functional'!D89 -> K407 | F89: ='FR-16(7)(v)-2 PROD Classified'!H89 -> 0 | G89: 0 | H89: 0 | I89: 0 | J89: 0 | K89: 0 | L89: =ROUND(F89*VLOOKUP(D89,ALLOCTABLE_Prod_Energy,$L$10,FALSE),0) -> 0 | M89: =ROUND(F89*VLOOKUP(D89,ALLOCTABLE_Prod_Energy,$M$10,FALSE),0) -> 0 | N89: =ROUND(F89*VLOOKUP(D89,ALLOCTABLE_Prod_Energy,$N$10,FALSE),0) -> 0 | O89: =ROUND(F89*VLOOKUP(D89,ALLOCTABLE_Prod_Energy,$O$10,FALSE),0) -> 0 | P89: 0 | Q89: 0 | R89: 0 | S89: 0
A90: 33 | C90: ='FR-16(7)(v)-1 Functional'!C90 -> STREET LIGHTS | D90: ='FR-16(7)(v)-1 Functional'!D90 -> K401 | F90: ='FR-16(7)(v)-2 PROD Classified'!H90 -> 0 | G90: 0 | H90: 0 | I90: 0 | J90: 0 | K90: 0 | L90: =ROUND(F90*VLOOKUP(D90,ALLOCTABLE_Prod_Energy,$L$10,FALSE),0) -> 0 | M90: =ROUND(F90*VLOOKUP(D90,ALLOCTABLE_Prod_Energy,$M$10,FALSE),0) -> 0 | N90: =ROUND(F90*VLOOKUP(D90,ALLOCTABLE_Prod_Energy,$N$10,FALSE),0) -> 0 | O90: =ROUND(F90*VLOOKUP(D90,ALLOCTABLE_Prod_Energy,$O$10,FALSE),0) -> 0 | P90: 0 | Q90: 0 | R90: 0 | S90: 0
A91: 34 | C91: ='FR-16(7)(v)-1 Functional'!C91 -> ADJUSTMENT | D91: ='FR-16(7)(v)-1 Functional'!D91 -> K209 | F91: ='FR-16(7)(v)-2 PROD Classified'!H91 -> 0 | G91: 0 | H91: 0 | I91: 0 | J91: 0 | K91: 0 | L91: =ROUND(F91*VLOOKUP(D91,ALLOCTABLE_Prod_Energy,$L$10,FALSE),0) -> 0 | M91: =ROUND(F91*VLOOKUP(D91,ALLOCTABLE_Prod_Energy,$M$10,FALSE),0) -> 0 | N91: =ROUND(F91*VLOOKUP(D91,ALLOCTABLE_Prod_Energy,$N$10,FALSE),0) -> 0 | O91: =ROUND(F91*VLOOKUP(D91,ALLOCTABLE_Prod_Energy,$O$10,FALSE),0) -> 0 | P91: 0 | Q91: 0 | R91: 0 | S91: 0
A92: 35 | C92: ='FR-16(7)(v)-1 Functional'!C92 -> CONSTRUCTION NOT CLASSIFIED | D92: ='FR-16(7)(v)-1 Functional'!D92 -> K209 | F92: ='FR-16(7)(v)-2 PROD Classified'!H92 -> 0 | G92: 0 | H92: 0 | I92: 0 | J92: 0 | K92: 0 | L92: =ROUND(F92*VLOOKUP(D92,ALLOCTABLE_Prod_Energy,$L$10,FALSE),0) -> 0 | M92: =ROUND(F92*VLOOKUP(D92,ALLOCTABLE_Prod_Energy,$M$10,FALSE),0) -> 0 | N92: =ROUND(F92*VLOOKUP(D92,ALLOCTABLE_Prod_Energy,$N$10,FALSE),0) -> 0 | O92: =ROUND(F92*VLOOKUP(D92,ALLOCTABLE_Prod_Energy,$O$10,FALSE),0) -> 0 | P92: 0 | Q92: 0 | R92: 0 | S92: 0
A93: 36 | C93: ='FR-16(7)(v)-1 Functional'!C93 -> RWIP | D93: ='FR-16(7)(v)-1 Functional'!D93 -> K215 | F93: ='FR-16(7)(v)-2 PROD Classified'!H93 -> 0 | G93: =F93-SUM(H93:Q93) -> 0 | H93: =ROUND(F93*VLOOKUP(D93,ALLOCTABLE_Prod_Energy,$H$10,FALSE),0) -> 0 | I93: 0 | J93: 0 | K93: 0
A94: 37 | C94: ='FR-16(7)(v)-1 Functional'!C94 -> DISTRIBUTION PLANT IN SERVICE | F94: =SUM(F73:F93) -> 0 | G94: =SUM(G73:G92) -> 0 | H94: =SUM(H73:H92) -> 0 | I94: =SUM(I73:I92) -> 0 | J94: =SUM(J73:J92) -> 0 | K94: 0 | L94: 0 | M94: 0 | N94: 0 | O94: 0 | P94: 0 | Q94: =SUM(Q73:Q92) -> 0 | R94: =SUM(R73:R92) -> 0 | S94: =SUM(S73:S92) -> 0
A95: 38
A96: 39 | B96: TOTAL TRANS & DIST PLANT | F96: =F94+F68 -> 0 | G96: =G94+G68 -> 0 | H96: =H94+H68 -> 0 | I96: =I94+I68 -> 0 | J96: =J94+J68 -> 0 | K96: 0 | L96: 0 | M96: 0 | N96: 0 | O96: 0 | P96: 0 | Q96: =Q94+$Q$68 -> 0 | R96: =R94+R68 -> 0 | S96: =S94+S68 -> 0
A97: 40 | B97: TOTAL GROSS PTD PLANT | F97: =F94+F70 -> 0 | G97: =G94+G70 -> 0 | H97: =H94+H70 -> 0 | I97: =I94+I70 -> 0 | J97: =J94+J70 -> 0 | K97: 0 | L97: 0 | M97: 0 | N97: 0 | O97: 0 | P97: 0 | Q97: =Q94+Q70 -> 0 | R97: =R94+R70 -> 0 | S97: =S94+S70 -> 0
A98: 41
A99: 42 | B99: GENERAL & INTANGIBLE PLANT
A100: 43 | C100: ='FR-16(7)(v)-1 Functional'!C100 -> PRODUCTION - DEMAND | D100: ='FR-16(7)(v)-1 Functional'!D100 -> K201 | F100: ='FR-16(7)(v)-2 PROD Classified'!H100 -> 0 | G100: =F100-SUM(H100:Q100) -> 0 | H100: =ROUND(F100*VLOOKUP(D100,ALLOCTABLE_Prod_Energy,$H$10,FALSE),0) -> 0 | I100: =ROUND(F100*VLOOKUP(D100,ALLOCTABLE_Prod_Energy,$I$10,FALSE),0) -> 0 | J100: =ROUND(F100*VLOOKUP(D100,ALLOCTABLE_Prod_Energy,$J$10,FALSE),0) -> 0 | K100: =ROUND(F100*VLOOKUP(D100,ALLOCTABLE_Prod_Energy,$K$10,FALSE),0) -> 0 | L100: =ROUND(F100*VLOOKUP(D100,ALLOCTABLE_Prod_Energy,$L$10,FALSE),0) -> 0 | M100: =ROUND(F100*VLOOKUP(D100,ALLOCTABLE_Prod_Energy,$M$10,FALSE),0) -> 0 | N100: =ROUND(F100*VLOOKUP(D100,ALLOCTABLE_Prod_Energy,$N$10,FALSE),0) -> 0 | O100: =ROUND(F100*VLOOKUP(D100,ALLOCTABLE_Prod_Energy,$O$10,FALSE),0) -> 0 | P100: =ROUND(F100*VLOOKUP(D100,ALLOCTABLE_Prod_Energy,$P$10,FALSE),0) -> 0 | Q100: =ROUND(F100*VLOOKUP(D100,ALLOCTABLE_Prod_Energy,$Q$10,FALSE),0) -> 0 | R100: =SUM(G100:Q100) -> 0 | S100: =F100-R100 -> 0
A101: 44 | C101: ='FR-16(7)(v)-1 Functional'!C101 -> PRODUCTION - ENERGY | D101: ='FR-16(7)(v)-1 Functional'!D101 -> K301 | F101: ='FR-16(7)(v)-2 PROD Classified'!H101 -> 19517654 | G101: 7367133 | H101: 5256495 | I101: 29472 | J101: 83536 | K101: 1366 | L101: 3220608 | M101: 2236918 | N101: 104810 | O101: 1130072 | P101: 85097 | Q101: 2147 | R101: 19517654 | S101: 0
A102: 45 | C102: ='FR-16(7)(v)-1 Functional'!C102 -> TRANSMISSION | D102: ='FR-16(7)(v)-1 Functional'!D102 -> K202 | F102: ='FR-16(7)(v)-2 PROD Classified'!H102 -> 0 | G102: 0 | H102: 0 | I102: 0 | J102: 0 | K102: 0 | L102: 0 | M102: 0 | N102: 0 | O102: 0 | P102: 0 | Q102: 0 | R102: 0 | S102: 0
A103: 46 | C103: ='FR-16(7)(v)-1 Functional'!C103 -> DISTRIBUTION - DEMAND | D103: ='FR-16(7)(v)-1 Functional'!D103 -> K201 | F103: ='FR-16(7)(v)-2 PROD Classified'!H103 -> 0 | G103: 0 | H103: 0 | I103: 0 | J103: 0 | K103: 0 | L103: 0 | M103: 0 | N103: 0 | O103: 0 | P103: 0 | Q103: 0 | R103: 0 | S103: 0
A104: 47 | C104: ='FR-16(7)(v)-1 Functional'!C104 -> DISTRIBUTION - CUSTOMER | D104: ='FR-16(7)(v)-1 Functional'!D104 -> K405 | F104: ='FR-16(7)(v)-2 PROD Classified'!H104 -> 0 | G104: 0 | H104: 0 | I104: 0 | J104: 0 | K104: 0 | L104: 0 | M104: 0 | N104: 0 | O104: 0 | P104: 0 | Q104: 0 | R104: 0 | S104: 0
A105: 48 | C105: ='FR-16(7)(v)-1 Functional'!C105 -> CUSTOMER ACCOUNTING | D105: ='FR-16(7)(v)-1 Functional'!D105 -> A308 | F105: ='FR-16(7)(v)-2 PROD Classified'!H105 -> 0 | G105: 0 | H105: 0 | I105: 0 | J105: 0 | K105: 0 | L105: 0 | M105: 0 | N105: 0 | O105: 0 | P105: 0 | Q105: 0 | R105: 0 | S105: 0
A106: 49 | C106: ='FR-16(7)(v)-1 Functional'!C106 -> CUSTOMER SERVICE & INFORMATION | D106: ='FR-16(7)(v)-1 Functional'!D106 -> A310 | F106: ='FR-16(7)(v)-2 PROD Classified'!H106 -> 0 | G106: 0 | H106: 0 | I106: 0 | J106: 0 | K106: 0 | L106: 0 | M106: 0 | N106: 0 | O106: 0 | P106: 0 | Q106: 0 | R106: 0 | S106: 0
A107: 50 | C107: ='FR-16(7)(v)-1 Functional'!C107 -> SALES | D107: ='FR-16(7)(v)-1 Functional'!D107 -> A312 | F107: ='FR-16(7)(v)-2 PROD Classified'!H107 -> 0 | G107: 0 | H107: 0 | I107: 0 | J107: 0 | K107: 0 | L107: 0 | M107: 0 | N107: 0 | O107: 0 | P107: 0 | Q107: 0 | R107: 0 | S107: 0
A108: 51 | C108: ='FR-16(7)(v)-1 Functional'!C108 -> ADJUSTMENT | D108: ='FR-16(7)(v)-1 Functional'!D108 -> A315 | F108: ='FR-16(7)(v)-2 PROD Classified'!H108 -> 0 | G108: 0 | H108: 0 | I108: 0 | J108: 0 | K108: 0 | L108: 0 | M108: 0 | N108: 0 | O108: 0 | P108: 0 | Q108: 0 | R108: 0 | S108: 0
A109: 52 | C109: ='FR-16(7)(v)-1 Functional'!C109 -> GEN & INTANG PLANT IN SERVICE | F109: =SUM(F100:F108) -> 19517654 | G109: =SUM(G100:G108) -> 7367133 | H109: =SUM(H100:H108) -> 5256495 | I109: =SUM(I100:I108) -> 29472 | J109: =SUM(J100:J108) -> 83536 | K109: 1366 | L109: 3220608 | M109: 2236918 | N109: 104810 | O109: 1130072 | P109: 85097 | Q109: =SUM(Q100:Q108) -> 2147 | R109: =SUM(R100:R108) -> 19517654 | S109: =SUM(S100:S108) -> 0
A110: 53
A111: 54 | B111: COMMON & OTHER PLANT
A112: 55 | C112: ='FR-16(7)(v)-1 Functional'!C112 -> PRODUCTION - DEMAND | D112: ='FR-16(7)(v)-1 Functional'!D112 -> K201 | F112: ='FR-16(7)(v)-2 PROD Classified'!H112 -> 0 | G112: =F112-SUM(H112:Q112) -> 0 | H112: =ROUND(F112*VLOOKUP(D112,ALLOCTABLE_Prod_Energy,$H$10,FALSE),0) -> 0 | I112: =ROUND(F112*VLOOKUP(D112,ALLOCTABLE_Prod_Energy,$I$10,FALSE),0) -> 0 | J112: =ROUND(F112*VLOOKUP(D112,ALLOCTABLE_Prod_Energy,$J$10,FALSE),0) -> 0 | K112: =ROUND(F112*VLOOKUP(D112,ALLOCTABLE_Prod_Energy,$K$10,FALSE),0) -> 0 | L112: =ROUND(F112*VLOOKUP(D112,ALLOCTABLE_Prod_Energy,$L$10,FALSE),0) -> 0 | M112: =ROUND(F112*VLOOKUP(D112,ALLOCTABLE_Prod_Energy,$M$10,FALSE),0) -> 0 | N112: =ROUND(F112*VLOOKUP(D112,ALLOCTABLE_Prod_Energy,$N$10,FALSE),0) -> 0 | O112: =ROUND(F112*VLOOKUP(D112,ALLOCTABLE_Prod_Energy,$O$10,FALSE),0) -> 0 | P112: =ROUND(F112*VLOOKUP(D112,ALLOCTABLE_Prod_Energy,$P$10,FALSE),0) -> 0 | Q112: =ROUND(F112*VLOOKUP(D112,ALLOCTABLE_Prod_Energy,$Q$10,FALSE),0) -> 0 | R112: =SUM(G112:Q112) -> 0 | S112: =F112-R112 -> 0
A113: 56 | C113: ='FR-16(7)(v)-1 Functional'!C113 -> PRODUCTION - ENERGY | D113: ='FR-16(7)(v)-1 Functional'!D113 -> K301 | F113: ='FR-16(7)(v)-2 PROD Classified'!H113 -> 11046644 | G113: 4169667 | H113: 2975082 | I113: 16680 | J113: 47280 | K113: 773 | L113: 1822807 | M113: 1266056 | N113: 59320 | O113: 639601 | P113: 48163 | Q113: 1215 | R113: 11046644 | S113: 0
A114: 57 | C114: ='FR-16(7)(v)-1 Functional'!C114 -> TRANSMISSION | D114: ='FR-16(7)(v)-1 Functional'!D114 -> K202 | F114: ='FR-16(7)(v)-2 PROD Classified'!H114 -> 0 | G114: 0 | H114: 0 | I114: 0 | J114: 0 | K114: 0 | L114: 0 | M114: 0 | N114: 0 | O114: 0 | P114: 0 | Q114: 0 | R114: 0 | S114: 0
A115: 58 | C115: ='FR-16(7)(v)-1 Functional'!C115 -> DISTRIBUTION - DEMAND | D115: ='FR-16(7)(v)-1 Functional'!D115 -> K201 | F115: ='FR-16(7)(v)-2 PROD Classified'!H115 -> 0 | G115: 0 | H115: 0 | I115: 0 | J115: 0 | K115: 0 | L115: 0 | M115: 0 | N115: 0 | O115: 0 | P115: 0 | Q115: 0 | R115: 0 | S115: 0
A116: 59 | C116: ='FR-16(7)(v)-1 Functional'!C116 -> DISTRIBUTION - CUSTOMER | D116: ='FR-16(7)(v)-1 Functional'!D116 -> K405 | F116: ='FR-16(7)(v)-2 PROD Classified'!H116 -> 0 | G116: 0 | H116: 0 | I116: 0 | J116: 0 | K116: 0 | L116: 0 | M116: 0 | N116: 0 | O116: 0 | P116: 0 | Q116: 0 | R116: 0 | S116: 0
A117: 60 | C117: ='FR-16(7)(v)-1 Functional'!C117 -> CUSTOMER ACCOUNTING | D117: ='FR-16(7)(v)-1 Functional'!D117 -> A308 | F117: ='FR-16(7)(v)-2 PROD Classified'!H117 -> 0 | G117: 0 | H117: 0 | I117: 0 | J117: 0 | K117: 0 | L117: 0 | M117: 0 | N117: 0 | O117: 0 | P117: 0 | Q117: 0 | R117: 0 | S117: 0
A118: 61 | C118: ='FR-16(7)(v)-1 Functional'!C118 -> CUSTOMER SERVICE & INFORMATION | D118: ='FR-16(7)(v)-1 Functional'!D118 -> A310 | F118: ='FR-16(7)(v)-2 PROD Classified'!H118 -> 0 | G118: 0 | H118: 0 | I118: 0 | J118: 0 | K118: 0 | L118: 0 | M118: 0 | N118: 0 | O118: 0 | P118: 0 | Q118: 0 | R118: 0 | S118: 0
A119: 62 | C119: ='FR-16(7)(v)-1 Functional'!C119 -> SALES | D119: ='FR-16(7)(v)-1 Functional'!D119 -> A312 | F119: ='FR-16(7)(v)-2 PROD Classified'!H119 -> 0 | G119: 0 | H119: 0 | I119: 0 | J119: 0 | K119: 0 | L119: 0 | M119: 0 | N119: 0 | O119: 0 | P119: 0 | Q119: 0 | R119: 0 | S119: 0
A120: 63 | C120: ='FR-16(7)(v)-1 Functional'!C120 -> ADJUSTMENT | D120: ='FR-16(7)(v)-1 Functional'!D120 -> A315 | F120: ='FR-16(7)(v)-2 PROD Classified'!H120 -> 0 | G120: 0 | H120: 0 | I120: 0 | J120: 0 | K120: 0 | L120: 0 | M120: 0 | N120: 0 | O120: 0 | P120: 0 | Q120: 0 | R120: 0 | S120: 0
A121: 64 | C121: ='FR-16(7)(v)-1 Functional'!C121 -> COMMON & OTHER PLANT IN SERVICE | F121: =SUM(F112:F120) -> 11046644 | G121: =SUM(G112:G120) -> 4169667 | H121: =SUM(H112:H120) -> 2975082 | I121: =SUM(I112:I120) -> 16680 | J121: =SUM(J112:J120) -> 47280 | K121: 773 | L121: 1822807 | M121: 1266056 | N121: 59320 | O121: 639601 | P121: 48163 | Q121: =SUM(Q112:Q120) -> 1215 | R121: =SUM(R112:R120) -> 11046644 | S121: =SUM(S112:S120) -> 0
A122: 65
A123: 66 | B123: GROSS ELECTRIC PLANT IN SERVICE | F123: =F97+F109+F121 -> 30564298 | G123: =G97+G109+G121 -> 11536800 | H123: =H97+H109+H121 -> 8231577 | I123: =I97+I109+I121 -> 46152 | J123: =J97+J109+J121 -> 130816 | K123: 2139 | L123: 5043415 | M123: 3502974 | N123: 164130 | O123: 1769673 | P123: 133260 | Q123: =Q97+Q109+Q121 -> 3362 | R123: =R97+R109+R121 -> 30564298 | S123: =S97+S109+S121 -> 0
A125: =co_name -> DUKE ENERGY KENTUCKY, INC. | R125: =R1 -> FR-16(7)(v)-4
A126: =$A$2 -> PRODUCTION ENERGY ALLOCATED - ELECTRIC COST OF SERVICE | R126: =R2 -> WITNESS RESPONSIBLE:
A127: =case_name -> CASE NO: 2019-00271 | R127: =Witness -> JAMES E. ZIOLKOWSKI
A128: =data_filing -> DATA: 12 MONTHS ACTUAL & 0 MONTHS ESTIMATED | R128: ="PAGE "&Pages-15&" OF "&Pages -> PAGE 3 OF 18
A129: =type -> TYPE OF FILING: "X" ORIGINAL UPDATED REVISED
F131: =F$7 -> TOTAL | H131: =H$7 -> DS | I131: =I$7 -> GSFL | J131: =J$7 -> EH | K131: =K$7 -> SP | L131: DT SEC | M131: DT PRI | N131: DP | O131: TT | Q131: OTHER
A132: LINE | F132: =F$8 -> PRODUCTION | G132: =G$8 -> RS | H132: =H$8 -> SECONDARY | I132: =I$8 -> SECONDARY | J132: =J$8 -> SECONDARY | K132: =K$8 -> SECONDARY | L132: SECONDARY | M132: PRIMARY | N132: PRIMARY | O132: TRANSMISSION | P132: LT | Q132: WATER | R132: =R8 -> TOTAL | S132: ALL
A133: NO. | B133: DEPRECIATION RESERVE | D133: ALLO | F133: =F$9 -> ENERGY | G133: =G$9 -> RESIDENTIAL | H133: =H$9 -> DISTRIBUTION | I133: =I$9 -> DISTRIBUTION | J133: =J$9 -> DISTRIBUTION | K133: =K$9 -> DISTRIBUTION | L133: DISTRIBUTION | M133: DISTRIBUTION | N133: DISTRIBUTION | O133: TIME OF DAY | P133: LIGHTING | Q133: PUMPING | R133: =R9 -> AT ISSUE | S133: OTHER
C134: Schedule 3 | G134: =G$10 -> 3 | H134: =H$10 -> 4 | I134: =I$10 -> 5 | J134: =J$10 -> 6 | K134: =K$10 -> 7 | L134: 8 | M134: 9 | N134: 10 | O134: 11 | P134: 12 | Q134: 13
A135: 1 | B135: PRODUCTION PLANT
A136: 2 | C136: PRODUCTION STEAM | D136: ='FR-16(7)(v)-1 Functional'!D136 -> K201 | F136: ='FR-16(7)(v)-2 PROD Classified'!H136 -> 0 | G136: =F136-SUM(H136:Q136) -> 0 | H136: =ROUND(F136*VLOOKUP(D136,ALLOCTABLE_Prod_Energy,$H$10,FALSE),0) -> 0 | I136: =ROUND(F136*VLOOKUP(D136,ALLOCTABLE_Prod_Energy,$I$10,FALSE),0) -> 0 | J136: =ROUND(F136*VLOOKUP(D136,ALLOCTABLE_Prod_Energy,$J$10,FALSE),0) -> 0 | K136: =ROUND(F136*VLOOKUP(D136,ALLOCTABLE_Prod_Energy,$K$10,FALSE),0) -> 0 | L136: =ROUND(F136*VLOOKUP(D136,ALLOCTABLE_Prod_Energy,$L$10,FALSE),0) -> 0 | M136: =ROUND(F136*VLOOKUP(D136,ALLOCTABLE_Prod_Energy,$M$10,FALSE),0) -> 0 | N136: =ROUND(F136*VLOOKUP(D136,ALLOCTABLE_Prod_Energy,$N$10,FALSE),0) -> 0 | O136: =ROUND(F136*VLOOKUP(D136,ALLOCTABLE_Prod_Energy,$O$10,FALSE),0) -> 0 | P136: =ROUND(F136*VLOOKUP(D136,ALLOCTABLE_Prod_Energy,$P$10,FALSE),0) -> 0 | Q136: =ROUND(F136*VLOOKUP(D136,ALLOCTABLE_Prod_Energy,$Q$10,FALSE),0) -> 0 | R136: =SUM(G136:Q136) -> 0 | S136: =F136-R136 -> 0
A137: 3 | C137: PRODUCTION OTHER | D137: ='FR-16(7)(v)-1 Functional'!D137 -> K201 | F137: ='FR-16(7)(v)-2 PROD Classified'!H137 -> 0 | G137: =F137-SUM(H137:Q137) -> 0 | H137: =ROUND(F136*VLOOKUP(D136,ALLOCTABLE_Prod_Energy,$H$10,FALSE),0) -> 0 | I137: =ROUND(F137*VLOOKUP(D137,ALLOCTABLE_Prod_Energy,$I$10,FALSE),0) -> 0 | J137: =ROUND(F137*VLOOKUP(D137,ALLOCTABLE_Prod_Energy,$J$10,FALSE),0) -> 0 | K137: =ROUND(F137*VLOOKUP(D137,ALLOCTABLE_Prod_Energy,$K$10,FALSE),0) -> 0 | L137: =ROUND(F137*VLOOKUP(D137,ALLOCTABLE_Prod_Energy,$L$10,FALSE),0) -> 0 | M137: =ROUND(F137*VLOOKUP(D137,ALLOCTABLE_Prod_Energy,$M$10,FALSE),0) -> 0 | N137: =ROUND(F137*VLOOKUP(D137,ALLOCTABLE_Prod_Energy,$N$10,FALSE),0) -> 0 | O137: =ROUND(F137*VLOOKUP(D137,ALLOCTABLE_Prod_Energy,$O$10,FALSE),0) -> 0 | P137: =ROUND(F137*VLOOKUP(D137,ALLOCTABLE_Prod_Energy,$P$10,FALSE),0) -> 0 | Q137: =ROUND(F137*VLOOKUP(D137,ALLOCTABLE_Prod_Energy,$Q$10,FALSE),0) -> 0 | R137: =SUM(G137:Q137) -> 0 | S137: =F137-R137 -> 0
A138: 4 | C138: ='FR-16(7)(v)-1 Functional'!C138 -> ADJUSTMENT | D138: ='FR-16(7)(v)-1 Functional'!D138 -> K201 | F138: ='FR-16(7)(v)-2 PROD Classified'!H138 -> 0 | G138: =F138-SUM(H138:Q138) -> 0 | H138: =ROUND(F136*VLOOKUP(D136,ALLOCTABLE_Prod_Energy,$H$10,FALSE),0) -> 0 | I138: =ROUND(F138*VLOOKUP(D138,ALLOCTABLE_Prod_Energy,$I$10,FALSE),0) -> 0 | J138: =ROUND(F138*VLOOKUP(D138,ALLOCTABLE_Prod_Energy,$J$10,FALSE),0) -> 0 | K138: =ROUND(F138*VLOOKUP(D138,ALLOCTABLE_Prod_Energy,$K$10,FALSE),0) -> 0 | L138: =ROUND(F138*VLOOKUP(D138,ALLOCTABLE_Prod_Energy,$L$10,FALSE),0) -> 0 | M138: =ROUND(F138*VLOOKUP(D138,ALLOCTABLE_Prod_Energy,$M$10,FALSE),0) -> 0 | N138: =ROUND(F138*VLOOKUP(D138,ALLOCTABLE_Prod_Energy,$N$10,FALSE),0) -> 0 | O138: =ROUND(F138*VLOOKUP(D138,ALLOCTABLE_Prod_Energy,$O$10,FALSE),0) -> 0 | P138: =ROUND(F138*VLOOKUP(D138,ALLOCTABLE_Prod_Energy,$P$10,FALSE),0) -> 0 | Q138: =ROUND(F138*VLOOKUP(D138,ALLOCTABLE_Prod_Energy,$Q$10,FALSE),0) -> 0 | R138: =SUM(G138:Q138) -> 0 | S138: =F138-R138 -> 0
A139: 5 | C139: ='FR-16(7)(v)-1 Functional'!C139 -> TOTAL PROD DEPREC RESERVE | F139: =SUM(F136:F138) -> 0 | G139: =SUM(G136:G138) -> 0 | H139: 0 | I139: 0 | J139: 0 | K139: 0 | L139: 0 | M139: 0 | N139: 0 | O139: 0 | P139: 0 | Q139: 0 | R139: 0 | S139: =SUM(S136:S136) -> 0
A140: 6
A141: 7 | B141: TRANSMISSION PLANT
A142: 8 | C142: MAIN STEP-UP TRANSFORMERS | D142: ='FR-16(7)(v)-1 Functional'!D142 -> K202 | F142: ='FR-16(7)(v)-2 PROD Classified'!H142 -> 0 | G142: =F142-SUM(H142:Q142) -> 0 | H142: =ROUND(F136*VLOOKUP(D136,ALLOCTABLE_Prod_Energy,$H$10,FALSE),0) -> 0 | I142: =ROUND(F142*VLOOKUP(D142,ALLOCTABLE_Prod_Energy,$I$10,FALSE),0) -> 0 | J142: =ROUND(F142*VLOOKUP(D142,ALLOCTABLE_Prod_Energy,$J$10,FALSE),0) -> 0 | K142: =ROUND(F142*VLOOKUP(D142,ALLOCTABLE_Prod_Energy,$K$10,FALSE),0) -> 0 | L142: =ROUND(F142*VLOOKUP(D142,ALLOCTABLE_Prod_Energy,$L$10,FALSE),0) -> 0 | M142: =ROUND(F142*VLOOKUP(D142,ALLOCTABLE_Prod_Energy,$M$10,FALSE),0) -> 0 | N142: =ROUND(F142*VLOOKUP(D142,ALLOCTABLE_Prod_Energy,$N$10,FALSE),0) -> 0 | O142: =ROUND(F142*VLOOKUP(D142,ALLOCTABLE_Prod_Energy,$O$10,FALSE),0) -> 0 | P142: =ROUND(F142*VLOOKUP(D142,ALLOCTABLE_Prod_Energy,$P$10,FALSE),0) -> 0 | Q142: =ROUND(F142*VLOOKUP(D142,ALLOCTABLE_Prod_Energy,$Q$10,FALSE),0) -> 0 | R142: =SUM(G142:Q142) -> 0 | S142: =F142-R142 -> 0
A143: 9 | C143: OTHER TRANSMISSION | D143: ='FR-16(7)(v)-1 Functional'!D143 -> K202 | F143: ='FR-16(7)(v)-2 PROD Classified'!H143 -> 0 | G143: =F143-SUM(H143:Q143) -> 0 | H143: =ROUND(F136*VLOOKUP(D136,ALLOCTABLE_Prod_Energy,$H$10,FALSE),0) -> 0 | I143: =ROUND(F143*VLOOKUP(D143,ALLOCTABLE_Prod_Energy,$I$10,FALSE),0) -> 0 | J143: =ROUND(F143*VLOOKUP(D143,ALLOCTABLE_Prod_Energy,$J$10,FALSE),0) -> 0 | K143: =ROUND(F143*VLOOKUP(D143,ALLOCTABLE_Prod_Energy,$K$10,FALSE),0) -> 0 | L143: =ROUND(F143*VLOOKUP(D143,ALLOCTABLE_Prod_Energy,$L$10,FALSE),0) -> 0 | M143: =ROUND(F143*VLOOKUP(D143,ALLOCTABLE_Prod_Energy,$M$10,FALSE),0) -> 0 | N143: =ROUND(F143*VLOOKUP(D143,ALLOCTABLE_Prod_Energy,$N$10,FALSE),0) -> 0 | O143: =ROUND(F143*VLOOKUP(D143,ALLOCTABLE_Prod_Energy,$O$10,FALSE),0) -> 0 | P143: =ROUND(F143*VLOOKUP(D143,ALLOCTABLE_Prod_Energy,$P$10,FALSE),0) -> 0 | Q143: =ROUND(F143*VLOOKUP(D143,ALLOCTABLE_Prod_Energy,$Q$10,FALSE),0) -> 0 | R143: =SUM(G143:Q143) -> 0 | S143: =F143-R143 -> 0
A144: 10 | C144: ADJUSTMENT | D144: ='FR-16(7)(v)-1 Functional'!D144 -> K202 | F144: ='FR-16(7)(v)-2 PROD Classified'!H144 -> 0 | G144: =F144-SUM(H144:Q144) -> 0 | H144: =ROUND(F136*VLOOKUP(D136,ALLOCTABLE_Prod_Energy,$H$10,FALSE),0) -> 0 | I144: =ROUND(F144*VLOOKUP(D144,ALLOCTABLE_Prod_Energy,$I$10,FALSE),0) -> 0 | J144: =ROUND(F144*VLOOKUP(D144,ALLOCTABLE_Prod_Energy,$J$10,FALSE),0) -> 0 | K144: =ROUND(F144*VLOOKUP(D144,ALLOCTABLE_Prod_Energy,$K$10,FALSE),0) -> 0 | L144: =ROUND(F144*VLOOKUP(D144,ALLOCTABLE_Prod_Energy,$L$10,FALSE),0) -> 0 | M144: =ROUND(F144*VLOOKUP(D144,ALLOCTABLE_Prod_Energy,$M$10,FALSE),0) -> 0 | N144: =ROUND(F144*VLOOKUP(D144,ALLOCTABLE_Prod_Energy,$N$10,FALSE),0) -> 0 | O144: =ROUND(F144*VLOOKUP(D144,ALLOCTABLE_Prod_Energy,$O$10,FALSE),0) -> 0 | P144: =ROUND(F144*VLOOKUP(D144,ALLOCTABLE_Prod_Energy,$P$10,FALSE),0) -> 0 | Q144: =ROUND(F144*VLOOKUP(D144,ALLOCTABLE_Prod_Energy,$Q$10,FALSE),0) -> 0 | R144: =SUM(G144:Q144) -> 0 | S144: =F144-R144 -> 0
A145: 11 | C145: TOTAL TRANS DEPREC RESERVE | F145: =SUM(F142:F144) -> 0 | G145: =SUM(G142:G144) -> 0 | H145: 0 | I145: 0 | J145: 0 | K145: 0 | L145: 0 | M145: 0 | N145: 0 | O145: 0 | P145: 0 | Q145: 0 | R145: =SUM(R142:R144) -> 0 | S145: =SUM(S142:S142) -> 0
A146: 12
A147: 13 | C147: TOTAL PROD & TRANS DEPREC RESERVE | F147: =F145+F139 -> 0 | G147: =G145+G139 -> 0 | H147: =$H$114+H139 -> 0 | I147: =$I$114+I139 -> 0 | J147: =$J$114+J139 -> 0 | K147: =$K$114+K139 -> 0 | L147: =$L$114+L139 -> 0 | M147: =$M$114+M139 -> 0 | N147: =$N$114+N139 -> 0 | O147: =$O$114+O139 -> 0 | P147: =$P$114+P139 -> 0 | Q147: =$Q$114+Q139 -> 0 | R147: =SUM(G147:Q147) -> 0 | S147: =F147-R147 -> 0
A148: 14
A149: 15 | B149: DISTRIBUTION PLANT
A150: 16 | C150: ='FR-16(7)(v)-1 Functional'!C150 -> SUBSTATIONS | D150: ='FR-16(7)(v)-1 Functional'!D150 -> K215 | F150: ='FR-16(7)(v)-2 PROD Classified'!H150 -> 0 | G150: =F150-SUM(H150:Q150) -> 0 | H150: =ROUND(F150*VLOOKUP(D150,ALLOCTABLE_Prod_Energy,$H$10,FALSE),0) -> 0 | I150: =ROUND(F150*VLOOKUP(D150,ALLOCTABLE_Prod_Energy,$I$10,FALSE),0) -> 0 | J150: =ROUND(F150*VLOOKUP(D150,ALLOCTABLE_Prod_Energy,$J$10,FALSE),0) -> 0 | K150: =ROUND(F150*VLOOKUP(D150,ALLOCTABLE_Prod_Energy,$K$10,FALSE),0) -> 0 | L150: =ROUND(F150*VLOOKUP(D150,ALLOCTABLE_Prod_Energy,$L$10,FALSE),0) -> 0 | M150: =ROUND(F150*VLOOKUP(D150,ALLOCTABLE_Prod_Energy,$M$10,FALSE),0) -> 0 | N150: =ROUND(F150*VLOOKUP(D150,ALLOCTABLE_Prod_Energy,$N$10,FALSE),0) -> 0 | O150: =ROUND(F150*VLOOKUP(D150,ALLOCTABLE_Prod_Energy,$O$10,FALSE),0) -> 0 | P150: =ROUND(F150*VLOOKUP(D150,ALLOCTABLE_Prod_Energy,$P$10,FALSE),0) -> 0 | Q150: =ROUND(F150*VLOOKUP(D150,ALLOCTABLE_Prod_Energy,$Q$10,FALSE),0) -> 0 | R150: =SUM(G150:Q150) -> 0 | S150: =F150-R150 -> 0
A151: 17 | C151: ='FR-16(7)(v)-1 Functional'!C151 -> POLES, TOWERS & FIXTURES - PRIMARY - DEMAND | D151: ='FR-16(7)(v)-1 Functional'!D151 -> K205 | F151: ='FR-16(7)(v)-2 PROD Classified'!H151 -> 0 | G151: =F151-SUM(H151:Q151) -> 0 | H151: =ROUND(F151*VLOOKUP(D151,ALLOCTABLE_Prod_Energy,$H$10,FALSE),0) -> 0 | I151: 0 | J151: 0 | K151: 0 | L151: 0 | M151: 0 | N151: 0 | O151: 0 | P151: 0 | Q151: =ROUND(F151*VLOOKUP(D151,ALLOCTABLE_Prod_Energy,$Q$10,FALSE),0) -> 0 | R151: =SUM(G151:Q151) -> 0 | S151: =F151-R151 -> 0
A152: 18 | C152: ='FR-16(7)(v)-1 Functional'!C152 -> POLES, TOWERS & FIXTURES - PRIMARY - CUSTOMER | D152: ='FR-16(7)(v)-1 Functional'!D152 -> K405 | F152: ='FR-16(7)(v)-2 PROD Classified'!H152 -> 0 | G152: =F152-SUM(H152:Q152) -> 0 | H152: =ROUND(F152*VLOOKUP(D152,ALLOCTABLE_Prod_Energy,$H$10,FALSE),0) -> 0 | I152: 0 | J152: 0 | K152: 0 | L152: 0 | M152: 0 | N152: 0 | O152: 0 | P152: 0 | Q152: =ROUND(F152*VLOOKUP(D152,ALLOCTABLE_Prod_Energy,$Q$10,FALSE),0) -> 0 | R152: =SUM(G152:Q152) -> 0 | S152: =F152-R152 -> 0
A153: 19 | C153: ='FR-16(7)(v)-1 Functional'!C153 -> POLES, TOWERS & FIXTURES - SECONDARY - DEMAND | D153: ='FR-16(7)(v)-1 Functional'!D153 -> K206 | F153: ='FR-16(7)(v)-2 PROD Classified'!H153 -> 0 | G153: 0 | H153: 0 | I153: 0 | J153: 0 | K153: 0 | L153: 0 | M153: 0 | N153: 0 | O153: 0 | P153: 0 | Q153: 0 | R153: 0 | S153: 0
A154: 20 | C154: ='FR-16(7)(v)-1 Functional'!C154 -> POLES, TOWERS & FIXTURES - SECONDARY - CUSTOMER | D154: ='FR-16(7)(v)-1 Functional'!D154 -> K405 | F154: ='FR-16(7)(v)-2 PROD Classified'!H154 -> 0 | G154: 0 | H154: 0 | I154: 0 | J154: 0 | K154: 0 | L154: 0 | M154: 0 | N154: 0 | O154: 0 | P154: 0 | Q154: 0 | R154: 0 | S154: 0
A155: 21 | C155: ='FR-16(7)(v)-1 Functional'!C155 -> CONDUCTORS - OVERHEAD / PRIMARY - DEMAND | D155: ='FR-16(7)(v)-1 Functional'!D155 -> K205 | F155: ='FR-16(7)(v)-2 PROD Classified'!H155 -> 0 | G155: 0 | H155: 0 | I155: 0 | J155: 0 | K155: 0 | L155: 0 | M155: 0 | N155: 0 | O155: 0 | P155: 0 | Q155: 0 | R155: 0 | S155: 0
A156: 22 | C156: ='FR-16(7)(v)-1 Functional'!C156 -> CONDUCTORS - OVERHEAD / PRIMARY - CUSTOMER | D156: ='FR-16(7)(v)-1 Functional'!D156 -> K405 | F156: ='FR-16(7)(v)-2 PROD Classified'!H156 -> 0 | G156: 0 | H156: 0 | I156: 0 | J156: 0 | K156: 0 | L156: 0 | M156: 0 | N156: 0 | O156: 0 | P156: 0 | Q156: 0 | R156: 0 | S156: 0
A157: 23 | C157: ='FR-16(7)(v)-1 Functional'!C157 -> CONDUCTORS - OVERHEAD / SECONDARY - DEMAND | D157: ='FR-16(7)(v)-1 Functional'!D157 -> K206 | F157: ='FR-16(7)(v)-2 PROD Classified'!H157 -> 0 | G157: 0 | H157: 0 | I157: 0 | J157: 0 | K157: 0 | L157: 0 | M157: 0 | N157: 0 | O157: 0 | P157: 0 | Q157: 0 | R157: 0 | S157: 0
A158: 24 | C158: ='FR-16(7)(v)-1 Functional'!C158 -> CONDUCTORS - OVERHEAD / SECONDARY - CUSTOMER | D158: ='FR-16(7)(v)-1 Functional'!D158 -> K405 | F158: ='FR-16(7)(v)-2 PROD Classified'!H158 -> 0 | G158: 0 | H158: 0 | I158: 0 | J158: 0 | K158: 0 | L158: 0 | M158: 0 | N158: 0 | O158: 0 | P158: 0 | Q158: 0 | R158: 0 | S158: 0
A159: 25 | C159: ='FR-16(7)(v)-1 Functional'!C159 -> CONDUCTORS - UNDERGROUND / PRIMARY - DEMAND | D159: ='FR-16(7)(v)-1 Functional'!D159 -> K205 | F159: ='FR-16(7)(v)-2 PROD Classified'!H159 -> 0 | G159: 0 | H159: 0 | I159: 0 | J159: 0 | K159: 0 | L159: 0 | M159: 0 | N159: 0 | O159: 0 | P159: 0 | Q159: 0 | R159: 0 | S159: 0
A160: 26 | C160: ='FR-16(7)(v)-1 Functional'!C160 -> CONDUCTORS - UNDERGROUND / PRIMARY - CUSTOMER | D160: ='FR-16(7)(v)-1 Functional'!D160 -> K405 | F160: ='FR-16(7)(v)-2 PROD Classified'!H160 -> 0 | G160: 0 | H160: 0 | I160: 0 | J160: 0 | K160: 0 | L160: 0 | M160: 0 | N160: 0 | O160: 0 | P160: 0 | Q160: 0 | R160: 0 | S160: 0
A161: 27 | C161: ='FR-16(7)(v)-1 Functional'!C161 -> CONDUCTORS - UNDERGROUND / SECONDARY - DEMAND | D161: ='FR-16(7)(v)-1 Functional'!D161 -> K206 | F161: ='FR-16(7)(v)-2 PROD Classified'!H161 -> 0 | G161: 0 | H161: 0 | I161: 0 | J161: 0 | K161: 0 | L161: 0 | M161: 0 | N161: 0 | O161: 0 | P161: 0 | Q161: 0 | R161: 0 | S161: 0
A162: 28 | C162: ='FR-16(7)(v)-1 Functional'!C162 -> CONDUCTORS - UNDERGROUND / SECONDARY - CUSTOMER | D162: ='FR-16(7)(v)-1 Functional'!D162 -> K405 | F162: ='FR-16(7)(v)-2 PROD Classified'!H162 -> 0 | G162: 0 | H162: 0 | I162: 0 | J162: 0 | K162: 0 | L162: 0 | M162: 0 | N162: 0 | O162: 0 | P162: 0 | Q162: 0 | R162: 0 | S162: 0
A163: 29 | C163: ='FR-16(7)(v)-1 Functional'!C163 -> TRANSFORMERS DEMAND RELATED | D163: ='FR-16(7)(v)-1 Functional'!D163 -> K215 | F163: ='FR-16(7)(v)-2 PROD Classified'!H163 -> 0 | G163: =F163-SUM(H163:Q163) -> 0 | H163: =ROUND(F163*VLOOKUP(D163,ALLOCTABLE_Prod_Energy,$H$10,FALSE),0) -> 0 | I163: 0 | J163: 0 | K163: 0 | L163: 0 | M163: 0 | N163: 0 | O163: 0 | P163: 0 | Q163: =ROUND(F163*VLOOKUP(D163,ALLOCTABLE_Prod_Energy,$Q$10,FALSE),0) -> 0 | R163: =SUM(G163:Q163) -> 0 | S163: =F163-R163 -> 0
A164: 30 | C164: ='FR-16(7)(v)-1 Functional'!C164 -> TRANSFORMERS CUSTOMER RELATED | D164: ='FR-16(7)(v)-1 Functional'!D164 -> K405 | F164: ='FR-16(7)(v)-2 PROD Classified'!H164 -> 0 | G164: 0 | H164: 0 | I164: =ROUND(F164*VLOOKUP(D163,ALLOCTABLE_Prod_Energy,$I$10,FALSE),0) -> 0 | J164: =ROUND(F164*VLOOKUP(D163,ALLOCTABLE_Prod_Energy,$J$10,FALSE),0) -> 0 | K164: =ROUND(F164*VLOOKUP(D163,ALLOCTABLE_Prod_Energy,$K$10,FALSE),0) -> 0 | L164: =ROUND(F164*VLOOKUP(D163,ALLOCTABLE_Prod_Energy,$L$10,FALSE),0) -> 0 | M164: =ROUND(F164*VLOOKUP(D163,ALLOCTABLE_Prod_Energy,$M$10,FALSE),0) -> 0 | N164: =ROUND(F164*VLOOKUP(D163,ALLOCTABLE_Prod_Energy,$N$10,FALSE),0) -> 0 | O164: =ROUND(F164*VLOOKUP(D163,ALLOCTABLE_Prod_Energy,$O$10,FALSE),0) -> 0 | P164: 0 | Q164: 0 | R164: 0 | S164: 0
A165: 31 | C165: ='FR-16(7)(v)-1 Functional'!C165 -> SERVICES | D165: ='FR-16(7)(v)-1 Functional'!D165 -> K217 | F165: ='FR-16(7)(v)-2 PROD Classified'!H165 -> 0 | G165: 0 | H165: 0 | I165: =ROUND(F165*VLOOKUP(D165,ALLOCTABLE_Prod_Energy,$I$10,FALSE),0) -> 0 | J165: =ROUND(F165*VLOOKUP(D165,ALLOCTABLE_Prod_Energy,$J$10,FALSE),0) -> 0 | K165: =ROUND(F165*VLOOKUP(D165,ALLOCTABLE_Prod_Energy,$K$10,FALSE),0) -> 0 | L165: =ROUND(F165*VLOOKUP(D165,ALLOCTABLE_Prod_Energy,$L$10,FALSE),0) -> 0 | M165: =ROUND(F165*VLOOKUP(D165,ALLOCTABLE_Prod_Energy,$M$10,FALSE),0) -> 0 | N165: =ROUND(F165*VLOOKUP(D165,ALLOCTABLE_Prod_Energy,$N$10,FALSE),0) -> 0 | O165: =ROUND(F165*VLOOKUP(D165,ALLOCTABLE_Prod_Energy,$O$10,FALSE),0) -> 0 | P165: 0 | Q165: 0 | R165: 0 | S165: 0
A166: 32 | C166: ='FR-16(7)(v)-1 Functional'!C166 -> METERS | D166: ='FR-16(7)(v)-1 Functional'!D166 -> K407 | F166: ='FR-16(7)(v)-2 PROD Classified'!H166 -> 0 | G166: 0 | H166: 0 | I166: 0 | J166: 0 | K166: 0 | L166: =ROUND(F166*VLOOKUP(D166,ALLOCTABLE_Prod_Energy,$L$10,FALSE),0) -> 0 | M166: =ROUND(F166*VLOOKUP(D166,ALLOCTABLE_Prod_Energy,$M$10,FALSE),0) -> 0 | N166: =ROUND(F166*VLOOKUP(D166,ALLOCTABLE_Prod_Energy,$N$10,FALSE),0) -> 0 | O166: =ROUND(F166*VLOOKUP(D166,ALLOCTABLE_Prod_Energy,$O$10,FALSE),0) -> 0 | P166: 0 | Q166: 0 | R166: 0 | S166: 0
A167: 33 | C167: ='FR-16(7)(v)-1 Functional'!C167 -> STREET LIGHTS | D167: ='FR-16(7)(v)-1 Functional'!D167 -> K401 | F167: ='FR-16(7)(v)-2 PROD Classified'!H167 -> 0 | G167: 0 | H167: 0 | I167: 0 | J167: 0 | K167: 0 | L167: =ROUND(F167*VLOOKUP(D167,ALLOCTABLE_Prod_Energy,$L$10,FALSE),0) -> 0 | M167: =ROUND(F167*VLOOKUP(D167,ALLOCTABLE_Prod_Energy,$M$10,FALSE),0) -> 0 | N167: =ROUND(F167*VLOOKUP(D167,ALLOCTABLE_Prod_Energy,$N$10,FALSE),0) -> 0 | O167: =ROUND(F167*VLOOKUP(D167,ALLOCTABLE_Prod_Energy,$O$10,FALSE),0) -> 0 | P167: 0 | Q167: 0 | R167: 0 | S167: 0
A168: 34 | C168: ='FR-16(7)(v)-1 Functional'!C168 -> ADJUSTMENT | D168: ='FR-16(7)(v)-1 Functional'!D168 -> K209 | F168: ='FR-16(7)(v)-2 PROD Classified'!H168 -> 0 | G168: 0 | H168: 0 | I168: 0 | J168: 0 | K168: 0 | L168: =ROUND(F168*VLOOKUP(D168,ALLOCTABLE_Prod_Energy,$L$10,FALSE),0) -> 0 | M168: =ROUND(F168*VLOOKUP(D168,ALLOCTABLE_Prod_Energy,$M$10,FALSE),0) -> 0 | N168: =ROUND(F168*VLOOKUP(D168,ALLOCTABLE_Prod_Energy,$N$10,FALSE),0) -> 0 | O168: =ROUND(F168*VLOOKUP(D168,ALLOCTABLE_Prod_Energy,$O$10,FALSE),0) -> 0 | P168: 0 | Q168: 0 | R168: 0 | S168: 0
A169: 35 | C169: ='FR-16(7)(v)-1 Functional'!C169 -> CONSTRUCTION NOT CLASSIFIED | D169: ='FR-16(7)(v)-1 Functional'!D169 -> K209 | F169: ='FR-16(7)(v)-2 PROD Classified'!H169 -> 0 | G169: 0 | H169: 0 | I169: 0 | J169: 0 | K169: 0 | L169: =ROUND(F169*VLOOKUP(D169,ALLOCTABLE_Prod_Energy,$L$10,FALSE),0) -> 0 | M169: =ROUND(F169*VLOOKUP(D169,ALLOCTABLE_Prod_Energy,$M$10,FALSE),0) -> 0 | N169: =ROUND(F169*VLOOKUP(D169,ALLOCTABLE_Prod_Energy,$N$10,FALSE),0) -> 0 | O169: =ROUND(F169*VLOOKUP(D169,ALLOCTABLE_Prod_Energy,$O$10,FALSE),0) -> 0 | P169: 0 | Q169: 0 | R169: 0 | S169: 0
A170: 36 | C170: ='FR-16(7)(v)-1 Functional'!C170 -> RWIP | D170: ='FR-16(7)(v)-1 Functional'!D170 -> K215 | F170: ='FR-16(7)(v)-2 PROD Classified'!H170 -> 0 | G170: =F170-SUM(H170:Q170) -> 0 | H170: =ROUND($F$170*VLOOKUP($D170,ALLOCTABLE_Prod_Energy,H$10,FALSE),0) -> 0 | I170: 0 | J170: 0 | K170: 0 | L170: 0 | M170: 0 | N170: 0 | O170: 0 | P170: 0 | Q170: 0 | R170: =SUM(G170:Q170) -> 0 | S170: =F170-R170 -> 0
A171: 37 | C171: ='FR-16(7)(v)-1 Functional'!C171 -> TOTAL DIST DEPREC RESERVE | F171: =SUM(F149:F170) -> 0 | G171: =SUM(G149:G170) -> 0 | H171: 0 | I171: 0 | J171: 0 | K171: 0 | L171: 0 | M171: 0 | N171: 0 | O171: 0 | P171: 0 | Q171: 0 | R171: 0 | S171: 0
A172: 38
A173: 39 | C173: TOTAL TRANS & DIST DEPREC RESERVE | F173: =F171+F145 -> 0 | G173: =G171+G145 -> 0 | H173: =H171+$H$114 -> 0 | I173: =I171+$I$114 -> 0 | J173: =J171+$J$114 -> 0 | K173: =K171+$K$114 -> 0 | L173: =L171+$L$114 -> 0 | M173: =M171+$M$114 -> 0 | N173: =N171+$N$114 -> 0 | O173: =O171+$O$114 -> 0 | P173: =P171+$P$114 -> 0 | Q173: =Q171+$Q$114 -> 0 | R173: =SUM(G173:Q173) -> 0 | S173: =F173-R173 -> 0
A174: 40 | C174: TOTAL GROSS PTD PLANT DEPREC RESERVE | F174: =F147+F171 -> 0 | G174: =G147+G171 -> 0 | H174: =$H$117+H171 -> 0 | I174: =$I$117+I171 -> 0 | J174: =$J$117+J171 -> 0 | K174: =$K$117+K171 -> 0 | L174: =$L$117+L171 -> 0 | M174: =$M$117+M171 -> 0 | N174: =$N$117+N171 -> 0 | O174: =$O$117+O171 -> 0 | P174: =$P$117+P171 -> 0 | Q174: =$Q$117+Q171 -> 0 | R174: =SUM(G174:Q174) -> 0 | S174: =F174-R174 -> 0
A175: 41
A176: 42 | B176: GENERAL & INTANGIBLE PLANT
A177: 43 | C177: ='FR-16(7)(v)-1 Functional'!C177 -> PRODUCTION - DEMAND | D177: ='FR-16(7)(v)-1 Functional'!D177 -> K201 | F177: ='FR-16(7)(v)-2 PROD Classified'!H177 -> 0 | G177: =F177-SUM(H177:Q177) -> 0 | H177: =ROUND(F177*VLOOKUP(D177,ALLOCTABLE_Prod_Energy,$H$10,FALSE),0) -> 0 | I177: =ROUND(F177*VLOOKUP(D177,ALLOCTABLE_Prod_Energy,$I$10,FALSE),0) -> 0 | J177: =ROUND(F177*VLOOKUP(D177,ALLOCTABLE_Prod_Energy,$J$10,FALSE),0) -> 0 | K177: =ROUND(F177*VLOOKUP(D177,ALLOCTABLE_Prod_Energy,$K$10,FALSE),0) -> 0 | L177: =ROUND(F177*VLOOKUP(D177,ALLOCTABLE_Prod_Energy,$L$10,FALSE),0) -> 0 | M177: =ROUND(F177*VLOOKUP(D177,ALLOCTABLE_Prod_Energy,$M$10,FALSE),0) -> 0 | N177: =ROUND(F177*VLOOKUP(D177,ALLOCTABLE_Prod_Energy,$N$10,FALSE),0) -> 0 | O177: =ROUND(F177*VLOOKUP(D177,ALLOCTABLE_Prod_Energy,$O$10,FALSE),0) -> 0 | P177: =ROUND(F177*VLOOKUP(D177,ALLOCTABLE_Prod_Energy,$P$10,FALSE),0) -> 0 | Q177: =ROUND(F177*VLOOKUP(D177,ALLOCTABLE_Prod_Energy,$Q$10,FALSE),0) -> 0 | R177: =SUM(G177:Q177) -> 0 | S177: =F177-R177 -> 0
A178: 44 | C178: ='FR-16(7)(v)-1 Functional'!C178 -> PRODUCTION - ENERGY | D178: ='FR-16(7)(v)-1 Functional'!D178 -> K301 | F178: ='FR-16(7)(v)-2 PROD Classified'!H178 -> 6289780 | G178: 2374140 | H178: 1693964 | I178: 9498 | J178: 26920 | K178: 440 | L178: 1037877 | M178: 720872 | N178: 33776 | O178: 364178 | P178: 27423 | Q178: 692 | R178: 6289780 | S178: 0
A179: 45 | C179: ='FR-16(7)(v)-1 Functional'!C179 -> TRANSMISSION | D179: ='FR-16(7)(v)-1 Functional'!D179 -> K202 | F179: ='FR-16(7)(v)-2 PROD Classified'!H179 -> 0 | G179: 0 | H179: 0 | I179: 0 | J179: 0 | K179: 0 | L179: 0 | M179: 0 | N179: 0 | O179: 0 | P179: 0 | Q179: 0 | R179: 0 | S179: 0
A180: 46 | C180: ='FR-16(7)(v)-1 Functional'!C180 -> DISTRIBUTION - DEMAND | D180: ='FR-16(7)(v)-1 Functional'!D180 -> K201 | F180: ='FR-16(7)(v)-2 PROD Classified'!H180 -> 0 | G180: 0 | H180: 0 | I180: 0 | J180: 0 | K180: 0 | L180: 0 | M180: 0 | N180: 0 | O180: 0 | P180: 0 | Q180: 0 | R180: 0 | S180: 0
A181: 47 | C181: ='FR-16(7)(v)-1 Functional'!C181 -> DISTRIBUTION - CUSTOMER | D181: ='FR-16(7)(v)-1 Functional'!D181 -> K405 | F181: ='FR-16(7)(v)-2 PROD Classified'!H181 -> 0 | G181: 0 | H181: 0 | I181: 0 | J181: 0 | K181: 0 | L181: 0 | M181: 0 | N181: 0 | O181: 0 | P181: 0 | Q181: 0 | R181: 0 | S181: 0
A182: 48 | C182: ='FR-16(7)(v)-1 Functional'!C182 -> CUSTOMER ACCOUNTING | D182: ='FR-16(7)(v)-1 Functional'!D182 -> A308 | F182: ='FR-16(7)(v)-2 PROD Classified'!H182 -> 0 | G182: 0 | H182: 0 | I182: 0 | J182: 0 | K182: 0 | L182: 0 | M182: 0 | N182: 0 | O182: 0 | P182: 0 | Q182: 0 | R182: 0 | S182: 0
A183: 49 | C183: ='FR-16(7)(v)-1 Functional'!C183 -> CUSTOMER SERVICE & INFORMATION | D183: ='FR-16(7)(v)-1 Functional'!D183 -> A310 | F183: ='FR-16(7)(v)-2 PROD Classified'!H183 -> 0 | G183: 0 | H183: 0 | I183: 0 | J183: 0 | K183: 0 | L183: 0 | M183: 0 | N183: 0 | O183: 0 | P183: 0 | Q183: 0 | R183: 0 | S183: 0
A184: 50 | C184: ='FR-16(7)(v)-1 Functional'!C184 -> SALES | D184: ='FR-16(7)(v)-1 Functional'!D184 -> A312 | F184: ='FR-16(7)(v)-2 PROD Classified'!H184 -> 0 | G184: 0 | H184: 0 | I184: 0 | J184: 0 | K184: 0 | L184: 0 | M184: 0 | N184: 0 | O184: 0 | P184: 0 | Q184: 0 | R184: 0 | S184: 0
A185: 51 | C185: ='FR-16(7)(v)-1 Functional'!C185 -> ADJUSTMENT | D185: ='FR-16(7)(v)-1 Functional'!D185 -> A315 | F185: ='FR-16(7)(v)-2 PROD Classified'!H185 -> 111988 | G185: 42400 | H185: 30233 | I185: 169 | J185: 480 | K185: 8 | L185: 18489 | M185: 12873 | N185: 604 | O185: 6231 | P185: 489 | Q185: 12 | R185: 111988 | S185: 0
A186: 52 | C186: GENERAL & INTANG PLANT | F186: =SUM(F176:F185) -> 6401768 | G186: =SUM(G176:G185) -> 2416540 | H186: =SUM(H176:H185) -> 1724197 | I186: 9667 | J186: 27400 | K186: 448 | L186: =SUM(L176:L185) -> 1056366 | M186: =SUM(M176:M185) -> 733745 | N186: 34380 | O186: 370409 | P186: 27912 | Q186: 704 | R186: =SUM(R176:R185) -> 6401768 | S186: =SUM(S176:S185) -> 0
A187: 53
A188: 54 | B188: COMMON & OTHER PLANT
A189: 55 | C189: ='FR-16(7)(v)-1 Functional'!C189 -> PRODUCTION - DEMAND | D189: ='FR-16(7)(v)-1 Functional'!D189 -> K201 | F189: ='FR-16(7)(v)-2 PROD Classified'!H189 -> 0 | G189: =F189-SUM(H189:Q189) -> 0 | H189: =ROUND(F189*VLOOKUP(D189,ALLOCTABLE_Prod_Energy,$H$10,FALSE),0) -> 0 | I189: =ROUND(F189*VLOOKUP(D189,ALLOCTABLE_Prod_Energy,$I$10,FALSE),0) -> 0 | J189: =ROUND(F189*VLOOKUP(D189,ALLOCTABLE_Prod_Energy,$J$10,FALSE),0) -> 0 | K189: =ROUND(F189*VLOOKUP(D189,ALLOCTABLE_Prod_Energy,$K$10,FALSE),0) -> 0 | L189: =ROUND(F189*VLOOKUP(D189,ALLOCTABLE_Prod_Energy,$L$10,FALSE),0) -> 0 | M189: =ROUND(F189*VLOOKUP(D189,ALLOCTABLE_Prod_Energy,$M$10,FALSE),0) -> 0 | N189: =ROUND(F189*VLOOKUP(D189,ALLOCTABLE_Prod_Energy,$N$10,FALSE),0) -> 0 | O189: =ROUND(F189*VLOOKUP(D189,ALLOCTABLE_Prod_Energy,$O$10,FALSE),0) -> 0 | P189: =ROUND(F189*VLOOKUP(D189,ALLOCTABLE_Prod_Energy,$P$10,FALSE),0) -> 0 | Q189: =ROUND(F189*VLOOKUP(D189,ALLOCTABLE_Prod_Energy,$Q$10,FALSE),0) -> 0 | R189: =SUM(G189:Q189) -> 0 | S189: =F189-R189 -> 0
A190: 56 | C190: ='FR-16(7)(v)-1 Functional'!C190 -> PRODUCTION - ENERGY | D190: ='FR-16(7)(v)-1 Functional'!D190 -> K301 | F190: ='FR-16(7)(v)-2 PROD Classified'!H190 -> 8498622 | G190: 3207889 | H190: 2288849 | I190: 12833 | J190: 36374 | K190: 595 | L190: 1402358 | M190: 974027 | N190: 45638 | O190: 492070 | P190: 37054 | Q190: 935 | R190: 8498622 | S190: 0
A191: 57 | C191: ='FR-16(7)(v)-1 Functional'!C191 -> TRANSMISSION | D191: ='FR-16(7)(v)-1 Functional'!D191 -> K202 | F191: ='FR-16(7)(v)-2 PROD Classified'!H191 -> 0 | G191: 0 | H191: 0 | I191: 0 | J191: 0 | K191: 0 | L191: 0 | M191: 0 | N191: 0 | O191: 0 | P191: 0 | Q191: 0 | R191: 0 | S191: 0
A192: 58 | C192: ='FR-16(7)(v)-1 Functional'!C192 -> DISTRIBUTION - DEMAND | D192: ='FR-16(7)(v)-1 Functional'!D192 -> K201 | F192: ='FR-16(7)(v)-2 PROD Classified'!H192 -> 0 | G192: 0 | H192: 0 | I192: 0 | J192: 0 | K192: 0 | L192: 0 | M192: 0 | N192: 0 | O192: 0 | P192: 0 | Q192: 0 | R192: 0 | S192: 0
A193: 59 | C193: ='FR-16(7)(v)-1 Functional'!C193 -> DISTRIBUTION - CUSTOMER | D193: ='FR-16(7)(v)-1 Functional'!D193 -> K405 | F193: ='FR-16(7)(v)-2 PROD Classified'!H193 -> 0 | G193: 0 | H193: 0 | I193: 0 | J193: 0 | K193: 0 | L193: 0 | M193: 0 | N193: 0 | O193: 0 | P193: 0 | Q193: 0 | R193: 0 | S193: 0
A194: 60 | C194: ='FR-16(7)(v)-1 Functional'!C194 -> CUSTOMER ACCOUNTING | D194: ='FR-16(7)(v)-1 Functional'!D194 -> A308 | F194: ='FR-16(7)(v)-2 PROD Classified'!H194 -> 0 | G194: 0 | H194: 0 | I194: 0 | J194: 0 | K194: 0 | L194: 0 | M194: 0 | N194: 0 | O194: 0 | P194: 0 | Q194: 0 | R194: 0 | S194: 0
A195: 61 | C195: ='FR-16(7)(v)-1 Functional'!C195 -> CUSTOMER SERVICE & INFORMATION | D195: ='FR-16(7)(v)-1 Functional'!D195 -> A310 | F195: ='FR-16(7)(v)-2 PROD Classified'!H195 -> 0 | G195: 0 | H195: 0 | I195: 0 | J195: 0 | K195: 0 | L195: 0 | M195: 0 | N195: 0 | O195: 0 | P195: 0 | Q195: 0 | R195: 0 | S195: 0
A196: 62 | C196: ='FR-16(7)(v)-1 Functional'!C196 -> SALES | D196: ='FR-16(7)(v)-1 Functional'!D196 -> A312 | F196: ='FR-16(7)(v)-2 PROD Classified'!H196 -> 0 | G196: 0 | H196: 0 | I196: 0 | J196: 0 | K196: 0 | L196: 0 | M196: 0 | N196: 0 | O196: 0 | P196: 0 | Q196: 0 | R196: 0 | S196: 0
A197: 63 | C197: ='FR-16(7)(v)-1 Functional'!C197 -> ADJUSTMENT | D197: ='FR-16(7)(v)-1 Functional'!D197 -> A315 | F197: ='FR-16(7)(v)-2 PROD Classified'!H197 -> 6290 | G197: 2383 | H197: 1698 | I197: 9 | J197: 27 | K197: 0 | L197: 1038 | M197: 723 | N197: 34 | O197: 350 | P197: 27 | Q197: 1 | R197: 6290 | S197: 0
A198: 64 | C198: ='FR-16(7)(v)-1 Functional'!C198 -> COMMON & OTHER PLANT IN SERVICE | F198: =SUM(F189:F197) -> 8504912 | G198: =SUM(G189:G197) -> 3210272 | H198: 2290547 | I198: 12842 | J198: 36401 | K198: 595 | L198: =SUM(L189:L197) -> 1403396 | M198: =SUM(M189:M197) -> 974750 | N198: 45672 | O198: 492420 | P198: 37081 | Q198: 936 | R198: =SUM(R188:R197) -> 8504912 | S198: =SUM(S188:S197) -> 0
A199: 65
A200: 66 | B200: TOTAL DEPRECIATION RESERVE | F200: =F198+F186+F171+F145+F139 -> 14906680 | G200: =G198+G186+G171+G145+G139 -> 5626812 | H200: =H198+H186+H171+H145+H139 -> 4014744 | I200: 22509 | J200: 63801 | K200: 1043 | L200: 2459762 | M200: 1708495 | N200: 80052 | O200: 862829 | P200: 64993 | Q200: 1640 | R200: =R198+R186+R171+R145+R139 -> 14906680 | S200: =S198+S186+S171+S145+S139 -> 0
A202: =co_name -> DUKE ENERGY KENTUCKY, INC. | R202: =R1 -> FR-16(7)(v)-4
A203: =$A$2 -> PRODUCTION ENERGY ALLOCATED - ELECTRIC COST OF SERVICE | R203: =R2 -> WITNESS RESPONSIBLE:
A204: =case_name -> CASE NO: 2019-00271 | R204: =Witness -> JAMES E. ZIOLKOWSKI
A205: =data_filing -> DATA: 12 MONTHS ACTUAL & 0 MONTHS ESTIMATED | R205: ="PAGE "&Pages-14&" OF "&Pages -> PAGE 4 OF 18
A206: =type -> TYPE OF FILING: "X" ORIGINAL UPDATED REVISED
... 787 more rows

Sheet FR-16(7)(v)-5 PROD Cust
A1: =co_name -> DUKE ENERGY KENTUCKY, INC. | R1: FR-16(7)(v)-5
A2: =F8&" "&F9&" ALLOCATED - ELECTRIC COST OF SERVICE" -> PRODUCTION CUSTOMER ALLOCATED - ELECTRIC COST OF SERVICE | R2: WITNESS RESPONSIBLE:
A3: =case_name -> CASE NO: 2019-00271 | R3: =Witness -> JAMES E. ZIOLKOWSKI
A4: =data_filing -> DATA: 12 MONTHS ACTUAL & 0 MONTHS ESTIMATED | R4: ="PAGE "&Pages-17&" OF "&Pages -> PAGE 1 OF 18
A5: =type -> TYPE OF FILING: "X" ORIGINAL UPDATED REVISED
F7: ='FR-16(7)(v)-3 PROD Demand'!F7 -> TOTAL | H7: ='FR-16(7)(v)-3 PROD Demand'!H7 -> DS | I7: ='FR-16(7)(v)-3 PROD Demand'!I7 -> GSFL | J7: ='FR-16(7)(v)-3 PROD Demand'!J7 -> EH | K7: ='FR-16(7)(v)-3 PROD Demand'!K7 -> SP | L7: ='FR-16(7)(v)-3 PROD Demand'!L7 -> DT SEC | M7: ='FR-16(7)(v)-3 PROD Demand'!M7 -> DT PRI | N7: ='FR-16(7)(v)-3 PROD Demand'!N7 -> DP | O7: ='FR-16(7)(v)-3 PROD Demand'!O7 -> TT | Q7: ='FR-16(7)(v)-3 PROD Demand'!Q7 -> OTHER
A8: LINE | F8: ='FR-16(7)(v)-3 PROD Demand'!F8 -> PRODUCTION | G8: ='FR-16(7)(v)-3 PROD Demand'!G8 -> RS | H8: ='FR-16(7)(v)-3 PROD Demand'!H8 -> SECONDARY | I8: ='FR-16(7)(v)-3 PROD Demand'!I8 -> SECONDARY | J8: ='FR-16(7)(v)-3 PROD Demand'!J8 -> SECONDARY | K8: ='FR-16(7)(v)-3 PROD Demand'!K8 -> SECONDARY | L8: ='FR-16(7)(v)-3 PROD Demand'!L8 -> SECONDARY | M8: ='FR-16(7)(v)-3 PROD Demand'!M8 -> PRIMARY | N8: ='FR-16(7)(v)-3 PROD Demand'!N8 -> PRIMARY | O8: ='FR-16(7)(v)-3 PROD Demand'!O8 -> TRANSMISSION | P8: ='FR-16(7)(v)-3 PROD Demand'!P8 -> LT | Q8: ='FR-16(7)(v)-3 PROD Demand'!Q8 -> WATER | R8: ='FR-16(7)(v)-3 PROD Demand'!R8 -> TOTAL | S8: ='FR-16(7)(v)-3 PROD Demand'!S8 -> ALL
A9: NO. | B9: SUMMARY OF RESULTS | D9: ALLO | F9: CUSTOMER | G9: ='FR-16(7)(v)-3 PROD Demand'!G9 -> RESIDENTIAL | H9: ='FR-16(7)(v)-3 PROD Demand'!H9 -> DISTRIBUTION | I9: ='FR-16(7)(v)-3 PROD Demand'!I9 -> DISTRIBUTION | J9: ='FR-16(7)(v)-3 PROD Demand'!J9 -> DISTRIBUTION | K9: ='FR-16(7)(v)-3 PROD Demand'!K9 -> DISTRIBUTION | L9: ='FR-16(7)(v)-3 PROD Demand'!L9 -> DISTRIBUTION | M9: ='FR-16(7)(v)-3 PROD Demand'!M9 -> DISTRIBUTION | N9: ='FR-16(7)(v)-3 PROD Demand'!N9 -> DISTRIBUTION | O9: ='FR-16(7)(v)-3 PROD Demand'!O9 -> TIME OF DAY | P9: ='FR-16(7)(v)-3 PROD Demand'!P9 -> LIGHTING | Q9: ='FR-16(7)(v)-3 PROD Demand'!Q9 -> PUMPING | R9: ='FR-16(7)(v)-3 PROD Demand'!R9 -> AT ISSUE | S9: ='FR-16(7)(v)-3 PROD Demand'!S9 -> OTHER
C10: Schedule 1 | G10: 3 | H10: 4 | I10: 5 | J10: 6 | K10: 7 | L10: 8 | M10: 9 | N10: 10 | O10: 11 | P10: 12 | Q10: 13
A11: 1 | B11: NET INCOME COMPUTATION
A12: 2 | C12: ='FR-16(7)(v)-1 Functional'!C12 -> GROSS ELECTRIC PLANT IN SERVICE | F12: =F123 -> 0 | G12: =G123 -> 0 | H12: =H123 -> 0 | I12: =I123 -> 0 | J12: =J123 -> 0 | K12: 0 | L12: 0 | M12: 0 | N12: 0 | O12: 0 | P12: 0 | Q12: =Q123 -> 0 | R12: =SUM(G12:Q12) -> 0 | S12: =F12-R12 -> 0
A13: 3 | C13: ='FR-16(7)(v)-1 Functional'!C13 -> TOTAL DEPRECIATION RESERVE | F13: =-F200 -> 0 | G13: =-G200 -> 0 | H13: =-H200 -> 0 | I13: =-I200 -> 0 | J13: =-J200 -> 0 | K13: 0 | L13: 0 | M13: 0 | N13: 0 | O13: 0 | P13: 0 | Q13: =-Q200 -> 0 | R13: =SUM(G13:Q13) -> 0 | S13: =F13-R13 -> 0
A14: 4 | C14: ='FR-16(7)(v)-1 Functional'!C14 -> TOTAL RATE BASE ADJUSTMENTS | F14: =F421 -> 0 | G14: =G421 -> 0 | H14: =H421 -> 0 | I14: =I421 -> 0 | J14: =J421 -> 0 | K14: 0 | L14: 0 | M14: 0 | N14: 0 | O14: 0 | P14: 0 | Q14: =Q421 -> 0 | R14: =SUM(G14:Q14) -> 0 | S14: =F14-R14 -> 0
A15: 5 | C15: ='FR-16(7)(v)-1 Functional'!C15 -> TOTAL RATE BASE | F15: =SUM(F12:F14) -> 0 | G15: =SUM(G12:G14) -> 0 | H15: =SUM(H12:H14) -> 0 | I15: =SUM(I12:I14) -> 0 | J15: =SUM(J12:J14) -> 0 | K15: 0 | L15: 0 | M15: 0 | N15: 0 | O15: 0 | P15: 0 | Q15: =SUM(Q12:Q14) -> 0 | R15: =SUM(R12:R14) -> 0 | S15: =F15-R15 -> 0
A16: 6
A17: 7 | B17: OPERATING EXPENSES
A18: 8 | C18: ='FR-16(7)(v)-1 Functional'!C18 -> TOTAL O&M EXPENSE | F18: =F549 -> 0 | G18: =G549 -> 0 | H18: =H549 -> 0 | I18: =I549 -> 0 | J18: =J549 -> 0 | K18: 0 | L18: 0 | M18: 0 | N18: 0 | O18: 0 | P18: 0 | Q18: =Q549 -> 0 | R18: =SUM(G18:Q18) -> 0 | S18: =F18-R18 -> 0
A19: 9 | C19: ='FR-16(7)(v)-1 Functional'!C19 -> TOTAL DEPRECIATION EXPENSE | F19: =F582 -> 0 | G19: =G582 -> 0 | H19: =H582 -> 0 | I19: =I582 -> 0 | J19: =J582 -> 0 | K19: 0 | L19: 0 | M19: 0 | N19: 0 | O19: 0 | P19: 0 | Q19: =Q582 -> 0 | R19: =SUM(G19:Q19) -> 0 | S19: 0
A20: 10 | C20: ='FR-16(7)(v)-1 Functional'!C20 -> TOTAL OTHER TAX & MISC EXPENSE | F20: =F612 -> 0 | G20: =G612 -> 0 | H20: =H612 -> 0 | I20: =I612 -> 0 | J20: =J612 -> 0 | K20: 0 | L20: 0 | M20: 0 | N20: 0 | O20: 0 | P20: 0 | Q20: =$Q$612 -> 0 | R20: =SUM(G20:Q20) -> 0 | S20: 0
A21: 11 | C21: ='FR-16(7)(v)-1 Functional'!C21 -> TOTAL OP EXP EXCLUDING INC & REV TAX | F21: =SUM(F17:F20) -> 0 | G21: 0 | H21: 0 | I21: 0 | J21: =SUM(J17:J20) -> 0 | K21: 0 | L21: 0 | M21: 0 | N21: 0 | O21: 0 | P21: 0 | Q21: 0 | R21: 0 | S21: 0
A22: 12 | C22: ='FR-16(7)(v)-1 Functional'!C22 -> NET FED INCOME TAX EXP ALLOWABLE | F22: =F676 -> 0 | G22: =G676 -> 0 | H22: =H676 -> 0 | I22: =I676 -> 0 | J22: =J676 -> 0 | K22: 0 | L22: 0 | M22: 0 | N22: 0 | O22: 0 | P22: 0 | Q22: =$Q$676 -> 0 | R22: =SUM(G22:Q22) -> 0 | S22: 0
A23: 13 | C23: NET STATE INCOME TAX EXP ALLOWABLE | F23: =F722 -> 0 | G23: =G722 -> 0 | H23: 0 | I23: 0 | J23: 0 | K23: 0 | L23: 0 | M23: 0 | N23: 0 | O23: 0 | P23: 0 | Q23: 0 | R23: =SUM(G23:Q23) -> 0 | S23: 0
A24: 14 | C24: RESERVED | D24: ='FR-16(7)(v)-1 Functional'!D24 -> CW29 | F24: ='FR-16(7)(v)-2 PROD Classified'!I24 -> 0 | G24: =F24-SUM(H24:Q24) -> 0 | H24: =ROUND(F24*VLOOKUP(D73,ALLOCTABLE_Prod_Customer,$H$10,FALSE),0) -> 0 | I24: =ROUND(F24*VLOOKUP($D$24,ALLOCTABLE_Prod_Customer,$I$10,FALSE),0) -> 0 | J24: =ROUND(F24*VLOOKUP($D$24,ALLOCTABLE_Prod_Customer,$J$10,FALSE),0) -> 0 | K24: =ROUND(F24*VLOOKUP($D$24,ALLOCTABLE_Prod_Customer,$K$10,FALSE),0) -> 0 | L24: =ROUND(F24*VLOOKUP($D$24,ALLOCTABLE_Prod_Customer,$L$10,FALSE),0) -> 0 | M24: =ROUND(F24*VLOOKUP($D$24,ALLOCTABLE_Prod_Customer,$M$10,FALSE),0) -> 0 | N24: =ROUND(F24*VLOOKUP($D$24,ALLOCTABLE_Prod_Customer,$N$10,FALSE),0) -> 0 | O24: =ROUND(F24*VLOOKUP($D$24,ALLOCTABLE_Prod_Customer,$O$10,FALSE),0) -> 0 | P24: =ROUND(F24*VLOOKUP($D$24,ALLOCTABLE_Prod_Customer,$P$10,FALSE),0) -> 0 | Q24: =ROUND(F24*VLOOKUP(D24,ALLOCTABLE_Prod_Customer,$Q$10,FALSE),0) -> 0 | R24: =SUM(G24:Q24) -> 0 | S24: =F24-R24 -> 0
A25: 15 | C25: ='FR-16(7)(v)-1 Functional'!C25 -> REVENUE TAX | F25: =F767 -> 0 | G25: =G767 -> 0 | H25: =H767 -> 0 | I25: =I767 -> 0 | J25: =J767 -> 0 | K25: 0 | L25: 0 | M25: 0 | N25: 0 | O25: 0 | P25: 0 | Q25: =Q767 -> 0 | R25: =SUM(G25:Q25) -> 0 | S25: 0
A26: 16 | C26: ='FR-16(7)(v)-1 Functional'!C26 -> TOTAL OPERATING EXPENSE | F26: =SUM(F21:F25) -> 0 | G26: 0 | H26: 0 | I26: 0 | J26: =SUM(J21:J25) -> 0 | K26: 0 | L26: 0 | M26: 0 | N26: 0 | O26: 0 | P26: 0 | Q26: 0 | R26: 0 | S26: 0
A27: 17
A28: 18 | B28: RETURN ON RATE BASE | F28: =F433 -> 0 | G28: 0 | H28: 0 | I28: 0 | J28: 0 | K28: 0 | L28: 0 | M28: 0 | N28: 0 | O28: 0 | P28: 0 | Q28: 0 | R28: =SUM(G28:Q28) -> 0 | S28: =F28-R28 -> 0
A29: 19 | B29: TOTAL OTHER OPERATING REVENUES | F29: =-F750 -> 0 | G29: =-G750 -> 0 | H29: =-H750 -> 0 | I29: =-I750 -> 0 | J29: =-J750 -> 0 | K29: 0 | L29: 0 | M29: 0 | N29: 0 | O29: 0 | P29: 0 | Q29: =-$Q$750 -> 0 | R29: =SUM(G29:Q29) -> 0 | S29: 0
A30: 20 | C30: ='FR-16(7)(v)-1 Functional'!C30 -> TOTAL ELECTRIC COST OF SERVICE | F30: =SUM(F26:F29) -> 0 | G30: 0 | H30: 0 | I30: 0 | J30: =SUM(J26:J29) -> 0 | K30: 0 | L30: 0 | M30: 0 | N30: 0 | O30: 0 | P30: 0 | Q30: 0 | R30: 0 | S30: 0
A31: 21 | B31: ADJUSTMENT FOR INTERCLASS SUBSIDIZATION | D31: =1-'WP FR-16(7)(v) Rate Incr'!I11 -> 0.95 | F31: ='WP FR-16(7)(v) Rate Incr'!Q27 -> 0 | G31: ='WP FR-16(7)(v) Rate Incr'!Q15 -> -9336840 | H31: ='WP FR-16(7)(v) Rate Incr'!Q16 -> 6445498 | I31: ='WP FR-16(7)(v) Rate Incr'!Q17 -> 89344 | J31: ='WP FR-16(7)(v) Rate Incr'!R17 -> 6774 | K31: ='WP FR-16(7)(v) Rate Incr'!S17 -> 56376 | L31: ='WP FR-16(7)(v) Rate Incr'!T17 -> 111986 | M31: ='WP FR-16(7)(v) Rate Incr'!U17 -> 0 | N31: ='WP FR-16(7)(v) Rate Incr'!V17 -> 40507 | O31: ='WP FR-16(7)(v) Rate Incr'!W17 -> 0 | P31: ='WP FR-16(7)(v) Rate Incr'!X17 -> 0 | Q31: ='WP FR-16(7)(v) Rate Incr'!Q25 -> -9875 | R31: =SUM(G31:Q31) -> -2596230 | S31: 2596230
A32: 22 | B32: ='FR-16(7)(v)-1 Functional'!$B$32 -> REQUESTED REVENUES (COST OF SERVICE ADJUSTED FOR SUBSIDIES) | F32: =F31+F30 -> 0 | G32: -9336840 | H32: 6445498 | I32: 89344 | J32: =J31+J30 -> 6774 | K32: 56376 | L32: 111986 | M32: 0 | N32: 40507 | O32: 0 | P32: 0 | Q32: -9875 | R32: -2596230 | S32: 2596230
A33: 23 | B33: PROPOSED REVENUES | F33: =F868 -> 0 | G33: 0 | H33: 0 | I33: 0 | J33: =J868 -> 0 | K33: 0 | L33: 0 | M33: 0 | N33: 0 | O33: 0 | P33: 0 | Q33: 0 | R33: 0 | S33: 0
A34: 24 | B34: DIFFERENCE (REQUESTED LESS PROPOSED) | F34: =F32-F33 -> 0 | G34: =G32-G33 -> -9336840 | H34: 6445498 | I34: 89344 | J34: =J32-J33 -> 6774 | K34: 56376 | L34: 111986 | M34: 0 | N34: 40507 | O34: 0 | P34: 0 | Q34: -9875 | R34: -2596230 | S34: 2596230
A35: 25
A36: 26 | B36: TOTAL RETURN EARNED | F36: =F777+F28 -> 0 | G36: =G777+G28 -> 0 | H36: =H777+H28 -> 0 | I36: =I777+I28 -> 0 | J36: =J777+J28 -> 0 | K36: 0 | L36: 0 | M36: 0 | N36: 0 | O36: 0 | P36: 0 | Q36: =Q777+Q28 -> 0 | R36: =R777+R28 -> 0 | S36: =F36-R36 -> 0
A37: 27 | B37: RATE OF RETURN EARNED | F37: =IF(F431=0,0,ROUND(F36/F431,5)) -> 0 | G37: 0 | H37: 0 | I37: 0 | J37: 0 | K37: 0 | L37: 0 | M37: 0 | N37: 0 | O37: 0 | P37: 0 | Q37: 0 | R37: 0 | S37: 0
A38: 28 | B38: TOTAL RATE OF RETURN ALLOWABLE | F38: =$F$811 -> 0.0671 | G38: =$F$811 -> 0.0671 | H38: 0.0671 | I38: 0.0671 | J38: 0.0671 | K38: 0.0671 | L38: 0.0671 | M38: 0.0671 | N38: 0.0671 | O38: 0.0671 | P38: 0.0671 | Q38: 0.0671 | R38: =F811 -> 0.0671 | S38: =F811 -> 0.0671 | V38: Not Part of print range
A39: 29 | B39: RETURN EARNED ON COMMON EQUITY | F39: =IF(Equity=0,0,(F37-$F$806-$F$807-$F$809)*TotalCap/Equity) -> -0.04104957411 | G39: -0.04104957411 | H39: -0.04104957411 | I39: -0.04104957411 | J39: -0.04104957411 | K39: -0.04104957411 | L39: -0.04104957411 | M39: -0.04104957411 | N39: -0.04104957411 | O39: -0.04104957411 | P39: -0.04104957411 | Q39: -0.04104957411 | R39: =IF(Equity=0,0,(R37-F806-F807-F809)*TotalCap/Equity) -> -0.04104957411 | S39: =IF(Equity=0,0,(S37-F806-F807-F809)*TotalCap/Equity) -> -0.04104957411 | V39: Not Filed
A40: 30 | B40: ALLOWED RETURN ON COMMON EQUITY | F40: =IF(Equity=0,0,(F38-$F$806-$F$807-$F$809)*TotalCap/Equity) -> 0.09806287149 | G40: 0.09806287149 | H40: 0.09806287149 | I40: 0.09806287149 | J40: 0.09806287149 | K40: 0.09806287149 | L40: 0.09806287149 | M40: 0.09806287149 | N40: 0.09806287149 | O40: 0.09806287149 | P40: 0.09806287149 | Q40: 0.09806287149 | R40: =IF(Equity=0,0,(R38-F806-F807-F809)*TotalCap/Equity) -> 0.09806287149 | S40: =IF(Equity=0,0,(S38-F806-F807-F809)*TotalCap/Equity) -> 0.09806287149
A41: 31
A42: 32 | B42: PRESENT REVENUES | F42: =F867 -> 0 | G42: 0 | H42: 0 | I42: 0 | J42: =J867 -> 0 | K42: 0 | L42: 0 | M42: 0 | N42: 0 | O42: 0 | P42: 0 | Q42: 0 | R42: 0 | S42: =F42-R42 -> 0
A43: 33 | B43: REVENUE INCREASE JUSTIFIED | F43: =F30-F42 -> 0 | G43: 0 | H43: 0 | I43: 0 | J43: =J30-J42 -> 0 | K43: 0 | L43: 0 | M43: 0 | N43: 0 | O43: 0 | P43: 0 | Q43: 0 | R43: 0 | S43: 0
A44: 34 | C44: PER UNIT PRES REV | F44: =IF(F42=0,0,ROUND(F43/F42,5)) -> 0 | G44: 0 | H44: 0 | I44: 0 | J44: =IF(J42=0,0,ROUND(J43/J42,5)) -> 0 | K44: 0 | L44: 0 | M44: 0 | N44: 0 | O44: 0 | P44: 0 | Q44: 0 | R44: 0 | S44: 0
A45: 35 | B45: REVENUE INCREASE REQUESTED | F45: =F33-F42 -> 0 | G45: 0 | H45: 0 | I45: 0 | J45: =J33-J42 -> 0 | K45: 0 | L45: 0 | M45: 0 | N45: 0 | O45: 0 | P45: 0 | Q45: 0 | R45: 0 | S45: 0
A46: 36 | C46: PER UNIT PRES REV | F46: =IF(F42=0,0,ROUND(F45/F42,5)) -> 0 | G46: 0 | H46: 0 | I46: 0 | J46: =IF(J42=0,0,ROUND(J45/J42,5)) -> 0 | K46: 0 | L46: 0 | M46: 0 | N46: 0 | O46: 0 | P46: 0 | Q46: 0 | R46: 0 | S46: 0
A48: =co_name -> DUKE ENERGY KENTUCKY, INC. | R48: =R1 -> FR-16(7)(v)-5
A49: =$A$2 -> PRODUCTION CUSTOMER ALLOCATED - ELECTRIC COST OF SERVICE | R49: =R2 -> WITNESS RESPONSIBLE:
A50: =case_name -> CASE NO: 2019-00271 | R50: =Witness -> JAMES E. ZIOLKOWSKI
A51: =data_filing -> DATA: 12 MONTHS ACTUAL & 0 MONTHS ESTIMATED | R51: ="PAGE "&Pages-16&" OF "&Pages -> PAGE 2 OF 18
A52: =type -> TYPE OF FILING: "X" ORIGINAL UPDATED REVISED
F54: =F$7 -> TOTAL | H54: =H$7 -> DS | I54: =I$7 -> GSFL | J54: =J$7 -> EH | K54: =K$7 -> SP | L54: DT SEC | M54: DT PRI | N54: DP | O54: TT | Q54: OTHER
A55: LINE | F55: =F$8 -> PRODUCTION | G55: =G$8 -> RS | H55: =H$8 -> SECONDARY | I55: =I$8 -> SECONDARY | J55: =J$8 -> SECONDARY | K55: =K$8 -> SECONDARY | L55: SECONDARY | M55: PRIMARY | N55: PRIMARY | O55: TRANSMISSION | P55: LT | Q55: WATER | R55: =R8 -> TOTAL | S55: ALL
A56: NO. | B56: GROSS ELECTRIC PLANT IN SERVICE | D56: ALLO | F56: =F$9 -> CUSTOMER | G56: =G$9 -> RESIDENTIAL | H56: =H$9 -> DISTRIBUTION | I56: =I$9 -> DISTRIBUTION | J56: =J$9 -> DISTRIBUTION | K56: =K$9 -> DISTRIBUTION | L56: DISTRIBUTION | M56: DISTRIBUTION | N56: DISTRIBUTION | O56: TIME OF DAY | P56: LIGHTING | Q56: PUMPING | R56: =R9 -> AT ISSUE | S56: OTHER
C57: Schedule 2 | G57: =G$10 -> 3 | H57: =H$10 -> 4 | I57: =I$10 -> 5 | J57: =J$10 -> 6 | K57: =K$10 -> 7 | L57: 8 | M57: 9 | N57: 10 | O57: 11 | P57: 12 | Q57: 13
A58: 1 | B58: PRODUCTION PLANT
A59: 2 | C59: PRODUCTION STEAM | D59: ='FR-16(7)(v)-1 Functional'!D59 -> K201 | F59: ='FR-16(7)(v)-2 PROD Classified'!I59 -> 0 | G59: =F59-SUM(H59:Q59) -> 0 | H59: =ROUND(F59*VLOOKUP(D59,ALLOCTABLE_Prod_Customer,$H$10,FALSE),0) -> 0 | I59: =ROUND(F59*VLOOKUP($D$59,ALLOCTABLE_Prod_Customer,$I$10,FALSE),0) -> 0 | J59: =ROUND(F59*VLOOKUP($D$59,ALLOCTABLE_Prod_Customer,$J$10,FALSE),0) -> 0 | K59: =ROUND(F59*VLOOKUP($D$59,ALLOCTABLE_Prod_Customer,$K$10,FALSE),0) -> 0 | L59: =ROUND(F59*VLOOKUP($D$59,ALLOCTABLE_Prod_Customer,$L$10,FALSE),0) -> 0 | M59: =ROUND(F59*VLOOKUP($D$59,ALLOCTABLE_Prod_Customer,$M$10,FALSE),0) -> 0 | N59: =ROUND(F59*VLOOKUP($D$59,ALLOCTABLE_Prod_Customer,$N$10,FALSE),0) -> 0 | O59: =ROUND(F59*VLOOKUP($D$59,ALLOCTABLE_Prod_Customer,$O$10,FALSE),0) -> 0 | P59: =ROUND(F59*VLOOKUP($D$59,ALLOCTABLE_Prod_Customer,$P$10,FALSE),0) -> 0 | Q59: =ROUND(F59*VLOOKUP(D59,ALLOCTABLE_Prod_Customer,$Q$10,FALSE),0) -> 0 | R59: =SUM(G59:Q59) -> 0 | S59: =F59-R59 -> 0
A60: 3 | C60: PRODUCTION OTHER | D60: ='FR-16(7)(v)-1 Functional'!D60 -> K201 | F60: ='FR-16(7)(v)-2 PROD Classified'!I60 -> 0 | G60: =F60-SUM(H60:Q60) -> 0 | H60: =ROUND(F60*VLOOKUP(D60,ALLOCTABLE_Prod_Customer,$H$10,FALSE),0) -> 0 | I60: =ROUND(F60*VLOOKUP($D$60,ALLOCTABLE_Prod_Customer,$I$10,FALSE),0) -> 0 | J60: =ROUND(F60*VLOOKUP($D$60,ALLOCTABLE_Prod_Customer,$J$10,FALSE),0) -> 0 | K60: =ROUND(F60*VLOOKUP($D$60,ALLOCTABLE_Prod_Customer,$K$10,FALSE),0) -> 0 | L60: =ROUND(F60*VLOOKUP($D$60,ALLOCTABLE_Prod_Customer,$L$10,FALSE),0) -> 0 | M60: =ROUND(F60*VLOOKUP($D$60,ALLOCTABLE_Prod_Customer,$M$10,FALSE),0) -> 0 | N60: =ROUND(F60*VLOOKUP($D$60,ALLOCTABLE_Prod_Customer,$N$10,FALSE),0) -> 0 | O60: =ROUND(F60*VLOOKUP($D$60,ALLOCTABLE_Prod_Customer,$O$10,FALSE),0) -> 0 | P60: =ROUND(F60*VLOOKUP($D$60,ALLOCTABLE_Prod_Customer,$P$10,FALSE),0) -> 0 | Q60: =ROUND(F60*VLOOKUP(D60,ALLOCTABLE_Prod_Customer,$Q$10,FALSE),0) -> 0 | R60: =SUM(G60:Q60) -> 0 | S60: =F60-R60 -> 0
A61: 4 | C61: ='FR-16(7)(v)-1 Functional'!C61 -> ADJUSTMENT | D61: ='FR-16(7)(v)-1 Functional'!D61 -> K201 | F61: ='FR-16(7)(v)-2 PROD Classified'!I61 -> 0 | G61: =F61-SUM(H61:Q61) -> 0 | H61: =ROUND(F61*VLOOKUP(D61,ALLOCTABLE_Prod_Customer,$H$10,FALSE),0) -> 0 | I61: =ROUND(F61*VLOOKUP($D$61,ALLOCTABLE_Prod_Customer,$I$10,FALSE),0) -> 0 | J61: =ROUND(F61*VLOOKUP($D$61,ALLOCTABLE_Prod_Customer,$J$10,FALSE),0) -> 0 | K61: =ROUND(F61*VLOOKUP($D$61,ALLOCTABLE_Prod_Customer,$K$10,FALSE),0) -> 0 | L61: =ROUND(F61*VLOOKUP($D$61,ALLOCTABLE_Prod_Customer,$L$10,FALSE),0) -> 0 | M61: =ROUND(F61*VLOOKUP($D$61,ALLOCTABLE_Prod_Customer,$M$10,FALSE),0) -> 0 | N61: =ROUND(F61*VLOOKUP($D$61,ALLOCTABLE_Prod_Customer,$N$10,FALSE),0) -> 0 | O61: =ROUND(F61*VLOOKUP($D$61,ALLOCTABLE_Prod_Customer,$O$10,FALSE),0) -> 0 | P61: =ROUND(F61*VLOOKUP($D$61,ALLOCTABLE_Prod_Customer,$P$10,FALSE),0) -> 0 | Q61: =ROUND(F61*VLOOKUP(D61,ALLOCTABLE_Prod_Customer,$Q$10,FALSE),0) -> 0 | R61: =SUM(G61:Q61) -> 0 | S61: =F61-R61 -> 0
A62: 5 | C62: ='FR-16(7)(v)-1 Functional'!C62 -> PRODUCTION PLANT IN SERVICE | F62: =SUM(F59:F61) -> 0 | G62: =SUM(G59:G61) -> 0 | H62: =SUM(H59:H61) -> 0 | I62: =SUM(I59:I61) -> 0 | J62: =SUM(J59:J61) -> 0 | K62: 0 | L62: 0 | M62: 0 | N62: 0 | O62: 0 | P62: 0 | Q62: =SUM($Q$59:$Q$61) -> 0 | R62: =SUM(R59:R61) -> 0 | S62: =SUM(S59:S61) -> 0
A63: 6
A64: 7 | B64: TRANSMISSION PLANT
A65: 8 | C65: MAIN STEP-UP TRANSFORMERS | D65: ='FR-16(7)(v)-1 Functional'!D65 -> K202 | F65: ='FR-16(7)(v)-2 PROD Classified'!I65 -> 0 | G65: =F65-SUM(H65:Q65) -> 0 | H65: =ROUND(F65*VLOOKUP(D65,ALLOCTABLE_Prod_Customer,$H$10,FALSE),0) -> 0 | I65: =ROUND(F65*VLOOKUP($D$65,ALLOCTABLE_Prod_Customer,$I$10,FALSE),0) -> 0 | J65: =ROUND(F65*VLOOKUP($D$65,ALLOCTABLE_Prod_Customer,$J$10,FALSE),0) -> 0 | K65: =ROUND(F65*VLOOKUP($D$65,ALLOCTABLE_Prod_Customer,$K$10,FALSE),0) -> 0 | L65: =ROUND(F65*VLOOKUP($D$65,ALLOCTABLE_Prod_Customer,$L$10,FALSE),0) -> 0 | M65: =ROUND(F65*VLOOKUP($D$65,ALLOCTABLE_Prod_Customer,$M$10,FALSE),0) -> 0 | N65: =ROUND(F65*VLOOKUP($D$65,ALLOCTABLE_Prod_Customer,$N$10,FALSE),0) -> 0 | O65: =ROUND(F65*VLOOKUP($D$65,ALLOCTABLE_Prod_Customer,$O$10,FALSE),0) -> 0 | P65: =ROUND(F65*VLOOKUP($D$65,ALLOCTABLE_Prod_Customer,$P$10,FALSE),0) -> 0 | Q65: =ROUND(F65*VLOOKUP(D65,ALLOCTABLE_Prod_Customer,$Q$10,FALSE),0) -> 0 | R65: =SUM(G65:Q65) -> 0 | S65: =F65-R65 -> 0
A66: 9 | C66: OTHER TRANSMISSION | D66: ='FR-16(7)(v)-1 Functional'!D66 -> K202 | F66: ='FR-16(7)(v)-2 PROD Classified'!I66 -> 0 | G66: =F66-SUM(H66:Q66) -> 0 | H66: =ROUND(F66*VLOOKUP(D66,ALLOCTABLE_Prod_Customer,$H$10,FALSE),0) -> 0 | I66: =ROUND(F66*VLOOKUP($D$66,ALLOCTABLE_Prod_Customer,$I$10,FALSE),0) -> 0 | J66: =ROUND(F66*VLOOKUP($D$66,ALLOCTABLE_Prod_Customer,$J$10,FALSE),0) -> 0 | K66: =ROUND(F66*VLOOKUP($D$66,ALLOCTABLE_Prod_Customer,$K$10,FALSE),0) -> 0 | L66: =ROUND(F66*VLOOKUP($D$66,ALLOCTABLE_Prod_Customer,$L$10,FALSE),0) -> 0 | M66: =ROUND(F66*VLOOKUP($D$66,ALLOCTABLE_Prod_Customer,$M$10,FALSE),0) -> 0 | N66: =ROUND(F66*VLOOKUP($D$66,ALLOCTABLE_Prod_Customer,$N$10,FALSE),0) -> 0 | O66: =ROUND(F66*VLOOKUP($D$66,ALLOCTABLE_Prod_Customer,$O$10,FALSE),0) -> 0 | P66: =ROUND(F66*VLOOKUP($D$66,ALLOCTABLE_Prod_Customer,$P$10,FALSE),0) -> 0 | Q66: =ROUND(F66*VLOOKUP(D66,ALLOCTABLE_Prod_Customer,$Q$10,FALSE),0) -> 0 | R66: =SUM(G66:Q66) -> 0 | S66: =F66-R66 -> 0
A67: 10 | C67: ADJUSTMENT | D67: ='FR-16(7)(v)-1 Functional'!D67 -> K202 | F67: ='FR-16(7)(v)-2 PROD Classified'!I67 -> 0 | G67: =F67-SUM(H67:Q67) -> 0 | H67: =ROUND(F67*VLOOKUP(D67,ALLOCTABLE_Prod_Customer,$H$10,FALSE),0) -> 0 | I67: =ROUND(F67*VLOOKUP($D$67,ALLOCTABLE_Prod_Customer,$I$10,FALSE),0) -> 0 | J67: =ROUND(F67*VLOOKUP($D$67,ALLOCTABLE_Prod_Customer,$J$10,FALSE),0) -> 0 | K67: =ROUND(F67*VLOOKUP($D$67,ALLOCTABLE_Prod_Customer,$K$10,FALSE),0) -> 0 | L67: =ROUND(F67*VLOOKUP($D$67,ALLOCTABLE_Prod_Customer,$L$10,FALSE),0) -> 0 | M67: =ROUND(F67*VLOOKUP($D$67,ALLOCTABLE_Prod_Customer,$M$10,FALSE),0) -> 0 | N67: =ROUND(F67*VLOOKUP($D$67,ALLOCTABLE_Prod_Customer,$N$10,FALSE),0) -> 0 | O67: =ROUND(F67*VLOOKUP($D$67,ALLOCTABLE_Prod_Customer,$O$10,FALSE),0) -> 0 | P67: =ROUND(F67*VLOOKUP($D$67,ALLOCTABLE_Prod_Customer,$P$10,FALSE),0) -> 0 | Q67: =ROUND(F67*VLOOKUP(D67,ALLOCTABLE_Prod_Customer,$Q$10,FALSE),0) -> 0 | R67: =SUM(G67:Q67) -> 0 | S67: =F67-R67 -> 0
A68: 11 | C68: ='FR-16(7)(v)-1 Functional'!C68 -> TRANSMISSION PLANT IN SERVICE | F68: =SUM(F65:F67) -> 0 | G68: 0 | H68: 0 | I68: 0 | J68: 0 | K68: 0 | L68: 0 | M68: 0 | N68: 0 | O68: 0 | P68: 0 | Q68: 0 | R68: 0 | S68: =SUM(S65) -> 0
A69: 12
A70: 13 | B70: TOTAL PROD & TRANS PLANT | F70: =F68+F62 -> 0 | G70: =G68+G62 -> 0 | H70: =H68+H62 -> 0 | I70: =I68+I62 -> 0 | J70: =J68+J62 -> 0 | K70: 0 | L70: 0 | M70: 0 | N70: 0 | O70: 0 | P70: 0 | Q70: =$Q$68+$Q$62 -> 0 | R70: =R68+R62 -> 0 | S70: =S68+S62 -> 0
A71: 14
A72: 15 | B72: DISTRIBUTION PLANT
A73: 16 | C73: ='FR-16(7)(v)-1 Functional'!C73 -> SUBSTATIONS | D73: ='FR-16(7)(v)-1 Functional'!D73 -> K215 | F73: ='FR-16(7)(v)-2 PROD Classified'!I73 -> 0 | G73: =F73-SUM(H73:Q73) -> 0 | H73: =ROUND(F73*VLOOKUP(D73,ALLOCTABLE_Prod_Customer,$H$10,FALSE),0) -> 0 | I73: =ROUND(F73*VLOOKUP($D$73,ALLOCTABLE_Prod_Customer,$I$10,FALSE),0) -> 0 | J73: =ROUND(F73*VLOOKUP($D$73,ALLOCTABLE_Prod_Customer,$J$10,FALSE),0) -> 0 | K73: =ROUND(F73*VLOOKUP($D$73,ALLOCTABLE_Prod_Customer,$K$10,FALSE),0) -> 0 | L73: =ROUND(F73*VLOOKUP($D$73,ALLOCTABLE_Prod_Customer,$L$10,FALSE),0) -> 0 | M73: =ROUND(F73*VLOOKUP($D$73,ALLOCTABLE_Prod_Customer,$M$10,FALSE),0) -> 0 | N73: =ROUND(F73*VLOOKUP($D$73,ALLOCTABLE_Prod_Customer,$N$10,FALSE),0) -> 0 | O73: =ROUND(F73*VLOOKUP($D$73,ALLOCTABLE_Prod_Customer,$O$10,FALSE),0) -> 0 | P73: =ROUND(F73*VLOOKUP($D$73,ALLOCTABLE_Prod_Customer,$P$10,FALSE),0) -> 0 | Q73: =ROUND(F73*VLOOKUP(D73,ALLOCTABLE_Prod_Customer,$Q$10,FALSE),0) -> 0 | R73: =SUM(G73:Q73) -> 0 | S73: =F73-R73 -> 0
A74: 17 | C74: ='FR-16(7)(v)-1 Functional'!C74 -> POLES, TOWERS & FIXTURES - PRIMARY - DEMAND | D74: ='FR-16(7)(v)-1 Functional'!D74 -> K205 | F74: ='FR-16(7)(v)-2 PROD Classified'!I74 -> 0 | G74: =F74-SUM(H74:Q74) -> 0 | H74: =ROUND(F74*VLOOKUP(D74,ALLOCTABLE_Prod_Customer,$H$10,FALSE),0) -> 0 | I74: =ROUND(F74*VLOOKUP(D74,ALLOCTABLE_Prod_Customer,$I$10,FALSE),0) -> 0 | J74: =ROUND(F74*VLOOKUP(D74,ALLOCTABLE_Prod_Customer,$J$10,FALSE),0) -> 0 | K74: =ROUND(F74*VLOOKUP(D74,ALLOCTABLE_Prod_Customer,$K$10,FALSE),0) -> 0 | L74: =ROUND(F74*VLOOKUP(D74,ALLOCTABLE_Prod_Customer,$L$10,FALSE),0) -> 0 | M74: =ROUND(F74*VLOOKUP(D74,ALLOCTABLE_Prod_Customer,$M$10,FALSE),0) -> 0 | N74: =ROUND(F74*VLOOKUP(D74,ALLOCTABLE_Prod_Customer,$N$10,FALSE),0) -> 0 | O74: =ROUND(F74*VLOOKUP(D74,ALLOCTABLE_Prod_Customer,$O$10,FALSE),0) -> 0 | P74: =ROUND(F74*VLOOKUP(D74,ALLOCTABLE_Prod_Customer,$P$10,FALSE),0) -> 0 | Q74: =ROUND(F74*VLOOKUP(D74,ALLOCTABLE_Prod_Customer,$Q$10,FALSE),0) -> 0 | R74: =SUM(G74:Q74) -> 0 | S74: =F74-R74 -> 0
A75: 18 | C75: ='FR-16(7)(v)-1 Functional'!C75 -> POLES, TOWERS & FIXTURES - PRIMARY - CUSTOMER | D75: ='FR-16(7)(v)-1 Functional'!D75 -> K405 | F75: ='FR-16(7)(v)-2 PROD Classified'!I75 -> 0 | G75: =F75-SUM(H75:Q75) -> 0 | H75: =ROUND(F75*VLOOKUP(D75,ALLOCTABLE_Prod_Customer,$H$10,FALSE),0) -> 0 | I75: 0 | J75: 0 | K75: 0 | L75: 0 | M75: 0 | N75: 0 | O75: 0 | P75: 0 | Q75: =ROUND(F75*VLOOKUP(D75,ALLOCTABLE_Prod_Customer,$Q$10,FALSE),0) -> 0 | R75: =SUM(G75:Q75) -> 0 | S75: =F75-R75 -> 0
A76: 19 | C76: ='FR-16(7)(v)-1 Functional'!C76 -> POLES, TOWERS & FIXTURES - SECONDARY - DEMAND | D76: ='FR-16(7)(v)-1 Functional'!D76 -> K206 | F76: ='FR-16(7)(v)-2 PROD Classified'!I76 -> 0 | G76: 0 | H76: 0 | I76: 0 | J76: 0 | K76: 0 | L76: 0 | M76: 0 | N76: 0 | O76: 0 | P76: 0 | Q76: 0 | R76: 0 | S76: 0
A77: 20 | C77: ='FR-16(7)(v)-1 Functional'!C77 -> POLES, TOWERS & FIXTURES - SECONDARY - CUSTOMER | D77: ='FR-16(7)(v)-1 Functional'!D77 -> K405 | F77: ='FR-16(7)(v)-2 PROD Classified'!I77 -> 0 | G77: 0 | H77: 0 | I77: 0 | J77: 0 | K77: 0 | L77: 0 | M77: 0 | N77: 0 | O77: 0 | P77: 0 | Q77: 0 | R77: 0 | S77: 0
A78: 21 | C78: ='FR-16(7)(v)-1 Functional'!C78 -> CONDUCTORS - OVERHEAD / PRIMARY - DEMAND | D78: ='FR-16(7)(v)-1 Functional'!D78 -> K205 | F78: ='FR-16(7)(v)-2 PROD Classified'!I78 -> 0 | G78: 0 | H78: 0 | I78: 0 | J78: 0 | K78: 0 | L78: 0 | M78: 0 | N78: 0 | O78: 0 | P78: 0 | Q78: 0 | R78: 0 | S78: 0
A79: 22 | C79: ='FR-16(7)(v)-1 Functional'!C79 -> CONDUCTORS - OVERHEAD / PRIMARY - CUSTOMER | D79: ='FR-16(7)(v)-1 Functional'!D79 -> K405 | F79: ='FR-16(7)(v)-2 PROD Classified'!I79 -> 0 | G79: 0 | H79: 0 | I79: 0 | J79: 0 | K79: 0 | L79: 0 | M79: 0 | N79: 0 | O79: 0 | P79: 0 | Q79: 0 | R79: 0 | S79: 0
A80: 23 | C80: ='FR-16(7)(v)-1 Functional'!C80 -> CONDUCTORS - OVERHEAD / SECONDARY - DEMAND | D80: ='FR-16(7)(v)-1 Functional'!D80 -> K206 | F80: ='FR-16(7)(v)-2 PROD Classified'!I80 -> 0 | G80: 0 | H80: 0 | I80: 0 | J80: 0 | K80: 0 | L80: 0 | M80: 0 | N80: 0 | O80: 0 | P80: 0 | Q80: 0 | R80: 0 | S80: 0
A81: 24 | C81: ='FR-16(7)(v)-1 Functional'!C81 -> CONDUCTORS - OVERHEAD / SECONDARY - CUSTOMER | D81: ='FR-16(7)(v)-1 Functional'!D81 -> K405 | F81: ='FR-16(7)(v)-2 PROD Classified'!I81 -> 0 | G81: 0 | H81: 0 | I81: 0 | J81: 0 | K81: 0 | L81: 0 | M81: 0 | N81: 0 | O81: 0 | P81: 0 | Q81: 0 | R81: 0 | S81: 0
A82: 25 | C82: ='FR-16(7)(v)-1 Functional'!C82 -> CONDUCTORS - UNDERGROUND / PRIMARY - DEMAND | D82: ='FR-16(7)(v)-1 Functional'!D82 -> K205 | F82: ='FR-16(7)(v)-2 PROD Classified'!I82 -> 0 | G82: 0 | H82: 0 | I82: 0 | J82: 0 | K82: 0 | L82: 0 | M82: 0 | N82: 0 | O82: 0 | P82: 0 | Q82: 0 | R82: 0 | S82: 0
A83: 26 | C83: ='FR-16(7)(v)-1 Functional'!C83 -> CONDUCTORS - UNDERGROUND / PRIMARY - CUSTOMER | D83: ='FR-16(7)(v)-1 Functional'!D83 -> K405 | F83: ='FR-16(7)(v)-2 PROD Classified'!I83 -> 0 | G83: 0 | H83: 0 | I83: 0 | J83: 0 | K83: 0 | L83: 0 | M83: 0 | N83: 0 | O83: 0 | P83: 0 | Q83: 0 | R83: 0 | S83: 0
A84: 27 | C84: ='FR-16(7)(v)-1 Functional'!C84 -> CONDUCTORS - UNDERGROUND / SECONDARY - DEMAND | D84: ='FR-16(7)(v)-1 Functional'!D84 -> K206 | F84: ='FR-16(7)(v)-2 PROD Classified'!I84 -> 0 | G84: 0 | H84: 0 | I84: 0 | J84: 0 | K84: 0 | L84: 0 | M84: 0 | N84: 0 | O84: 0 | P84: 0 | Q84: =ROUND(F84*VLOOKUP(D84,ALLOCTABLE_Prod_Customer,$Q$10,FALSE),0) -> 0 | R84: =SUM(G84:Q84) -> 0 | S84: 0
A85: 28 | C85: ='FR-16(7)(v)-1 Functional'!C85 -> CONDUCTORS - UNDERGROUND / SECONDARY - CUSTOMER | D85: ='FR-16(7)(v)-1 Functional'!D85 -> K405 | F85: ='FR-16(7)(v)-2 PROD Classified'!I85 -> 0 | G85: 0 | H85: 0 | I85: 0 | J85: 0 | K85: 0 | L85: 0 | M85: 0 | N85: 0 | O85: 0 | P85: 0 | Q85: 0 | R85: 0 | S85: 0
A86: 29 | C86: ='FR-16(7)(v)-1 Functional'!C86 -> TRANSFORMERS DEMAND RELATED | D86: ='FR-16(7)(v)-1 Functional'!D86 -> K215 | F86: ='FR-16(7)(v)-2 PROD Classified'!I86 -> 0 | G86: =F86-SUM(H86:Q86) -> 0 | H86: =ROUND(F86*VLOOKUP(D86,ALLOCTABLE_Prod_Customer,$H$10,FALSE),0) -> 0 | I86: =ROUND(F86*VLOOKUP($D$86,ALLOCTABLE_Prod_Customer,$I$10,FALSE),0) -> 0 | J86: =ROUND(F86*VLOOKUP($D$86,ALLOCTABLE_Prod_Customer,$J$10,FALSE),0) -> 0 | K86: =ROUND(F86*VLOOKUP($D$86,ALLOCTABLE_Prod_Customer,$K$10,FALSE),0) -> 0 | L86: =ROUND(F86*VLOOKUP($D$86,ALLOCTABLE_Prod_Customer,$L$10,FALSE),0) -> 0 | M86: =ROUND(F86*VLOOKUP($D$86,ALLOCTABLE_Prod_Customer,$M$10,FALSE),0) -> 0 | N86: =ROUND(F86*VLOOKUP($D$86,ALLOCTABLE_Prod_Customer,$N$10,FALSE),0) -> 0 | O86: =ROUND(F86*VLOOKUP($D$86,ALLOCTABLE_Prod_Customer,$O$10,FALSE),0) -> 0 | P86: 0 | Q86: 0 | R86: 0 | S86: =F86-R86 -> 0
A87: 30 | C87: ='FR-16(7)(v)-1 Functional'!C87 -> TRANSFORMERS CUSTOMER RELATED | D87: ='FR-16(7)(v)-1 Functional'!D87 -> K405 | F87: ='FR-16(7)(v)-2 PROD Classified'!I87 -> 0 | G87: 0 | H87: 0 | I87: =ROUND(F87*VLOOKUP($D$86,ALLOCTABLE_Prod_Customer,$I$10,FALSE),0) -> 0 | J87: =ROUND(F87*VLOOKUP($D$86,ALLOCTABLE_Prod_Customer,$J$10,FALSE),0) -> 0 | K87: =ROUND(F87*VLOOKUP($D$86,ALLOCTABLE_Prod_Customer,$K$10,FALSE),0) -> 0 | L87: =ROUND(F87*VLOOKUP($D$86,ALLOCTABLE_Prod_Customer,$L$10,FALSE),0) -> 0 | M87: =ROUND(F87*VLOOKUP($D$86,ALLOCTABLE_Prod_Customer,$M$10,FALSE),0) -> 0 | N87: =ROUND(F87*VLOOKUP($D$86,ALLOCTABLE_Prod_Customer,$N$10,FALSE),0) -> 0 | O87: =ROUND(F87*VLOOKUP($D$86,ALLOCTABLE_Prod_Customer,$O$10,FALSE),0) -> 0 | P87: 0 | Q87: 0 | R87: 0 | S87: 0
A88: 31 | C88: ='FR-16(7)(v)-1 Functional'!C88 -> SERVICES | D88: ='FR-16(7)(v)-1 Functional'!D88 -> K217 | F88: ='FR-16(7)(v)-2 PROD Classified'!I88 -> 0 | G88: 0 | H88: 0 | I88: =ROUND(F88*VLOOKUP($D$88,ALLOCTABLE_Prod_Customer,$I$10,FALSE),0) -> 0 | J88: =ROUND(F88*VLOOKUP($D$88,ALLOCTABLE_Prod_Customer,$J$10,FALSE),0) -> 0 | K88: =ROUND(F88*VLOOKUP($D$88,ALLOCTABLE_Prod_Customer,$K$10,FALSE),0) -> 0 | L88: =ROUND(F88*VLOOKUP($D$88,ALLOCTABLE_Prod_Customer,$L$10,FALSE),0) -> 0 | M88: =ROUND(F88*VLOOKUP($D$88,ALLOCTABLE_Prod_Customer,$M$10,FALSE),0) -> 0 | N88: =ROUND(F88*VLOOKUP($D$88,ALLOCTABLE_Prod_Customer,$N$10,FALSE),0) -> 0 | O88: =ROUND(F88*VLOOKUP($D$88,ALLOCTABLE_Prod_Customer,$O$10,FALSE),0) -> 0 | P88: 0 | Q88: 0 | R88: 0 | S88: 0
A89: 32 | C89: ='FR-16(7)(v)-1 Functional'!C89 -> METERS | D89: ='FR-16(7)(v)-1 Functional'!D89 -> K407 | F89: ='FR-16(7)(v)-2 PROD Classified'!I89 -> 0 | G89: 0 | H89: 0 | I89: =ROUND(F89*VLOOKUP($D$89,ALLOCTABLE_Prod_Customer,$I$10,FALSE),0) -> 0 | J89: =ROUND(F89*VLOOKUP($D$89,ALLOCTABLE_Prod_Customer,$J$10,FALSE),0) -> 0 | K89: =ROUND(F89*VLOOKUP($D$89,ALLOCTABLE_Prod_Customer,$K$10,FALSE),0) -> 0 | L89: =ROUND(F89*VLOOKUP($D$89,ALLOCTABLE_Prod_Customer,$L$10,FALSE),0) -> 0 | M89: =ROUND(F89*VLOOKUP($D$89,ALLOCTABLE_Prod_Customer,$M$10,FALSE),0) -> 0 | N89: =ROUND(F89*VLOOKUP($D$89,ALLOCTABLE_Prod_Customer,$N$10,FALSE),0) -> 0 | O89: =ROUND(F89*VLOOKUP($D$89,ALLOCTABLE_Prod_Customer,$O$10,FALSE),0) -> 0 | P89: 0 | Q89: 0 | R89: 0 | S89: 0
A90: 33 | C90: ='FR-16(7)(v)-1 Functional'!C90 -> STREET LIGHTS | D90: ='FR-16(7)(v)-1 Functional'!D90 -> K401 | F90: ='FR-16(7)(v)-2 PROD Classified'!I90 -> 0 | G90: 0 | H90: 0 | I90: =ROUND(F90*VLOOKUP($D$90,ALLOCTABLE_Prod_Customer,$I$10,FALSE),0) -> 0 | J90: =ROUND(F90*VLOOKUP($D$90,ALLOCTABLE_Prod_Customer,$J$10,FALSE),0) -> 0 | K90: =ROUND(F90*VLOOKUP($D$90,ALLOCTABLE_Prod_Customer,$K$10,FALSE),0) -> 0 | L90: =ROUND(F90*VLOOKUP($D$90,ALLOCTABLE_Prod_Customer,$L$10,FALSE),0) -> 0 | M90: =ROUND(F90*VLOOKUP($D$90,ALLOCTABLE_Prod_Customer,$M$10,FALSE),0) -> 0 | N90: =ROUND(F90*VLOOKUP($D$90,ALLOCTABLE_Prod_Customer,$N$10,FALSE),0) -> 0 | O90: =ROUND(F90*VLOOKUP($D$90,ALLOCTABLE_Prod_Customer,$O$10,FALSE),0) -> 0 | P90: 0 | Q90: 0 | R90: 0 | S90: 0
A91: 34 | C91: ='FR-16(7)(v)-1 Functional'!C91 -> ADJUSTMENT | D91: ='FR-16(7)(v)-1 Functional'!D91 -> K209 | F91: ='FR-16(7)(v)-2 PROD Classified'!I91 -> 0 | G91: 0 | H91: 0 | I91: =ROUND(F91*VLOOKUP($D$91,ALLOCTABLE_Prod_Customer,$I$10,FALSE),0) -> 0 | J91: =ROUND(F91*VLOOKUP($D$91,ALLOCTABLE_Prod_Customer,$J$10,FALSE),0) -> 0 | K91: =ROUND(F91*VLOOKUP($D$91,ALLOCTABLE_Prod_Customer,$K$10,FALSE),0) -> 0 | L91: =ROUND(F91*VLOOKUP($D$91,ALLOCTABLE_Prod_Customer,$L$10,FALSE),0) -> 0 | M91: =ROUND(F91*VLOOKUP($D$91,ALLOCTABLE_Prod_Customer,$M$10,FALSE),0) -> 0 | N91: =ROUND(F91*VLOOKUP($D$91,ALLOCTABLE_Prod_Customer,$N$10,FALSE),0) -> 0 | O91: =ROUND(F91*VLOOKUP($D$91,ALLOCTABLE_Prod_Customer,$O$10,FALSE),0) -> 0 | P91: 0 | Q91: 0 | R91: 0 | S91: 0
A92: 35 | C92: ='FR-16(7)(v)-1 Functional'!C92 -> CONSTRUCTION NOT CLASSIFIED | D92: ='FR-16(7)(v)-1 Functional'!D92 -> K209 | F92: ='FR-16(7)(v)-2 PROD Classified'!I92 -> 0 | G92: 0 | H92: 0 | I92: =ROUND(F92*VLOOKUP($D$92,ALLOCTABLE_Prod_Customer,$I$10,FALSE),0) -> 0 | J92: =ROUND(F92*VLOOKUP($D$92,ALLOCTABLE_Prod_Customer,$J$10,FALSE),0) -> 0 | K92: =ROUND(F92*VLOOKUP($D$92,ALLOCTABLE_Prod_Customer,$K$10,FALSE),0) -> 0 | L92: =ROUND(F92*VLOOKUP($D$92,ALLOCTABLE_Prod_Customer,$L$10,FALSE),0) -> 0 | M92: =ROUND(F92*VLOOKUP($D$92,ALLOCTABLE_Prod_Customer,$M$10,FALSE),0) -> 0 | N92: =ROUND(F92*VLOOKUP($D$92,ALLOCTABLE_Prod_Customer,$N$10,FALSE),0) -> 0 | O92: =ROUND(F92*VLOOKUP($D$92,ALLOCTABLE_Prod_Customer,$O$10,FALSE),0) -> 0 | P92: 0 | Q92: 0 | R92: 0 | S92: 0
A93: 36 | C93: ='FR-16(7)(v)-1 Functional'!C93 -> RWIP | D93: ='FR-16(7)(v)-1 Functional'!D93 -> K215 | F93: ='FR-16(7)(v)-2 PROD Classified'!I93 -> 0 | G93: =F93-SUM(H93:Q93) -> 0 | H93: =ROUND(F93*VLOOKUP(D93,ALLOCTABLE_Prod_Customer,$H$10,FALSE),0) -> 0 | I93: =ROUND(F93*VLOOKUP($D$92,ALLOCTABLE_Prod_Customer,$I$10,FALSE),0) -> 0 | J93: =ROUND(F93*VLOOKUP($D$92,ALLOCTABLE_Prod_Customer,$J$10,FALSE),0) -> 0 | K93: =ROUND(F93*VLOOKUP($D$92,ALLOCTABLE_Prod_Customer,$K$10,FALSE),0) -> 0
A94: 37 | C94: ='FR-16(7)(v)-1 Functional'!C94 -> DISTRIBUTION PLANT IN SERVICE | F94: =SUM(F73:F93) -> 0 | G94: =SUM(G73:G92) -> 0 | H94: =SUM(H73:H92) -> 0 | I94: =SUM(I73:I92) -> 0 | J94: =SUM(J73:J92) -> 0 | K94: 0 | L94: 0 | M94: 0 | N94: 0 | O94: 0 | P94: 0 | Q94: =SUM(Q73:Q92) -> 0 | R94: =SUM(R73:R92) -> 0 | S94: =SUM(S73:S92) -> 0
A95: 38
A96: 39 | B96: TOTAL TRANS & DIST PLANT | F96: =F94+F68 -> 0 | G96: =G94+G68 -> 0 | H96: =H94+H68 -> 0 | I96: =I94+I68 -> 0 | J96: =J94+J68 -> 0 | K96: 0 | L96: 0 | M96: 0 | N96: 0 | O96: 0 | P96: 0 | Q96: =Q94+$Q$68 -> 0 | R96: =R94+R68 -> 0 | S96: =S94+S68 -> 0
A97: 40 | B97: TOTAL GROSS PTD PLANT | F97: =F94+F70 -> 0 | G97: =G94+G70 -> 0 | H97: =H94+H70 -> 0 | I97: =I94+I70 -> 0 | J97: =J94+J70 -> 0 | K97: 0 | L97: 0 | M97: 0 | N97: 0 | O97: 0 | P97: 0 | Q97: =Q94+Q70 -> 0 | R97: =R94+R70 -> 0 | S97: =S94+S70 -> 0
A98: 41
A99: 42 | B99: GENERAL & INTANGIBLE PLANT
A100: 43 | C100: ='FR-16(7)(v)-1 Functional'!C100 -> PRODUCTION - DEMAND | D100: ='FR-16(7)(v)-1 Functional'!D100 -> K201 | F100: ='FR-16(7)(v)-2 PROD Classified'!I100 -> 0 | G100: =F100-SUM(H100:Q100) -> 0 | H100: =ROUND(F100*VLOOKUP(D100,ALLOCTABLE_Prod_Customer,$H$10,FALSE),0) -> 0 | I100: =ROUND(F100*VLOOKUP(D100,ALLOCTABLE_Prod_Customer,$I$10,FALSE),0) -> 0 | J100: =ROUND(F100*VLOOKUP(D100,ALLOCTABLE_Prod_Customer,$J$10,FALSE),0) -> 0 | K100: =ROUND(F100*VLOOKUP(D100,ALLOCTABLE_Prod_Customer,$K$10,FALSE),0) -> 0 | L100: =ROUND(F100*VLOOKUP(D100,ALLOCTABLE_Prod_Customer,$L$10,FALSE),0) -> 0 | M100: =ROUND(F100*VLOOKUP(D100,ALLOCTABLE_Prod_Customer,$M$10,FALSE),0) -> 0 | N100: =ROUND(F100*VLOOKUP(D100,ALLOCTABLE_Prod_Customer,$N$10,FALSE),0) -> 0 | O100: =ROUND(F100*VLOOKUP(D100,ALLOCTABLE_Prod_Customer,$O$10,FALSE),0) -> 0 | P100: =ROUND(F100*VLOOKUP(D100,ALLOCTABLE_Prod_Customer,$P$10,FALSE),0) -> 0 | Q100: =ROUND(F100*VLOOKUP(D100,ALLOCTABLE_Prod_Customer,$Q$10,FALSE),0) -> 0 | R100: =SUM(G100:Q100) -> 0 | S100: =F100-R100 -> 0
A101: 44 | C101: ='FR-16(7)(v)-1 Functional'!C101 -> PRODUCTION - ENERGY | D101: ='FR-16(7)(v)-1 Functional'!D101 -> K301 | F101: ='FR-16(7)(v)-2 PROD Classified'!I101 -> 0 | G101: 0 | H101: 0 | I101: 0 | J101: 0 | K101: 0 | L101: 0 | M101: 0 | N101: 0 | O101: 0 | P101: 0 | Q101: 0 | R101: 0 | S101: 0
A102: 45 | C102: ='FR-16(7)(v)-1 Functional'!C102 -> TRANSMISSION | D102: ='FR-16(7)(v)-1 Functional'!D102 -> K202 | F102: ='FR-16(7)(v)-2 PROD Classified'!I102 -> 0 | G102: 0 | H102: 0 | I102: 0 | J102: 0 | K102: 0 | L102: 0 | M102: 0 | N102: 0 | O102: 0 | P102: 0 | Q102: 0 | R102: 0 | S102: 0
A103: 46 | C103: ='FR-16(7)(v)-1 Functional'!C103 -> DISTRIBUTION - DEMAND | D103: ='FR-16(7)(v)-1 Functional'!D103 -> K201 | F103: ='FR-16(7)(v)-2 PROD Classified'!I103 -> 0 | G103: 0 | H103: 0 | I103: 0 | J103: 0 | K103: 0 | L103: 0 | M103: 0 | N103: 0 | O103: 0 | P103: 0 | Q103: 0 | R103: 0 | S103: 0
A104: 47 | C104: ='FR-16(7)(v)-1 Functional'!C104 -> DISTRIBUTION - CUSTOMER | D104: ='FR-16(7)(v)-1 Functional'!D104 -> K405 | F104: ='FR-16(7)(v)-2 PROD Classified'!I104 -> 0 | G104: 0 | H104: 0 | I104: 0 | J104: 0 | K104: 0 | L104: 0 | M104: 0 | N104: 0 | O104: 0 | P104: 0 | Q104: 0 | R104: 0 | S104: 0
A105: 48 | C105: ='FR-16(7)(v)-1 Functional'!C105 -> CUSTOMER ACCOUNTING | D105: ='FR-16(7)(v)-1 Functional'!D105 -> A308 | F105: ='FR-16(7)(v)-2 PROD Classified'!I105 -> 0 | G105: 0 | H105: 0 | I105: 0 | J105: 0 | K105: 0 | L105: 0 | M105: 0 | N105: 0 | O105: 0 | P105: 0 | Q105: 0 | R105: 0 | S105: 0
A106: 49 | C106: ='FR-16(7)(v)-1 Functional'!C106 -> CUSTOMER SERVICE & INFORMATION | D106: ='FR-16(7)(v)-1 Functional'!D106 -> A310 | F106: ='FR-16(7)(v)-2 PROD Classified'!I106 -> 0 | G106: 0 | H106: 0 | I106: 0 | J106: 0 | K106: 0 | L106: 0 | M106: 0 | N106: 0 | O106: 0 | P106: 0 | Q106: 0 | R106: 0 | S106: 0
A107: 50 | C107: ='FR-16(7)(v)-1 Functional'!C107 -> SALES | D107: ='FR-16(7)(v)-1 Functional'!D107 -> A312 | F107: ='FR-16(7)(v)-2 PROD Classified'!I107 -> 0 | G107: 0 | H107: 0 | I107: 0 | J107: 0 | K107: 0 | L107: 0 | M107: 0 | N107: 0 | O107: 0 | P107: 0 | Q107: 0 | R107: 0 | S107: 0
A108: 51 | C108: ='FR-16(7)(v)-1 Functional'!C108 -> ADJUSTMENT | D108: ='FR-16(7)(v)-1 Functional'!D108 -> A315 | F108: ='FR-16(7)(v)-2 PROD Classified'!I108 -> 0 | G108: 0 | H108: 0 | I108: 0 | J108: 0 | K108: 0 | L108: 0 | M108: 0 | N108: 0 | O108: 0 | P108: 0 | Q108: 0 | R108: 0 | S108: 0
A109: 52 | C109: ='FR-16(7)(v)-1 Functional'!C109 -> GEN & INTANG PLANT IN SERVICE | F109: =SUM(F100:F108) -> 0 | G109: =SUM(G100:G108) -> 0 | H109: =SUM(H100:H108) -> 0 | I109: =SUM(I100:I108) -> 0 | J109: =SUM(J100:J108) -> 0 | K109: 0 | L109: 0 | M109: 0 | N109: 0 | O109: 0 | P109: 0 | Q109: =SUM(Q100:Q108) -> 0 | R109: =SUM(R100:R108) -> 0 | S109: =SUM(S100:S108) -> 0
A110: 53
A111: 54 | B111: COMMON & OTHER PLANT
A112: 55 | C112: ='FR-16(7)(v)-1 Functional'!C112 -> PRODUCTION - DEMAND | D112: ='FR-16(7)(v)-1 Functional'!D112 -> K201 | F112: ='FR-16(7)(v)-2 PROD Classified'!I112 -> 0 | G112: =F112-SUM(H112:Q112) -> 0 | H112: =ROUND(F112*VLOOKUP(D112,ALLOCTABLE_Prod_Customer,$H$10,FALSE),0) -> 0 | I112: =ROUND(F112*VLOOKUP(D112,ALLOCTABLE_Prod_Customer,$I$10,FALSE),0) -> 0 | J112: =ROUND(F112*VLOOKUP(D112,ALLOCTABLE_Prod_Customer,$J$10,FALSE),0) -> 0 | K112: =ROUND(F112*VLOOKUP(D112,ALLOCTABLE_Prod_Customer,$K$10,FALSE),0) -> 0 | L112: =ROUND(F112*VLOOKUP(D112,ALLOCTABLE_Prod_Customer,$L$10,FALSE),0) -> 0 | M112: =ROUND(F112*VLOOKUP(D112,ALLOCTABLE_Prod_Customer,$M$10,FALSE),0) -> 0 | N112: =ROUND(F112*VLOOKUP(D112,ALLOCTABLE_Prod_Customer,$N$10,FALSE),0) -> 0 | O112: =ROUND(F112*VLOOKUP(D112,ALLOCTABLE_Prod_Customer,$O$10,FALSE),0) -> 0 | P112: =ROUND(F112*VLOOKUP(D112,ALLOCTABLE_Prod_Customer,$P$10,FALSE),0) -> 0 | Q112: =ROUND(F112*VLOOKUP(D112,ALLOCTABLE_Prod_Customer,$Q$10,FALSE),0) -> 0 | R112: =SUM(G112:Q112) -> 0 | S112: =F112-R112 -> 0
A113: 56 | C113: ='FR-16(7)(v)-1 Functional'!C113 -> PRODUCTION - ENERGY | D113: ='FR-16(7)(v)-1 Functional'!D113 -> K301 | F113: ='FR-16(7)(v)-2 PROD Classified'!I113 -> 0 | G113: 0 | H113: 0 | I113: 0 | J113: 0 | K113: 0 | L113: 0 | M113: 0 | N113: 0 | O113: 0 | P113: 0 | Q113: 0 | R113: 0 | S113: 0
A114: 57 | C114: ='FR-16(7)(v)-1 Functional'!C114 -> TRANSMISSION | D114: ='FR-16(7)(v)-1 Functional'!D114 -> K202 | F114: ='FR-16(7)(v)-2 PROD Classified'!I114 -> 0 | G114: 0 | H114: 0 | I114: 0 | J114: 0 | K114: 0 | L114: 0 | M114: 0 | N114: 0 | O114: 0 | P114: 0 | Q114: 0 | R114: 0 | S114: 0
A115: 58 | C115: ='FR-16(7)(v)-1 Functional'!C115 -> DISTRIBUTION - DEMAND | D115: ='FR-16(7)(v)-1 Functional'!D115 -> K201 | F115: ='FR-16(7)(v)-2 PROD Classified'!I115 -> 0 | G115: 0 | H115: 0 | I115: 0 | J115: 0 | K115: 0 | L115: 0 | M115: 0 | N115: 0 | O115: 0 | P115: 0 | Q115: 0 | R115: 0 | S115: 0
A116: 59 | C116: ='FR-16(7)(v)-1 Functional'!C116 -> DISTRIBUTION - CUSTOMER | D116: ='FR-16(7)(v)-1 Functional'!D116 -> K405 | F116: ='FR-16(7)(v)-2 PROD Classified'!I116 -> 0 | G116: 0 | H116: 0 | I116: 0 | J116: 0 | K116: 0 | L116: 0 | M116: 0 | N116: 0 | O116: 0 | P116: 0 | Q116: 0 | R116: 0 | S116: 0
A117: 60 | C117: ='FR-16(7)(v)-1 Functional'!C117 -> CUSTOMER ACCOUNTING | D117: ='FR-16(7)(v)-1 Functional'!D117 -> A308 | F117: ='FR-16(7)(v)-2 PROD Classified'!I117 -> 0 | G117: 0 | H117: 0 | I117: 0 | J117: 0 | K117: 0 | L117: 0 | M117: 0 | N117: 0 | O117: 0 | P117: 0 | Q117: 0 | R117: 0 | S117: 0
A118: 61 | C118: ='FR-16(7)(v)-1 Functional'!C118 -> CUSTOMER SERVICE & INFORMATION | D118: ='FR-16(7)(v)-1 Functional'!D118 -> A310 | F118: ='FR-16(7)(v)-2 PROD Classified'!I118 -> 0 | G118: 0 | H118: 0 | I118: 0 | J118: 0 | K118: 0 | L118: 0 | M118: 0 | N118: 0 | O118: 0 | P118: 0 | Q118: 0 | R118: 0 | S118: 0
A119: 62 | C119: ='FR-16(7)(v)-1 Functional'!C119 -> SALES | D119: ='FR-16(7)(v)-1 Functional'!D119 -> A312 | F119: ='FR-16(7)(v)-2 PROD Classified'!I119 -> 0 | G119: 0 | H119: 0 | I119: 0 | J119: 0 | K119: 0 | L119: 0 | M119: 0 | N119: 0 | O119: 0 | P119: 0 | Q119: 0 | R119: 0 | S119: 0
A120: 63 | C120: ='FR-16(7)(v)-1 Functional'!C120 -> ADJUSTMENT | D120: ='FR-16(7)(v)-1 Functional'!D120 -> A315 | F120: ='FR-16(7)(v)-2 PROD Classified'!I120 -> 0 | G120: 0 | H120: 0 | I120: 0 | J120: 0 | K120: 0 | L120: 0 | M120: 0 | N120: 0 | O120: 0 | P120: 0 | Q120: 0 | R120: 0 | S120: 0
A121: 64 | C121: ='FR-16(7)(v)-1 Functional'!C121 -> COMMON & OTHER PLANT IN SERVICE | F121: =SUM(F112:F120) -> 0 | G121: =SUM(G112:G120) -> 0 | H121: =SUM(H112:H120) -> 0 | I121: =SUM(I112:I120) -> 0 | J121: =SUM(J112:J120) -> 0 | K121: 0 | L121: 0 | M121: 0 | N121: 0 | O121: 0 | P121: 0 | Q121: =SUM(Q112:Q120) -> 0 | R121: =SUM(R112:R120) -> 0 | S121: =SUM(S112:S120) -> 0
A122: 65
A123: 66 | B123: GROSS ELECTRIC PLANT IN SERVICE | F123: =F97+F109+F121 -> 0 | G123: =G97+G109+G121 -> 0 | H123: =H97+H109+H121 -> 0 | I123: =I97+I109+I121 -> 0 | J123: =J97+J109+J121 -> 0 | K123: 0 | L123: 0 | M123: 0 | N123: 0 | O123: 0 | P123: 0 | Q123: =Q97+Q109+Q121 -> 0 | R123: =R97+R109+R121 -> 0 | S123: =S97+S109+S121 -> 0
A125: =co_name -> DUKE ENERGY KENTUCKY, INC. | R125: =R1 -> FR-16(7)(v)-5
A126: =$A$2 -> PRODUCTION CUSTOMER ALLOCATED - ELECTRIC COST OF SERVICE | R126: =R2 -> WITNESS RESPONSIBLE:
A127: =case_name -> CASE NO: 2019-00271 | R127: =Witness -> JAMES E. ZIOLKOWSKI
A128: =data_filing -> DATA: 12 MONTHS ACTUAL & 0 MONTHS ESTIMATED | R128: ="PAGE "&Pages-15&" OF "&Pages -> PAGE 3 OF 18
A129: =type -> TYPE OF FILING: "X" ORIGINAL UPDATED REVISED
F131: =F$7 -> TOTAL | H131: =H$7 -> DS | I131: =I$7 -> GSFL | J131: =J$7 -> EH | K131: =K$7 -> SP | L131: DT SEC | M131: DT PRI | N131: DP | O131: TT | Q131: OTHER
A132: LINE | F132: =F$8 -> PRODUCTION | G132: =G$8 -> RS | H132: =H$8 -> SECONDARY | I132: =I$8 -> SECONDARY | J132: =J$8 -> SECONDARY | K132: =K$8 -> SECONDARY | L132: SECONDARY | M132: PRIMARY | N132: PRIMARY | O132: TRANSMISSION | P132: LT | Q132: WATER | R132: =R8 -> TOTAL | S132: ALL
A133: NO. | B133: DEPRECIATION RESERVE | D133: ALLO | F133: =F$9 -> CUSTOMER | G133: =G$9 -> RESIDENTIAL | H133: =H$9 -> DISTRIBUTION | I133: =I$9 -> DISTRIBUTION | J133: =J$9 -> DISTRIBUTION | K133: =K$9 -> DISTRIBUTION | L133: DISTRIBUTION | M133: DISTRIBUTION | N133: DISTRIBUTION | O133: TIME OF DAY | P133: LIGHTING | Q133: PUMPING | R133: =R9 -> AT ISSUE | S133: OTHER
C134: Schedule 3 | G134: =G$10 -> 3 | H134: =H$10 -> 4 | I134: =I$10 -> 5 | J134: =J$10 -> 6 | K134: =K$10 -> 7 | L134: 8 | M134: 9 | N134: 10 | O134: 11 | P134: 12 | Q134: 13
A135: 1 | B135: PRODUCTION PLANT
A136: 2 | C136: PRODUCTION STEAM | D136: ='FR-16(7)(v)-1 Functional'!D136 -> K201 | F136: ='FR-16(7)(v)-2 PROD Classified'!I136 -> 0 | G136: =F136-SUM(H136:Q136) -> 0 | H136: =ROUND(F136*VLOOKUP(D136,ALLOCTABLE_Prod_Customer,$H$10,FALSE),0) -> 0 | I136: =ROUND(F136*VLOOKUP($D$136,ALLOCTABLE_Prod_Customer,$I$10,FALSE),0) -> 0 | J136: =ROUND(F136*VLOOKUP($D$136,ALLOCTABLE_Prod_Customer,$J$10,FALSE),0) -> 0 | K136: =ROUND(F136*VLOOKUP($D$136,ALLOCTABLE_Prod_Customer,$K$10,FALSE),0) -> 0 | L136: =ROUND(F136*VLOOKUP($D$136,ALLOCTABLE_Prod_Customer,$L$10,FALSE),0) -> 0 | M136: =ROUND(F136*VLOOKUP($D$136,ALLOCTABLE_Prod_Customer,$M$10,FALSE),0) -> 0 | N136: =ROUND(F136*VLOOKUP($D$136,ALLOCTABLE_Prod_Customer,$N$10,FALSE),0) -> 0 | O136: =ROUND(F136*VLOOKUP($D$136,ALLOCTABLE_Prod_Customer,$O$10,FALSE),0) -> 0 | P136: =ROUND(F136*VLOOKUP($D$136,ALLOCTABLE_Prod_Customer,$P$10,FALSE),0) -> 0 | Q136: =ROUND(F136*VLOOKUP(D136,ALLOCTABLE_Prod_Customer,$Q$10,FALSE),0) -> 0 | R136: =SUM(G136:Q136) -> 0 | S136: =F136-R136 -> 0
A137: 3 | C137: PRODUCTION OTHER | D137: ='FR-16(7)(v)-1 Functional'!D137 -> K201 | F137: ='FR-16(7)(v)-2 PROD Classified'!I137 -> 0 | G137: =F137-SUM(H137:Q137) -> 0 | H137: =ROUND(F136*VLOOKUP(D136,ALLOCTABLE_Prod_Customer,$H$10,FALSE),0) -> 0 | I137: =ROUND(F137*VLOOKUP($D$137,ALLOCTABLE_Prod_Customer,$I$10,FALSE),0) -> 0 | J137: =ROUND(F137*VLOOKUP($D$137,ALLOCTABLE_Prod_Customer,$J$10,FALSE),0) -> 0 | K137: =ROUND(F137*VLOOKUP($D$137,ALLOCTABLE_Prod_Customer,$K$10,FALSE),0) -> 0 | L137: =ROUND(F137*VLOOKUP($D$137,ALLOCTABLE_Prod_Customer,$L$10,FALSE),0) -> 0 | M137: =ROUND(F137*VLOOKUP($D$137,ALLOCTABLE_Prod_Customer,$M$10,FALSE),0) -> 0 | N137: =ROUND(F137*VLOOKUP($D$137,ALLOCTABLE_Prod_Customer,$N$10,FALSE),0) -> 0 | O137: =ROUND(F137*VLOOKUP($D$137,ALLOCTABLE_Prod_Customer,$O$10,FALSE),0) -> 0 | P137: =ROUND(F137*VLOOKUP($D$137,ALLOCTABLE_Prod_Customer,$P$10,FALSE),0) -> 0 | Q137: =ROUND(F137*VLOOKUP(D137,ALLOCTABLE_Prod_Customer,$Q$10,FALSE),0) -> 0 | R137: =SUM(G137:Q137) -> 0 | S137: =F137-R137 -> 0
A138: 4 | C138: ='FR-16(7)(v)-1 Functional'!C138 -> ADJUSTMENT | D138: ='FR-16(7)(v)-1 Functional'!D138 -> K201 | F138: ='FR-16(7)(v)-2 PROD Classified'!I138 -> 0 | G138: =F138-SUM(H138:Q138) -> 0 | H138: =ROUND(F136*VLOOKUP(D136,ALLOCTABLE_Prod_Customer,$H$10,FALSE),0) -> 0 | I138: =ROUND(F138*VLOOKUP($D$138,ALLOCTABLE_Prod_Customer,$I$10,FALSE),0) -> 0 | J138: =ROUND(F138*VLOOKUP($D$138,ALLOCTABLE_Prod_Customer,$J$10,FALSE),0) -> 0 | K138: =ROUND(F138*VLOOKUP($D$138,ALLOCTABLE_Prod_Customer,$K$10,FALSE),0) -> 0 | L138: =ROUND(F138*VLOOKUP($D$138,ALLOCTABLE_Prod_Customer,$L$10,FALSE),0) -> 0 | M138: =ROUND(F138*VLOOKUP($D$138,ALLOCTABLE_Prod_Customer,$M$10,FALSE),0) -> 0 | N138: =ROUND(F138*VLOOKUP($D$138,ALLOCTABLE_Prod_Customer,$N$10,FALSE),0) -> 0 | O138: =ROUND(F138*VLOOKUP($D$138,ALLOCTABLE_Prod_Customer,$O$10,FALSE),0) -> 0 | P138: =ROUND(F138*VLOOKUP($D$138,ALLOCTABLE_Prod_Customer,$P$10,FALSE),0) -> 0 | Q138: =ROUND(F138*VLOOKUP(D138,ALLOCTABLE_Prod_Customer,$Q$10,FALSE),0) -> 0 | R138: =SUM(G138:Q138) -> 0 | S138: =F138-R138 -> 0
A139: 5 | C139: ='FR-16(7)(v)-1 Functional'!C139 -> TOTAL PROD DEPREC RESERVE | F139: =SUM(F136:F138) -> 0 | G139: 0 | H139: 0 | I139: 0 | J139: 0 | K139: 0 | L139: 0 | M139: 0 | N139: 0 | O139: 0 | P139: 0 | Q139: 0 | R139: 0 | S139: =SUM(S136:S136) -> 0
A140: 6
A141: 7 | B141: TRANSMISSION PLANT
A142: 8 | C142: MAIN STEP-UP TRANSFORMERS | D142: ='FR-16(7)(v)-1 Functional'!D142 -> K202 | F142: ='FR-16(7)(v)-2 PROD Classified'!I142 -> 0 | G142: =F142-SUM(H142:Q142) -> 0 | H142: =ROUND(F136*VLOOKUP(D136,ALLOCTABLE_Prod_Customer,$H$10,FALSE),0) -> 0 | I142: =ROUND(F142*VLOOKUP($D$142,ALLOCTABLE_Prod_Customer,$I$10,FALSE),0) -> 0 | J142: =ROUND(F142*VLOOKUP($D$142,ALLOCTABLE_Prod_Customer,$J$10,FALSE),0) -> 0 | K142: =ROUND(F142*VLOOKUP($D$142,ALLOCTABLE_Prod_Customer,$K$10,FALSE),0) -> 0 | L142: =ROUND(F142*VLOOKUP($D$142,ALLOCTABLE_Prod_Customer,$L$10,FALSE),0) -> 0 | M142: =ROUND(F142*VLOOKUP($D$142,ALLOCTABLE_Prod_Customer,$M$10,FALSE),0) -> 0 | N142: =ROUND(F142*VLOOKUP($D$142,ALLOCTABLE_Prod_Customer,$N$10,FALSE),0) -> 0 | O142: =ROUND(F142*VLOOKUP($D$142,ALLOCTABLE_Prod_Customer,$O$10,FALSE),0) -> 0 | P142: =ROUND(F142*VLOOKUP($D$142,ALLOCTABLE_Prod_Customer,$P$10,FALSE),0) -> 0 | Q142: =ROUND(F142*VLOOKUP(D142,ALLOCTABLE_Prod_Customer,$Q$10,FALSE),0) -> 0 | R142: =SUM(G142:Q142) -> 0 | S142: =F142-R142 -> 0
